Workbook

Sheet Brassage
A1: Projet - Irish Stout | I1: =A1 -> Projet - Irish Stout | P1: =A1 -> Projet - Irish Stout
A3: Style | B3: 15B - Irish Stout | E3: Brassin | F3: BJCCP 2015 min/max | I3: Profil Matériel | J3: Température du malt | L3: 19 | M3: Température cuve d'empatage | O3: 70.3 | P3: Sels de brassage
A4: Volume | B4: 28 | D4: DI | E4: =L28 -> 1.042677858 | F4: =IF($B$3="","",VLOOKUP($B$3,BJCCP!$A$1:$AH$119,2,FALSE)) -> 1.036 | H4: =IF($B$3="","",VLOOKUP($B$3,BJCCP!$A$1:$AH$119,3,FALSE)) -> 1.044 | J4: ="Ratio d'empatage ("&ROUND((L23+H34/1000+O6*L5)/(H34/1000),2)&" max)" -> Ratio d'empatage (7,29 max) | L4: 3.5 | M4: c*m cuve empatage | O4: =5.83*500 -> 2915 | P4: Nom générique | Q4: Nomenclature UICPA | R4: Formule chimique | S4: Ajout en g/L | T4: Ajout Empatage | U4: Ajout Rinçage | V4: Ajout Total
A5: Date | B5: 2021-09-25 | D5: DF | E5: =IF(D5="DF",L28-((L28-1)*MAX(E60,E61)),N61) -> 1.010714276 | F5: =IF($B$3="","",VLOOKUP($B$3,BJCCP!$A$1:$AH$119,4,FALSE)) -> 1.007 | H5: =IF($B$3="","",VLOOKUP($B$3,BJCCP!$A$1:$AH$119,5,FALSE)) -> 1.011 | J5: Rétention grains | L5: 1 | M5: Facteur correctif T°empatage | O5: =-((232.2934*(Brassage!$L$8*100)^2 -7471.1515*(Brassage!$L$8*100)+63999.0441)*0.5*Brassage!$H$34/1000)/((Brassage!$H$34/1000)*(23.9246*Brassage!$L$8*100+1585.0029)+Brassage!$M$10*4185) -> -1.158459888
A6: Rendement d'empatage | C6: 0.78 | D6: Couleur | E6: =2.9396*((4.23*(C25*H25+C26*H26+C27*H27+C28*H28+C29*H29+C30*H30+C31*H31+C32*H32+C33*H33)/1000)/ L29 )^0.6859 -> 75.89842168 | F6: =IF($B$3="","",VLOOKUP($B$3,BJCCP!$A$1:$AH$119,6,FALSE)) -> 49.25 | H6: =IF($B$3="","",VLOOKUP($B$3,BJCCP!$A$1:$AH$119,7,FALSE)) -> 78.8 | J6: Durée d'ébulition | L6: 60 | M6: Pertes cuve filtration | O6: 1.2 | P6: Gypse | Q6: Sulfate de Calcium | R6: CaSO4 | S6: ='Profil d''eau'!C36 -> 0.28 | T6: ='Profil d''eau'!D36 -> 5.292 | U6: ='Profil d''eau'!F36 -> 5.6 | V6: ='Profil d''eau'!H36 -> 10.892
A7: Palier 1 | B7: 64 | C7: 60 | D7: Amertume | E7: =H57 -> 32.92610835 | F7: =IF($B$3="","",VLOOKUP($B$3,BJCCP!$A$1:$AH$119,8,FALSE)) -> 25 | H7: =IF($B$3="","",VLOOKUP($B$3,BJCCP!$A$1:$AH$119,9,FALSE)) -> 45 | J7: % d'évaporation/h | L7: 0.1 | M7: Pertes cuve ébu | O7: 1 | P7: Sel de table | Q7: Chlorure de Sodium | R7: NaCl | S7: ='Profil d''eau'!C37 -> 0 | T7: ='Profil d''eau'!D37 -> 0 | U7: ='Profil d''eau'!F37 -> 0 | V7: ='Profil d''eau'!H37 -> 0
A8: Palier 2 | D8: ABV | E8: =IF(D8="ABV",1000*(E4-E5)/7.6,(76.08*((E4+(L60/2.57452)/1000)-E5)/(1.775-(E4+(L60/2.57452)/1000))*(E5/0.794))) -> 4.20573448 | F8: =IF($B$3="","",VLOOKUP($B$3,BJCCP!$A$1:$AH$119,10,FALSE)) -> 4 | H8: =IF($B$3="","",VLOOKUP($B$3,BJCCP!$A$1:$AH$119,11,FALSE)) -> 4.5 | J8: Humidité du malt | L8: 0.04 | M8: Pertes cuve tampon | O8: 1 | P8: Sel d'Epsom | Q8: Sulfate de Magnésium | R8: MgSO4 | S8: ='Profil d''eau'!C38 -> 0.07 | T8: ='Profil d''eau'!D38 -> 1.323 | U8: ='Profil d''eau'!F38 -> 1.4 | V8: ='Profil d''eau'!H38 -> 2.723
A9: Palier 3 | D9: vol CO2 | E9: 1.8 | F9: =IF($B$3="","",VLOOKUP($B$3,BJCCP!$A$1:$AH$119,20,FALSE)) -> 1.5 | H9: =IF($B$3="","",VLOOKUP($B$3,BJCCP!$A$1:$AH$119,21,FALSE)) -> 2.3 | J9: Volume d'eau total | L9: =M10+M18 -> 41.56666667 | M9: Pertes fermenteur | O9: 1.5 | P9: E509 | Q9: Chlorure de Calcium | R9: CaCl2 | S9: ='Profil d''eau'!C39 -> 0.12 | T9: ='Profil d''eau'!D39 -> 2.268 | U9: ='Profil d''eau'!F39 -> 2.4 | V9: ='Profil d''eau'!H39 -> 4.668
A10: Mash-Out | B10: 78 | C10: 10 | D10: IBU/DI | E10: =E7/((E4-1)*1000) -> 0.7715032943 | F10: =F7/((H4-1)*1000) -> 0.5681818182 | H10: =H7/((F4-1)*1000) -> 1.25 | I10: Chauffe Directe | J10: 100 | K10: Eau d'empatage | M10: =H34*L4/1000 -> 19.95 | N10: à | O10: =B7+O5+(((H34/1000)*(23.9246*L8*100+1585.0029))*(B7 - L3)+(O4*(B7-O3)))/(M10 *4185) -> 67.78502647 | P10: Bicarbonate de soude | Q10: Hydrogénocarbonate de Sodium | R10: NaHCO3 | S10: ='Profil d''eau'!C40 -> 0 | T10: ='Profil d''eau'!D40 -> 0 | U10: ='Profil d''eau'!F40 -> 0 | V10: ='Profil d''eau'!H40 -> 0
A11: Total hors MO | B11: =B7*C7/C11+B8*C8/C11+B9*C9/C11 -> 64 | C11: =SUM(C7:C9) -> 60 | D11: RBR : IBU/RE | E11: =E7/(0.1808*(259-(259/E4))+(0.8192*(259-(259/E5)))) -> 7.903788026 | F11: =F7/(0.1808*(259-(259/H4))+(0.8192*(259-(259/F5)))) -> 7.249643237 | H11: =H7/(0.1808*(259-(259/F4))+(0.8192*(259-(259/H5)))) -> 11.43377733 | I11: Empatage | K11: Volume de la maische à l'empatage | N11: =IF(I10="Infusion",H35/1000*1.65+(M10-H35/1000),H35/1000*1.65+(M10-H35/1000)) -> 23.655 | P11: Craie/Desacid/Blanc de Medon | Q11: Carbonate de Calcium | R11: CaCO3 | S11: ='Profil d''eau'!C41 -> 0.02 | T11: ='Profil d''eau'!D41 -> 0.378 | U11: ='Profil d''eau'!F41 -> 0.4 | V11: ='Profil d''eau'!H41 -> 0.778
A12: x | B12: x | C12: x | D12: x | E12: x | F12: x | G12: x | H12: x | K12: pH 25°C | M12: =VLOOKUP(K12,F16:H18,3,FALSE) -> 5.554941765 | N12: ph réel | O12: =IF($I$10="Chauffe Directe","",IF($I$10="Infusion",M10,"")) -> 
A13: BJCCP | B13: =IF($B$3="","",VLOOKUP($B$3,BJCCP!$A$1:$AH$119,22,FALSE)) -> 50-75 | C13: =IF($B$3="","",VLOOKUP($B$3,BJCCP!$A$1:$AH$119,23,FALSE)) -> 0-30 | D13: =IF($B$3="","",VLOOKUP($B$3,BJCCP!$A$1:$AH$119,24,FALSE)) -> 80-150 | E13: =IF($B$3="","",VLOOKUP($B$3,BJCCP!$A$1:$AH$119,25,FALSE)) -> 50-150 | F13: =IF($B$3="","",VLOOKUP($B$3,BJCCP!$A$1:$AH$119,26,FALSE)) -> 50-100 | G13: (0-250) | H13: Profil utilisé | K13: Profil | L13: =A7 -> Palier 1 | M13: =B7 -> 64 | N13: =IF(C7=0,"",C7) -> 60 | O13: =IF($I$10="Chauffe Directe","",IF($I$10="Infusion",((M14-M13)*(0.41*$H$34/1000+($M$10))/($J$10-M14)),(M14-M13)/($J$10-M13)*$N$11)) -> 
A14: Eau | B14: Ca (50-150) | C14: Mg (10-40) | D14: Na (0-150) | E14: SO4 (50-250) | F14: Cl (0-250) | G14: HCO3 | L14: =A8 -> Palier 2 | M14: =IF($I$10="Chauffe Directe",IF(B8=0,"",B8),IF(B8=0,M13,B8)) ->  | N14: =IF(C8=0,"",C8) ->  | O14: =IF($I$10="Chauffe Directe","",IF($I$10="Infusion",((M15-M14)*(0.41*$H$34/1000+($M$10+O13))/(J10-M15)),(M15-M14)/($J$10-M14)*$N$11)) ->  | P14: =VLOOKUP(K12,F16:H18,2,FALSE) -> 0
B15: 50 | C15: 20 | D15: 60 | E15: 50 | F15: 175 | G15: 170 | H15: Stout - Porter | L15: =A9 -> Palier 3 | M15: =IF($I$10="Chauffe Directe",IF(B9=0,"",B9),IF(B9=0,M14,B9)) ->  | N15: =IF(C9=0,"",C9) ->  | O15: =IF($I$10="Chauffe Directe","",IF($I$10="Infusion",((M16-M15)*(0.41*$H$34/1000+($M$10+O13+O14))/(J10-M16)),(M16-M15)/($J$10-M15)*$N$11)) -> 
B16: =B15/20 -> 2.5 | C16: =C15/12.15 -> 1.646090535 | D16: A. Totale | E16: A. Résiduelle | F16: pH 25°C | H16: =D34+H21*0.084 -> 5.554941765 | L16: =A10 -> Mash-Out | M16: =IF($I$10="Chauffe Directe",IF(B10=0,"",B10),IF(B10=0,M15,B10)) -> 78 | N16: =IF(C10=0,"",C10) -> 10 | O16: =IF(I10="Infusion",SUM(O12:O15),"") -> 
B17: ratio SO4/Cl | C17: =INDEX({"Extrêmement maltée";"Très maltée";"Maltée";"Equilibrée";"Légèrement amère";"Amère";"Très amère";"Extrêmement amère";"Hors-Limites"},MATCH(B18,{0;0.4;0.6;0.8;1.5;2;6;8;18},1)) -> Extrêmement maltée | D17: =G15/1.22 -> 139.3442623 | E17: =D17-(B15/1.4+C15/1.7) -> 91.8652707 | F17: pH 65°C | H17: =H16-0.35 -> 5.204941765 | I17: x | J17: x | K17: x | L17: x | M17: x | N17: x | O17: x
B18: =E15/F15 -> 0.2857142857 | D18: =G15/61 -> 2.786885246 | E18: =D18-(B16/3.5)-(C16/7) -> 1.837443741 | F18: pH Ez-water | H18: =D34+(0.1085*(M10/3.785412)/(H34*2.20462/1000)+0.013)*F21/50 -> 5.473080512 | I18: Rinçage | K18: Eau de rinçage | M18: =IF($I$10="Infusion",L23-O16+H34*L5/1000+O6,L23-M10+H34*L5/1000+O6) -> 21.61666667 | N18: Densité fin de rinçage
A19: x | B19: x | C19: x | D19: x | E19: x | F19: x | G19: x | H19: x | M19: 78
A20: Acide Lactique | B20: Concentration | C20: Quantié | D20: Alcalinité totale corrigée | F20: A. Résiduelle corrigée | I20: x | J20: x | K20: x | L20: x | M20: x | N20: x | O20: x
B21: 0.8 | C21: 2 | D21: =D17-(176.1*B21*C21*2)/(M10*0.264172) -> 32.41916599 | F21: =D21-(B15/1.4+C15/1.7) -> -15.05982561 | H21: =E18-B22/M10 -> 0.7647620366 | I21: Pré-ébullition | L21: Théorique | N21: Réel
B22: =C21*VLOOKUP(B21,Paramètres!H45:I48,2,FALSE) -> 21.4 | C22: BJCCP => | D22: =IF($B$3="","",VLOOKUP($B$3,BJCCP!$A$1:$AH$119,27,FALSE)) -> <100 | F22: =IF($B$3="","",VLOOKUP($B$3,BJCCP!$A$1:$AH$119,28,FALSE)) -> 30-90 | K22: Densité | L22: =1+(((E34*C6*H34))/(2.57452*L23)/1000) -> 1.038410073
A23: x | B23: x | C23: x | D23: x | E23: x | F23: x | G23: x | H23: x | K23: Volume | L23: =((B4+O7+O8)/(1-L7*L6/60))*(1+0.04) -> 34.66666667
A24: Grains | B24: Type | C24: EBC | D24: pH | E24: Rmax théo | F24: % max | G24: % | H24: Poids | K24: Rendement d'empatage | L24: =C6 -> 0.78 | N24: =(2.57452*(N22-1)*N23*1000)/(H34*E34) -> 0
B25: Pale ale Château | C25: =IF(B25="",0,VLOOKUP(B25,Paramètres!$A$1:$E$300,3,FALSE)) -> 8.5 | D25: =IF(B25="",0,VLOOKUP(B25,Paramètres!$A$1:$E$300,5,FALSE)) -> 5.7 | E25: =IF(B25="",0,VLOOKUP(B25,Paramètres!$A$1:$E$300,2,FALSE)) -> 0.81 | F25: =IF(B25="",0,VLOOKUP(B25,Paramètres!$A$1:$E$300,4,FALSE)) -> 1 | G25: =H25/$H$35 -> 0.701754386 | H25: 4000
B26: Avoine (flocons) | C26: =IF(B26="",0,VLOOKUP(B26,Paramètres!$A$1:$E$300,3,FALSE)) -> 5 | D26: =IF(B26="",0,VLOOKUP(B26,Paramètres!$A$1:$E$300,5,FALSE)) -> 5.2 | E26: =IF(B26="",0,VLOOKUP(B26,Paramètres!$A$1:$E$300,2,FALSE)) -> 0.7 | F26: =IF(B26="",0,VLOOKUP(B26,Paramètres!$A$1:$E$300,4,FALSE)) -> 0.25 | G26: 0.1754385965 | H26: 1000 | I26: x | J26: x | K26: x | L26: x | M26: x | N26: x | O26: x
B27: Château Roasted Barley | C27: =IF(B27="",0,VLOOKUP(B27,Paramètres!$A$1:$E$300,3,FALSE)) -> 1150 | D27: =IF(B27="",0,VLOOKUP(B27,Paramètres!$A$1:$E$300,5,FALSE)) -> 4.71 | E27: =IF(B27="",0,VLOOKUP(B27,Paramètres!$A$1:$E$300,2,FALSE)) -> 0.65 | F27: =IF(B27="",0,VLOOKUP(B27,Paramètres!$A$1:$E$300,4,FALSE)) -> 0.05 | G27: 0.1228070175 | H27: 700 | I27: Post-ébullition | L27: Théorique | N27: Réel
C28: =IF(B28="",0,VLOOKUP(B28,Paramètres!$A$1:$E$300,3,FALSE)) -> 0 | D28: =IF(B28="",0,VLOOKUP(B28,Paramètres!$A$1:$E$300,5,FALSE)) -> 0 | E28: =IF(B28="",0,VLOOKUP(B28,Paramètres!$A$1:$E$300,2,FALSE)) -> 0 | F28: =IF(B28="",0,VLOOKUP(B28,Paramètres!$A$1:$E$300,4,FALSE)) -> 0 | G28: 0 | K28: Densité | L28: =1+(((E34*C6*H34)+(E32*H32+E33*H33))/(2.57452*L29)/1000) -> 1.042677858
C29: =IF(B29="",0,VLOOKUP(B29,Paramètres!$A$1:$E$300,3,FALSE)) -> 0 | D29: =IF(B29="",0,VLOOKUP(B29,Paramètres!$A$1:$E$300,5,FALSE)) -> 0 | E29: =IF(B29="",0,VLOOKUP(B29,Paramètres!$A$1:$E$300,2,FALSE)) -> 0 | F29: =IF(B29="",0,VLOOKUP(B29,Paramètres!$A$1:$E$300,4,FALSE)) -> 0 | G29: 0 | K29: Volume | L29: =L23*(1-L7*L6/60) -> 31.2
C30: =IF(B30="",0,VLOOKUP(B30,Paramètres!$A$1:$E$300,3,FALSE)) -> 0 | D30: =IF(B30="",0,VLOOKUP(B30,Paramètres!$A$1:$E$300,5,FALSE)) -> 0 | E30: =IF(B30="",0,VLOOKUP(B30,Paramètres!$A$1:$E$300,2,FALSE)) -> 0 | F30: =IF(B30="",0,VLOOKUP(B30,Paramètres!$A$1:$E$300,4,FALSE)) -> 0 | G30: 0 | K30: Evaporation | L30: =L7*100 -> 10 | M30: =L7*L23*L6/60 -> 3.466666667 | N30: =((N23-N29)/N23)*100*60/L6 ->  | O30: =N30/100*N23 -> 
C31: =IF(B31="",0,VLOOKUP(B31,Paramètres!$A$1:$E$300,3,FALSE)) -> 0 | D31: =IF(B31="",0,VLOOKUP(B31,Paramètres!$A$1:$E$300,5,FALSE)) -> 0 | E31: =IF(B31="",0,VLOOKUP(B31,Paramètres!$A$1:$E$300,2,FALSE)) -> 0 | F31: =IF(B31="",0,VLOOKUP(B31,Paramètres!$A$1:$E$300,4,FALSE)) -> 0 | G31: 0 | K31: Vérif' : Différence quantité de sucre pré et post-ébu | O31: =((N22-1)*1000)*N23*2.57452-((N28-1)*1000)*N29*2.57452 -> 0
A32: Sucres | C32: =IF(B32="",0,VLOOKUP(B32,Paramètres!$F$18:$I$31,3,FALSE)) -> 0 | E32: =IF(B32="",0,VLOOKUP(B32,Paramètres!$F$18:$I$31,2,FALSE)) -> 0 | G32: 0 | I32: x | J32: x | K32: x | L32: x | M32: x | N32: x | O32: x
C33: =IF(B33="",0,VLOOKUP(B33,Paramètres!$F$18:$I$31,3,FALSE)) -> 0 | E33: =IF(B33="",0,VLOOKUP(B33,Paramètres!$F$18:$I$31,2,FALSE)) -> 0 | G33: 0 | I33: En fermenteur | L33: Théorique | N33: Réel
A34: Total | B34: grains | C34: =2.9396*((4.23*(C25*H25+C26*H26+C27*H27+C28*H28+C29*H29+C30*H30+C31*H31)/1000)/ L29 )^0.6859 -> 75.89842168 | D34: =(D25*H25+D26*H26+D27*H27+D28*H28+D29*H29+D30*H30+D31*H31)/H34 -> 5.490701754 | E34: =(E25*H25+E26*H26+E27*H27+E28*H28+E29*H29+E30*H30+E31*H31)/H34 -> 0.7710526316 | G34: =SUM(G25:G31) -> 1 | H34: =SUM(H25:H31) -> 5700 | K34: DI | L34: =L28 -> 1.042677858
A35: Total | B35: général | C35: =L8 -> 0.04 | D35: =D34 -> 5.490701754 | E35: =E25*G25+E26*G26+E27*G27+E28*G28+E29*G29+E30*G30+E31*G31+E32*G32+E33*G33 -> 0.7710526316 | G35: =SUM(G25:G31)+G32+G33 -> 1 | H35: =SUM(H25:H31)+H32+H33 -> 5700 | K35: Volume | L35: =L29*(1-0.04)-O8-O7 -> 27.952
A36: x | B36: x | C36: x | D36: x | E36: x | F36: x | G36: x | H36: x | K36: Efficacité du brassage | L36: =(2.57452*L35*(L34-1)*1000)/(E35*H35) -> 0.6988 | N36: =(2.57452*N35*(N34-1)*1000)/(E35*H35) -> 0
A37: Autre | B37: Type | D37: Utilisation | E37: Durée | F37: Quantité | H37: Notes
I38: x | J38: x | K38: x | L38: x | M38: x | N38: x | O38: x
I39: Fermentation | K39: Profil | L39: T°C | M39: Durée | N39: Fin théorique | O39: Fin réelle
L40: 20 | M40: 28 | N40: =B5+M40 -> 2021-10-23
L41: 2 | M41: 2 | N41: =IF(M41="","",N40+M41) -> 2021-10-25
A42: x | B42: x | C42: x | D42: x | E42: x | F42: x | G42: x | H42: x | N42: =IF(M42="","",N41+M42) -> 
A43: Houblons | B43: Type | C43: Acide Alpha | D43: Utilisation | E43: Durée | F43: Poids | G43: g/L | H43: IBUs | N43: =IF(M43="","",N42+M43) -> 
B44: Magnum | C44: 0.139 | D44: Ebullition | E44: 60 | F44: 30 | G44: =F44/$B$4 -> 1.071428571 | H44: =IFERROR(IF(D44="Ebullition",((1.65*(0.000125^($L$28-1))*((1-EXP(-0.04*E44))/4.15))*C44*F44*1000)/($L$29)*Paramètres!$H$2,IF(D44="DH",((1.65*(0.000125^($L$28-1))*((1-EXP(-0.04*E44))/4.15))*C44*F44*1000)/($L$29)*Paramètres!$H$3,IF(D44="Hop-stand",((1.65*(0.000125^($L$28-1))*((1-EXP(-0.04*E44))/4.15))*C44*F44*1000)/($L$29)*Paramètres!$H$4,IF(D44="FWH",((1.65*(0.000125^($L$28-1))*((1-EXP(-0.04*E44))/4.15))*C44*F44*1000)/($L$29)*Paramètres!$H$5,IF(D44="Mash-hop",((1.65*(0.000125^($L$28-1))*((1-EXP(-0.04*E44))/4.15))*C44*F44*1000)/($L$29)*Paramètres!$H$6,IF(D44="Flame-out",((1.65*(0.000125^($L$28-1))*((1-EXP(-0.04*E44))/4.15))*C44*F44*1000)/($L$29)*Paramètres!$H$7,"")))))),0) -> 32.92610835 | K44: Suivi de la fermentation
G45: =F45/$B$4 -> 0 | H45: =IFERROR(IF(D45="Ebullition",((1.65*(0.000125^($L$28-1))*((1-EXP(-0.04*E45))/4.15))*C45*F45*1000)/($L$29)*Paramètres!$H$2,IF(D45="DH",((1.65*(0.000125^($L$28-1))*((1-EXP(-0.04*E45))/4.15))*C45*F45*1000)/($L$29)*Paramètres!$H$3,IF(D45="Hop-stand",((1.65*(0.000125^($L$28-1))*((1-EXP(-0.04*E45))/4.15))*C45*F45*1000)/($L$29)*Paramètres!$H$4,IF(D45="FWH",((1.65*(0.000125^($L$28-1))*((1-EXP(-0.04*E45))/4.15))*C45*F45*1000)/($L$29)*Paramètres!$H$5,IF(D45="Mash-hop",((1.65*(0.000125^($L$28-1))*((1-EXP(-0.04*E45))/4.15))*C45*F45*1000)/($L$29)*Paramètres!$H$6,IF(D45="Flame-out",((1.65*(0.000125^($L$28-1))*((1-EXP(-0.04*E45))/4.15))*C45*F45*1000)/($L$29)*Paramètres!$H$7,"")))))),0) ->  | K45: Date | L45: Brix | M45: Densité | N45: Atténuation | O45: Progression
G46: 0 | H46: =IFERROR(IF(D46="Ebullition",((1.65*(0.000125^($L$28-1))*((1-EXP(-0.04*E46))/4.15))*C46*F46*1000)/($L$29)*Paramètres!$H$2,IF(D46="DH",((1.65*(0.000125^($L$28-1))*((1-EXP(-0.04*E46))/4.15))*C46*F46*1000)/($L$29)*Paramètres!$H$3,IF(D46="Hop-stand",((1.65*(0.000125^($L$28-1))*((1-EXP(-0.04*E46))/4.15))*C46*F46*1000)/($L$29)*Paramètres!$H$4,IF(D46="FWH",((1.65*(0.000125^($L$28-1))*((1-EXP(-0.04*E46))/4.15))*C46*F46*1000)/($L$29)*Paramètres!$H$5,IF(D46="Mash-hop",((1.65*(0.000125^($L$28-1))*((1-EXP(-0.04*E46))/4.15))*C46*F46*1000)/($L$29)*Paramètres!$H$6,IF(D46="Flame-out",((1.65*(0.000125^($L$28-1))*((1-EXP(-0.04*E46))/4.15))*C46*F46*1000)/($L$29)*Paramètres!$H$7,"")))))),0) ->  | M46: =IF(L46=0,"",1-0.000856829*(-616.868 + 1111.14 * $N$34- 630.272 * $N$34^ 2+135.997 *$N$34^3)+0.00349412*(L46/1.04)) ->  | N46: =IF(M46="","",($N$34-M46)/($N$34-1)) ->  | O46: =IF(N46="","",N46/$L$56) -> 
G47: 0 | H47: =IFERROR(IF(D47="Ebullition",((1.65*(0.000125^($L$28-1))*((1-EXP(-0.04*E47))/4.15))*C47*F47*1000)/($L$29)*Paramètres!$H$2,IF(D47="DH",((1.65*(0.000125^($L$28-1))*((1-EXP(-0.04*E47))/4.15))*C47*F47*1000)/($L$29)*Paramètres!$H$3,IF(D47="Hop-stand",((1.65*(0.000125^($L$28-1))*((1-EXP(-0.04*E47))/4.15))*C47*F47*1000)/($L$29)*Paramètres!$H$4,IF(D47="FWH",((1.65*(0.000125^($L$28-1))*((1-EXP(-0.04*E47))/4.15))*C47*F47*1000)/($L$29)*Paramètres!$H$5,IF(D47="Mash-hop",((1.65*(0.000125^($L$28-1))*((1-EXP(-0.04*E47))/4.15))*C47*F47*1000)/($L$29)*Paramètres!$H$6,IF(D47="Flame-out",((1.65*(0.000125^($L$28-1))*((1-EXP(-0.04*E47))/4.15))*C47*F47*1000)/($L$29)*Paramètres!$H$7,"")))))),0) -> 
G48: 0 | H48: =IFERROR(IF(D48="Ebullition",((1.65*(0.000125^($L$28-1))*((1-EXP(-0.04*E48))/4.15))*C48*F48*1000)/($L$29)*Paramètres!$H$2,IF(D48="DH",((1.65*(0.000125^($L$28-1))*((1-EXP(-0.04*E48))/4.15))*C48*F48*1000)/($L$29)*Paramètres!$H$3,IF(D48="Hop-stand",((1.65*(0.000125^($L$28-1))*((1-EXP(-0.04*E48))/4.15))*C48*F48*1000)/($L$29)*Paramètres!$H$4,IF(D48="FWH",((1.65*(0.000125^($L$28-1))*((1-EXP(-0.04*E48))/4.15))*C48*F48*1000)/($L$29)*Paramètres!$H$5,IF(D48="Mash-hop",((1.65*(0.000125^($L$28-1))*((1-EXP(-0.04*E48))/4.15))*C48*F48*1000)/($L$29)*Paramètres!$H$6,IF(D48="Flame-out",((1.65*(0.000125^($L$28-1))*((1-EXP(-0.04*E48))/4.15))*C48*F48*1000)/($L$29)*Paramètres!$H$7,"")))))),0) -> 
G49: 0 | H49: =IFERROR(IF(D49="Ebullition",((1.65*(0.000125^($L$28-1))*((1-EXP(-0.04*E49))/4.15))*C49*F49*1000)/($L$29)*Paramètres!$H$2,IF(D49="DH",((1.65*(0.000125^($L$28-1))*((1-EXP(-0.04*E49))/4.15))*C49*F49*1000)/($L$29)*Paramètres!$H$3,IF(D49="Hop-stand",((1.65*(0.000125^($L$28-1))*((1-EXP(-0.04*E49))/4.15))*C49*F49*1000)/($L$29)*Paramètres!$H$4,IF(D49="FWH",((1.65*(0.000125^($L$28-1))*((1-EXP(-0.04*E49))/4.15))*C49*F49*1000)/($L$29)*Paramètres!$H$5,IF(D49="Mash-hop",((1.65*(0.000125^($L$28-1))*((1-EXP(-0.04*E49))/4.15))*C49*F49*1000)/($L$29)*Paramètres!$H$6,IF(D49="Flame-out",((1.65*(0.000125^($L$28-1))*((1-EXP(-0.04*E49))/4.15))*C49*F49*1000)/($L$29)*Paramètres!$H$7,"")))))),0) -> 
G50: 0 | H50: =IFERROR(IF(D50="Ebullition",((1.65*(0.000125^($L$28-1))*((1-EXP(-0.04*E50))/4.15))*C50*F50*1000)/($L$29)*Paramètres!$H$2,IF(D50="DH",((1.65*(0.000125^($L$28-1))*((1-EXP(-0.04*E50))/4.15))*C50*F50*1000)/($L$29)*Paramètres!$H$3,IF(D50="Hop-stand",((1.65*(0.000125^($L$28-1))*((1-EXP(-0.04*E50))/4.15))*C50*F50*1000)/($L$29)*Paramètres!$H$4,IF(D50="FWH",((1.65*(0.000125^($L$28-1))*((1-EXP(-0.04*E50))/4.15))*C50*F50*1000)/($L$29)*Paramètres!$H$5,IF(D50="Mash-hop",((1.65*(0.000125^($L$28-1))*((1-EXP(-0.04*E50))/4.15))*C50*F50*1000)/($L$29)*Paramètres!$H$6,IF(D50="Flame-out",((1.65*(0.000125^($L$28-1))*((1-EXP(-0.04*E50))/4.15))*C50*F50*1000)/($L$29)*Paramètres!$H$7,"")))))),0) -> 
G51: 0 | H51: =IFERROR(IF(D51="Ebullition",((1.65*(0.000125^($L$28-1))*((1-EXP(-0.04*E51))/4.15))*C51*F51*1000)/($L$29)*Paramètres!$H$2,IF(D51="DH",((1.65*(0.000125^($L$28-1))*((1-EXP(-0.04*E51))/4.15))*C51*F51*1000)/($L$29)*Paramètres!$H$3,IF(D51="Hop-stand",((1.65*(0.000125^($L$28-1))*((1-EXP(-0.04*E51))/4.15))*C51*F51*1000)/($L$29)*Paramètres!$H$4,IF(D51="FWH",((1.65*(0.000125^($L$28-1))*((1-EXP(-0.04*E51))/4.15))*C51*F51*1000)/($L$29)*Paramètres!$H$5,IF(D51="Mash-hop",((1.65*(0.000125^($L$28-1))*((1-EXP(-0.04*E51))/4.15))*C51*F51*1000)/($L$29)*Paramètres!$H$6,IF(D51="Flame-out",((1.65*(0.000125^($L$28-1))*((1-EXP(-0.04*E51))/4.15))*C51*F51*1000)/($L$29)*Paramètres!$H$7,"")))))),0) -> 
G52: 0 | H52: =IFERROR(IF(D52="Ebullition",((1.65*(0.000125^($L$28-1))*((1-EXP(-0.04*E52))/4.15))*C52*F52*1000)/($L$29)*Paramètres!$H$2,IF(D52="DH",((1.65*(0.000125^($L$28-1))*((1-EXP(-0.04*E52))/4.15))*C52*F52*1000)/($L$29)*Paramètres!$H$3,IF(D52="Hop-stand",((1.65*(0.000125^($L$28-1))*((1-EXP(-0.04*E52))/4.15))*C52*F52*1000)/($L$29)*Paramètres!$H$4,IF(D52="FWH",((1.65*(0.000125^($L$28-1))*((1-EXP(-0.04*E52))/4.15))*C52*F52*1000)/($L$29)*Paramètres!$H$5,IF(D52="Mash-hop",((1.65*(0.000125^($L$28-1))*((1-EXP(-0.04*E52))/4.15))*C52*F52*1000)/($L$29)*Paramètres!$H$6,IF(D52="Flame-out",((1.65*(0.000125^($L$28-1))*((1-EXP(-0.04*E52))/4.15))*C52*F52*1000)/($L$29)*Paramètres!$H$7,"")))))),0) ->  | I52: x | J52: x | K52: x | L52: x | M52: x | N52: x | O52: x
G53: 0 | H53: =IFERROR(IF(D53="Ebullition",((1.65*(0.000125^($L$28-1))*((1-EXP(-0.04*E53))/4.15))*C53*F53*1000)/($L$29)*Paramètres!$H$2,IF(D53="DH",((1.65*(0.000125^($L$28-1))*((1-EXP(-0.04*E53))/4.15))*C53*F53*1000)/($L$29)*Paramètres!$H$3,IF(D53="Hop-stand",((1.65*(0.000125^($L$28-1))*((1-EXP(-0.04*E53))/4.15))*C53*F53*1000)/($L$29)*Paramètres!$H$4,IF(D53="FWH",((1.65*(0.000125^($L$28-1))*((1-EXP(-0.04*E53))/4.15))*C53*F53*1000)/($L$29)*Paramètres!$H$5,IF(D53="Mash-hop",((1.65*(0.000125^($L$28-1))*((1-EXP(-0.04*E53))/4.15))*C53*F53*1000)/($L$29)*Paramètres!$H$6,IF(D53="Flame-out",((1.65*(0.000125^($L$28-1))*((1-EXP(-0.04*E53))/4.15))*C53*F53*1000)/($L$29)*Paramètres!$H$7,"")))))),0) ->  | I53: Embouteillage | K53: 2020-06-17 | L53: Théorique | N53: Réel
G54: 0 | H54: =IFERROR(IF(D54="Ebullition",((1.65*(0.000125^($L$28-1))*((1-EXP(-0.04*E54))/4.15))*C54*F54*1000)/($L$29)*Paramètres!$H$2,IF(D54="DH",((1.65*(0.000125^($L$28-1))*((1-EXP(-0.04*E54))/4.15))*C54*F54*1000)/($L$29)*Paramètres!$H$3,IF(D54="Hop-stand",((1.65*(0.000125^($L$28-1))*((1-EXP(-0.04*E54))/4.15))*C54*F54*1000)/($L$29)*Paramètres!$H$4,IF(D54="FWH",((1.65*(0.000125^($L$28-1))*((1-EXP(-0.04*E54))/4.15))*C54*F54*1000)/($L$29)*Paramètres!$H$5,IF(D54="Mash-hop",((1.65*(0.000125^($L$28-1))*((1-EXP(-0.04*E54))/4.15))*C54*F54*1000)/($L$29)*Paramètres!$H$6,IF(D54="Flame-out",((1.65*(0.000125^($L$28-1))*((1-EXP(-0.04*E54))/4.15))*C54*F54*1000)/($L$29)*Paramètres!$H$7,"")))))),0) ->  | K54: Volume | L54: =L35-O9 -> 26.452
G55: 0 | H55: =IFERROR(IF(D55="Ebullition",((1.65*(0.000125^($L$28-1))*((1-EXP(-0.04*E55))/4.15))*C55*F55*1000)/($L$29)*Paramètres!$H$2,IF(D55="DH",((1.65*(0.000125^($L$28-1))*((1-EXP(-0.04*E55))/4.15))*C55*F55*1000)/($L$29)*Paramètres!$H$3,IF(D55="Hop-stand",((1.65*(0.000125^($L$28-1))*((1-EXP(-0.04*E55))/4.15))*C55*F55*1000)/($L$29)*Paramètres!$H$4,IF(D55="FWH",((1.65*(0.000125^($L$28-1))*((1-EXP(-0.04*E55))/4.15))*C55*F55*1000)/($L$29)*Paramètres!$H$5,IF(D55="Mash-hop",((1.65*(0.000125^($L$28-1))*((1-EXP(-0.04*E55))/4.15))*C55*F55*1000)/($L$29)*Paramètres!$H$6,IF(D55="Flame-out",((1.65*(0.000125^($L$28-1))*((1-EXP(-0.04*E55))/4.15))*C55*F55*1000)/($L$29)*Paramètres!$H$7,"")))))),0) ->  | K55: DF | L55: =L28-((L28-1)*MAX(E60,E61)) -> 1.010714276
G56: 0 | H56: =IFERROR(IF(D56="Ebullition",((1.65*(0.000125^($L$28-1))*((1-EXP(-0.04*E56))/4.15))*C56*F56*1000)/($L$29)*Paramètres!$H$2,IF(D56="DH",((1.65*(0.000125^($L$28-1))*((1-EXP(-0.04*E56))/4.15))*C56*F56*1000)/($L$29)*Paramètres!$H$3,IF(D56="Hop-stand",((1.65*(0.000125^($L$28-1))*((1-EXP(-0.04*E56))/4.15))*C56*F56*1000)/($L$29)*Paramètres!$H$4,IF(D56="FWH",((1.65*(0.000125^($L$28-1))*((1-EXP(-0.04*E56))/4.15))*C56*F56*1000)/($L$29)*Paramètres!$H$5,IF(D56="Mash-hop",((1.65*(0.000125^($L$28-1))*((1-EXP(-0.04*E56))/4.15))*C56*F56*1000)/($L$29)*Paramètres!$H$6,IF(D56="Flame-out",((1.65*(0.000125^($L$28-1))*((1-EXP(-0.04*E56))/4.15))*C56*F56*1000)/($L$29)*Paramètres!$H$7,"")))))),0) ->  | K56: Atténuation | L56: =L80 -> 0 | N56: =(N34-N55)/(N34-1) -> 0
B57: TOTAL | E57: =E44 -> 60 | F57: =SUM(F44:F56) -> 30 | G57: =SUM(G44:G56) -> 1.071428571 | H57: =SUM(H44:H56) -> 32.92610835 | K57: % alcool | L57: =(76.08 * (L34 - L55) / (1.775 - L34 )) * (L55 / 0.794) -> 4.226994471 | N57: =(76.08 * (N34 - N55) / (1.775 - N34 )) * (N55 / 0.794) -> 0
B58: x | C58: x | D58: x | E58: x | F58: x | G58: x | H58: x | K58: Carbonatation en keg | L58: T°C | M58: Pression d'équilibre | O58: % alcool
A59: Levures | B59: Type | D59: Quantité recommandée | E59: Atténuation corrigée | F59: T°C min | G59: T°C max | H59: Quantité utilisée (mds) | L59: 3 | M59: =( -16.6999 - 0.0101059*(32+L59*9/5)+ 0.00116512 *(32+L59*9/5)^2 + 0.173354 *(32+L59*9/5)*E9 + 4.24267 *E9 - 0.0684226*E9^2)/14.515 -> 0.2505801342 | O59: =N57 -> 0
B60: Whitelabs - WLP023 Burton Ale Yeast | D60: =IF(B60="","",$L$35*(-676.67+1286.4*$L$34-800.47*$L$34^2+190.74*$L$34^3)*IF($E$4<Paramètres!$H$10,Paramètres!$H$11,Paramètres!$I$11)*IF(ISNUMBER(SEARCH("lager",$B$3)),2,1)) -> 222.1413147 | E60: =IF(B60="","",(-0.003*$B$11^2+0.3904*$B$11-11.699)*VLOOKUP(B60,Paramètres!$J$2:$Q$300,4,FALSE)) -> 0.74895 | F60: =IF(B60="","",VLOOKUP(B60,Paramètres!$J$2:$Q$300,6,FALSE)) -> 20 | G60: =IF(B60="","",VLOOKUP(B60,Paramètres!$J$2:$Q$300,7,FALSE)) -> 22.8 | H60: 220 | K60: Resucrage | L60: =(E9-(3.0378-5.0062*0.01*(MAX(L40:L42)*1.8+32)+2.6555*0.0001*(MAX(L40:L42)*1.8+32)^2))*4 -> 3.7540512 | M60: soit | N60: =L60*N54 -> 0 | O60: =(76.08*((N34+(L60/2.57452)/1000)-N55)/(1.775-(N34+(L60/2.57452)/1000))*(N55/0.794)) -> 0
D61: =IF(B61="","",$L$35*(-676.67+1286.4*$L$34-800.47*$L$34^2+190.74*$L$34^3)*IF($E$4<Paramètres!$H$10,Paramètres!$H$11,Paramètres!$I$11)*IF(ISNUMBER(SEARCH("lager",$B$3)),2,1)) ->  | E61: =IF(B61="","",(-0.003*$B$11^2+0.3904*$B$11-11.699)*VLOOKUP(B61,Paramètres!$J$2:$Q$300,4,FALSE)) ->  | F61: =IF(B61="","",VLOOKUP(B61,Paramètres!$J$2:$Q$300,6,FALSE)) ->  | G61: =IF(B61="","",VLOOKUP(B61,Paramètres!$J$2:$Q$300,7,FALSE)) ->  | I61: Ajout de non-fermentiscibles | K61: Lactose | L61: 0 | M61: =L61*N54 -> 0 | N61: =L55+(L61*(VLOOKUP(K61,Paramètres!F35:I41,2,FALSE))/2.57452)/1000 -> 1.010714276 | O61: =N55+(L61*(VLOOKUP(K61,Paramètres!F35:I41,2,FALSE))/2.57452)/1000 -> 0
M63: =VLOOKUP(K61,Paramètres!F35:I41,2,TRUE) -> 
B69: =IF(ROWS($1:7)<=COUNTIF(Utilisation,$F$63),INDEX(result,SMALL(IF(Utilisation=$F$63,ROW(INDIRECT("1:"&ROWS(Utilisation)))),ROWS($1:7))),"") ->  | E69: =IF(ROWS($1:7)<=COUNTIF(Utilisation,"Ebullition"),INDEX(poids,SMALL(IF(Utilisation="Ebullition",ROW(INDIRECT("1:"&ROWS(Utilisation)))),ROWS($1:7))),"") ->  | F69: =IF(ROWS($1:7)<=COUNTIF(Utilisation,"Ebullition"),INDEX(Durée,SMALL(IF(Utilisation="Ebullition",ROW(INDIRECT("1:"&ROWS(Utilisation)))),ROWS($1:7))),"") -> 
B70: =IF(ROWS($1:8)<=COUNTIF(Utilisation,$F$63),INDEX(result,SMALL(IF(Utilisation=$F$63,ROW(INDIRECT("1:"&ROWS(Utilisation)))),ROWS($1:8))),"") -> 

Sheet Feuille de Brassage
A1: =Brassage!A1 -> Projet - Irish Stout
A2: x | B2: x | C2: x | D2: x | E2: x | F2: x | G2: x
A3: Préparation du grain | D3: Préparation de l'eau
A4: Peser, (+/-conditionner) puis broyer : | E4: Empatage | F4: Rinçage | G4: Total
A5: =Brassage!H25 -> 4000 | B5: =IF(A5=0,"",Brassage!B25&" ("&Brassage!C25&" EBC)") -> Pale ale Château (8,5 EBC) | D5: Volume | E5: =Brassage!M10 -> 19.95 | F5: =Brassage!M18 -> 21.61666667 | G5: =E5+F5 -> 41.56666667
A6: =IF(Brassage!H26>0,Brassage!H26,"-") -> 1000 | B6: =IF(A6="-","",Brassage!B26&" ("&Brassage!C26&" EBC)") -> Avoine (flocons) (5 EBC) | D6: =Brassage!R6 -> CaSO4 | E6: =Brassage!T6 -> 5.292 | F6: =Brassage!U6 -> 5.6 | G6: =Brassage!S6 -> 0.28
A7: =IF(Brassage!H27>0,Brassage!H27,"-") -> 700 | B7: =IF(A7="-","",Brassage!B27&" ("&Brassage!C27&" EBC)") -> Château Roasted Barley (1150 EBC) | D7: =Brassage!R7 -> NaCl | E7: =Brassage!T7 -> 0 | F7: =Brassage!U7 -> 0 | G7: =Brassage!S7 -> 0
A8: =IF(Brassage!H28>0,Brassage!H28,"-") -> - | B8: =IF(A8="-","",Brassage!B28&" ("&Brassage!C28&" EBC)") ->  | D8: =Brassage!R8 -> MgSO4 | E8: =Brassage!T8 -> 1.323 | F8: =Brassage!U8 -> 1.4 | G8: =Brassage!S8 -> 0.07 | O8: =Brassage!AC7 -> 0 | P8: =Brassage!AE8 -> 0
A9: =IF(Brassage!H29>0,Brassage!H29,"-") -> - | B9: =IF(A9="-","",Brassage!B29&" ("&Brassage!C29&" EBC)") ->  | D9: =Brassage!R9 -> CaCl2 | E9: =Brassage!T9 -> 2.268 | F9: =Brassage!U9 -> 2.4 | G9: =Brassage!S9 -> 0.12 | O9: =Brassage!AC8 -> 0 | P9: =Brassage!AE9 -> 0
A10: =IF(Brassage!H30>0,Brassage!H30,"-") -> - | B10: =IF(A10="-","",Brassage!B30&" ("&Brassage!C30&" EBC)") ->  | D10: =Brassage!R10 -> NaHCO3 | E10: =Brassage!T10 -> 0 | F10: =Brassage!U10 -> 0 | G10: =Brassage!S10 -> 0 | O10: =Brassage!AC9 -> 0 | P10: =Brassage!AE10 -> 0
A11: =IF(Brassage!H31>0,Brassage!H31,"-") -> - | B11: =IF(A11="-","",Brassage!B31&" ("&Brassage!C31&" EBC)") ->  | D11: =Brassage!R11 -> CaCO3 | E11: =Brassage!T11 -> 0.378 | F11: =Brassage!U11 -> 0.4 | G11: =Brassage!S11 -> 0.02 | O11: =Brassage!AC10 -> 0 | P11: =Brassage!AE11 -> 0
A12: x | B12: x | C12: x | D12: x | E12: x | F12: x | G12: x
A13: Correction du pH
A14: =IF(Brassage!A20>0,"Ajouter",0) -> Ajouter | B14: =IF(A14>0,Brassage!C21,"") -> 2 | C14: =IF(A14>0,"de","") -> de | D14: =IF(A14>0,Brassage!A20,"") -> Acide Lactique | F14: =IF(A14>0,"à","") -> à | G14: =IF(A14>0,Brassage!B21,"") -> 0.8
A15: Objectif : le pH à l'empatage doit être d'environ | E15: =Brassage!M12 -> 5.554941765 | F15: ph réel
A16: x | B16: x | C16: x | D16: x | E16: x | F16: x | G16: x
A17: Empatage et Mash-Hop
A18: =IF(B18="","","Ajouter") ->  | B18: =IF(ROWS($1:1)<=COUNTIF(Utilisation,"Mash-Hop"),INDEX(poids,SMALL(IF(Utilisation="Mash-Hop",ROW(INDIRECT("1:"&ROWS(Utilisation)))),ROWS($1:1))),"") ->  | C18: =IF(B18="","","de") ->  | D18: =IF(ROWS($1:1)<=COUNTIF(Utilisation,"Mash-Hop"),INDEX(result,SMALL(IF(Utilisation="Mash-Hop",ROW(INDIRECT("1:"&ROWS(Utilisation)))),ROWS($1:1))),"") ->  | E18: =IF(D18="","","pour le Mash-Hop") -> 
A19: =IF(B19="","","Ajouter") ->  | B19: =IF(ROWS($1:2)<=COUNTIF(Utilisation,"Mash-Hop"),INDEX(poids,SMALL(IF(Utilisation="Mash-Hop",ROW(INDIRECT("1:"&ROWS(Utilisation)))),ROWS($1:2))),"") ->  | C19: =IF(B19="","","de") ->  | D19: =IF(ROWS($1:2)<=COUNTIF(Utilisation,"Mash-Hop"),INDEX(result,SMALL(IF(Utilisation="Mash-Hop",ROW(INDIRECT("1:"&ROWS(Utilisation)))),ROWS($1:2))),"") -> 
B20: =IF(ROWS($1:3)<=COUNTIF(Utilisation,"Mash-Hop"),INDEX(poids,SMALL(IF(Utilisation="Mash-Hop",ROW(INDIRECT("1:"&ROWS(Utilisation)))),ROWS($1:3))),"") ->  | D20: =IF(ROWS($1:3)<=COUNTIF(Utilisation,"Mash-Hop"),INDEX(result,SMALL(IF(Utilisation="Mash-Hop",ROW(INDIRECT("1:"&ROWS(Utilisation)))),ROWS($1:3))),"") -> 
B21: =IF(ROWS($1:4)<=COUNTIF(Utilisation,"Mash-Hop"),INDEX(poids,SMALL(IF(Utilisation="Mash-Hop",ROW(INDIRECT("1:"&ROWS(Utilisation)))),ROWS($1:4))),"") ->  | D21: =IF(ROWS($1:4)<=COUNTIF(Utilisation,"Mash-Hop"),INDEX(result,SMALL(IF(Utilisation="Mash-Hop",ROW(INDIRECT("1:"&ROWS(Utilisation)))),ROWS($1:4))),"") -> 
B22: =IF(ROWS($1:5)<=COUNTIF(Utilisation,"Mash-Hop"),INDEX(poids,SMALL(IF(Utilisation="Mash-Hop",ROW(INDIRECT("1:"&ROWS(Utilisation)))),ROWS($1:5))),"") ->  | D22: =IF(ROWS($1:5)<=COUNTIF(Utilisation,"Mash-Hop"),INDEX(result,SMALL(IF(Utilisation="Mash-Hop",ROW(INDIRECT("1:"&ROWS(Utilisation)))),ROWS($1:5))),"") -> 
B23: =IF(ROWS($1:6)<=COUNTIF(Utilisation,"Mash-Hop"),INDEX(poids,SMALL(IF(Utilisation="Mash-Hop",ROW(INDIRECT("1:"&ROWS(Utilisation)))),ROWS($1:6))),"") ->  | D23: =IF(ROWS($1:6)<=COUNTIF(Utilisation,"Mash-Hop"),INDEX(result,SMALL(IF(Utilisation="Mash-Hop",ROW(INDIRECT("1:"&ROWS(Utilisation)))),ROWS($1:6))),"") -> 
B24: =IF(ROWS($1:7)<=COUNTIF(Utilisation,"Mash-Hop"),INDEX(poids,SMALL(IF(Utilisation="Mash-Hop",ROW(INDIRECT("1:"&ROWS(Utilisation)))),ROWS($1:7))),"") ->  | D24: =IF(ROWS($1:7)<=COUNTIF(Utilisation,"Mash-Hop"),INDEX(result,SMALL(IF(Utilisation="Mash-Hop",ROW(INDIRECT("1:"&ROWS(Utilisation)))),ROWS($1:7))),"") -> 
B25: =IF(ROWS($1:8)<=COUNTIF(Utilisation,"Mash-Hop"),INDEX(poids,SMALL(IF(Utilisation="Mash-Hop",ROW(INDIRECT("1:"&ROWS(Utilisation)))),ROWS($1:8))),"") ->  | D25: =IF(ROWS($1:8)<=COUNTIF(Utilisation,"Mash-Hop"),INDEX(result,SMALL(IF(Utilisation="Mash-Hop",ROW(INDIRECT("1:"&ROWS(Utilisation)))),ROWS($1:8))),"") -> 
B26: =IF(ROWS($1:9)<=COUNTIF(Utilisation,"Mash-Hop"),INDEX(poids,SMALL(IF(Utilisation="Mash-Hop",ROW(INDIRECT("1:"&ROWS(Utilisation)))),ROWS($1:9))),"") ->  | D26: =IF(ROWS($1:9)<=COUNTIF(Utilisation,"Mash-Hop"),INDEX(result,SMALL(IF(Utilisation="Mash-Hop",ROW(INDIRECT("1:"&ROWS(Utilisation)))),ROWS($1:9))),"") -> 
B27: =IF(ROWS($1:10)<=COUNTIF(Utilisation,"Mash-Hop"),INDEX(poids,SMALL(IF(Utilisation="Mash-Hop",ROW(INDIRECT("1:"&ROWS(Utilisation)))),ROWS($1:10))),"") ->  | D27: =IF(ROWS($1:10)<=COUNTIF(Utilisation,"Mash-Hop"),INDEX(result,SMALL(IF(Utilisation="Mash-Hop",ROW(INDIRECT("1:"&ROWS(Utilisation)))),ROWS($1:10))),"") -> 
B28: =IF(ROWS($1:11)<=COUNTIF(Utilisation,"Mash-Hop"),INDEX(poids,SMALL(IF(Utilisation="Mash-Hop",ROW(INDIRECT("1:"&ROWS(Utilisation)))),ROWS($1:11))),"") ->  | D28: =IF(ROWS($1:11)<=COUNTIF(Utilisation,"Mash-Hop"),INDEX(result,SMALL(IF(Utilisation="Mash-Hop",ROW(INDIRECT("1:"&ROWS(Utilisation)))),ROWS($1:11))),"") -> 
A29: =Brassage!A7 -> Palier 1 | B29: Ajouter | C29: =Brassage!M10 -> 19.95 | D29: d'eau à | E29: =Brassage!O10 -> 67.78502647 | F29: =Brassage!B7 -> 64 | G29: =Brassage!C7 -> 60
A30: =IF(Brassage!B8="","",Brassage!A8) ->  | B30: =IF(F30=0,"",IF(Brassage!$I$10="Chauffe Directe","Relancer",IF(Brassage!$I$10="Décoction","Prélever","Ajouter"))) ->  | C30: =IF(F30=0,"",IF(Brassage!$I$10="Chauffe Directe","la chauffe",IF(Brassage!$I$10="Décoction",Brassage!$O$13,Brassage!$O$13))) ->  | D30: =IF(F30=0,"",IF(Brassage!$I$10="Chauffe Directe","jusqu'à",IF(Brassage!$I$10="Décoction","les porter à","d'eau à"))) ->  | E30: =IF(F30=0,"",IF(Brassage!$I$10="Chauffe Directe","atteindre",IF(Brassage!$I$10="Décoction",Brassage!$J$10&"°C ",Brassage!$J$10&"°C "))) ->  | F30: =Brassage!B8 -> 0 | G30: =Brassage!C8 -> 0
A31: =IF(Brassage!B9="","",Brassage!A9) ->  | B31: =IF(F31=0,"",IF(Brassage!$I$10="Chauffe Directe","Relancer",IF(Brassage!$I$10="Décoction","Prélever","Ajouter"))) ->  | C31: =IF(F31=0,"",IF(Brassage!$I$10="Chauffe Directe","la chauffe",IF(Brassage!$I$10="Décoction",Brassage!$O$13,Brassage!$O$13))) ->  | D31: =IF(F31=0,"",IF(Brassage!$I$10="Chauffe Directe","jusqu'à",IF(Brassage!$I$10="Décoction","les porter à","d'eau à"))) ->  | E31: =IF(F31=0,"",IF(Brassage!$I$10="Chauffe Directe","atteindre",IF(Brassage!$I$10="Décoction",Brassage!$J$10&"°C ",Brassage!$J$10&"°C "))) ->  | F31: =Brassage!B9 -> 0 | G31: =Brassage!C9 -> 0
A32: =Brassage!A10 -> Mash-Out | B32: =IF(F32=0,"",IF(Brassage!$I$10="Chauffe Directe","Relancer",IF(Brassage!$I$10="Décoction","Prélever","Ajouter"))) -> Relancer | C32: =IF(F32=0,"",IF(Brassage!$I$10="Chauffe Directe","la chauffe",IF(Brassage!$I$10="Décoction",Brassage!$O$13,Brassage!$O$13))) -> la chauffe | D32: =IF(F32=0,"",IF(Brassage!$I$10="Chauffe Directe","jusqu'à",IF(Brassage!$I$10="Décoction","les porter à","d'eau à"))) -> jusqu'à | E32: =IF(F32=0,"",IF(Brassage!$I$10="Chauffe Directe","atteindre",IF(Brassage!$I$10="Décoction",Brassage!$J$10&"°C ",Brassage!$J$10&"°C "))) -> atteindre | F32: =Brassage!B10 -> 78 | G32: =Brassage!C10 -> 10
A33: x | B33: x | C33: x | D33: x | E33: x | F33: x | G33: x
A34: Filtration et FWH
A35: Filtrer les drêches et les rincer avec | E35: =Brassage!M18 -> 21.61666667 | F35: d'eau à | G35: =Brassage!M19 -> 78
A36: Ajouter les sels minéraux nécessaires à l'eau de rinçage ou au mout avant ébullition
A37: =IF(B37="","","Ajouter") ->  | B37: =IF(ROWS($1:1)<=COUNTIF(Utilisation,"FWH"),INDEX(poids,SMALL(IF(Utilisation="FWH",ROW(INDIRECT("1:"&ROWS(Utilisation)))),ROWS($1:1))),"") ->  | C37: =IF(B37="","","de") ->  | D37: =IF(ROWS($1:1)<=COUNTIF(Utilisation,"FWH"),INDEX(result,SMALL(IF(Utilisation="FWH",ROW(INDIRECT("1:"&ROWS(Utilisation)))),ROWS($1:1))),"") ->  | E37: =IF(B37="","","dans la cuve ébu pour le FWH") -> 
A38: =IF(B38="","","Ajouter") ->  | B38: =IF(ROWS($1:2)<=COUNTIF(Utilisation,"FWH"),INDEX(poids,SMALL(IF(Utilisation="FWH",ROW(INDIRECT("1:"&ROWS(Utilisation)))),ROWS($1:2))),"") ->  | C38: =IF(B38="","","de") ->  | D38: =IF(ROWS($1:2)<=COUNTIF(Utilisation,"FWH"),INDEX(result,SMALL(IF(Utilisation="FWH",ROW(INDIRECT("1:"&ROWS(Utilisation)))),ROWS($1:2))),"") -> 
B39: =IF(ROWS($1:3)<=COUNTIF(Utilisation,"FWH"),INDEX(poids,SMALL(IF(Utilisation="FWH",ROW(INDIRECT("1:"&ROWS(Utilisation)))),ROWS($1:3))),"") ->  | D39: =IF(ROWS($1:3)<=COUNTIF(Utilisation,"FWH"),INDEX(result,SMALL(IF(Utilisation="FWH",ROW(INDIRECT("1:"&ROWS(Utilisation)))),ROWS($1:3))),"") -> 
B40: =IF(ROWS($1:4)<=COUNTIF(Utilisation,"FWH"),INDEX(poids,SMALL(IF(Utilisation="FWH",ROW(INDIRECT("1:"&ROWS(Utilisation)))),ROWS($1:4))),"") ->  | D40: =IF(ROWS($1:4)<=COUNTIF(Utilisation,"FWH"),INDEX(result,SMALL(IF(Utilisation="FWH",ROW(INDIRECT("1:"&ROWS(Utilisation)))),ROWS($1:4))),"") -> 
B41: =IF(ROWS($1:5)<=COUNTIF(Utilisation,"FWH"),INDEX(poids,SMALL(IF(Utilisation="FWH",ROW(INDIRECT("1:"&ROWS(Utilisation)))),ROWS($1:5))),"") ->  | D41: =IF(ROWS($1:5)<=COUNTIF(Utilisation,"FWH"),INDEX(result,SMALL(IF(Utilisation="FWH",ROW(INDIRECT("1:"&ROWS(Utilisation)))),ROWS($1:5))),"") -> 
B42: =IF(ROWS($1:6)<=COUNTIF(Utilisation,"FWH"),INDEX(poids,SMALL(IF(Utilisation="FWH",ROW(INDIRECT("1:"&ROWS(Utilisation)))),ROWS($1:6))),"") ->  | D42: =IF(ROWS($1:6)<=COUNTIF(Utilisation,"FWH"),INDEX(result,SMALL(IF(Utilisation="FWH",ROW(INDIRECT("1:"&ROWS(Utilisation)))),ROWS($1:6))),"") -> 
B43: =IF(ROWS($1:7)<=COUNTIF(Utilisation,"FWH"),INDEX(poids,SMALL(IF(Utilisation="FWH",ROW(INDIRECT("1:"&ROWS(Utilisation)))),ROWS($1:7))),"") ->  | D43: =IF(ROWS($1:7)<=COUNTIF(Utilisation,"FWH"),INDEX(result,SMALL(IF(Utilisation="FWH",ROW(INDIRECT("1:"&ROWS(Utilisation)))),ROWS($1:7))),"") -> 
B44: =IF(ROWS($1:8)<=COUNTIF(Utilisation,"FWH"),INDEX(poids,SMALL(IF(Utilisation="FWH",ROW(INDIRECT("1:"&ROWS(Utilisation)))),ROWS($1:8))),"") ->  | D44: =IF(ROWS($1:8)<=COUNTIF(Utilisation,"FWH"),INDEX(result,SMALL(IF(Utilisation="FWH",ROW(INDIRECT("1:"&ROWS(Utilisation)))),ROWS($1:8))),"") -> 
B45: =IF(ROWS($1:9)<=COUNTIF(Utilisation,"FWH"),INDEX(poids,SMALL(IF(Utilisation="FWH",ROW(INDIRECT("1:"&ROWS(Utilisation)))),ROWS($1:9))),"") ->  | D45: =IF(ROWS($1:9)<=COUNTIF(Utilisation,"FWH"),INDEX(result,SMALL(IF(Utilisation="FWH",ROW(INDIRECT("1:"&ROWS(Utilisation)))),ROWS($1:9))),"") -> 
A46: x | B46: x | C46: x | D46: x | E46: x | F46: x | G46: x
A47: Ebullition et houblonnage
A48: Porter à le mout à ébulition pendant | C48: =Brassage!L6 -> 60 | D48: Objectif : | E48: =Brassage!L23 -> 34.66666667 | F48: =Brassage!L22 -> 1.038410073 | G48: =(-616.868 + 1111.14 *F48- 630.272 * F48^ 2+ 135.997 *F48^3)*1.04 -> 9.993477958
D49: Réel :
A50: =IF(B50="","","Ajouter") -> Ajouter | B50: =IF(ROWS($1:1)<=COUNTIF(Utilisation,"Ebullition"),INDEX(poids,SMALL(IF(Utilisation="Ebullition",ROW(INDIRECT("1:"&ROWS(Utilisation)))),ROWS($1:1))),"") -> 30 | C50: =IF(B50="","","de") -> de | D50: =IF(ROWS($1:1)<=COUNTIF(Utilisation,"Ebullition"),INDEX(result,SMALL(IF(Utilisation="Ebullition",ROW(INDIRECT("1:"&ROWS(Utilisation)))),ROWS($1:1))),"") -> Magnum | F50: =IF(B50="","","pendant") -> pendant | G50: =IF(D50="","",IF(COUNTIF(Brassage!B32:B33,'Feuille de Brassage'!D50)>0,10,IF(ROWS($1:1)<=COUNTIF(Utilisation,"Ebullition"),INDEX(Durée,SMALL(IF(Utilisation="Ebullition",ROW(INDIRECT("1:"&ROWS(Utilisation)))),ROWS($1:1))),""))) -> 60
A51: =IF(B51="","","Ajouter") ->  | B51: =IF(ROWS($1:2)<=COUNTIF(Utilisation,"Ebullition"),INDEX(poids,SMALL(IF(Utilisation="Ebullition",ROW(INDIRECT("1:"&ROWS(Utilisation)))),ROWS($1:2))),"") ->  | C51: =IF(B51="","","de") ->  | D51: =IF(ROWS($1:2)<=COUNTIF(Utilisation,"Ebullition"),INDEX(result,SMALL(IF(Utilisation="Ebullition",ROW(INDIRECT("1:"&ROWS(Utilisation)))),ROWS($1:2))),"") ->  | F51: =IF(B51="","","pendant") ->  | G51: =IF(D51="","",IF(COUNTIF(Brassage!B33:B34,'Feuille de Brassage'!D51)>0,10,IF(ROWS($1:2)<=COUNTIF(Utilisation,"Ebullition"),INDEX(Durée,SMALL(IF(Utilisation="Ebullition",ROW(INDIRECT("1:"&ROWS(Utilisation)))),ROWS($1:2))),""))) -> 
A52: =IF(B52="","","Ajouter") ->  | B52: =IF(ROWS($1:3)<=COUNTIF(Utilisation,"Ebullition"),INDEX(poids,SMALL(IF(Utilisation="Ebullition",ROW(INDIRECT("1:"&ROWS(Utilisation)))),ROWS($1:3))),"") ->  | C52: =IF(B52="","","de") ->  | D52: =IF(ROWS($1:3)<=COUNTIF(Utilisation,"Ebullition"),INDEX(result,SMALL(IF(Utilisation="Ebullition",ROW(INDIRECT("1:"&ROWS(Utilisation)))),ROWS($1:3))),"") ->  | G52: =IF(D52="","",IF(COUNTIF(Brassage!B34:B35,'Feuille de Brassage'!D52)>0,10,IF(ROWS($1:3)<=COUNTIF(Utilisation,"Ebullition"),INDEX(Durée,SMALL(IF(Utilisation="Ebullition",ROW(INDIRECT("1:"&ROWS(Utilisation)))),ROWS($1:3))),""))) -> 
B53: =IF(ROWS($1:4)<=COUNTIF(Utilisation,"Ebullition"),INDEX(poids,SMALL(IF(Utilisation="Ebullition",ROW(INDIRECT("1:"&ROWS(Utilisation)))),ROWS($1:4))),"") ->  | D53: =IF(ROWS($1:4)<=COUNTIF(Utilisation,"Ebullition"),INDEX(result,SMALL(IF(Utilisation="Ebullition",ROW(INDIRECT("1:"&ROWS(Utilisation)))),ROWS($1:4))),"") ->  | G53: =IF(D53="","",IF(COUNTIF(Brassage!B35:B36,'Feuille de Brassage'!D53)>0,10,IF(ROWS($1:4)<=COUNTIF(Utilisation,"Ebullition"),INDEX(Durée,SMALL(IF(Utilisation="Ebullition",ROW(INDIRECT("1:"&ROWS(Utilisation)))),ROWS($1:4))),""))) -> 
B54: =IF(ROWS($1:5)<=COUNTIF(Utilisation,"Ebullition"),INDEX(poids,SMALL(IF(Utilisation="Ebullition",ROW(INDIRECT("1:"&ROWS(Utilisation)))),ROWS($1:5))),"") ->  | D54: =IF(ROWS($1:5)<=COUNTIF(Utilisation,"Ebullition"),INDEX(result,SMALL(IF(Utilisation="Ebullition",ROW(INDIRECT("1:"&ROWS(Utilisation)))),ROWS($1:5))),"") ->  | G54: =IF(D54="","",IF(COUNTIF(Brassage!B36:B37,'Feuille de Brassage'!D54)>0,10,IF(ROWS($1:5)<=COUNTIF(Utilisation,"Ebullition"),INDEX(Durée,SMALL(IF(Utilisation="Ebullition",ROW(INDIRECT("1:"&ROWS(Utilisation)))),ROWS($1:5))),""))) -> 
B55: =IF(ROWS($1:6)<=COUNTIF(Utilisation,"Ebullition"),INDEX(poids,SMALL(IF(Utilisation="Ebullition",ROW(INDIRECT("1:"&ROWS(Utilisation)))),ROWS($1:6))),"") ->  | D55: =IF(ROWS($1:6)<=COUNTIF(Utilisation,"Ebullition"),INDEX(result,SMALL(IF(Utilisation="Ebullition",ROW(INDIRECT("1:"&ROWS(Utilisation)))),ROWS($1:6))),"") ->  | G55: =IF(D55="","",IF(COUNTIF(Brassage!B37:B38,'Feuille de Brassage'!D55)>0,10,IF(ROWS($1:6)<=COUNTIF(Utilisation,"Ebullition"),INDEX(Durée,SMALL(IF(Utilisation="Ebullition",ROW(INDIRECT("1:"&ROWS(Utilisation)))),ROWS($1:6))),""))) -> 
B56: =IF(ROWS($1:7)<=COUNTIF(Utilisation,"Ebullition"),INDEX(poids,SMALL(IF(Utilisation="Ebullition",ROW(INDIRECT("1:"&ROWS(Utilisation)))),ROWS($1:7))),"") ->  | D56: =IF(ROWS($1:7)<=COUNTIF(Utilisation,"Ebullition"),INDEX(result,SMALL(IF(Utilisation="Ebullition",ROW(INDIRECT("1:"&ROWS(Utilisation)))),ROWS($1:7))),"") ->  | G56: =IF(D56="","",IF(COUNTIF(Brassage!B38:B39,'Feuille de Brassage'!D56)>0,10,IF(ROWS($1:7)<=COUNTIF(Utilisation,"Ebullition"),INDEX(Durée,SMALL(IF(Utilisation="Ebullition",ROW(INDIRECT("1:"&ROWS(Utilisation)))),ROWS($1:7))),""))) ->  | I56: =IF(D56="","",IF(COUNTIF(Brassage!B38:B39,'Feuille de Brassage'!D56)>0,10,IF(ROWS($1:7)<=COUNTIF(Utilisation,"Ebullition"),INDEX(Durée,SMALL(IF(Utilisation="Ebullition",ROW(INDIRECT("1:"&ROWS(Utilisation)))),ROWS($1:7))),""))) -> 
B57: =IF(ROWS($1:8)<=COUNTIF(Utilisation,"Ebullition"),INDEX(poids,SMALL(IF(Utilisation="Ebullition",ROW(INDIRECT("1:"&ROWS(Utilisation)))),ROWS($1:8))),"") ->  | D57: =IF(ROWS($1:8)<=COUNTIF(Utilisation,"Ebullition"),INDEX(result,SMALL(IF(Utilisation="Ebullition",ROW(INDIRECT("1:"&ROWS(Utilisation)))),ROWS($1:8))),"") ->  | G57: =IF(D57="","",IF(COUNTIF(Brassage!B39:B40,'Feuille de Brassage'!D57)>0,10,IF(ROWS($1:8)<=COUNTIF(Utilisation,"Ebullition"),INDEX(Durée,SMALL(IF(Utilisation="Ebullition",ROW(INDIRECT("1:"&ROWS(Utilisation)))),ROWS($1:8))),""))) ->  | I57: =IF(D57="","",IF(COUNTIF(Brassage!B39:B40,'Feuille de Brassage'!D57)>0,10,IF(ROWS($1:8)<=COUNTIF(Utilisation,"Ebullition"),INDEX(Durée,SMALL(IF(Utilisation="Ebullition",ROW(INDIRECT("1:"&ROWS(Utilisation)))),ROWS($1:8))),""))) -> 
B58: =IF(ROWS($1:9)<=COUNTIF(Utilisation,"Ebullition"),INDEX(poids,SMALL(IF(Utilisation="Ebullition",ROW(INDIRECT("1:"&ROWS(Utilisation)))),ROWS($1:9))),"") ->  | D58: =IF(ROWS($1:9)<=COUNTIF(Utilisation,"Ebullition"),INDEX(result,SMALL(IF(Utilisation="Ebullition",ROW(INDIRECT("1:"&ROWS(Utilisation)))),ROWS($1:9))),"") ->  | G58: =IF(D58="","",IF(COUNTIF(Brassage!B40:B42,'Feuille de Brassage'!D58)>0,10,IF(ROWS($1:9)<=COUNTIF(Utilisation,"Ebullition"),INDEX(Durée,SMALL(IF(Utilisation="Ebullition",ROW(INDIRECT("1:"&ROWS(Utilisation)))),ROWS($1:9))),""))) ->  | I58: =IF(D58="","",IF(COUNTIF(Brassage!B40:B42,'Feuille de Brassage'!D58)>0,10,IF(ROWS($1:9)<=COUNTIF(Utilisation,"Ebullition"),INDEX(Durée,SMALL(IF(Utilisation="Ebullition",ROW(INDIRECT("1:"&ROWS(Utilisation)))),ROWS($1:9))),""))) -> 
B59: =IF(ROWS($1:10)<=COUNTIF(Utilisation,"Ebullition"),INDEX(poids,SMALL(IF(Utilisation="Ebullition",ROW(INDIRECT("1:"&ROWS(Utilisation)))),ROWS($1:10))),"") ->  | D59: =IF(ROWS($1:10)<=COUNTIF(Utilisation,"Ebullition"),INDEX(result,SMALL(IF(Utilisation="Ebullition",ROW(INDIRECT("1:"&ROWS(Utilisation)))),ROWS($1:10))),"") ->  | G59: =IF(D59="","",IF(COUNTIF(Brassage!B42:B43,'Feuille de Brassage'!D59)>0,10,IF(ROWS($1:10)<=COUNTIF(Utilisation,"Ebullition"),INDEX(Durée,SMALL(IF(Utilisation="Ebullition",ROW(INDIRECT("1:"&ROWS(Utilisation)))),ROWS($1:10))),""))) ->  | I59: =IF(D59="","",IF(COUNTIF(Brassage!B42:B43,'Feuille de Brassage'!D59)>0,10,IF(ROWS($1:10)<=COUNTIF(Utilisation,"Ebullition"),INDEX(Durée,SMALL(IF(Utilisation="Ebullition",ROW(INDIRECT("1:"&ROWS(Utilisation)))),ROWS($1:10))),""))) -> 
B60: =IF(ROWS($1:11)<=COUNTIF(Utilisation,"Ebullition"),INDEX(poids,SMALL(IF(Utilisation="Ebullition",ROW(INDIRECT("1:"&ROWS(Utilisation)))),ROWS($1:11))),"") ->  | D60: =IF(ROWS($1:11)<=COUNTIF(Utilisation,"Ebullition"),INDEX(result,SMALL(IF(Utilisation="Ebullition",ROW(INDIRECT("1:"&ROWS(Utilisation)))),ROWS($1:11))),"") ->  | G60: =IF(D60="","",IF(COUNTIF(Brassage!B43:B44,'Feuille de Brassage'!D60)>0,10,IF(ROWS($1:11)<=COUNTIF(Utilisation,"Ebullition"),INDEX(Durée,SMALL(IF(Utilisation="Ebullition",ROW(INDIRECT("1:"&ROWS(Utilisation)))),ROWS($1:11))),""))) ->  | I60: =IF(D60="","",IF(COUNTIF(Brassage!B43:B44,'Feuille de Brassage'!D60)>0,10,IF(ROWS($1:11)<=COUNTIF(Utilisation,"Ebullition"),INDEX(Durée,SMALL(IF(Utilisation="Ebullition",ROW(INDIRECT("1:"&ROWS(Utilisation)))),ROWS($1:11))),""))) -> 
B61: =IF(ROWS($1:12)<=COUNTIF(Utilisation,"Ebullition"),INDEX(poids,SMALL(IF(Utilisation="Ebullition",ROW(INDIRECT("1:"&ROWS(Utilisation)))),ROWS($1:12))),"") ->  | D61: =IF(ROWS($1:12)<=COUNTIF(Utilisation,"Ebullition"),INDEX(result,SMALL(IF(Utilisation="Ebullition",ROW(INDIRECT("1:"&ROWS(Utilisation)))),ROWS($1:12))),"") ->  | G61: =IF(D61="","",IF(COUNTIF(Brassage!B44:B45,'Feuille de Brassage'!D61)>0,10,IF(ROWS($1:12)<=COUNTIF(Utilisation,"Ebullition"),INDEX(Durée,SMALL(IF(Utilisation="Ebullition",ROW(INDIRECT("1:"&ROWS(Utilisation)))),ROWS($1:12))),""))) ->  | I61: =IF(D61="","",IF(COUNTIF(Brassage!B44:B45,'Feuille de Brassage'!D61)>0,10,IF(ROWS($1:12)<=COUNTIF(Utilisation,"Ebullition"),INDEX(Durée,SMALL(IF(Utilisation="Ebullition",ROW(INDIRECT("1:"&ROWS(Utilisation)))),ROWS($1:12))),""))) -> 
B62: =IF(ROWS($1:13)<=COUNTIF(Utilisation,"Ebullition"),INDEX(poids,SMALL(IF(Utilisation="Ebullition",ROW(INDIRECT("1:"&ROWS(Utilisation)))),ROWS($1:13))),"") ->  | D62: =IF(ROWS($1:13)<=COUNTIF(Utilisation,"Ebullition"),INDEX(result,SMALL(IF(Utilisation="Ebullition",ROW(INDIRECT("1:"&ROWS(Utilisation)))),ROWS($1:13))),"") ->  | G62: =IF(D62="","",IF(COUNTIF(Brassage!B45:B46,'Feuille de Brassage'!D62)>0,10,IF(ROWS($1:13)<=COUNTIF(Utilisation,"Ebullition"),INDEX(Durée,SMALL(IF(Utilisation="Ebullition",ROW(INDIRECT("1:"&ROWS(Utilisation)))),ROWS($1:13))),""))) ->  | I62: =IF(D62="","",IF(COUNTIF(Brassage!B45:B46,'Feuille de Brassage'!D62)>0,10,IF(ROWS($1:13)<=COUNTIF(Utilisation,"Ebullition"),INDEX(Durée,SMALL(IF(Utilisation="Ebullition",ROW(INDIRECT("1:"&ROWS(Utilisation)))),ROWS($1:13))),""))) -> 
B63: =IF(ROWS($1:14)<=COUNTIF(Utilisation,"Ebullition"),INDEX(poids,SMALL(IF(Utilisation="Ebullition",ROW(INDIRECT("1:"&ROWS(Utilisation)))),ROWS($1:14))),"") ->  | D63: =IF(ROWS($1:14)<=COUNTIF(Utilisation,"Ebullition"),INDEX(result,SMALL(IF(Utilisation="Ebullition",ROW(INDIRECT("1:"&ROWS(Utilisation)))),ROWS($1:14))),"") ->  | G63: =IF(D63="","",IF(COUNTIF(Brassage!B46:B47,'Feuille de Brassage'!D63)>0,10,IF(ROWS($1:14)<=COUNTIF(Utilisation,"Ebullition"),INDEX(Durée,SMALL(IF(Utilisation="Ebullition",ROW(INDIRECT("1:"&ROWS(Utilisation)))),ROWS($1:14))),""))) ->  | I63: =IF(D63="","",IF(COUNTIF(Brassage!B46:B47,'Feuille de Brassage'!D63)>0,10,IF(ROWS($1:14)<=COUNTIF(Utilisation,"Ebullition"),INDEX(Durée,SMALL(IF(Utilisation="Ebullition",ROW(INDIRECT("1:"&ROWS(Utilisation)))),ROWS($1:14))),""))) -> 
A64: x | B64: x | C64: x | D64: x | E64: x | F64: x | G64: x
A65: Fin d'ébullition et Flame-out
A66: Objectif en fin d'ébullition : | E66: =Brassage!L29 -> 31.2 | F66: =Brassage!L28 -> 1.042677858 | G66: =(-616.868 + 1111.14 *F66- 630.272 * F66^ 2+ 135.997 *F66^3)*1.04 -> 11.06419429
A67: Relevé réel (à reporter dans l'onglet "Brassage") :
A68: =IF(E68="","","Flame-out : Arrêter l'ébullition et ajouter") ->  | D68: =IF(ROWS($1:1)<=COUNTIF(Utilisation,"Flame-out"),INDEX(poids,SMALL(IF(Utilisation="Flame-out",ROW(INDIRECT("1:"&ROWS(Utilisation)))),ROWS($1:1))),"") ->  | E68: =IF(ROWS($1:1)<=COUNTIF(Utilisation,"Flame-out"),INDEX(result,SMALL(IF(Utilisation="Flame-out",ROW(INDIRECT("1:"&ROWS(Utilisation)))),ROWS($1:1))),"") ->  | F68: =IF(E68="","","pendant") ->  | G68: =IF(ROWS($1:1)<=COUNTIF(Utilisation,"Flame-out"),INDEX(Durée,SMALL(IF(Utilisation="Flame-out",ROW(INDIRECT("1:"&ROWS(Utilisation)))),ROWS($1:1))),"") -> 
A69: =IF(E69="","","Flame-out : Arrêter l'ébullition et ajouter") ->  | D69: =IF(ROWS($1:2)<=COUNTIF(Utilisation,"Flame-out"),INDEX(poids,SMALL(IF(Utilisation="Flame-out",ROW(INDIRECT("1:"&ROWS(Utilisation)))),ROWS($1:2))),"") ->  | E69: =IF(ROWS($1:2)<=COUNTIF(Utilisation,"Flame-out"),INDEX(result,SMALL(IF(Utilisation="Flame-out",ROW(INDIRECT("1:"&ROWS(Utilisation)))),ROWS($1:2))),"") ->  | F69: =IF(E69="","","pendant") ->  | G69: =IF(ROWS($1:2)<=COUNTIF(Utilisation,"Flame-out"),INDEX(Durée,SMALL(IF(Utilisation="Flame-out",ROW(INDIRECT("1:"&ROWS(Utilisation)))),ROWS($1:2))),"") -> 
D70: =IF(ROWS($1:3)<=COUNTIF(Utilisation,"Flame-out"),INDEX(poids,SMALL(IF(Utilisation="Flame-out",ROW(INDIRECT("1:"&ROWS(Utilisation)))),ROWS($1:3))),"") ->  | E70: =IF(ROWS($1:3)<=COUNTIF(Utilisation,"Flame-out"),INDEX(result,SMALL(IF(Utilisation="Flame-out",ROW(INDIRECT("1:"&ROWS(Utilisation)))),ROWS($1:3))),"") ->  | G70: =IF(ROWS($1:3)<=COUNTIF(Utilisation,"Flame-out"),INDEX(Durée,SMALL(IF(Utilisation="Flame-out",ROW(INDIRECT("1:"&ROWS(Utilisation)))),ROWS($1:3))),"") -> 
A71: =IF(E71="","","Flame-out : Arrêter l'ébullition et ajouter") ->  | D71: =IF(ROWS($1:4)<=COUNTIF(Utilisation,"Flame-out"),INDEX(poids,SMALL(IF(Utilisation="Flame-out",ROW(INDIRECT("1:"&ROWS(Utilisation)))),ROWS($1:4))),"") ->  | E71: =IF(ROWS($1:4)<=COUNTIF(Utilisation,"Flame-out"),INDEX(result,SMALL(IF(Utilisation="Flame-out",ROW(INDIRECT("1:"&ROWS(Utilisation)))),ROWS($1:4))),"") ->  | G71: =IF(ROWS($1:4)<=COUNTIF(Utilisation,"Flame-out"),INDEX(Durée,SMALL(IF(Utilisation="Flame-out",ROW(INDIRECT("1:"&ROWS(Utilisation)))),ROWS($1:4))),"") -> 
D72: =IF(ROWS($1:5)<=COUNTIF(Utilisation,"Flame-out"),INDEX(poids,SMALL(IF(Utilisation="Flame-out",ROW(INDIRECT("1:"&ROWS(Utilisation)))),ROWS($1:5))),"") ->  | E72: =IF(ROWS($1:5)<=COUNTIF(Utilisation,"Flame-out"),INDEX(result,SMALL(IF(Utilisation="Flame-out",ROW(INDIRECT("1:"&ROWS(Utilisation)))),ROWS($1:5))),"") ->  | G72: =IF(ROWS($1:5)<=COUNTIF(Utilisation,"Flame-out"),INDEX(Durée,SMALL(IF(Utilisation="Flame-out",ROW(INDIRECT("1:"&ROWS(Utilisation)))),ROWS($1:5))),"") -> 
D73: =IF(ROWS($1:6)<=COUNTIF(Utilisation,"Flame-out"),INDEX(poids,SMALL(IF(Utilisation="Flame-out",ROW(INDIRECT("1:"&ROWS(Utilisation)))),ROWS($1:6))),"") ->  | E73: =IF(ROWS($1:6)<=COUNTIF(Utilisation,"Flame-out"),INDEX(result,SMALL(IF(Utilisation="Flame-out",ROW(INDIRECT("1:"&ROWS(Utilisation)))),ROWS($1:6))),"") ->  | G73: =IF(ROWS($1:6)<=COUNTIF(Utilisation,"Flame-out"),INDEX(Durée,SMALL(IF(Utilisation="Flame-out",ROW(INDIRECT("1:"&ROWS(Utilisation)))),ROWS($1:6))),"") -> 
D74: =IF(ROWS($1:7)<=COUNTIF(Utilisation,"Flame-out"),INDEX(poids,SMALL(IF(Utilisation="Flame-out",ROW(INDIRECT("1:"&ROWS(Utilisation)))),ROWS($1:7))),"") ->  | E74: =IF(ROWS($1:7)<=COUNTIF(Utilisation,"Flame-out"),INDEX(result,SMALL(IF(Utilisation="Flame-out",ROW(INDIRECT("1:"&ROWS(Utilisation)))),ROWS($1:7))),"") ->  | G74: =IF(ROWS($1:7)<=COUNTIF(Utilisation,"Flame-out"),INDEX(Durée,SMALL(IF(Utilisation="Flame-out",ROW(INDIRECT("1:"&ROWS(Utilisation)))),ROWS($1:7))),"") -> 
D75: =IF(ROWS($1:8)<=COUNTIF(Utilisation,"Flame-out"),INDEX(poids,SMALL(IF(Utilisation="Flame-out",ROW(INDIRECT("1:"&ROWS(Utilisation)))),ROWS($1:8))),"") ->  | E75: =IF(ROWS($1:8)<=COUNTIF(Utilisation,"Flame-out"),INDEX(result,SMALL(IF(Utilisation="Flame-out",ROW(INDIRECT("1:"&ROWS(Utilisation)))),ROWS($1:8))),"") ->  | G75: =IF(ROWS($1:8)<=COUNTIF(Utilisation,"Flame-out"),INDEX(Durée,SMALL(IF(Utilisation="Flame-out",ROW(INDIRECT("1:"&ROWS(Utilisation)))),ROWS($1:8))),"") -> 
D76: =IF(ROWS($1:9)<=COUNTIF(Utilisation,"Flame-out"),INDEX(poids,SMALL(IF(Utilisation="Flame-out",ROW(INDIRECT("1:"&ROWS(Utilisation)))),ROWS($1:9))),"") ->  | E76: =IF(ROWS($1:9)<=COUNTIF(Utilisation,"Flame-out"),INDEX(result,SMALL(IF(Utilisation="Flame-out",ROW(INDIRECT("1:"&ROWS(Utilisation)))),ROWS($1:9))),"") ->  | G76: =IF(ROWS($1:9)<=COUNTIF(Utilisation,"Flame-out"),INDEX(Durée,SMALL(IF(Utilisation="Flame-out",ROW(INDIRECT("1:"&ROWS(Utilisation)))),ROWS($1:9))),"") -> 
D77: =IF(ROWS($1:10)<=COUNTIF(Utilisation,"Flame-out"),INDEX(poids,SMALL(IF(Utilisation="Flame-out",ROW(INDIRECT("1:"&ROWS(Utilisation)))),ROWS($1:10))),"") ->  | E77: =IF(ROWS($1:10)<=COUNTIF(Utilisation,"Flame-out"),INDEX(result,SMALL(IF(Utilisation="Flame-out",ROW(INDIRECT("1:"&ROWS(Utilisation)))),ROWS($1:10))),"") ->  | G77: =IF(ROWS($1:10)<=COUNTIF(Utilisation,"Flame-out"),INDEX(Durée,SMALL(IF(Utilisation="Flame-out",ROW(INDIRECT("1:"&ROWS(Utilisation)))),ROWS($1:10))),"") -> 
D78: =IF(ROWS($1:11)<=COUNTIF(Utilisation,"Flame-out"),INDEX(poids,SMALL(IF(Utilisation="Flame-out",ROW(INDIRECT("1:"&ROWS(Utilisation)))),ROWS($1:11))),"") ->  | E78: =IF(ROWS($1:11)<=COUNTIF(Utilisation,"Flame-out"),INDEX(result,SMALL(IF(Utilisation="Flame-out",ROW(INDIRECT("1:"&ROWS(Utilisation)))),ROWS($1:11))),"") ->  | G78: =IF(ROWS($1:11)<=COUNTIF(Utilisation,"Flame-out"),INDEX(Durée,SMALL(IF(Utilisation="Flame-out",ROW(INDIRECT("1:"&ROWS(Utilisation)))),ROWS($1:11))),"") -> 
A79: x | B79: x | C79: x | D79: x | E79: x | F79: x | G79: x
A80: Refroidissement, Hop-Stand et ensemencement
A81: =IF(E81="","","Hop-Stand : refroidir < 80°C et ajouter") ->  | D81: =IF(ROWS($1:1)<=COUNTIF(Utilisation,"Hop-Stand"),INDEX(poids,SMALL(IF(Utilisation="Hop-Stand",ROW(INDIRECT("1:"&ROWS(Utilisation)))),ROWS($1:1))),"") ->  | E81: =IF(ROWS($1:1)<=COUNTIF(Utilisation,"Hop-Stand"),INDEX(result,SMALL(IF(Utilisation="Hop-Stand",ROW(INDIRECT("1:"&ROWS(Utilisation)))),ROWS($1:1))),"") ->  | F81: =IF(E81="","","pendant") ->  | G81: =IF(ROWS($1:1)<=COUNTIF(Utilisation,"Hop-Stand"),INDEX(Durée,SMALL(IF(Utilisation="Hop-Stand",ROW(INDIRECT("1:"&ROWS(Utilisation)))),ROWS($1:1))),"") -> 
A82: =IF(E82="","","Hop-Stand : refroidir < 80°C et ajouter") ->  | D82: =IF(ROWS($1:2)<=COUNTIF(Utilisation,"Hop-Stand"),INDEX(poids,SMALL(IF(Utilisation="Hop-Stand",ROW(INDIRECT("1:"&ROWS(Utilisation)))),ROWS($1:2))),"") ->  | E82: =IF(ROWS($1:2)<=COUNTIF(Utilisation,"Hop-Stand"),INDEX(result,SMALL(IF(Utilisation="Hop-Stand",ROW(INDIRECT("1:"&ROWS(Utilisation)))),ROWS($1:2))),"") ->  | F82: =IF(E82="","","pendant") ->  | G82: =IF(ROWS($1:2)<=COUNTIF(Utilisation,"Hop-Stand"),INDEX(Durée,SMALL(IF(Utilisation="Hop-Stand",ROW(INDIRECT("1:"&ROWS(Utilisation)))),ROWS($1:2))),"") -> 
D83: =IF(ROWS($1:3)<=COUNTIF(Utilisation,"Hop-Stand"),INDEX(poids,SMALL(IF(Utilisation="Hop-Stand",ROW(INDIRECT("1:"&ROWS(Utilisation)))),ROWS($1:3))),"") ->  | E83: =IF(ROWS($1:3)<=COUNTIF(Utilisation,"Hop-Stand"),INDEX(result,SMALL(IF(Utilisation="Hop-Stand",ROW(INDIRECT("1:"&ROWS(Utilisation)))),ROWS($1:3))),"") ->  | G83: =IF(ROWS($1:3)<=COUNTIF(Utilisation,"Hop-Stand"),INDEX(Durée,SMALL(IF(Utilisation="Hop-Stand",ROW(INDIRECT("1:"&ROWS(Utilisation)))),ROWS($1:3))),"") -> 
D84: =IF(ROWS($1:4)<=COUNTIF(Utilisation,"Hop-Stand"),INDEX(poids,SMALL(IF(Utilisation="Hop-Stand",ROW(INDIRECT("1:"&ROWS(Utilisation)))),ROWS($1:4))),"") ->  | E84: =IF(ROWS($1:4)<=COUNTIF(Utilisation,"Hop-Stand"),INDEX(result,SMALL(IF(Utilisation="Hop-Stand",ROW(INDIRECT("1:"&ROWS(Utilisation)))),ROWS($1:4))),"") ->  | G84: =IF(ROWS($1:4)<=COUNTIF(Utilisation,"Hop-Stand"),INDEX(Durée,SMALL(IF(Utilisation="Hop-Stand",ROW(INDIRECT("1:"&ROWS(Utilisation)))),ROWS($1:4))),"") -> 
D85: =IF(ROWS($1:5)<=COUNTIF(Utilisation,"Hop-Stand"),INDEX(poids,SMALL(IF(Utilisation="Hop-Stand",ROW(INDIRECT("1:"&ROWS(Utilisation)))),ROWS($1:5))),"") ->  | E85: =IF(ROWS($1:5)<=COUNTIF(Utilisation,"Hop-Stand"),INDEX(result,SMALL(IF(Utilisation="Hop-Stand",ROW(INDIRECT("1:"&ROWS(Utilisation)))),ROWS($1:5))),"") ->  | G85: =IF(ROWS($1:5)<=COUNTIF(Utilisation,"Hop-Stand"),INDEX(Durée,SMALL(IF(Utilisation="Hop-Stand",ROW(INDIRECT("1:"&ROWS(Utilisation)))),ROWS($1:5))),"") -> 
A86: Selon l'installation effectuer whirpool, transfert(s) et refroidir jusqu'à | G86: =Brassage!L40 -> 20
A87: Objectif en fermenteur : | E87: =Brassage!L35 -> 27.952 | F87: =Brassage!L34 -> 1.042677858 | G87: =(-616.868 + 1111.14 *F87- 630.272 * F87^ 2+ 135.997 *F87^3)*1.04 -> 11.06419429
A88: Relevé réel (à reporter dans l'onglet "Brassage") :
A89: =IF(C89="","","Ensemencer avec") -> Ensemencer avec | C89: =IF(Brassage!H60>0,Brassage!H60,"") -> 220 | D89: =IF(C89="","","de") -> de | E89: =IF(Brassage!B60>0,Brassage!B60,"") -> Whitelabs - WLP023 Burton Ale Yeast
A90: =IF(C90="","","Ensemencer avec") ->  | C90: =IF(Brassage!H61>0,Brassage!H61,"") ->  | D90: =IF(C90="","","de") ->  | E90: =IF(Brassage!B61>0,Brassage!B61,"") -> 
A91: x | B91: x | C91: x | D91: x | E91: x | F91: x | G91: x
A92: Fermentation
A93: =IF(B93=0,"","Placer à ") -> Placer à | B93: =Brassage!L40 -> 20 | C93: =IF(B93=0,"","pendant ") -> pendant | D93: =Brassage!M40 -> 28 | E93: =IF(D93=0,"","théoriquement jusqu'au ") -> théoriquement jusqu'au | G93: =Brassage!N40 -> 2021-10-23
A94: =IF(B94=0,"","puis placer à ") -> puis placer à | B94: =Brassage!L41 -> 2 | C94: =IF(B94=0,"","pendant ") -> pendant | D94: =Brassage!M41 -> 2 | E94: =IF(D94=0,"","théoriquement jusqu'au ") -> théoriquement jusqu'au | G94: =Brassage!N41 -> 2021-10-25
A95: =IF(B95=0,"","puis placer à ") ->  | B95: =Brassage!L42 -> 0 | D95: =Brassage!M42 -> 0 | G95: =Brassage!N42 -> 
A96: =IF(C96="","","Faire un DH avec") ->  | C96: =IF(ROWS($1:1)<=COUNTIF(Utilisation,"DH"),INDEX(poids,SMALL(IF(Utilisation="DH",ROW(INDIRECT("1:"&ROWS(Utilisation)))),ROWS($1:1))),"") ->  | D96: =IF(C96="","","de") ->  | E96: =IF(ROWS($1:1)<=COUNTIF(Utilisation,"DH"),INDEX(result,SMALL(IF(Utilisation="DH",ROW(INDIRECT("1:"&ROWS(Utilisation)))),ROWS($1:1))),"") ->  | F96: =IF(C96="","","pendant") ->  | G96: =IF(ROWS($1:1)<=COUNTIF(Utilisation,"DH"),INDEX(Durée,SMALL(IF(Utilisation="DH",ROW(INDIRECT("1:"&ROWS(Utilisation)))),ROWS($1:1))),"") -> 
A97: =IF(C97="","","Faire un DH avec") ->  | C97: =IF(ROWS($1:2)<=COUNTIF(Utilisation,"DH"),INDEX(poids,SMALL(IF(Utilisation="DH",ROW(INDIRECT("1:"&ROWS(Utilisation)))),ROWS($1:2))),"") ->  | E97: =IF(ROWS($1:2)<=COUNTIF(Utilisation,"DH"),INDEX(result,SMALL(IF(Utilisation="DH",ROW(INDIRECT("1:"&ROWS(Utilisation)))),ROWS($1:2))),"") ->  | F97: =IF(C97="","","pendant") ->  | G97: =IF(ROWS($1:2)<=COUNTIF(Utilisation,"DH"),INDEX(Durée,SMALL(IF(Utilisation="DH",ROW(INDIRECT("1:"&ROWS(Utilisation)))),ROWS($1:2))),"") -> 
C98: =IF(ROWS($1:3)<=COUNTIF(Utilisation,"DH"),INDEX(poids,SMALL(IF(Utilisation="DH",ROW(INDIRECT("1:"&ROWS(Utilisation)))),ROWS($1:3))),"") ->  | E98: =IF(ROWS($1:3)<=COUNTIF(Utilisation,"DH"),INDEX(result,SMALL(IF(Utilisation="DH",ROW(INDIRECT("1:"&ROWS(Utilisation)))),ROWS($1:3))),"") ->  | G98: =IF(ROWS($1:3)<=COUNTIF(Utilisation,"DH"),INDEX(Durée,SMALL(IF(Utilisation="DH",ROW(INDIRECT("1:"&ROWS(Utilisation)))),ROWS($1:3))),"") -> 
C99: =IF(ROWS($1:4)<=COUNTIF(Utilisation,"DH"),INDEX(poids,SMALL(IF(Utilisation="DH",ROW(INDIRECT("1:"&ROWS(Utilisation)))),ROWS($1:4))),"") ->  | E99: =IF(ROWS($1:4)<=COUNTIF(Utilisation,"DH"),INDEX(result,SMALL(IF(Utilisation="DH",ROW(INDIRECT("1:"&ROWS(Utilisation)))),ROWS($1:4))),"") ->  | G99: =IF(ROWS($1:4)<=COUNTIF(Utilisation,"DH"),INDEX(Durée,SMALL(IF(Utilisation="DH",ROW(INDIRECT("1:"&ROWS(Utilisation)))),ROWS($1:4))),"") -> 
C100: =IF(ROWS($1:5)<=COUNTIF(Utilisation,"DH"),INDEX(poids,SMALL(IF(Utilisation="DH",ROW(INDIRECT("1:"&ROWS(Utilisation)))),ROWS($1:5))),"") ->  | E100: =IF(ROWS($1:5)<=COUNTIF(Utilisation,"DH"),INDEX(result,SMALL(IF(Utilisation="DH",ROW(INDIRECT("1:"&ROWS(Utilisation)))),ROWS($1:5))),"") ->  | G100: =IF(ROWS($1:5)<=COUNTIF(Utilisation,"DH"),INDEX(Durée,SMALL(IF(Utilisation="DH",ROW(INDIRECT("1:"&ROWS(Utilisation)))),ROWS($1:5))),"") -> 
C101: =IF(ROWS($1:6)<=COUNTIF(Utilisation,"DH"),INDEX(poids,SMALL(IF(Utilisation="DH",ROW(INDIRECT("1:"&ROWS(Utilisation)))),ROWS($1:6))),"") ->  | E101: =IF(ROWS($1:6)<=COUNTIF(Utilisation,"DH"),INDEX(result,SMALL(IF(Utilisation="DH",ROW(INDIRECT("1:"&ROWS(Utilisation)))),ROWS($1:6))),"") ->  | G101: =IF(ROWS($1:6)<=COUNTIF(Utilisation,"DH"),INDEX(Durée,SMALL(IF(Utilisation="DH",ROW(INDIRECT("1:"&ROWS(Utilisation)))),ROWS($1:6))),"") -> 
C102: =IF(ROWS($1:7)<=COUNTIF(Utilisation,"DH"),INDEX(poids,SMALL(IF(Utilisation="DH",ROW(INDIRECT("1:"&ROWS(Utilisation)))),ROWS($1:7))),"") ->  | E102: =IF(ROWS($1:7)<=COUNTIF(Utilisation,"DH"),INDEX(result,SMALL(IF(Utilisation="DH",ROW(INDIRECT("1:"&ROWS(Utilisation)))),ROWS($1:7))),"") ->  | G102: =IF(ROWS($1:7)<=COUNTIF(Utilisation,"DH"),INDEX(Durée,SMALL(IF(Utilisation="DH",ROW(INDIRECT("1:"&ROWS(Utilisation)))),ROWS($1:7))),"") -> 
C103: =IF(ROWS($1:8)<=COUNTIF(Utilisation,"DH"),INDEX(poids,SMALL(IF(Utilisation="DH",ROW(INDIRECT("1:"&ROWS(Utilisation)))),ROWS($1:8))),"") ->  | E103: =IF(ROWS($1:8)<=COUNTIF(Utilisation,"DH"),INDEX(result,SMALL(IF(Utilisation="DH",ROW(INDIRECT("1:"&ROWS(Utilisation)))),ROWS($1:8))),"") ->  | G103: =IF(ROWS($1:8)<=COUNTIF(Utilisation,"DH"),INDEX(Durée,SMALL(IF(Utilisation="DH",ROW(INDIRECT("1:"&ROWS(Utilisation)))),ROWS($1:8))),"") -> 
C104: =IF(ROWS($1:9)<=COUNTIF(Utilisation,"DH"),INDEX(poids,SMALL(IF(Utilisation="DH",ROW(INDIRECT("1:"&ROWS(Utilisation)))),ROWS($1:9))),"") ->  | E104: =IF(ROWS($1:9)<=COUNTIF(Utilisation,"DH"),INDEX(result,SMALL(IF(Utilisation="DH",ROW(INDIRECT("1:"&ROWS(Utilisation)))),ROWS($1:9))),"") ->  | G104: =IF(ROWS($1:9)<=COUNTIF(Utilisation,"DH"),INDEX(Durée,SMALL(IF(Utilisation="DH",ROW(INDIRECT("1:"&ROWS(Utilisation)))),ROWS($1:9))),"") -> 
C105: =IF(ROWS($1:10)<=COUNTIF(Utilisation,"DH"),INDEX(poids,SMALL(IF(Utilisation="DH",ROW(INDIRECT("1:"&ROWS(Utilisation)))),ROWS($1:10))),"") ->  | E105: =IF(ROWS($1:10)<=COUNTIF(Utilisation,"DH"),INDEX(result,SMALL(IF(Utilisation="DH",ROW(INDIRECT("1:"&ROWS(Utilisation)))),ROWS($1:10))),"") ->  | G105: =IF(ROWS($1:10)<=COUNTIF(Utilisation,"DH"),INDEX(Durée,SMALL(IF(Utilisation="DH",ROW(INDIRECT("1:"&ROWS(Utilisation)))),ROWS($1:10))),"") -> 
C106: =IF(ROWS($1:11)<=COUNTIF(Utilisation,"DH"),INDEX(poids,SMALL(IF(Utilisation="DH",ROW(INDIRECT("1:"&ROWS(Utilisation)))),ROWS($1:11))),"") ->  | E106: =IF(ROWS($1:11)<=COUNTIF(Utilisation,"DH"),INDEX(result,SMALL(IF(Utilisation="DH",ROW(INDIRECT("1:"&ROWS(Utilisation)))),ROWS($1:11))),"") ->  | G106: =IF(ROWS($1:11)<=COUNTIF(Utilisation,"DH"),INDEX(Durée,SMALL(IF(Utilisation="DH",ROW(INDIRECT("1:"&ROWS(Utilisation)))),ROWS($1:11))),"") -> 
C107: =IF(ROWS($1:12)<=COUNTIF(Utilisation,"DH"),INDEX(poids,SMALL(IF(Utilisation="DH",ROW(INDIRECT("1:"&ROWS(Utilisation)))),ROWS($1:12))),"") ->  | E107: =IF(ROWS($1:12)<=COUNTIF(Utilisation,"DH"),INDEX(result,SMALL(IF(Utilisation="DH",ROW(INDIRECT("1:"&ROWS(Utilisation)))),ROWS($1:12))),"") ->  | G107: =IF(ROWS($1:12)<=COUNTIF(Utilisation,"DH"),INDEX(Durée,SMALL(IF(Utilisation="DH",ROW(INDIRECT("1:"&ROWS(Utilisation)))),ROWS($1:12))),"") -> 
A108: x | B108: x | C108: x | D108: x | E108: x | F108: x | G108: x
A109: Autres ingrédients
A110: A ajouter aux moments choisis : | B110: =Brassage!B37 -> Type | D110: =Brassage!D37 -> Utilisation | E110: =Brassage!E37 -> Durée | F110: =Brassage!F37 -> Quantité | G110: =Brassage!H37 -> Notes
B111: =Brassage!B38 -> 0 | D111: =Brassage!D38 -> 0 | E111: =Brassage!E38 -> 0 | F111: =Brassage!F38 -> 0 | G111: =Brassage!H38 -> 0
B112: =Brassage!B39 -> 0 | D112: =Brassage!D39 -> 0 | E112: =Brassage!E39 -> 0 | F112: =Brassage!F39 -> 0 | G112: =Brassage!H39 -> 0
B113: =Brassage!B40 -> 0 | D113: =Brassage!D40 -> 0 | E113: =Brassage!E40 -> 0 | F113: =Brassage!F40 -> 0 | G113: =Brassage!H40 -> 0
B114: =Brassage!B41 -> 0 | D114: =Brassage!D41 -> 0 | E114: =Brassage!E41 -> 0 | F114: =Brassage!F41 -> 0 | G114: =Brassage!H41 -> 0

Sheet Profil d'eau
A1: Outil de mélange d'eau | K1: Profils d'eau - ppm
J2: Profil recette | K2: =VLOOKUP(Brassage!$H$15,'Profil d''eau'!$K$4:$Q$98,1,FALSE) -> Stout - Porter | L2: =VLOOKUP(Brassage!$H$15,'Profil d''eau'!$K$4:$Q$98,2,FALSE) -> 50 | M2: =VLOOKUP(Brassage!$H$15,'Profil d''eau'!$K$4:$Q$98,3,FALSE) -> 12 | N2: =VLOOKUP(Brassage!$H$15,'Profil d''eau'!$K$4:$Q$98,4,FALSE) -> 60 | O2: =VLOOKUP(Brassage!$H$15,'Profil d''eau'!$K$4:$Q$98,5,FALSE) -> 46 | P2: =VLOOKUP(Brassage!$H$15,'Profil d''eau'!$K$4:$Q$98,6,FALSE) -> 175 | Q2: =VLOOKUP(Brassage!$H$15,'Profil d''eau'!$K$4:$Q$98,7,FALSE) -> 170
A3: PROFIL | C3: NOM | D3: Ca (50-150) | E3: Mg (10-40) | F3: Na (0-150) | G3: SO4 (50-250) | H3: Cl (0-250) | I3: HCO3 (0-250) | K3: Profil | L3: Ca | M3: Mg | N3: Na | O3: SO4 | P3: Cl | Q3: HCO3
A4: Style BJCCP | C4: 06C - Dunkles Bock | D4: =IF($C$4="","",VLOOKUP($C$4,BJCCP!$A$2:$AU$119,22,FALSE)) -> 50-75 | E4: =IF($C$4="","",VLOOKUP($C$4,BJCCP!$A$2:$AU$119,23,FALSE)) -> 0-30 | F4: =IF($C$4="","",VLOOKUP($C$4,BJCCP!$A$2:$AU$119,24,FALSE)) -> 40-80 | G4: =IF($C$4="","",VLOOKUP($C$4,BJCCP!$A$2:$AU$119,25,FALSE)) -> 0-100 | H4: =IF($C$4="","",VLOOKUP($C$4,BJCCP!$A$2:$AU$119,26,FALSE)) -> 50-150 | I4: =IF($C$4="","",VLOOKUP($C$4,BJCCP!$A$2:$AU$119,27,FALSE)) -> <100 | K4: Recette actuelle | L4: =Brassage!B15 -> 50 | M4: =Brassage!C15 -> 20 | N4: =Brassage!D15 -> 60 | O4: =Brassage!E15 -> 50 | P4: =Brassage!F15 -> 175 | Q4: =Brassage!G15 -> 170
A5: Profil cible (manuel) | K5: =IF([1]Eaux!A4="","",[1]Eaux!A4) -> 00 Saint-Paulet | L5: =IF([1]Eaux!B4="","",[1]Eaux!B4) -> 30 | M5: =IF([1]Eaux!C4="","",[1]Eaux!C4) -> 3 | N5: =IF([1]Eaux!D4="","",[1]Eaux!D4) -> 9 | O5: =IF([1]Eaux!E4="","",[1]Eaux!E4) -> 3 | P5: =IF([1]Eaux!F4="","",[1]Eaux!F4) -> 10 | Q5: =IF([1]Eaux!G4="","",[1]Eaux!G4) -> 111
A6: Profil cible (liste) | C6: Stout - Porter | D6: =IF($C$6="","",VLOOKUP($C$6,$K$4:$Q$98,2,FALSE)) -> 50 | E6: =IF($C$6="","",VLOOKUP($C$6,$K$4:$Q$98,3,FALSE)) -> 12 | F6: =IF($C$6="","",VLOOKUP($C$6,$K$4:$Q$98,4,FALSE)) -> 60 | G6: =IF($C$6="","",VLOOKUP($C$6,$K$4:$Q$98,5,FALSE)) -> 46 | H6: =IF($C$6="","",VLOOKUP($C$6,$K$4:$Q$98,6,FALSE)) -> 175 | I6: =IF($C$6="","",VLOOKUP($C$6,$K$4:$Q$98,7,FALSE)) -> 170 | K6: =IF([1]Eaux!A5="","",[1]Eaux!A5) -> Buffalo, NY | L6: =IF([1]Eaux!B5="","",[1]Eaux!B5) -> 34 | M6: =IF([1]Eaux!C5="","",[1]Eaux!C5) -> 9 | N6: =IF([1]Eaux!D5="","",[1]Eaux!D5) -> 11 | O6: =IF([1]Eaux!E5="","",[1]Eaux!E5) -> 23 | P6: =IF([1]Eaux!F5="","",[1]Eaux!F5) -> 19 | Q6: =IF([1]Eaux!G5="","",[1]Eaux!G5) -> 110
A7: Profil cible retenu | C7: =IF($C$6="",C5,C6) -> Stout - Porter | D7: =IF($C$6="",D5,D6) -> 50 | E7: 12 | F7: 60 | G7: 46 | H7: 175 | I7: 170 | K7: =IF([1]Eaux!A6="","",[1]Eaux!A6) -> Burton-on-Trent | L7: =IF([1]Eaux!B6="","",[1]Eaux!B6) -> 268 | M7: =IF([1]Eaux!C6="","",[1]Eaux!C6) -> 62 | N7: =IF([1]Eaux!D6="","",[1]Eaux!D6) -> 30 | O7: =IF([1]Eaux!E6="","",[1]Eaux!E6) -> 638 | P7: =IF([1]Eaux!F6="","",[1]Eaux!F6) -> 36 | Q7: =IF([1]Eaux!G6="","",[1]Eaux!G6) -> 141
A8: Eau de départ 1 | B8: 15 | C8: 00 Saint-Paulet | D8: =IF($C8="",0,VLOOKUP($C8,$K$4:$Q$98,2,FALSE)) -> 30 | E8: =IF($C8="",0,VLOOKUP($C8,$K$4:$Q$98,3,FALSE)) -> 3 | F8: =IF($C8="",0,VLOOKUP($C8,$K$4:$Q$98,4,FALSE)) -> 9 | G8: =IF($C8="",0,VLOOKUP($C8,$K$4:$Q$98,5,FALSE)) -> 3 | H8: =IF($C8="",0,VLOOKUP($C8,$K$4:$Q$98,6,FALSE)) -> 10 | I8: =IF($C8="",0,VLOOKUP($C8,$K$4:$Q$98,7,FALSE)) -> 111 | K8: =IF([1]Eaux!A7="","",[1]Eaux!A7) -> Dortmund | L8: =IF([1]Eaux!B7="","",[1]Eaux!B7) -> 260 | M8: =IF([1]Eaux!C7="","",[1]Eaux!C7) -> 23 | N8: =IF([1]Eaux!D7="","",[1]Eaux!D7) -> 69 | O8: =IF([1]Eaux!E7="","",[1]Eaux!E7) -> 240 | P8: =IF([1]Eaux!F7="","",[1]Eaux!F7) -> 106 | Q8: =IF([1]Eaux!G7="","",[1]Eaux!G7) -> 270
A9: Eau de départ 2 | B9: 10 | C9: Vienna | D9: =IF($C9="",0,VLOOKUP($C9,$K$4:$Q$98,2,FALSE)) -> 200 | E9: =IF($C9="",0,VLOOKUP($C9,$K$4:$Q$98,3,FALSE)) -> 60 | F9: =IF($C9="",0,VLOOKUP($C9,$K$4:$Q$98,4,FALSE)) -> 8 | G9: =IF($C9="",0,VLOOKUP($C9,$K$4:$Q$98,5,FALSE)) -> 125 | H9: =IF($C9="",0,VLOOKUP($C9,$K$4:$Q$98,6,FALSE)) -> 12 | I9: =IF($C9="",0,VLOOKUP($C9,$K$4:$Q$98,7,FALSE)) -> 120 | K9: =IF([1]Eaux!A8="","",[1]Eaux!A8) -> Dublin | L9: =IF([1]Eaux!B8="","",[1]Eaux!B8) -> 118 | M9: =IF([1]Eaux!C8="","",[1]Eaux!C8) -> 4 | N9: =IF([1]Eaux!D8="","",[1]Eaux!D8) -> 12 | O9: =IF([1]Eaux!E8="","",[1]Eaux!E8) -> 54 | P9: =IF([1]Eaux!F8="","",[1]Eaux!F8) -> 19 | Q9: =IF([1]Eaux!G8="","",[1]Eaux!G8) -> 319
A10: Eau de départ 3 | D10: =IF($C10="",0,VLOOKUP($C10,$K$4:$Q$98,2,FALSE)) -> 0 | E10: =IF($C10="",0,VLOOKUP($C10,$K$4:$Q$98,3,FALSE)) -> 0 | F10: =IF($C10="",0,VLOOKUP($C10,$K$4:$Q$98,4,FALSE)) -> 0 | G10: =IF($C10="",0,VLOOKUP($C10,$K$4:$Q$98,5,FALSE)) -> 0 | H10: =IF($C10="",0,VLOOKUP($C10,$K$4:$Q$98,6,FALSE)) -> 0 | I10: =IF($C10="",0,VLOOKUP($C10,$K$4:$Q$98,7,FALSE)) -> 0 | K10: =IF([1]Eaux!A9="","",[1]Eaux!A9) -> East Flanders | L10: =IF([1]Eaux!B9="","",[1]Eaux!B9) -> 134 | M10: =IF([1]Eaux!C9="","",[1]Eaux!C9) -> 22 | N10: =IF([1]Eaux!D9="","",[1]Eaux!D9) -> 52 | O10: =IF([1]Eaux!E9="","",[1]Eaux!E9) -> 76 | P10: =IF([1]Eaux!F9="","",[1]Eaux!F9) -> 47 | Q10: =IF([1]Eaux!G9="","",[1]Eaux!G9) -> 306
A11: Eau de départ 4 | D11: =IF($C11="",0,VLOOKUP($C11,$K$4:$Q$98,2,FALSE)) -> 0 | E11: =IF($C11="",0,VLOOKUP($C11,$K$4:$Q$98,3,FALSE)) -> 0 | F11: =IF($C11="",0,VLOOKUP($C11,$K$4:$Q$98,4,FALSE)) -> 0 | G11: =IF($C11="",0,VLOOKUP($C11,$K$4:$Q$98,5,FALSE)) -> 0 | H11: =IF($C11="",0,VLOOKUP($C11,$K$4:$Q$98,6,FALSE)) -> 0 | I11: =IF($C11="",0,VLOOKUP($C11,$K$4:$Q$98,7,FALSE)) -> 0 | K11: =IF([1]Eaux!A10="","",[1]Eaux!A10) -> Eau déminéralisée | L11: =IF([1]Eaux!B10="","",[1]Eaux!B10) -> 0 | M11: =IF([1]Eaux!C10="","",[1]Eaux!C10) -> 0 | N11: =IF([1]Eaux!D10="","",[1]Eaux!D10) -> 0 | O11: =IF([1]Eaux!E10="","",[1]Eaux!E10) -> 0 | P11: =IF([1]Eaux!F10="","",[1]Eaux!F10) -> 0 | Q11: =IF([1]Eaux!G10="","",[1]Eaux!G10) -> 0
A12: Eau de départ 5 | D12: =IF($C12="",0,VLOOKUP($C12,$K$4:$Q$98,2,FALSE)) -> 0 | E12: =IF($C12="",0,VLOOKUP($C12,$K$4:$Q$98,3,FALSE)) -> 0 | F12: =IF($C12="",0,VLOOKUP($C12,$K$4:$Q$98,4,FALSE)) -> 0 | G12: =IF($C12="",0,VLOOKUP($C12,$K$4:$Q$98,5,FALSE)) -> 0 | H12: =IF($C12="",0,VLOOKUP($C12,$K$4:$Q$98,6,FALSE)) -> 0 | I12: =IF($C12="",0,VLOOKUP($C12,$K$4:$Q$98,7,FALSE)) -> 0 | K12: =IF([1]Eaux!A11="","",[1]Eaux!A11) -> Edinburgh | L12: =IF([1]Eaux!B11="","",[1]Eaux!B11) -> 140 | M12: =IF([1]Eaux!C11="","",[1]Eaux!C11) -> 36 | N12: =IF([1]Eaux!D11="","",[1]Eaux!D11) -> 92 | O12: =IF([1]Eaux!E11="","",[1]Eaux!E11) -> 231 | P12: =IF([1]Eaux!F11="","",[1]Eaux!F11) -> 60 | Q12: =IF([1]Eaux!G11="","",[1]Eaux!G11) -> 270
A13: Eau obtenue | B13: =SUM(B8:B12) -> 25 | C13: Nouvelle eau | D13: =(D8*$B$8+D9*$B$9+D10*$B$10+D11*$B$11+D12*$B$12)/$B$13 -> 98 | E13: =(E8*$B$8+E9*$B$9+E10*$B$10+E11*$B$11+E12*$B$12)/$B$13 -> 25.8 | F13: 8.6 | G13: 51.8 | H13: 10.8 | I13: 114.6 | K13: =IF([1]Eaux!A12="","",[1]Eaux!A12) -> Erie County | L13: =IF([1]Eaux!B12="","",[1]Eaux!B12) -> 31 | M13: =IF([1]Eaux!C12="","",[1]Eaux!C12) -> 8 | N13: =IF([1]Eaux!D12="","",[1]Eaux!D12) -> 10 | O13: =IF([1]Eaux!E12="","",[1]Eaux!E12) -> 24 | P13: =IF([1]Eaux!F12="","",[1]Eaux!F12) -> 18 | Q13: =IF([1]Eaux!G12="","",[1]Eaux!G12) -> 102
A14: Différence profil cible | D14: =D13-D7 -> 48 | E14: =E13-E7 -> 13.8 | F14: -51.4 | G14: 5.8 | H14: -164.2 | I14: -55.4 | K14: =IF([1]Eaux!A13="","",[1]Eaux!A13) -> Lockport | L14: =IF([1]Eaux!B13="","",[1]Eaux!B13) -> 36 | M14: =IF([1]Eaux!C13="","",[1]Eaux!C13) -> 6 | N14: =IF([1]Eaux!D13="","",[1]Eaux!D13) -> 9 | O14: =IF([1]Eaux!E13="","",[1]Eaux!E13) -> 23 | P14: =IF([1]Eaux!F13="","",[1]Eaux!F13) -> 18 | Q14: =IF([1]Eaux!G13="","",[1]Eaux!G13) -> 95
K15: =IF([1]Eaux!A14="","",[1]Eaux!A14) -> London | L15: =IF([1]Eaux!B14="","",[1]Eaux!B14) -> 90 | M15: =IF([1]Eaux!C14="","",[1]Eaux!C14) -> 4 | N15: =IF([1]Eaux!D14="","",[1]Eaux!D14) -> 24 | O15: =IF([1]Eaux!E14="","",[1]Eaux!E14) -> 58 | P15: =IF([1]Eaux!F14="","",[1]Eaux!F14) -> 18 | Q15: =IF([1]Eaux!G14="","",[1]Eaux!G14) -> 123
K16: =IF([1]Eaux!A15="","",[1]Eaux!A15) -> Mild Ale - Dark Lager | L16: =IF([1]Eaux!B15="","",[1]Eaux!B15) -> 75 | M16: =IF([1]Eaux!C15="","",[1]Eaux!C15) -> 12 | N16: =IF([1]Eaux!D15="","",[1]Eaux!D15) -> 35 | O16: =IF([1]Eaux!E15="","",[1]Eaux!E15) -> 120 | P16: =IF([1]Eaux!F15="","",[1]Eaux!F15) -> 100 | Q16: =IF([1]Eaux!G15="","",[1]Eaux!G15) -> 120
A17: Outil sels minéraux | K17: =IF([1]Eaux!A16="","",[1]Eaux!A16) -> Munich | L17: =IF([1]Eaux!B16="","",[1]Eaux!B16) -> 76 | M17: =IF([1]Eaux!C16="","",[1]Eaux!C16) -> 18 | N17: =IF([1]Eaux!D16="","",[1]Eaux!D16) -> 1 | O17: =IF([1]Eaux!E16="","",[1]Eaux!E16) -> 10 | P17: =IF([1]Eaux!F16="","",[1]Eaux!F16) -> 2 | Q17: =IF([1]Eaux!G16="","",[1]Eaux!G16) -> 152
K18: =IF([1]Eaux!A17="","",[1]Eaux!A17) -> Niagara County | L18: =IF([1]Eaux!B17="","",[1]Eaux!B17) -> 31 | M18: =IF([1]Eaux!C17="","",[1]Eaux!C17) -> 10 | N18: =IF([1]Eaux!D17="","",[1]Eaux!D17) -> 10 | O18: =IF([1]Eaux!E17="","",[1]Eaux!E17) -> 25 | P18: =IF([1]Eaux!F17="","",[1]Eaux!F17) -> 20 | Q18: =IF([1]Eaux!G17="","",[1]Eaux!G17) -> 109
A19: PROFIL | C19: NOM | D19: Ca (50-150) | E19: Mg (10-40) | F19: Na (0-150) | G19: SO4 (50-250) | H19: Cl (0-250) | I19: HCO3 (0-250) | K19: =IF([1]Eaux!A18="","",[1]Eaux!A18) -> Niagara Falls | L19: =IF([1]Eaux!B18="","",[1]Eaux!B18) -> 35 | M19: =IF([1]Eaux!C18="","",[1]Eaux!C18) -> 7 | N19: =IF([1]Eaux!D18="","",[1]Eaux!D18) -> 10 | O19: =IF([1]Eaux!E18="","",[1]Eaux!E18) -> 32 | P19: =IF([1]Eaux!F18="","",[1]Eaux!F18) -> 26 | Q19: =IF([1]Eaux!G18="","",[1]Eaux!G18) -> 107
A20: Style BJCCP | C20: 11B - Best Bitter | D20: =IF($C$4="","",VLOOKUP($C$4,BJCCP!$A$2:$AU$119,22,FALSE)) -> 50-75 | E20: =IF($C$4="","",VLOOKUP($C$4,BJCCP!$A$2:$AU$119,23,FALSE)) -> 0-30 | F20: =IF($C$4="","",VLOOKUP($C$4,BJCCP!$A$2:$AU$119,24,FALSE)) -> 40-80 | G20: =IF($C$4="","",VLOOKUP($C$4,BJCCP!$A$2:$AU$119,25,FALSE)) -> 0-100 | H20: =IF($C$4="","",VLOOKUP($C$4,BJCCP!$A$2:$AU$119,26,FALSE)) -> 50-150 | I20: =IF($C$4="","",VLOOKUP($C$4,BJCCP!$A$2:$AU$119,27,FALSE)) -> <100 | K20: =IF([1]Eaux!A19="","",[1]Eaux!A19) -> Pale Ale | L20: =IF([1]Eaux!B19="","",[1]Eaux!B19) -> 110 | M20: =IF([1]Eaux!C19="","",[1]Eaux!C19) -> 18 | N20: =IF([1]Eaux!D19="","",[1]Eaux!D19) -> 17 | O20: =IF([1]Eaux!E19="","",[1]Eaux!E19) -> 350 | P20: =IF([1]Eaux!F19="","",[1]Eaux!F19) -> 50 | Q20: =IF([1]Eaux!G19="","",[1]Eaux!G19) -> 70
A21: Profil cible (manuel) | K21: =IF([1]Eaux!A20="","",[1]Eaux!A20) -> Pale Lager | L21: =IF([1]Eaux!B20="","",[1]Eaux!B20) -> 20 | M21: =IF([1]Eaux!C20="","",[1]Eaux!C20) -> 6 | N21: =IF([1]Eaux!D20="","",[1]Eaux!D20) -> 24 | O21: =IF([1]Eaux!E20="","",[1]Eaux!E20) -> 5 | P21: =IF([1]Eaux!F20="","",[1]Eaux!F20) -> 18 | Q21: =IF([1]Eaux!G20="","",[1]Eaux!G20) -> 60
A22: Profil cible (liste) | C22: Recette actuelle | D22: =IF($C$22="","",VLOOKUP($C$22,$K$4:$Q$98,2,FALSE)) -> 50 | E22: =IF($C$22="","",VLOOKUP($C$22,$K$4:$Q$98,3,FALSE)) -> 20 | F22: =IF($C$22="","",VLOOKUP($C$22,$K$4:$Q$98,4,FALSE)) -> 60 | G22: =IF($C$22="","",VLOOKUP($C$22,$K$4:$Q$98,5,FALSE)) -> 50 | H22: =IF($C$22="","",VLOOKUP($C$22,$K$4:$Q$98,6,FALSE)) -> 175 | I22: =IF($C$22="","",VLOOKUP($C$22,$K$4:$Q$98,7,FALSE)) -> 170 | K22: =IF([1]Eaux!A21="","",[1]Eaux!A21) -> Pilsen | L22: =IF([1]Eaux!B21="","",[1]Eaux!B21) -> 7 | M22: =IF([1]Eaux!C21="","",[1]Eaux!C21) -> 3 | N22: =IF([1]Eaux!D21="","",[1]Eaux!D21) -> 3 | O22: =IF([1]Eaux!E21="","",[1]Eaux!E21) -> 6 | P22: =IF([1]Eaux!F21="","",[1]Eaux!F21) -> 5 | Q22: =IF([1]Eaux!G21="","",[1]Eaux!G21) -> 9
A23: Profil cible retenu | C23: =IF($C$22="",C21,C22) -> Recette actuelle | D23: 50 | E23: 20 | F23: 60 | G23: 50 | H23: 175 | I23: 170 | K23: =IF([1]Eaux!A22="","",[1]Eaux!A22) -> Pollock Pines | L23: =IF([1]Eaux!B22="","",[1]Eaux!B22) -> 5 | M23: =IF([1]Eaux!C22="","",[1]Eaux!C22) -> 1 | N23: =IF([1]Eaux!D22="","",[1]Eaux!D22) -> 6 | O23: =IF([1]Eaux!E22="","",[1]Eaux!E22) -> 4 | P23: =IF([1]Eaux!F22="","",[1]Eaux!F22) -> 5 | Q23: =IF([1]Eaux!G22="","",[1]Eaux!G22) -> 22
A24: Eau de départ | C24: St Felix | D24: =IF($C24="",0,VLOOKUP($C24,$K$4:$Q$98,2,FALSE)) -> 27.8 | E24: =IF($C24="",0,VLOOKUP($C24,$K$4:$Q$98,3,FALSE)) -> 3.1 | F24: =IF($C24="",0,VLOOKUP($C24,$K$4:$Q$98,4,FALSE)) -> 8.3 | G24: =IF($C24="",0,VLOOKUP($C24,$K$4:$Q$98,5,FALSE)) -> 3.2 | H24: =IF($C24="",0,VLOOKUP($C24,$K$4:$Q$98,6,FALSE)) -> 9.1 | I24: =IF($C24="",0,VLOOKUP($C24,$K$4:$Q$98,7,FALSE)) -> 114 | K24: =IF([1]Eaux!A23="","",[1]Eaux!A23) -> Stout - Porter | L24: =IF([1]Eaux!B23="","",[1]Eaux!B23) -> 50 | M24: =IF([1]Eaux!C23="","",[1]Eaux!C23) -> 12 | N24: =IF([1]Eaux!D23="","",[1]Eaux!D23) -> 60 | O24: =IF([1]Eaux!E23="","",[1]Eaux!E23) -> 46 | P24: =IF([1]Eaux!F23="","",[1]Eaux!F23) -> 175 | Q24: =IF([1]Eaux!G23="","",[1]Eaux!G23) -> 170
A25: Sulfate de Calcium | B25: CaSO4 | C25: 0.28 | D25: =$C25*232.78 -> 65.1784 | G25: =$C25*557.93 -> 156.2204 | K25: =IF([1]Eaux!A24="","",[1]Eaux!A24) -> Vienna | L25: =IF([1]Eaux!B24="","",[1]Eaux!B24) -> 200 | M25: =IF([1]Eaux!C24="","",[1]Eaux!C24) -> 60 | N25: =IF([1]Eaux!D24="","",[1]Eaux!D24) -> 8 | O25: =IF([1]Eaux!E24="","",[1]Eaux!E24) -> 125 | P25: =IF([1]Eaux!F24="","",[1]Eaux!F24) -> 12 | Q25: =IF([1]Eaux!G24="","",[1]Eaux!G24) -> 120
A26: Chlorure de Sodium | B26: NaCl | C26: 0 | F26: =$C26*393.39 -> 0 | H26: =$C26*606.66 -> 0 | K26: =IF([1]Eaux!A25="","",[1]Eaux!A25) -> West Flanders | L26: =IF([1]Eaux!B25="","",[1]Eaux!B25) -> 114 | M26: =IF([1]Eaux!C25="","",[1]Eaux!C25) -> 10 | N26: =IF([1]Eaux!D25="","",[1]Eaux!D25) -> 125 | O26: =IF([1]Eaux!E25="","",[1]Eaux!E25) -> 145 | P26: =IF([1]Eaux!F25="","",[1]Eaux!F25) -> 139 | Q26: =IF([1]Eaux!G25="","",[1]Eaux!G25) -> 370
A27: Sulfate de Magnésium | B27: MgSO4 | C27: 0.07 | E27: =$C27*98.61 -> 6.9027 | G27: =$C27*389.74 -> 27.2818 | K27: =IF([1]Eaux!A26="","",[1]Eaux!A26) -> Yorkshire | L27: =IF([1]Eaux!B26="","",[1]Eaux!B26) -> 105 | M27: =IF([1]Eaux!C26="","",[1]Eaux!C26) -> 17 | N27: =IF([1]Eaux!D26="","",[1]Eaux!D26) -> 23 | O27: =IF([1]Eaux!E26="","",[1]Eaux!E26) -> 66 | P27: =IF([1]Eaux!F26="","",[1]Eaux!F26) -> 30 | Q27: =IF([1]Eaux!G26="","",[1]Eaux!G26) -> 153
A28: Chlorure de Calcium | B28: CaCl2 | C28: 0.12 | D28: =$C28*272.61 -> 32.7132 | H28: =$C28*482.31 -> 57.8772 | K28: St Felix | L28: 27.8 | M28: 3.1 | N28: 8.3 | O28: 3.2 | P28: 9.1 | Q28: 114
A29: Bicarbonate de Sodium | B29: NaHCO3 | C29: 0 | F29: =$C29*273.66 -> 0 | I29: =$C29*726.33 -> 0 | K29: Weissbier V2 | L29: 50 | M29: 10 | N29: 16 | O29: 70 | P29: 70 | Q29: 120
A30: Carbonate de Calcium | B30: CaCO3 | C30: 0.02 | D30: =$C30*400.43 -> 8.0086 | I30: =$C30*599.57 -> 11.9914 | K30: ESB bellebouche | L30: 152 | M30: 18 | N30: 18 | O30: 185 | P30: 66 | Q30: 120
A31: Profil obtenu | D31: =SUM(D24:D30) -> 133.7002 | E31: =SUM(E24:E30) -> 10.0027 | F31: 8.3 | G31: 186.7022 | H31: 66.9772 | I31: 125.9914 | K31: =IF([1]Eaux!A30="","",[1]Eaux!A30) ->  | L31: =IF([1]Eaux!B30="","",[1]Eaux!B30) ->  | M31: =IF([1]Eaux!C30="","",[1]Eaux!C30) ->  | N31: =IF([1]Eaux!D30="","",[1]Eaux!D30) ->  | O31: =IF([1]Eaux!E30="","",[1]Eaux!E30) ->  | P31: =IF([1]Eaux!F30="","",[1]Eaux!F30) ->  | Q31: =IF([1]Eaux!G30="","",[1]Eaux!G30) -> 
A32: Différence profil cible | D32: =D31-D23 -> 83.7002 | E32: =E31-E23 -> -9.9973 | F32: -51.7 | G32: 136.7022 | H32: -108.0228 | I32: -44.0086 | K32: =IF([1]Eaux!A31="","",[1]Eaux!A31) ->  | L32: =IF([1]Eaux!B31="","",[1]Eaux!B31) ->  | M32: =IF([1]Eaux!C31="","",[1]Eaux!C31) ->  | N32: =IF([1]Eaux!D31="","",[1]Eaux!D31) ->  | O32: =IF([1]Eaux!E31="","",[1]Eaux!E31) ->  | P32: =IF([1]Eaux!F31="","",[1]Eaux!F31) ->  | Q32: =IF([1]Eaux!G31="","",[1]Eaux!G31) -> 
C33: Recette actuelle | D33: =Brassage!M10 -> 19.95 | F33: =Brassage!M18 -> 21.61666667 | H33: =Brassage!L9 -> 41.56666667 | K33: =IF([1]Eaux!A32="","",[1]Eaux!A32) ->  | L33: =IF([1]Eaux!B32="","",[1]Eaux!B32) ->  | M33: =IF([1]Eaux!C32="","",[1]Eaux!C32) ->  | N33: =IF([1]Eaux!D32="","",[1]Eaux!D32) ->  | O33: =IF([1]Eaux!E32="","",[1]Eaux!E32) ->  | P33: =IF([1]Eaux!F32="","",[1]Eaux!F32) ->  | Q33: =IF([1]Eaux!G32="","",[1]Eaux!G32) -> 
A34: Ajout des sels minéraux | D34: Empatage | F34: Rinçage | H34: Total | K34: =IF([1]Eaux!A33="","",[1]Eaux!A33) ->  | L34: =IF([1]Eaux!B33="","",[1]Eaux!B33) ->  | M34: =IF([1]Eaux!C33="","",[1]Eaux!C33) ->  | N34: =IF([1]Eaux!D33="","",[1]Eaux!D33) ->  | O34: =IF([1]Eaux!E33="","",[1]Eaux!E33) ->  | P34: =IF([1]Eaux!F33="","",[1]Eaux!F33) ->  | Q34: =IF([1]Eaux!G33="","",[1]Eaux!G33) -> 
D35: 18.9 | F35: 20 | H35: =D35+F35 -> 38.9 | K35: =IF([1]Eaux!A34="","",[1]Eaux!A34) ->  | L35: =IF([1]Eaux!B34="","",[1]Eaux!B34) ->  | M35: =IF([1]Eaux!C34="","",[1]Eaux!C34) ->  | N35: =IF([1]Eaux!D34="","",[1]Eaux!D34) ->  | O35: =IF([1]Eaux!E34="","",[1]Eaux!E34) ->  | P35: =IF([1]Eaux!F34="","",[1]Eaux!F34) ->  | Q35: =IF([1]Eaux!G34="","",[1]Eaux!G34) -> 
A36: Sulfate de Calcium | B36: CaSO4 | C36: =C25 -> 0.28 | D36: =$C36*$D$35 -> 5.292 | F36: =$C36*$F$35 -> 5.6 | H36: =D36+F36 -> 10.892 | K36: =IF([1]Eaux!A35="","",[1]Eaux!A35) ->  | L36: =IF([1]Eaux!B35="","",[1]Eaux!B35) ->  | M36: =IF([1]Eaux!C35="","",[1]Eaux!C35) ->  | N36: =IF([1]Eaux!D35="","",[1]Eaux!D35) ->  | O36: =IF([1]Eaux!E35="","",[1]Eaux!E35) ->  | P36: =IF([1]Eaux!F35="","",[1]Eaux!F35) ->  | Q36: =IF([1]Eaux!G35="","",[1]Eaux!G35) -> 
A37: Chlorure de Sodium | B37: NaCl | C37: =C26 -> 0 | D37: =$C37*$D$35 -> 0 | F37: =$C37*$F$35 -> 0 | H37: 0 | K37: =IF([1]Eaux!A36="","",[1]Eaux!A36) ->  | L37: =IF([1]Eaux!B36="","",[1]Eaux!B36) ->  | M37: =IF([1]Eaux!C36="","",[1]Eaux!C36) ->  | N37: =IF([1]Eaux!D36="","",[1]Eaux!D36) ->  | O37: =IF([1]Eaux!E36="","",[1]Eaux!E36) ->  | P37: =IF([1]Eaux!F36="","",[1]Eaux!F36) ->  | Q37: =IF([1]Eaux!G36="","",[1]Eaux!G36) -> 
A38: Sulfate de Magnésium | B38: MgSO4 | C38: 0.07 | D38: 1.323 | F38: 1.4 | H38: =D38+F38 -> 2.723 | K38: =IF([1]Eaux!A37="","",[1]Eaux!A37) ->  | L38: =IF([1]Eaux!B37="","",[1]Eaux!B37) ->  | M38: =IF([1]Eaux!C37="","",[1]Eaux!C37) ->  | N38: =IF([1]Eaux!D37="","",[1]Eaux!D37) ->  | O38: =IF([1]Eaux!E37="","",[1]Eaux!E37) ->  | P38: =IF([1]Eaux!F37="","",[1]Eaux!F37) ->  | Q38: =IF([1]Eaux!G37="","",[1]Eaux!G37) -> 
A39: Chlorure de Calcium | B39: CaCl2 | C39: 0.12 | D39: 2.268 | F39: 2.4 | H39: =D39+F39 -> 4.668 | K39: =IF([1]Eaux!A38="","",[1]Eaux!A38) ->  | L39: =IF([1]Eaux!B38="","",[1]Eaux!B38) ->  | M39: =IF([1]Eaux!C38="","",[1]Eaux!C38) ->  | N39: =IF([1]Eaux!D38="","",[1]Eaux!D38) ->  | O39: =IF([1]Eaux!E38="","",[1]Eaux!E38) ->  | P39: =IF([1]Eaux!F38="","",[1]Eaux!F38) ->  | Q39: =IF([1]Eaux!G38="","",[1]Eaux!G38) -> 
A40: Bicarbonate de Sodium | B40: NaHCO3 | C40: 0 | D40: 0 | F40: 0 | H40: 0 | K40: =IF([1]Eaux!A39="","",[1]Eaux!A39) ->  | L40: =IF([1]Eaux!B39="","",[1]Eaux!B39) ->  | M40: =IF([1]Eaux!C39="","",[1]Eaux!C39) ->  | N40: =IF([1]Eaux!D39="","",[1]Eaux!D39) ->  | O40: =IF([1]Eaux!E39="","",[1]Eaux!E39) ->  | P40: =IF([1]Eaux!F39="","",[1]Eaux!F39) ->  | Q40: =IF([1]Eaux!G39="","",[1]Eaux!G39) -> 
A41: Carbonate de Calcium | B41: CaCO3 | C41: 0.02 | D41: 0.378 | F41: 0.4 | H41: 0.778 | K41: =IF([1]Eaux!A40="","",[1]Eaux!A40) ->  | L41: =IF([1]Eaux!B40="","",[1]Eaux!B40) ->  | M41: =IF([1]Eaux!C40="","",[1]Eaux!C40) ->  | N41: =IF([1]Eaux!D40="","",[1]Eaux!D40) ->  | O41: =IF([1]Eaux!E40="","",[1]Eaux!E40) ->  | P41: =IF([1]Eaux!F40="","",[1]Eaux!F40) ->  | Q41: =IF([1]Eaux!G40="","",[1]Eaux!G40) -> 
K42: =IF([1]Eaux!A41="","",[1]Eaux!A41) ->  | L42: =IF([1]Eaux!B41="","",[1]Eaux!B41) ->  | M42: =IF([1]Eaux!C41="","",[1]Eaux!C41) ->  | N42: =IF([1]Eaux!D41="","",[1]Eaux!D41) ->  | O42: =IF([1]Eaux!E41="","",[1]Eaux!E41) ->  | P42: =IF([1]Eaux!F41="","",[1]Eaux!F41) ->  | Q42: =IF([1]Eaux!G41="","",[1]Eaux!G41) -> 
K43: =IF([1]Eaux!A42="","",[1]Eaux!A42) ->  | L43: =IF([1]Eaux!B42="","",[1]Eaux!B42) ->  | M43: =IF([1]Eaux!C42="","",[1]Eaux!C42) ->  | N43: =IF([1]Eaux!D42="","",[1]Eaux!D42) ->  | O43: =IF([1]Eaux!E42="","",[1]Eaux!E42) ->  | P43: =IF([1]Eaux!F42="","",[1]Eaux!F42) ->  | Q43: =IF([1]Eaux!G42="","",[1]Eaux!G42) -> 
K44: =IF([1]Eaux!A43="","",[1]Eaux!A43) ->  | L44: =IF([1]Eaux!B43="","",[1]Eaux!B43) ->  | M44: =IF([1]Eaux!C43="","",[1]Eaux!C43) ->  | N44: =IF([1]Eaux!D43="","",[1]Eaux!D43) ->  | O44: =IF([1]Eaux!E43="","",[1]Eaux!E43) ->  | P44: =IF([1]Eaux!F43="","",[1]Eaux!F43) ->  | Q44: =IF([1]Eaux!G43="","",[1]Eaux!G43) -> 
K45: =IF([1]Eaux!A44="","",[1]Eaux!A44) ->  | L45: =IF([1]Eaux!B44="","",[1]Eaux!B44) ->  | M45: =IF([1]Eaux!C44="","",[1]Eaux!C44) ->  | N45: =IF([1]Eaux!D44="","",[1]Eaux!D44) ->  | O45: =IF([1]Eaux!E44="","",[1]Eaux!E44) ->  | P45: =IF([1]Eaux!F44="","",[1]Eaux!F44) ->  | Q45: =IF([1]Eaux!G44="","",[1]Eaux!G44) -> 
K46: =IF([1]Eaux!A45="","",[1]Eaux!A45) ->  | L46: =IF([1]Eaux!B45="","",[1]Eaux!B45) ->  | M46: =IF([1]Eaux!C45="","",[1]Eaux!C45) ->  | N46: =IF([1]Eaux!D45="","",[1]Eaux!D45) ->  | O46: =IF([1]Eaux!E45="","",[1]Eaux!E45) ->  | P46: =IF([1]Eaux!F45="","",[1]Eaux!F45) ->  | Q46: =IF([1]Eaux!G45="","",[1]Eaux!G45) -> 
K47: =IF([1]Eaux!A46="","",[1]Eaux!A46) ->  | L47: =IF([1]Eaux!B46="","",[1]Eaux!B46) ->  | M47: =IF([1]Eaux!C46="","",[1]Eaux!C46) ->  | N47: =IF([1]Eaux!D46="","",[1]Eaux!D46) ->  | O47: =IF([1]Eaux!E46="","",[1]Eaux!E46) ->  | P47: =IF([1]Eaux!F46="","",[1]Eaux!F46) ->  | Q47: =IF([1]Eaux!G46="","",[1]Eaux!G46) -> 
K48: =IF([1]Eaux!A47="","",[1]Eaux!A47) ->  | L48: =IF([1]Eaux!B47="","",[1]Eaux!B47) ->  | M48: =IF([1]Eaux!C47="","",[1]Eaux!C47) ->  | N48: =IF([1]Eaux!D47="","",[1]Eaux!D47) ->  | O48: =IF([1]Eaux!E47="","",[1]Eaux!E47) ->  | P48: =IF([1]Eaux!F47="","",[1]Eaux!F47) ->  | Q48: =IF([1]Eaux!G47="","",[1]Eaux!G47) -> 
K49: =IF([1]Eaux!A48="","",[1]Eaux!A48) ->  | L49: =IF([1]Eaux!B48="","",[1]Eaux!B48) ->  | M49: =IF([1]Eaux!C48="","",[1]Eaux!C48) ->  | N49: =IF([1]Eaux!D48="","",[1]Eaux!D48) ->  | O49: =IF([1]Eaux!E48="","",[1]Eaux!E48) ->  | P49: =IF([1]Eaux!F48="","",[1]Eaux!F48) ->  | Q49: =IF([1]Eaux!G48="","",[1]Eaux!G48) -> 
K50: =IF([1]Eaux!A49="","",[1]Eaux!A49) ->  | L50: =IF([1]Eaux!B49="","",[1]Eaux!B49) ->  | M50: =IF([1]Eaux!C49="","",[1]Eaux!C49) ->  | N50: =IF([1]Eaux!D49="","",[1]Eaux!D49) ->  | O50: =IF([1]Eaux!E49="","",[1]Eaux!E49) ->  | P50: =IF([1]Eaux!F49="","",[1]Eaux!F49) ->  | Q50: =IF([1]Eaux!G49="","",[1]Eaux!G49) -> 
K51: =IF([1]Eaux!A50="","",[1]Eaux!A50) ->  | L51: =IF([1]Eaux!B50="","",[1]Eaux!B50) ->  | M51: =IF([1]Eaux!C50="","",[1]Eaux!C50) ->  | N51: =IF([1]Eaux!D50="","",[1]Eaux!D50) ->  | O51: =IF([1]Eaux!E50="","",[1]Eaux!E50) ->  | P51: =IF([1]Eaux!F50="","",[1]Eaux!F50) ->  | Q51: =IF([1]Eaux!G50="","",[1]Eaux!G50) -> 
K52: =IF([1]Eaux!A51="","",[1]Eaux!A51) ->  | L52: =IF([1]Eaux!B51="","",[1]Eaux!B51) ->  | M52: =IF([1]Eaux!C51="","",[1]Eaux!C51) ->  | N52: =IF([1]Eaux!D51="","",[1]Eaux!D51) ->  | O52: =IF([1]Eaux!E51="","",[1]Eaux!E51) ->  | P52: =IF([1]Eaux!F51="","",[1]Eaux!F51) ->  | Q52: =IF([1]Eaux!G51="","",[1]Eaux!G51) -> 
K53: =IF([1]Eaux!A52="","",[1]Eaux!A52) ->  | L53: =IF([1]Eaux!B52="","",[1]Eaux!B52) ->  | M53: =IF([1]Eaux!C52="","",[1]Eaux!C52) ->  | N53: =IF([1]Eaux!D52="","",[1]Eaux!D52) ->  | O53: =IF([1]Eaux!E52="","",[1]Eaux!E52) ->  | P53: =IF([1]Eaux!F52="","",[1]Eaux!F52) ->  | Q53: =IF([1]Eaux!G52="","",[1]Eaux!G52) -> 
K54: =IF([1]Eaux!A53="","",[1]Eaux!A53) ->  | L54: =IF([1]Eaux!B53="","",[1]Eaux!B53) ->  | M54: =IF([1]Eaux!C53="","",[1]Eaux!C53) ->  | N54: =IF([1]Eaux!D53="","",[1]Eaux!D53) ->  | O54: =IF([1]Eaux!E53="","",[1]Eaux!E53) ->  | P54: =IF([1]Eaux!F53="","",[1]Eaux!F53) ->  | Q54: =IF([1]Eaux!G53="","",[1]Eaux!G53) -> 
K55: =IF([1]Eaux!A54="","",[1]Eaux!A54) ->  | L55: =IF([1]Eaux!B54="","",[1]Eaux!B54) ->  | M55: =IF([1]Eaux!C54="","",[1]Eaux!C54) ->  | N55: =IF([1]Eaux!D54="","",[1]Eaux!D54) ->  | O55: =IF([1]Eaux!E54="","",[1]Eaux!E54) ->  | P55: =IF([1]Eaux!F54="","",[1]Eaux!F54) ->  | Q55: =IF([1]Eaux!G54="","",[1]Eaux!G54) -> 
K56: =IF([1]Eaux!A55="","",[1]Eaux!A55) ->  | L56: =IF([1]Eaux!B55="","",[1]Eaux!B55) ->  | M56: =IF([1]Eaux!C55="","",[1]Eaux!C55) ->  | N56: =IF([1]Eaux!D55="","",[1]Eaux!D55) ->  | O56: =IF([1]Eaux!E55="","",[1]Eaux!E55) ->  | P56: =IF([1]Eaux!F55="","",[1]Eaux!F55) ->  | Q56: =IF([1]Eaux!G55="","",[1]Eaux!G55) -> 
K57: =IF([1]Eaux!A56="","",[1]Eaux!A56) ->  | L57: =IF([1]Eaux!B56="","",[1]Eaux!B56) ->  | M57: =IF([1]Eaux!C56="","",[1]Eaux!C56) ->  | N57: =IF([1]Eaux!D56="","",[1]Eaux!D56) ->  | O57: =IF([1]Eaux!E56="","",[1]Eaux!E56) ->  | P57: =IF([1]Eaux!F56="","",[1]Eaux!F56) ->  | Q57: =IF([1]Eaux!G56="","",[1]Eaux!G56) -> 
K58: =IF([1]Eaux!A57="","",[1]Eaux!A57) ->  | L58: =IF([1]Eaux!B57="","",[1]Eaux!B57) ->  | M58: =IF([1]Eaux!C57="","",[1]Eaux!C57) ->  | N58: =IF([1]Eaux!D57="","",[1]Eaux!D57) ->  | O58: =IF([1]Eaux!E57="","",[1]Eaux!E57) ->  | P58: =IF([1]Eaux!F57="","",[1]Eaux!F57) ->  | Q58: =IF([1]Eaux!G57="","",[1]Eaux!G57) -> 
K59: =IF([1]Eaux!A58="","",[1]Eaux!A58) ->  | L59: =IF([1]Eaux!B58="","",[1]Eaux!B58) ->  | M59: =IF([1]Eaux!C58="","",[1]Eaux!C58) ->  | N59: =IF([1]Eaux!D58="","",[1]Eaux!D58) ->  | O59: =IF([1]Eaux!E58="","",[1]Eaux!E58) ->  | P59: =IF([1]Eaux!F58="","",[1]Eaux!F58) ->  | Q59: =IF([1]Eaux!G58="","",[1]Eaux!G58) -> 
K60: =IF([1]Eaux!A59="","",[1]Eaux!A59) ->  | L60: =IF([1]Eaux!B59="","",[1]Eaux!B59) ->  | M60: =IF([1]Eaux!C59="","",[1]Eaux!C59) ->  | N60: =IF([1]Eaux!D59="","",[1]Eaux!D59) ->  | O60: =IF([1]Eaux!E59="","",[1]Eaux!E59) ->  | P60: =IF([1]Eaux!F59="","",[1]Eaux!F59) ->  | Q60: =IF([1]Eaux!G59="","",[1]Eaux!G59) -> 
K61: =IF([1]Eaux!A60="","",[1]Eaux!A60) ->  | L61: =IF([1]Eaux!B60="","",[1]Eaux!B60) ->  | M61: =IF([1]Eaux!C60="","",[1]Eaux!C60) ->  | N61: =IF([1]Eaux!D60="","",[1]Eaux!D60) ->  | O61: =IF([1]Eaux!E60="","",[1]Eaux!E60) ->  | P61: =IF([1]Eaux!F60="","",[1]Eaux!F60) ->  | Q61: =IF([1]Eaux!G60="","",[1]Eaux!G60) -> 
K62: =IF([1]Eaux!A61="","",[1]Eaux!A61) ->  | L62: =IF([1]Eaux!B61="","",[1]Eaux!B61) ->  | M62: =IF([1]Eaux!C61="","",[1]Eaux!C61) ->  | N62: =IF([1]Eaux!D61="","",[1]Eaux!D61) ->  | O62: =IF([1]Eaux!E61="","",[1]Eaux!E61) ->  | P62: =IF([1]Eaux!F61="","",[1]Eaux!F61) ->  | Q62: =IF([1]Eaux!G61="","",[1]Eaux!G61) -> 
K63: =IF([1]Eaux!A62="","",[1]Eaux!A62) ->  | L63: =IF([1]Eaux!B62="","",[1]Eaux!B62) ->  | M63: =IF([1]Eaux!C62="","",[1]Eaux!C62) ->  | N63: =IF([1]Eaux!D62="","",[1]Eaux!D62) ->  | O63: =IF([1]Eaux!E62="","",[1]Eaux!E62) ->  | P63: =IF([1]Eaux!F62="","",[1]Eaux!F62) ->  | Q63: =IF([1]Eaux!G62="","",[1]Eaux!G62) -> 
K64: =IF([1]Eaux!A63="","",[1]Eaux!A63) ->  | L64: =IF([1]Eaux!B63="","",[1]Eaux!B63) ->  | M64: =IF([1]Eaux!C63="","",[1]Eaux!C63) ->  | N64: =IF([1]Eaux!D63="","",[1]Eaux!D63) ->  | O64: =IF([1]Eaux!E63="","",[1]Eaux!E63) ->  | P64: =IF([1]Eaux!F63="","",[1]Eaux!F63) ->  | Q64: =IF([1]Eaux!G63="","",[1]Eaux!G63) -> 
K65: =IF([1]Eaux!A64="","",[1]Eaux!A64) ->  | L65: =IF([1]Eaux!B64="","",[1]Eaux!B64) ->  | M65: =IF([1]Eaux!C64="","",[1]Eaux!C64) ->  | N65: =IF([1]Eaux!D64="","",[1]Eaux!D64) ->  | O65: =IF([1]Eaux!E64="","",[1]Eaux!E64) ->  | P65: =IF([1]Eaux!F64="","",[1]Eaux!F64) ->  | Q65: =IF([1]Eaux!G64="","",[1]Eaux!G64) -> 
K66: =IF([1]Eaux!A65="","",[1]Eaux!A65) ->  | L66: =IF([1]Eaux!B65="","",[1]Eaux!B65) ->  | M66: =IF([1]Eaux!C65="","",[1]Eaux!C65) ->  | N66: =IF([1]Eaux!D65="","",[1]Eaux!D65) ->  | O66: =IF([1]Eaux!E65="","",[1]Eaux!E65) ->  | P66: =IF([1]Eaux!F65="","",[1]Eaux!F65) ->  | Q66: =IF([1]Eaux!G65="","",[1]Eaux!G65) -> 
K67: =IF([1]Eaux!A66="","",[1]Eaux!A66) ->  | L67: =IF([1]Eaux!B66="","",[1]Eaux!B66) ->  | M67: =IF([1]Eaux!C66="","",[1]Eaux!C66) ->  | N67: =IF([1]Eaux!D66="","",[1]Eaux!D66) ->  | O67: =IF([1]Eaux!E66="","",[1]Eaux!E66) ->  | P67: =IF([1]Eaux!F66="","",[1]Eaux!F66) ->  | Q67: =IF([1]Eaux!G66="","",[1]Eaux!G66) -> 
K68: =IF([1]Eaux!A67="","",[1]Eaux!A67) ->  | L68: =IF([1]Eaux!B67="","",[1]Eaux!B67) ->  | M68: =IF([1]Eaux!C67="","",[1]Eaux!C67) ->  | N68: =IF([1]Eaux!D67="","",[1]Eaux!D67) ->  | O68: =IF([1]Eaux!E67="","",[1]Eaux!E67) ->  | P68: =IF([1]Eaux!F67="","",[1]Eaux!F67) ->  | Q68: =IF([1]Eaux!G67="","",[1]Eaux!G67) -> 
K69: =IF([1]Eaux!A68="","",[1]Eaux!A68) ->  | L69: =IF([1]Eaux!B68="","",[1]Eaux!B68) ->  | M69: =IF([1]Eaux!C68="","",[1]Eaux!C68) ->  | N69: =IF([1]Eaux!D68="","",[1]Eaux!D68) ->  | O69: =IF([1]Eaux!E68="","",[1]Eaux!E68) ->  | P69: =IF([1]Eaux!F68="","",[1]Eaux!F68) ->  | Q69: =IF([1]Eaux!G68="","",[1]Eaux!G68) -> 
K70: =IF([1]Eaux!A69="","",[1]Eaux!A69) ->  | L70: =IF([1]Eaux!B69="","",[1]Eaux!B69) ->  | M70: =IF([1]Eaux!C69="","",[1]Eaux!C69) ->  | N70: =IF([1]Eaux!D69="","",[1]Eaux!D69) ->  | O70: =IF([1]Eaux!E69="","",[1]Eaux!E69) ->  | P70: =IF([1]Eaux!F69="","",[1]Eaux!F69) ->  | Q70: =IF([1]Eaux!G69="","",[1]Eaux!G69) -> 
K71: =IF([1]Eaux!A70="","",[1]Eaux!A70) ->  | L71: =IF([1]Eaux!B70="","",[1]Eaux!B70) ->  | M71: =IF([1]Eaux!C70="","",[1]Eaux!C70) ->  | N71: =IF([1]Eaux!D70="","",[1]Eaux!D70) ->  | O71: =IF([1]Eaux!E70="","",[1]Eaux!E70) ->  | P71: =IF([1]Eaux!F70="","",[1]Eaux!F70) ->  | Q71: =IF([1]Eaux!G70="","",[1]Eaux!G70) -> 
K72: =IF([1]Eaux!A71="","",[1]Eaux!A71) ->  | L72: =IF([1]Eaux!B71="","",[1]Eaux!B71) ->  | M72: =IF([1]Eaux!C71="","",[1]Eaux!C71) ->  | N72: =IF([1]Eaux!D71="","",[1]Eaux!D71) ->  | O72: =IF([1]Eaux!E71="","",[1]Eaux!E71) ->  | P72: =IF([1]Eaux!F71="","",[1]Eaux!F71) ->  | Q72: =IF([1]Eaux!G71="","",[1]Eaux!G71) -> 
K73: =IF([1]Eaux!A72="","",[1]Eaux!A72) ->  | L73: =IF([1]Eaux!B72="","",[1]Eaux!B72) ->  | M73: =IF([1]Eaux!C72="","",[1]Eaux!C72) ->  | N73: =IF([1]Eaux!D72="","",[1]Eaux!D72) ->  | O73: =IF([1]Eaux!E72="","",[1]Eaux!E72) ->  | P73: =IF([1]Eaux!F72="","",[1]Eaux!F72) ->  | Q73: =IF([1]Eaux!G72="","",[1]Eaux!G72) -> 
K74: =IF([1]Eaux!A73="","",[1]Eaux!A73) ->  | L74: =IF([1]Eaux!B73="","",[1]Eaux!B73) ->  | M74: =IF([1]Eaux!C73="","",[1]Eaux!C73) ->  | N74: =IF([1]Eaux!D73="","",[1]Eaux!D73) ->  | O74: =IF([1]Eaux!E73="","",[1]Eaux!E73) ->  | P74: =IF([1]Eaux!F73="","",[1]Eaux!F73) ->  | Q74: =IF([1]Eaux!G73="","",[1]Eaux!G73) -> 
K75: =IF([1]Eaux!A74="","",[1]Eaux!A74) ->  | L75: =IF([1]Eaux!B74="","",[1]Eaux!B74) ->  | M75: =IF([1]Eaux!C74="","",[1]Eaux!C74) ->  | N75: =IF([1]Eaux!D74="","",[1]Eaux!D74) ->  | O75: =IF([1]Eaux!E74="","",[1]Eaux!E74) ->  | P75: =IF([1]Eaux!F74="","",[1]Eaux!F74) ->  | Q75: =IF([1]Eaux!G74="","",[1]Eaux!G74) -> 
K76: =IF([1]Eaux!A75="","",[1]Eaux!A75) ->  | L76: =IF([1]Eaux!B75="","",[1]Eaux!B75) ->  | M76: =IF([1]Eaux!C75="","",[1]Eaux!C75) ->  | N76: =IF([1]Eaux!D75="","",[1]Eaux!D75) ->  | O76: =IF([1]Eaux!E75="","",[1]Eaux!E75) ->  | P76: =IF([1]Eaux!F75="","",[1]Eaux!F75) ->  | Q76: =IF([1]Eaux!G75="","",[1]Eaux!G75) -> 
K77: =IF([1]Eaux!A76="","",[1]Eaux!A76) ->  | L77: =IF([1]Eaux!B76="","",[1]Eaux!B76) ->  | M77: =IF([1]Eaux!C76="","",[1]Eaux!C76) ->  | N77: =IF([1]Eaux!D76="","",[1]Eaux!D76) ->  | O77: =IF([1]Eaux!E76="","",[1]Eaux!E76) ->  | P77: =IF([1]Eaux!F76="","",[1]Eaux!F76) ->  | Q77: =IF([1]Eaux!G76="","",[1]Eaux!G76) -> 
K78: =IF([1]Eaux!A77="","",[1]Eaux!A77) ->  | L78: =IF([1]Eaux!B77="","",[1]Eaux!B77) ->  | M78: =IF([1]Eaux!C77="","",[1]Eaux!C77) ->  | N78: =IF([1]Eaux!D77="","",[1]Eaux!D77) ->  | O78: =IF([1]Eaux!E77="","",[1]Eaux!E77) ->  | P78: =IF([1]Eaux!F77="","",[1]Eaux!F77) ->  | Q78: =IF([1]Eaux!G77="","",[1]Eaux!G77) -> 
K79: =IF([1]Eaux!A78="","",[1]Eaux!A78) ->  | L79: =IF([1]Eaux!B78="","",[1]Eaux!B78) ->  | M79: =IF([1]Eaux!C78="","",[1]Eaux!C78) ->  | N79: =IF([1]Eaux!D78="","",[1]Eaux!D78) ->  | O79: =IF([1]Eaux!E78="","",[1]Eaux!E78) ->  | P79: =IF([1]Eaux!F78="","",[1]Eaux!F78) ->  | Q79: =IF([1]Eaux!G78="","",[1]Eaux!G78) -> 
K80: =IF([1]Eaux!A79="","",[1]Eaux!A79) ->  | L80: =IF([1]Eaux!B79="","",[1]Eaux!B79) ->  | M80: =IF([1]Eaux!C79="","",[1]Eaux!C79) ->  | N80: =IF([1]Eaux!D79="","",[1]Eaux!D79) ->  | O80: =IF([1]Eaux!E79="","",[1]Eaux!E79) ->  | P80: =IF([1]Eaux!F79="","",[1]Eaux!F79) ->  | Q80: =IF([1]Eaux!G79="","",[1]Eaux!G79) -> 
K81: =IF([1]Eaux!A80="","",[1]Eaux!A80) ->  | L81: =IF([1]Eaux!B80="","",[1]Eaux!B80) ->  | M81: =IF([1]Eaux!C80="","",[1]Eaux!C80) ->  | N81: =IF([1]Eaux!D80="","",[1]Eaux!D80) ->  | O81: =IF([1]Eaux!E80="","",[1]Eaux!E80) ->  | P81: =IF([1]Eaux!F80="","",[1]Eaux!F80) ->  | Q81: =IF([1]Eaux!G80="","",[1]Eaux!G80) -> 
K82: =IF([1]Eaux!A81="","",[1]Eaux!A81) ->  | L82: =IF([1]Eaux!B81="","",[1]Eaux!B81) ->  | M82: =IF([1]Eaux!C81="","",[1]Eaux!C81) ->  | N82: =IF([1]Eaux!D81="","",[1]Eaux!D81) ->  | O82: =IF([1]Eaux!E81="","",[1]Eaux!E81) ->  | P82: =IF([1]Eaux!F81="","",[1]Eaux!F81) ->  | Q82: =IF([1]Eaux!G81="","",[1]Eaux!G81) -> 
K83: =IF([1]Eaux!A82="","",[1]Eaux!A82) ->  | L83: =IF([1]Eaux!B82="","",[1]Eaux!B82) ->  | M83: =IF([1]Eaux!C82="","",[1]Eaux!C82) ->  | N83: =IF([1]Eaux!D82="","",[1]Eaux!D82) ->  | O83: =IF([1]Eaux!E82="","",[1]Eaux!E82) ->  | P83: =IF([1]Eaux!F82="","",[1]Eaux!F82) ->  | Q83: =IF([1]Eaux!G82="","",[1]Eaux!G82) -> 
K84: =IF([1]Eaux!A83="","",[1]Eaux!A83) ->  | L84: =IF([1]Eaux!B83="","",[1]Eaux!B83) ->  | M84: =IF([1]Eaux!C83="","",[1]Eaux!C83) ->  | N84: =IF([1]Eaux!D83="","",[1]Eaux!D83) ->  | O84: =IF([1]Eaux!E83="","",[1]Eaux!E83) ->  | P84: =IF([1]Eaux!F83="","",[1]Eaux!F83) ->  | Q84: =IF([1]Eaux!G83="","",[1]Eaux!G83) -> 
K85: =IF([1]Eaux!A84="","",[1]Eaux!A84) ->  | L85: =IF([1]Eaux!B84="","",[1]Eaux!B84) ->  | M85: =IF([1]Eaux!C84="","",[1]Eaux!C84) ->  | N85: =IF([1]Eaux!D84="","",[1]Eaux!D84) ->  | O85: =IF([1]Eaux!E84="","",[1]Eaux!E84) ->  | P85: =IF([1]Eaux!F84="","",[1]Eaux!F84) ->  | Q85: =IF([1]Eaux!G84="","",[1]Eaux!G84) -> 
K86: =IF([1]Eaux!A85="","",[1]Eaux!A85) ->  | L86: =IF([1]Eaux!B85="","",[1]Eaux!B85) ->  | M86: =IF([1]Eaux!C85="","",[1]Eaux!C85) ->  | N86: =IF([1]Eaux!D85="","",[1]Eaux!D85) ->  | O86: =IF([1]Eaux!E85="","",[1]Eaux!E85) ->  | P86: =IF([1]Eaux!F85="","",[1]Eaux!F85) ->  | Q86: =IF([1]Eaux!G85="","",[1]Eaux!G85) -> 
K87: =IF([1]Eaux!A86="","",[1]Eaux!A86) ->  | L87: =IF([1]Eaux!B86="","",[1]Eaux!B86) ->  | M87: =IF([1]Eaux!C86="","",[1]Eaux!C86) ->  | N87: =IF([1]Eaux!D86="","",[1]Eaux!D86) ->  | O87: =IF([1]Eaux!E86="","",[1]Eaux!E86) ->  | P87: =IF([1]Eaux!F86="","",[1]Eaux!F86) ->  | Q87: =IF([1]Eaux!G86="","",[1]Eaux!G86) -> 
K88: =IF([1]Eaux!A87="","",[1]Eaux!A87) ->  | L88: =IF([1]Eaux!B87="","",[1]Eaux!B87) ->  | M88: =IF([1]Eaux!C87="","",[1]Eaux!C87) ->  | N88: =IF([1]Eaux!D87="","",[1]Eaux!D87) ->  | O88: =IF([1]Eaux!E87="","",[1]Eaux!E87) ->  | P88: =IF([1]Eaux!F87="","",[1]Eaux!F87) ->  | Q88: =IF([1]Eaux!G87="","",[1]Eaux!G87) -> 
K89: =IF([1]Eaux!A88="","",[1]Eaux!A88) ->  | L89: =IF([1]Eaux!B88="","",[1]Eaux!B88) ->  | M89: =IF([1]Eaux!C88="","",[1]Eaux!C88) ->  | N89: =IF([1]Eaux!D88="","",[1]Eaux!D88) ->  | O89: =IF([1]Eaux!E88="","",[1]Eaux!E88) ->  | P89: =IF([1]Eaux!F88="","",[1]Eaux!F88) ->  | Q89: =IF([1]Eaux!G88="","",[1]Eaux!G88) -> 
K90: =IF([1]Eaux!A89="","",[1]Eaux!A89) ->  | L90: =IF([1]Eaux!B89="","",[1]Eaux!B89) ->  | M90: =IF([1]Eaux!C89="","",[1]Eaux!C89) ->  | N90: =IF([1]Eaux!D89="","",[1]Eaux!D89) ->  | O90: =IF([1]Eaux!E89="","",[1]Eaux!E89) ->  | P90: =IF([1]Eaux!F89="","",[1]Eaux!F89) ->  | Q90: =IF([1]Eaux!G89="","",[1]Eaux!G89) -> 
K91: =IF([1]Eaux!A90="","",[1]Eaux!A90) ->  | L91: =IF([1]Eaux!B90="","",[1]Eaux!B90) ->  | M91: =IF([1]Eaux!C90="","",[1]Eaux!C90) ->  | N91: =IF([1]Eaux!D90="","",[1]Eaux!D90) ->  | O91: =IF([1]Eaux!E90="","",[1]Eaux!E90) ->  | P91: =IF([1]Eaux!F90="","",[1]Eaux!F90) ->  | Q91: =IF([1]Eaux!G90="","",[1]Eaux!G90) -> 
K92: =IF([1]Eaux!A91="","",[1]Eaux!A91) ->  | L92: =IF([1]Eaux!B91="","",[1]Eaux!B91) ->  | M92: =IF([1]Eaux!C91="","",[1]Eaux!C91) ->  | N92: =IF([1]Eaux!D91="","",[1]Eaux!D91) ->  | O92: =IF([1]Eaux!E91="","",[1]Eaux!E91) ->  | P92: =IF([1]Eaux!F91="","",[1]Eaux!F91) ->  | Q92: =IF([1]Eaux!G91="","",[1]Eaux!G91) -> 
K93: =IF([1]Eaux!A92="","",[1]Eaux!A92) ->  | L93: =IF([1]Eaux!B92="","",[1]Eaux!B92) ->  | M93: =IF([1]Eaux!C92="","",[1]Eaux!C92) ->  | N93: =IF([1]Eaux!D92="","",[1]Eaux!D92) ->  | O93: =IF([1]Eaux!E92="","",[1]Eaux!E92) ->  | P93: =IF([1]Eaux!F92="","",[1]Eaux!F92) ->  | Q93: =IF([1]Eaux!G92="","",[1]Eaux!G92) -> 
K94: =IF([1]Eaux!A93="","",[1]Eaux!A93) ->  | L94: =IF([1]Eaux!B93="","",[1]Eaux!B93) ->  | M94: =IF([1]Eaux!C93="","",[1]Eaux!C93) ->  | N94: =IF([1]Eaux!D93="","",[1]Eaux!D93) ->  | O94: =IF([1]Eaux!E93="","",[1]Eaux!E93) ->  | P94: =IF([1]Eaux!F93="","",[1]Eaux!F93) ->  | Q94: =IF([1]Eaux!G93="","",[1]Eaux!G93) -> 
K95: =IF([1]Eaux!A94="","",[1]Eaux!A94) ->  | L95: =IF([1]Eaux!B94="","",[1]Eaux!B94) ->  | M95: =IF([1]Eaux!C94="","",[1]Eaux!C94) ->  | N95: =IF([1]Eaux!D94="","",[1]Eaux!D94) ->  | O95: =IF([1]Eaux!E94="","",[1]Eaux!E94) ->  | P95: =IF([1]Eaux!F94="","",[1]Eaux!F94) ->  | Q95: =IF([1]Eaux!G94="","",[1]Eaux!G94) -> 
K96: =IF([1]Eaux!A95="","",[1]Eaux!A95) ->  | L96: =IF([1]Eaux!B95="","",[1]Eaux!B95) ->  | M96: =IF([1]Eaux!C95="","",[1]Eaux!C95) ->  | N96: =IF([1]Eaux!D95="","",[1]Eaux!D95) ->  | O96: =IF([1]Eaux!E95="","",[1]Eaux!E95) ->  | P96: =IF([1]Eaux!F95="","",[1]Eaux!F95) ->  | Q96: =IF([1]Eaux!G95="","",[1]Eaux!G95) -> 
K97: =IF([1]Eaux!A96="","",[1]Eaux!A96) ->  | L97: =IF([1]Eaux!B96="","",[1]Eaux!B96) ->  | M97: =IF([1]Eaux!C96="","",[1]Eaux!C96) ->  | N97: =IF([1]Eaux!D96="","",[1]Eaux!D96) ->  | O97: =IF([1]Eaux!E96="","",[1]Eaux!E96) ->  | P97: =IF([1]Eaux!F96="","",[1]Eaux!F96) ->  | Q97: =IF([1]Eaux!G96="","",[1]Eaux!G96) -> 
K98: =IF([1]Eaux!A97="","",[1]Eaux!A97) ->  | L98: =IF([1]Eaux!B97="","",[1]Eaux!B97) ->  | M98: =IF([1]Eaux!C97="","",[1]Eaux!C97) ->  | N98: =IF([1]Eaux!D97="","",[1]Eaux!D97) ->  | O98: =IF([1]Eaux!E97="","",[1]Eaux!E97) ->  | P98: =IF([1]Eaux!F97="","",[1]Eaux!F97) ->  | Q98: =IF([1]Eaux!G97="","",[1]Eaux!G97) -> 

Sheet Calculateur
A1: Calculateur/Convertisseur
B3: Densité | G3: Mout Fermenté | N3: Amertume
B4: 1.042 | C4: =-616.868 + 1111.14 * B4- 630.272 * B4^ 2+ 135.997 *B4^3 -> 10.47562606 | D4: =C4*1.04 -> 10.8946511 | G4: Facteur de correction | H4: 1.04 | I4: DI/BRIX | J4: BRIX | K4: DI/DF | L4: Trouvé DI | N4: Volume post-ébu | O4: 29.1 | Q4: Densité post-ébu | S4: 1.04
B5: 1.01 | C5: =1.00001 + 0.0038661*B5 + 1.3488* 10^-5*B5^2 + 4.3074 *10^-8*B5^3 -> 1.003928564 | D5: =B5*1.04 -> 1.0504 | G5: DI | I5: 1.06 | J5: =1 + J6/ ( 258.6 - 0.8796 * J6)/1.04 -> 1.093960608 | K5: 1.086 | L5: =(1+(L6/1.04)/(258.6-0.8796*(L6/1.04))) -> 1.042892344
B6: 8 | C6: =B6/1.04 -> 7.692307692 | D6: =1 + C6/ ( 258.6 - 0.8796 * C6) -> 1.03054517 | G6: DI °Brix | I6: =(-616.868 + 1111.14 * I5- 630.272 * I5^ 2+135.997 *I5^3)*1.04 -> 15.3310391 | J6: 23.27 | K6: =(-616.868 + 1111.14 * K5- 630.272 * K5^ 2+135.997 *K5^3)*1.04 -> 21.50511317 | L6: =(1+(0.00349412/1.04)*L8-L7)*(1.04/0.000856829) -> 11.11624373 | N6: Houblons | O6: Acide Alpha | P6: Utilisation | Q6: Durée | R6: Poids | S6: IBU
G7: DF | I7: =I10 -> 1.014247001 | J7: =J10 -> 1.012745893 | K7: 1.028 | L7: 1.011 | N7: Magnum | O7: 0.139 | P7: FWH | Q7: 60 | R7: 15 | S7: =IF(P7="Ebullition",((1.65*(0.000125^($S$4-1))*((1-EXP(-0.04*Q7))/4.15))*O7*R7*1000)/($O$4)*Paramètres!$H$2,IF(P7="DH",((1.65*(0.000125^($S$4-1))*((1-EXP(-0.04*Q7))/4.15))*O7*R7*1000)/($O$4)*Paramètres!$H$3,IF(P7="Hop-stand",((1.65*(0.000125^($S$4-1))*((1-EXP(-0.04*Q7))/4.15))*O7*R7*1000)/($O$4)*Paramètres!$H$4,IF(P7="FWH",((1.65*(0.000125^($S$4-1))*((1-EXP(-0.04*Q7))/4.15))*O7*R7*1000)/($O$4)*Paramètres!$H$5,IF(P7="Mash-hop",((1.65*(0.000125^($S$4-1))*((1-EXP(-0.04*Q7))/4.15))*O7*R7*1000)/($O$4)*Paramètres!$H$6,IF(P7="Flame-out",((1.65*(0.000125^($S$4-1))*((1-EXP(-0.04*Q7))/4.15))*O7*R7*1000)/($O$4)*Paramètres!$H$7,"")))))) -> 19.88916816
G8: DF Brix | I8: 8 | J8: 9.5 | K8: =(K7-1+(0.000856829/1.04)*K6)*1.04/0.00349412 -> 13.60749047 | L8: 6 | N8: Hallertau Hersbrucker | O8: 0.139 | P8: Ebullition | Q8: 60 | R8: 15 | S8: =IF(P8="Ebullition",((1.65*(0.000125^($S$4-1))*((1-EXP(-0.04*Q8))/4.15))*O8*R8*1000)/($O$4)*Paramètres!$H$2,IF(P8="DH",((1.65*(0.000125^($S$4-1))*((1-EXP(-0.04*Q8))/4.15))*O8*R8*1000)/($O$4)*Paramètres!$H$3,IF(P8="Hop-stand",((1.65*(0.000125^($S$4-1))*((1-EXP(-0.04*Q8))/4.15))*O8*R8*1000)/($O$4)*Paramètres!$H$4,IF(P8="FWH",((1.65*(0.000125^($S$4-1))*((1-EXP(-0.04*Q8))/4.15))*O8*R8*1000)/($O$4)*Paramètres!$H$5,IF(P8="Mash-hop",((1.65*(0.000125^($S$4-1))*((1-EXP(-0.04*Q8))/4.15))*O8*R8*1000)/($O$4)*Paramètres!$H$6,IF(P8="Flame-out",((1.65*(0.000125^($S$4-1))*((1-EXP(-0.04*Q8))/4.15))*O8*R8*1000)/($O$4)*Paramètres!$H$7,"")))))) -> 18.08106197
G9: DF Fct cubique | I9: =IF(I8=0, "XXX", 1 - 0.0044993*(I6/1.04) + 0.0117741*(I8/1.04) + 0.000275806*(I6/1.04)^2 - 0.00127169*(I8/1.04)^2 - 0.00000727999*(I6/1.04)^3 + 0.0000632929*(I8/1.04)^3) -> 1.014418995 | J9: =IF(J8=0, "XXX", 1 - 0.0044993*(J6/1.04) + 0.0117741*(J8/1.04) + 0.000275806*(J6/1.04)^2 - 0.00127169*(J8/1.04)^2 - 0.00000727999*(J6/1.04)^3 + 0.0000632929*(J8/1.04)^3) -> 1.005541203 | K9: =IF(K8=0, "XXX", 1 - 0.0044993*(K6/1.04) + 0.0117741*(K8/1.04) + 0.000275806*(K6/1.04)^2 - 0.00127169*(K8/1.04)^2 - 0.00000727999*(K6/1.04)^3 + 0.0000632929*(K8/1.04)^3) -> 1.038645779 | L9: =IF(L8=0, "XXX", 1 - 0.0044993*(L6/1.04) + 0.0117741*(L8/1.04) + 0.000275806*(L6/1.04)^2 - 0.00127169*(L8/1.04)^2 - 0.00000727999*(L6/1.04)^3 + 0.0000632929*(L8/1.04)^3) -> 1.012282876
G10: DF Fct linéaire | I10: =IF(I8=0, "XXX", 1 - 0.000856829*(I6/1.04) + 0.00349412*(I8/1.04)) -> 1.014247001 | J10: =IF(J8=0, "XXX", 1 - 0.000856829*(J6/1.04) + 0.00349412*(J8/1.04)) -> 1.012745893 | K10: =1-0.000856829*(K6/1.04)+0.00349412*(K8/1.04) -> 1.028 | L10: =IF(L8=0, "XXX", 1 - 0.000856829*(L6/1.04) + 0.00349412*(L8/1.04)) -> 1.011
G11: DF Fct univ-bière | I11: =IF(I8=0, "XXX", 1.001843-0.002318474*I6-0.000007775*I6^2-0.000000034*I6^3+0.00574*I8+0.00003344*I8^2+0.000000086*I8^3) -> 1.012452618 | J11: =IF(J8=0, "XXX", 1.001843-0.002318474*J6-0.000007775*J6^2-0.000000034*J6^3+0.00574*J8+0.00003344*J8^2+0.000000086*J8^3) -> 1.000875279 | K11: =IF(K8=0, "XXX", 1.001843-0.002318474*K6-0.000007775*K6^2-0.000000034*K6^3+0.00574*K8+0.00003344*K8^2+0.000000086*K8^3) -> 1.032565664 | L11: =IF(L8=0, "XXX", 1.001843-0.002318474*L6-0.000007775*L6^2-0.000000034*L6^3+0.00574*L8+0.00003344*L8^2+0.000000086*L8^3) -> 1.010725226 | S11: =IF(P11="Ebullition",((1.65*(0.000125^($S$4-1))*((1-EXP(-0.04*Q11))/4.15))*O11*R11*1000)/($O$4)*Paramètres!$H$2,IF(P11="DH",((1.65*(0.000125^($S$4-1))*((1-EXP(-0.04*Q11))/4.15))*O11*R11*1000)/($O$4)*Paramètres!$H$3,IF(P11="Hop-stand",((1.65*(0.000125^($S$4-1))*((1-EXP(-0.04*Q11))/4.15))*O11*R11*1000)/($O$4)*Paramètres!$H$4,IF(P11="FWH",((1.65*(0.000125^($S$4-1))*((1-EXP(-0.04*Q11))/4.15))*O11*R11*1000)/($O$4)*Paramètres!$H$5,IF(P11="Mash-hop",((1.65*(0.000125^($S$4-1))*((1-EXP(-0.04*Q11))/4.15))*O11*R11*1000)/($O$4)*Paramètres!$H$6,IF(P11="Flame-out",((1.65*(0.000125^($S$4-1))*((1-EXP(-0.04*Q11))/4.15))*O11*R11*1000)/($O$4)*Paramètres!$H$7,"")))))) -> 
B12: Volume | G12: Atténuation Apparente | I12: =(I5-I7)/(I5-1) -> 0.7625499824 | J12: =(J5-J7)/(J5-1) -> 0.864348542 | K12: =(K5-K7)/(K5-1) -> 0.6744186047 | L12: =(L5-L7)/(L5-1) -> 0.7435439757 | S12: =IF(P12="Ebullition",((1.65*(0.000125^($S$4-1))*((1-EXP(-0.04*Q12))/4.15))*O12*R12*1000)/($O$4)*Paramètres!$H$2,IF(P12="DH",((1.65*(0.000125^($S$4-1))*((1-EXP(-0.04*Q12))/4.15))*O12*R12*1000)/($O$4)*Paramètres!$H$3,IF(P12="Hop-stand",((1.65*(0.000125^($S$4-1))*((1-EXP(-0.04*Q12))/4.15))*O12*R12*1000)/($O$4)*Paramètres!$H$4,IF(P12="FWH",((1.65*(0.000125^($S$4-1))*((1-EXP(-0.04*Q12))/4.15))*O12*R12*1000)/($O$4)*Paramètres!$H$5,IF(P12="Mash-hop",((1.65*(0.000125^($S$4-1))*((1-EXP(-0.04*Q12))/4.15))*O12*R12*1000)/($O$4)*Paramètres!$H$6,IF(P12="Flame-out",((1.65*(0.000125^($S$4-1))*((1-EXP(-0.04*Q12))/4.15))*O12*R12*1000)/($O$4)*Paramètres!$H$7,"")))))) -> 
B13: 1 | C13: =3.785 *B13 -> 3.785 | G13: Atténuation réelle | I13: =((-676.67 + 1286.4 * I5- 800.47 * I5^ 2+ 190.74 *I5^3)-I14)/(-676.67 + 1286.4 * I5- 800.47 * I5^ 2+ 190.74 *I5^3) -> 0.609693579 | J13: =((-676.67 + 1286.4 * J5- 800.47 * J5^ 2+ 190.74 *J5^3)-J14)/(-676.67 + 1286.4 * J5- 800.47 * J5^ 2+ 190.74 *J5^3) -> 0.692988074 | K13: =((-676.67 + 1286.4 * K5- 800.47 * K5^ 2+ 190.74 *K5^3)-K14)/(-676.67 + 1286.4 * K5- 800.47 * K5^ 2+ 190.74 *K5^3) -> 0.5319431549 | L13: =((-676.67 + 1286.4 * L5- 800.47 * L5^ 2+ 190.74 *L5^3)-L14)/(-676.67 + 1286.4 * L5- 800.47 * L5^ 2+ 190.74 *L5^3) -> 0.5960280183 | S13: =IF(P13="Ebullition",((1.65*(0.000125^($S$4-1))*((1-EXP(-0.04*Q13))/4.15))*O13*R13*1000)/($O$4)*Paramètres!$H$2,IF(P13="DH",((1.65*(0.000125^($S$4-1))*((1-EXP(-0.04*Q13))/4.15))*O13*R13*1000)/($O$4)*Paramètres!$H$3,IF(P13="Hop-stand",((1.65*(0.000125^($S$4-1))*((1-EXP(-0.04*Q13))/4.15))*O13*R13*1000)/($O$4)*Paramètres!$H$4,IF(P13="FWH",((1.65*(0.000125^($S$4-1))*((1-EXP(-0.04*Q13))/4.15))*O13*R13*1000)/($O$4)*Paramètres!$H$5,IF(P13="Mash-hop",((1.65*(0.000125^($S$4-1))*((1-EXP(-0.04*Q13))/4.15))*O13*R13*1000)/($O$4)*Paramètres!$H$6,IF(P13="Flame-out",((1.65*(0.000125^($S$4-1))*((1-EXP(-0.04*Q13))/4.15))*O13*R13*1000)/($O$4)*Paramètres!$H$7,"")))))) -> 
B14: 1 | C14: =B14/3.785 -> 0.2642007926 | G14: Sucre Résiduel | I14: =0.188 * ( -676.67 + 1286.4 *I5- 800.47 * I5^ 2+ 190.74 *I5^3) + 0.8192 * ( -676.67 + 1286.4 *I7- 800.47 * I7^ 2+ 190.74 *I7^3) -> 5.72981529 | J14: =0.188 * ( -676.67 + 1286.4 *J5- 800.47 * J5^ 2+ 190.74 *J5^3) + 0.8192 * ( -676.67 + 1286.4 *J7- 800.47 * J7^ 2+ 190.74 *J7^3) -> 6.863211359 | K14: =0.188 * ( -676.67 + 1286.4 *K5- 800.47 * K5^ 2+ 190.74 *K5^3) + 0.8192 * ( -676.67 + 1286.4 *K7- 800.47 * K7^ 2+ 190.74 *K7^3) -> 9.639005551 | L14: =0.188 * ( -676.67 + 1286.4 *L5- 800.47 * L5^ 2+ 190.74 *L5^3) + 0.8192 * ( -676.67 + 1286.4 *L7- 800.47 * L7^ 2+ 190.74 *L7^3) -> 4.30134301 | S14: =IF(P14="Ebullition",((1.65*(0.000125^($S$4-1))*((1-EXP(-0.04*Q14))/4.15))*O14*R14*1000)/($O$4)*Paramètres!$H$2,IF(P14="DH",((1.65*(0.000125^($S$4-1))*((1-EXP(-0.04*Q14))/4.15))*O14*R14*1000)/($O$4)*Paramètres!$H$3,IF(P14="Hop-stand",((1.65*(0.000125^($S$4-1))*((1-EXP(-0.04*Q14))/4.15))*O14*R14*1000)/($O$4)*Paramètres!$H$4,IF(P14="FWH",((1.65*(0.000125^($S$4-1))*((1-EXP(-0.04*Q14))/4.15))*O14*R14*1000)/($O$4)*Paramètres!$H$5,IF(P14="Mash-hop",((1.65*(0.000125^($S$4-1))*((1-EXP(-0.04*Q14))/4.15))*O14*R14*1000)/($O$4)*Paramètres!$H$6,IF(P14="Flame-out",((1.65*(0.000125^($S$4-1))*((1-EXP(-0.04*Q14))/4.15))*O14*R14*1000)/($O$4)*Paramètres!$H$7,"")))))) -> 
G15: Sucre Résiduel | I15: =I14*10*I5 -> 60.73604208 | J15: =J14*10*J5 -> 75.08082869 | K15: =K14*10*K5 -> 104.6796003 | L15: =L14*10*L5 -> 44.85837694 | S15: =IF(P15="Ebullition",((1.65*(0.000125^($S$4-1))*((1-EXP(-0.04*Q15))/4.15))*O15*R15*1000)/($O$4)*Paramètres!$H$2,IF(P15="DH",((1.65*(0.000125^($S$4-1))*((1-EXP(-0.04*Q15))/4.15))*O15*R15*1000)/($O$4)*Paramètres!$H$3,IF(P15="Hop-stand",((1.65*(0.000125^($S$4-1))*((1-EXP(-0.04*Q15))/4.15))*O15*R15*1000)/($O$4)*Paramètres!$H$4,IF(P15="FWH",((1.65*(0.000125^($S$4-1))*((1-EXP(-0.04*Q15))/4.15))*O15*R15*1000)/($O$4)*Paramètres!$H$5,IF(P15="Mash-hop",((1.65*(0.000125^($S$4-1))*((1-EXP(-0.04*Q15))/4.15))*O15*R15*1000)/($O$4)*Paramètres!$H$6,IF(P15="Flame-out",((1.65*(0.000125^($S$4-1))*((1-EXP(-0.04*Q15))/4.15))*O15*R15*1000)/($O$4)*Paramètres!$H$7,"")))))) -> 
B16: Poids | G16: Taux d'alcool | I16: =1000 * (I5 -I7) / 7.6 -> 6.02013144 | J16: =1000 * (J5 -J7) / 7.6 -> 10.68614662 | K16: 7.631578947 | L16: 4.196361045 | S16: =IF(P16="Ebullition",((1.65*(0.000125^($S$4-1))*((1-EXP(-0.04*Q16))/4.15))*O16*R16*1000)/($O$4)*Paramètres!$H$2,IF(P16="DH",((1.65*(0.000125^($S$4-1))*((1-EXP(-0.04*Q16))/4.15))*O16*R16*1000)/($O$4)*Paramètres!$H$3,IF(P16="Hop-stand",((1.65*(0.000125^($S$4-1))*((1-EXP(-0.04*Q16))/4.15))*O16*R16*1000)/($O$4)*Paramètres!$H$4,IF(P16="FWH",((1.65*(0.000125^($S$4-1))*((1-EXP(-0.04*Q16))/4.15))*O16*R16*1000)/($O$4)*Paramètres!$H$5,IF(P16="Mash-hop",((1.65*(0.000125^($S$4-1))*((1-EXP(-0.04*Q16))/4.15))*O16*R16*1000)/($O$4)*Paramètres!$H$6,IF(P16="Flame-out",((1.65*(0.000125^($S$4-1))*((1-EXP(-0.04*Q16))/4.15))*O16*R16*1000)/($O$4)*Paramètres!$H$7,"")))))) -> 
B17: 4.25 | C17: =B17*453.592 -> 1927.766 | S17: =IF(P17="Ebullition",((1.65*(0.000125^($S$4-1))*((1-EXP(-0.04*Q17))/4.15))*O17*R17*1000)/($O$4)*Paramètres!$H$2,IF(P17="DH",((1.65*(0.000125^($S$4-1))*((1-EXP(-0.04*Q17))/4.15))*O17*R17*1000)/($O$4)*Paramètres!$H$3,IF(P17="Hop-stand",((1.65*(0.000125^($S$4-1))*((1-EXP(-0.04*Q17))/4.15))*O17*R17*1000)/($O$4)*Paramètres!$H$4,IF(P17="FWH",((1.65*(0.000125^($S$4-1))*((1-EXP(-0.04*Q17))/4.15))*O17*R17*1000)/($O$4)*Paramètres!$H$5,IF(P17="Mash-hop",((1.65*(0.000125^($S$4-1))*((1-EXP(-0.04*Q17))/4.15))*O17*R17*1000)/($O$4)*Paramètres!$H$6,IF(P17="Flame-out",((1.65*(0.000125^($S$4-1))*((1-EXP(-0.04*Q17))/4.15))*O17*R17*1000)/($O$4)*Paramètres!$H$7,"")))))) -> 
B18: 453 | C18: =B18/453.592 -> 0.9986948623 | F18: Concentration du mout | J18: ABV / Extrait réel | N18: TOTAL | O18: =(O7*R7+O8*R8+O12*R12+O13*R13+O14*R14+O15*R15+O16*R16+O17*R17)/R18 -> 0.139 | Q18: =Q7 -> 60 | R18: =SUM(R7:R17) -> 30 | S18: =SUM(S7:S17) -> 37.97023013
B19: 1 | C19: =B19*28.35 -> 28.35 | F19: Densité actuelle | H19: 1.04 | K19: DS | L19: Plato
B20: 28 | C20: =B20/28.35 -> 0.987654321 | F20: Volume actuel | H20: 20 | J20: DI | K20: 1.1 | L20: 23.77 | N20: Pied de cuve | Q20: modèle : | R20: Braukaiser (agitateur)
F21: Malt 1 | G21: 5000 | H21: 8 | J21: DF | K21: 1.012 | L21: 3.07 | N21: Nombre de levures initial | O21: Volume | P21: Densité | Q21: Extrait sec | R21: Nombre de levures final
B22: Température | F22: Malt 2 | G22: 400 | H22: 50 | J22: DI | K22: =-616.868 + 1111.14 * K20- 630.272 * K20^ 2+ 135.997 *K20^3 -> 23.768887 | L22: =1.00001 + 0.0038661*L20 + 1.3488* 10^-5*L20^2 + 4.3074 *10^-8*L20^3 -> 1.10010659
B23: 24 | C23: =32+B23*9/5 -> 75.2 | D23: =B23+273.15 -> 297.15 | F23: Malt 3 | G23: 0 | H23: 542 | J23: DF | K23: =-616.868 + 1111.14 * K21- 630.272 * K21^ 2+ 135.997 *K21^3 -> 3.068270539 | L23: =1.00001 + 0.0038661*L21 + 1.3488* 10^-5*L21^2 + 4.3074 *10^-8*L21^3 -> 1.012007296 | N23: 100 | O23: 5 | P23: 1.035 | Q23: =O23*100*(P23-1)/0.0376 -> 465.4255319 | R23: =IF($R$20="White (simple)",IF(((12.54793776 * (N23/O23)^-0.4594858324) - 0.9994994906)*N23+N23>200*O23,200*O23,((12.54793776 * (N23/O23)^-0.4594858324) - 0.9994994906)*N23+N23),IF($R$20="Braukaiser (agitateur) ",IF((N23/Q23)<1.4,N23+Q23*1.4,N23+(2.33-0.67*(N23/Q23))))) -> 751.5957447
B24: 148 | C24: =(B24-32)*5/9 -> 64.44444444 | D24: =C24+273.15 -> 337.5944444 | F24: Malt 4 | G24: 0 | H24: 0 | J24: ER final | K24: =0.8114*K23 + 0.1886*K22 -> 6.972406803 | L24: =0.8114*L21+ 0.1886*L20 -> 6.97402 | N24: 100 | O24: 4.5 | P24: 1.035 | Q24: =O24*100*(P24-1)/0.0376 -> 418.8829787 | R24: =IF($R$20="White (simple)",IF(((12.54793776 * (N24/O24)^-0.4594858324) - 0.9994994906)*N24+N24>200*O24,200*O24,((12.54793776 * (N24/O24)^-0.4594858324) - 0.9994994906)*N24+N24),IF($R$20="Braukaiser (agitateur) ",IF((N24/Q24)<1.4,N24+Q24*1.4,N24+(2.33-0.67*(N24/Q24))))) -> 686.4361702
B25: 295.75 | C25: =B25-273.15 -> 22.6 | D25: =32+C25*9/5 -> 72.68 | F25: Malt 5 | G25: 0 | H25: 0 | J25: ABV 1 | K25: =1000*(K20-K21)/7.6 -> 11.57894737 | L25: =1000*(L22-L23)/7.6 -> 11.59201234 | N25: 10 | O25: 1.5 | P25: 1.035 | Q25: =O25*100*(P25-1)/0.0376 -> 139.6276596 | R25: =IF($R$20="White (simple)",IF(((12.54793776 * (N25/O25)^-0.4594858324) - 0.9994994906)*N25+N25>200*O25,200*O25,((12.54793776 * (N25/O25)^-0.4594858324) - 0.9994994906)*N25+N25),IF($R$20="Braukaiser (agitateur) ",IF((N25/Q25)<1.4,N25+Q25*1.4,N25+(2.33-0.67*(N25/Q25))))) -> 205.4787234
F26: Malt 6 | G26: 0 | H26: 0 | J26: ABV 2 | K26: =133*(L22-L23)/L22 -> 10.65097344 | L26: =133*(L22-L23)/L22 -> 10.65097344 | N26: 15 | O26: 0.5 | P26: 1.04 | Q26: =O26*100*(P26-1)/0.0376 -> 53.19148936 | R26: =IF($R$20="White (simple)",IF(((12.54793776 * (N26/O26)^-0.4594858324) - 0.9994994906)*N26+N26>200*O26,200*O26,((12.54793776 * (N26/O26)^-0.4594858324) - 0.9994994906)*N26+N26),IF($R$20="Braukaiser (agitateur) ",IF((N26/Q26)<1.4,N26+Q26*1.4,N26+(2.33-0.67*(N26/Q26))))) -> 89.46808511
B27: Couleur | F27: Malt 7 | G27: 0 | H27: 0 | J27: ABV 3 | K27: =((K22-K24)/(2.0665-0.010665*K22))*(K21/0.794) -> 11.80808127 | L27: =((L20-L24)/(2.0665-0.010665*L20))*(L23/0.794) -> 11.80789207
B28: Moût | C28: 1 | D28: =C28*1.97 -> 1.97 | F28: EBC actuel | H28: =2.9396*((4.23*(G21*H21+G22*H22+G23*H23+G24*H24+G25*H25+G26*H26+G27*H27)/1000)/ H20)^0.6859 -> 16.79393876 | J28: ABV 4 | K28: =VLOOKUP(((K20-K21)*1000),K37:L47,2,TRUE)*(K20-K21)*1000 -> 11.792 | L28: =VLOOKUP(((L22-L23)*1000),K37:L47,2,TRUE)*(L22-L23)*1000 -> 11.80530537 | N28: Ensemencement
C29: 2 | D29: =C29/1.97 -> 1.015228426 | F29: Densité visée | H29: 1.08 | N29: Volume | O29: Densité | P29: Taux d'ensemencement | R29: Levures nécessaire
B30: Malt | C30: 1 | D30: =2.6686 * C30 - 1.497 -> 1.1716 | F30: Type d'ajout | H30: Sucre blanc | J30: Sucre présent | N30: 120 | O30: 1.1 | P30: 0.75 | R30: =N30*(-676.67+1286.4*O30-800.47*O30^2+190.74*O30^3)*P30 -> 2130.8616
C31: 40 | D31: =1.3546 *C31 - 0.76 -> 53.424 | F31: Quantité à ajouter | H31: =IF(F18="Dilution",1000*((H19-1)/(H29-1)*H20-H20)/H20,VLOOKUP(H30,Paramètres!F18:I31,2,FALSE)*2.57452*1000*(H29-H19)) -> 102.9808 | J31: DI | K31: Volume | L31: Sucre | N31: 26 | O31: 1.047 | P31: 0.75 | R31: =N31*(-676.67+1286.4*O31-800.47*O31^2+190.74*O31^3)*P31 -> 226.7178995
C32: 4.5 | D32: =(C32+1.479)/2.6686 -> 2.240500637 | F32: Quantité à ajouter | H32: =IF(F18="Dilution",H31*H20/1000,H31*H20) -> 2059.616 | J32: 1.04 | K32: 20 | L32: =K32*(J32-1)*1000*2.57452 -> 2059.616 | N32: 26 | O32: 1.047 | P32: 0.75 | R32: 226.7178995
C33: 53.42 | D33: =(C33+0.76)/1.3546 -> 39.9970471 | F33: EBC Final | H33: =IF(F18="Dilution",2.9396*((4.23*(G21*H21+G22*H22+G23*H23+G24*H24+G25*H25+G26*H26+G27*H27)/1000)/ (H20+H32/1000))^0.6859,2.9396*((4.23*(G21*H21+G22*H22+G23*H23+G24*H24+G25*H25+G26*H26+G27*H27+H32*(VLOOKUP(H30,Paramètres!F18:H31,3,FALSE)))/1000)/ H20)^0.6859) -> 17.57648006 | J33: 1.076 | K33: 29.1 | L33: =K33*(J33-1)*1000*2.57452 -> 5693.808432
N34: Mout à partir d'extrait
A35: Rendement brut | K35: Abaque pour ABV 4 | N35: Type d'extrait | O35: DME | P35: DME | Q35: LME
A36: Ingrédients utilisés | F36: Mout | K36: DI-DF | L36: Facteur | N36: Volume | O36: 2 | P36: 2 | Q36: =Q37/(1000*(Q38-1)*IF(Q35="DME",2.66,3.24)) -> 4.978096376
B37: Type | C37: Poids | D37: Rendement | E37: Eq Sucre | F37: Densité | G37: Volume | H37: Eq sucre | I37: Rendement | K37: 0 | L37: 0.125 | N37: Quantité d'extrait | O37: 259 | P37: =1000*(P38-1)*(IF(P35="DME",2.66,3.24))*P36 -> 260.68 | Q37: 500
A38: Malt | B38: Pale ale Château | C38: 3600 | D38: =IF(B38="",0,VLOOKUP(B38,Paramètres!A3:E300,2,FALSE)) -> 0.81 | E38: =IF(C38="","",C38*D38) -> 2916 | F38: 1.067 | G38: 15 | H38: =G38*(F38-1)*1000*2.57452 -> 2587.3926 | I38: =H38/$E$48 -> 0.8873088477 | K38: 7 | L38: 0.126 | N38: Densité | O38: =1+(O37/((IF(O35="DME",2.66,3.24))*O36))/1000 -> 1.048684211 | P38: 1.049 | Q38: 1.031
D39: =IF(B39="",0,VLOOKUP(B39,Paramètres!A4:E301,2,FALSE)) -> 0 | E39: =IF(C39="","",C39*D39) ->  | F39: 1.053 | G39: 19 | H39: =G39*(F39-1)*1000*2.57452 -> 2592.54164 | I39: =H39/$E$48 -> 0.8890746365 | K39: 10.5 | L39: 0.127
D40: =IF(B40="",0,VLOOKUP(B40,Paramètres!A5:E302,2,FALSE)) -> 0 | H40: 0 | I40: 0 | K40: 17.3 | L40: 0.128 | N40: pH des malts crystal/cara
D41: =IF(B41="",0,VLOOKUP(B41,Paramètres!A6:E303,2,FALSE)) -> 0 | H41: 0 | I41: 0 | K41: 26.2 | L41: 0.129 | N41: Crystal/Cara Malt | P41: 0 | Q41: =5.22-0.00504*(P41+1.479)/2.6686 -> 5.217206715
D42: =IF(B42="",0,VLOOKUP(B42,Paramètres!A7:E304,2,FALSE)) -> 0 | H42: 0 | I42: 0 | K42: 36.1 | L42: 0.13 | N42: Crystal/Cara Malt | P42: 0 | Q42: =5.22-0.00504*(P42+1.479)/2.6686 -> 5.217206715
D43: =IF(B43="",0,VLOOKUP(B43,Paramètres!A8:E305,2,FALSE)) -> 0 | H43: 0 | I43: 0 | K43: 46.6 | L43: 0.131
D44: =IF(B44="",0,VLOOKUP(B44,Paramètres!A9:E306,2,FALSE)) -> 0 | H44: 0 | I44: 0 | K44: 57.2 | L44: 0.132
A45: Sucre | D45: =IF(B45="",0,VLOOKUP(B45,Paramètres!A10:E307,2,FALSE)) -> 0 | H45: 0 | I45: 0 | K45: 68 | L45: 0.133
D46: =IF(B46="",0,VLOOKUP(B46,Paramètres!A11:E308,2,FALSE)) -> 0 | H46: 0 | I46: 0 | K46: 78.9 | L46: 0.134
D47: =IF(B47="",0,VLOOKUP(B47,Paramètres!A12:E309,2,FALSE)) -> 0 | H47: 0 | I47: 0 | K47: 89.8 | L47: 0.135
A48: Total | B48: =COUNTA(B38:B47) -> 1 | C48: =SUM(C38:C47) -> 3600 | D48: =(D38*C38+D39*C39+D40*C40+D41*C41+D42*C42+D43*C43+D44*C44+D45*C45+D46*C46+D47*C47)/C48 -> 0.81 | E48: =SUM(E38:E47) -> 2916 | H48: 0 | I48: 0

Sheet Stock
A1: STOCK
A3: GRAINS | H3: HOUBLONS | P3: LEVURES
A4: Stock Grains | D4: Recette en cours | H4: Stock Houblons | L4: Recette en cours | P4: Stock Levures | R4: Recette en cours
A5: Type | B5: EBC | C5: Quantité | D5: Type | E5: EBC | F5: Quantité | H5: Type | I5: Acide Alpha | J5: Année | K5: Quantité | L5: Type | M5: Acide Alpha | N5: Quantité | P5: Type | Q5: Quantité mds/paquets | R5: Type | S5: Quantité
A6: =IF([1]Stock!A6="","",[1]Stock!A6) -> Avoine (flocons) | B6: =IF([1]Stock!B6="","",[1]Stock!B6) -> 5 | C6: =IF([1]Stock!C6="","",[1]Stock!C6) -> 0 | D6: =IF(A6="","",IFERROR(VLOOKUP(A6,Brassage!$B$25:$H$33,1,FALSE),"")) -> Avoine (flocons) | E6: =IF(A6="","",IFERROR(VLOOKUP(A6,Brassage!$B$25:$H$33,2,FALSE),"")) -> 5 | F6: =IF(Stock!D6="0","0",SUMIF(Brassage!$B$25:$B$33,Stock!D6,Brassage!$H$25:$H$33)) -> 1000 | H6: =IF([1]Stock!E6="","",[1]Stock!E6) -> Tettnanger | I6: =IF([1]Stock!F6="","",[1]Stock!F6) -> 0.041 | J6: =IF([1]Stock!G6="","",[1]Stock!G6) -> 2019 | K6: =IF([1]Stock!H6="","",[1]Stock!H6) -> 100 | L6: =IF(H6="","",IFERROR(VLOOKUP(H6,Brassage!$B$44:$H$56,1,FALSE),"")) ->  | M6: =IF(L6="","",IFERROR(VLOOKUP(L6,Brassage!$B$44:$H$56,2,FALSE),"")) ->  | N6: =IF(L6="0","0",SUMIF(Brassage!$B$44:$B$56,L6,Brassage!$F$44:$F$56)) -> 0 | P6: =IF([1]Stock!J6="","",[1]Stock!J6) -> Fermentis S-33 Neutre (faible floculation) | Q6: =IF([1]Stock!K6="","",[1]Stock!K6) -> 2 | R6: =IF(P6="","",IFERROR(VLOOKUP(P6,Brassage!$B$60:$H$61,1,FALSE),"")) ->  | S6: =IF(R6="","0",IFERROR(VLOOKUP(P6,Brassage!$B$60:$H$61,7,FALSE),"")) -> 0
A7: =IF([1]Stock!A7="","",[1]Stock!A7) -> Black | B7: =IF([1]Stock!B7="","",[1]Stock!B7) -> 1300 | C7: =IF([1]Stock!C7="","",[1]Stock!C7) -> 400 | D7: =IF(A7="","",IFERROR(VLOOKUP(A7,Brassage!$B$25:$H$33,1,FALSE),"")) ->  | E7: =IF(A7="","",IFERROR(VLOOKUP(A7,Brassage!$B$25:$H$33,2,FALSE),"")) ->  | F7: =IF(Stock!D7="0","0",SUMIF(Brassage!$B$25:$B$33,Stock!D7,Brassage!$H$25:$H$33)) -> 0 | H7: =IF([1]Stock!E7="","",[1]Stock!E7) -> Hersbrucker | I7: =IF([1]Stock!F7="","",[1]Stock!F7) -> 0.028 | J7: =IF([1]Stock!G7="","",[1]Stock!G7) -> 2018 | K7: =IF([1]Stock!H7="","",[1]Stock!H7) -> 130 | L7: =IF(H7="","",IFERROR(VLOOKUP(H7,Brassage!$B$44:$H$56,1,FALSE),"")) ->  | M7: =IF(L7="","",IFERROR(VLOOKUP(L7,Brassage!$B$44:$H$56,2,FALSE),"")) ->  | N7: =IF(L7="0","0",SUMIF(Brassage!$B$44:$B$56,L7,Brassage!$F$44:$F$56)) -> 0 | P7: =IF([1]Stock!J7="","",[1]Stock!J7) -> Mangrove M20 Bavarian | Q7: =IF([1]Stock!K7="","",[1]Stock!K7) -> 2 | R7: =IF(P7="","",IFERROR(VLOOKUP(P7,Brassage!$B$60:$H$61,1,FALSE),"")) ->  | S7: =IF(R7="","0",IFERROR(VLOOKUP(P7,Brassage!$B$60:$H$61,7,FALSE),"")) -> 0
A8: =IF([1]Stock!A8="","",[1]Stock!A8) -> Café light | B8: =IF([1]Stock!B8="","",[1]Stock!B8) -> 250 | C8: =IF([1]Stock!C8="","",[1]Stock!C8) -> 500 | D8: =IF(A8="","",IFERROR(VLOOKUP(A8,Brassage!$B$25:$H$33,1,FALSE),"")) ->  | E8: =IF(A8="","",IFERROR(VLOOKUP(A8,Brassage!$B$25:$H$33,2,FALSE),"")) ->  | F8: =IF(Stock!D8="0","0",SUMIF(Brassage!$B$25:$B$33,Stock!D8,Brassage!$H$25:$H$33)) -> 0 | H8: =IF([1]Stock!E8="","",[1]Stock!E8) -> Chinook | I8: =IF([1]Stock!F8="","",[1]Stock!F8) -> 0.13 | J8: =IF([1]Stock!G8="","",[1]Stock!G8) -> 2019 | K8: =IF([1]Stock!H8="","",[1]Stock!H8) -> 60 | L8: =IF(H8="","",IFERROR(VLOOKUP(H8,Brassage!$B$44:$H$56,1,FALSE),"")) ->  | M8: =IF(L8="","",IFERROR(VLOOKUP(L8,Brassage!$B$44:$H$56,2,FALSE),"")) ->  | N8: =IF(L8="0","0",SUMIF(Brassage!$B$44:$B$56,L8,Brassage!$F$44:$F$56)) -> 0 | P8: =IF([1]Stock!J8="","",[1]Stock!J8) -> Whitelabs - WLP001 California Ale Yeast | Q8: =IF([1]Stock!K8="","",[1]Stock!K8) -> 1000 | R8: =IF(P8="","",IFERROR(VLOOKUP(P8,Brassage!$B$60:$H$61,1,FALSE),"")) ->  | S8: =IF(R8="","0",IFERROR(VLOOKUP(P8,Brassage!$B$60:$H$61,7,FALSE),"")) -> 0
A9: =IF([1]Stock!A9="","",[1]Stock!A9) -> Cara Gold - Vieux Silo | B9: =IF([1]Stock!B9="","",[1]Stock!B9) -> 120 | C9: =IF([1]Stock!C9="","",[1]Stock!C9) -> 3950 | D9: =IF(A9="","",IFERROR(VLOOKUP(A9,Brassage!$B$25:$H$33,1,FALSE),"")) ->  | E9: =IF(A9="","",IFERROR(VLOOKUP(A9,Brassage!$B$25:$H$33,2,FALSE),"")) ->  | F9: =IF(Stock!D9="0","0",SUMIF(Brassage!$B$25:$B$33,Stock!D9,Brassage!$H$25:$H$33)) -> 0 | H9: =IF([1]Stock!E9="","",[1]Stock!E9) -> Cascade | I9: =IF([1]Stock!F9="","",[1]Stock!F9) -> 0.046 | J9: =IF([1]Stock!G9="","",[1]Stock!G9) -> 2020 | K9: =IF([1]Stock!H9="","",[1]Stock!H9) -> 100 | L9: =IF(H9="","",IFERROR(VLOOKUP(H9,Brassage!$B$44:$H$56,1,FALSE),"")) ->  | M9: =IF(L9="","",IFERROR(VLOOKUP(L9,Brassage!$B$44:$H$56,2,FALSE),"")) ->  | N9: =IF(L9="0","0",SUMIF(Brassage!$B$44:$B$56,L9,Brassage!$F$44:$F$56)) -> 0 | P9: =IF([1]Stock!J9="","",[1]Stock!J9) -> Whitelabs - WLP023 Burton Ale Yeast | Q9: =IF([1]Stock!K9="","",[1]Stock!K9) -> 1000 | R9: =IF(P9="","",IFERROR(VLOOKUP(P9,Brassage!$B$60:$H$61,1,FALSE),"")) -> Whitelabs - WLP023 Burton Ale Yeast | S9: =IF(R9="","0",IFERROR(VLOOKUP(P9,Brassage!$B$60:$H$61,7,FALSE),"")) -> 220
A10: =IF([1]Stock!A10="","",[1]Stock!A10) -> Cara Ruby | B10: =IF([1]Stock!B10="","",[1]Stock!B10) -> 50 | C10: =IF([1]Stock!C10="","",[1]Stock!C10) -> 1400 | D10: =IF(A10="","",IFERROR(VLOOKUP(A10,Brassage!$B$25:$H$33,1,FALSE),"")) ->  | E10: =IF(A10="","",IFERROR(VLOOKUP(A10,Brassage!$B$25:$H$33,2,FALSE),"")) ->  | F10: =IF(Stock!D10="0","0",SUMIF(Brassage!$B$25:$B$33,Stock!D10,Brassage!$H$25:$H$33)) -> 0 | H10: =IF([1]Stock!E10="","",[1]Stock!E10) -> Columbus Phil | I10: =IF([1]Stock!F10="","",[1]Stock!F10) -> 0.1 | J10: =IF([1]Stock!G10="","",[1]Stock!G10) -> 2020 | K10: =IF([1]Stock!H10="","",[1]Stock!H10) -> 20 | L10: =IF(H10="","",IFERROR(VLOOKUP(H10,Brassage!$B$44:$H$56,1,FALSE),"")) ->  | M10: =IF(L10="","",IFERROR(VLOOKUP(L10,Brassage!$B$44:$H$56,2,FALSE),"")) ->  | N10: =IF(L10="0","0",SUMIF(Brassage!$B$44:$B$56,L10,Brassage!$F$44:$F$56)) -> 0 | P10: =IF([1]Stock!J10="","",[1]Stock!J10) ->  | Q10: =IF([1]Stock!K10="","",[1]Stock!K10) ->  | R10: =IF(P10="","",IFERROR(VLOOKUP(P10,Brassage!$B$60:$H$61,1,FALSE),"")) ->  | S10: =IF(R10="","0",IFERROR(VLOOKUP(P10,Brassage!$B$60:$H$61,7,FALSE),"")) -> 0
A11: =IF([1]Stock!A11="","",[1]Stock!A11) -> Cara-clair | B11: =IF([1]Stock!B11="","",[1]Stock!B11) -> 5.5 | C11: =IF([1]Stock!C11="","",[1]Stock!C11) -> 520 | D11: =IF(A11="","",IFERROR(VLOOKUP(A11,Brassage!$B$25:$H$33,1,FALSE),"")) ->  | E11: =IF(A11="","",IFERROR(VLOOKUP(A11,Brassage!$B$25:$H$33,2,FALSE),"")) ->  | F11: =IF(Stock!D11="0","0",SUMIF(Brassage!$B$25:$B$33,Stock!D11,Brassage!$H$25:$H$33)) -> 0 | H11: =IF([1]Stock!E11="","",[1]Stock!E11) -> Sauvage 2019 | I11: =IF([1]Stock!F11="","",[1]Stock!F11) -> 0.045 | J11: =IF([1]Stock!G11="","",[1]Stock!G11) -> 2019 | K11: =IF([1]Stock!H11="","",[1]Stock!H11) -> 80 | L11: =IF(H11="","",IFERROR(VLOOKUP(H11,Brassage!$B$44:$H$56,1,FALSE),"")) ->  | M11: =IF(L11="","",IFERROR(VLOOKUP(L11,Brassage!$B$44:$H$56,2,FALSE),"")) ->  | N11: =IF(L11="0","0",SUMIF(Brassage!$B$44:$B$56,L11,Brassage!$F$44:$F$56)) -> 0 | P11: =IF([1]Stock!J11="","",[1]Stock!J11) ->  | Q11: =IF([1]Stock!K11="","",[1]Stock!K11) ->  | R11: =IF(P11="","",IFERROR(VLOOKUP(P11,Brassage!$B$60:$H$61,1,FALSE),"")) ->  | S11: =IF(R11="","0",IFERROR(VLOOKUP(P11,Brassage!$B$60:$H$61,7,FALSE),"")) -> 0
A12: =IF([1]Stock!A12="","",[1]Stock!A12) -> Diastasique | B12: =IF([1]Stock!B12="","",[1]Stock!B12) -> 3 | C12: =IF([1]Stock!C12="","",[1]Stock!C12) -> 4100 | D12: =IF(A12="","",IFERROR(VLOOKUP(A12,Brassage!$B$25:$H$33,1,FALSE),"")) ->  | E12: =IF(A12="","",IFERROR(VLOOKUP(A12,Brassage!$B$25:$H$33,2,FALSE),"")) ->  | F12: =IF(Stock!D12="0","0",SUMIF(Brassage!$B$25:$B$33,Stock!D12,Brassage!$H$25:$H$33)) -> 0 | H12: =IF([1]Stock!E12="","",[1]Stock!E12) -> Saaz Jean-Pascal 2020 | I12: =IF([1]Stock!F12="","",[1]Stock!F12) -> 0.03 | J12: =IF([1]Stock!G12="","",[1]Stock!G12) -> 2020 | K12: =IF([1]Stock!H12="","",[1]Stock!H12) -> 30 | L12: =IF(H12="","",IFERROR(VLOOKUP(H12,Brassage!$B$44:$H$56,1,FALSE),"")) ->  | M12: =IF(L12="","",IFERROR(VLOOKUP(L12,Brassage!$B$44:$H$56,2,FALSE),"")) ->  | N12: =IF(L12="0","0",SUMIF(Brassage!$B$44:$B$56,L12,Brassage!$F$44:$F$56)) -> 0 | P12: =IF([1]Stock!J12="","",[1]Stock!J12) ->  | Q12: =IF([1]Stock!K12="","",[1]Stock!K12) ->  | R12: =IF(P12="","",IFERROR(VLOOKUP(P12,Brassage!$B$60:$H$61,1,FALSE),"")) ->  | S12: =IF(R12="","0",IFERROR(VLOOKUP(P12,Brassage!$B$60:$H$61,7,FALSE),"")) -> 0
A13: =IF([1]Stock!A13="","",[1]Stock!A13) -> Froment - Vieux Silo | B13: =IF([1]Stock!B13="","",[1]Stock!B13) -> 4.5 | C13: =IF([1]Stock!C13="","",[1]Stock!C13) -> 19400 | D13: =IF(A13="","",IFERROR(VLOOKUP(A13,Brassage!$B$25:$H$33,1,FALSE),"")) ->  | E13: =IF(A13="","",IFERROR(VLOOKUP(A13,Brassage!$B$25:$H$33,2,FALSE),"")) ->  | F13: =IF(Stock!D13="0","0",SUMIF(Brassage!$B$25:$B$33,Stock!D13,Brassage!$H$25:$H$33)) -> 0 | H13: =IF([1]Stock!E13="","",[1]Stock!E13) -> Magnum | I13: =IF([1]Stock!F13="","",[1]Stock!F13) -> 0.139 | J13: =IF([1]Stock!G13="","",[1]Stock!G13) -> 2019 | K13: =IF([1]Stock!H13="","",[1]Stock!H13) -> 182 | L13: =IF(H13="","",IFERROR(VLOOKUP(H13,Brassage!$B$44:$H$56,1,FALSE),"")) -> Magnum | M13: =IF(L13="","",IFERROR(VLOOKUP(L13,Brassage!$B$44:$H$56,2,FALSE),"")) -> 0.139 | N13: =IF(L13="0","0",SUMIF(Brassage!$B$44:$B$56,L13,Brassage!$F$44:$F$56)) -> 30 | P13: =IF([1]Stock!J13="","",[1]Stock!J13) ->  | Q13: =IF([1]Stock!K13="","",[1]Stock!K13) ->  | R13: =IF(P13="","",IFERROR(VLOOKUP(P13,Brassage!$B$60:$H$61,1,FALSE),"")) ->  | S13: =IF(R13="","0",IFERROR(VLOOKUP(P13,Brassage!$B$60:$H$61,7,FALSE),"")) -> 0
A14: =IF([1]Stock!A14="","",[1]Stock!A14) -> Munich light Swaen | B14: =IF([1]Stock!B14="","",[1]Stock!B14) -> 13 | C14: =IF([1]Stock!C14="","",[1]Stock!C14) -> 2400 | D14: =IF(A14="","",IFERROR(VLOOKUP(A14,Brassage!$B$25:$H$33,1,FALSE),"")) ->  | E14: =IF(A14="","",IFERROR(VLOOKUP(A14,Brassage!$B$25:$H$33,2,FALSE),"")) ->  | F14: =IF(Stock!D14="0","0",SUMIF(Brassage!$B$25:$B$33,Stock!D14,Brassage!$H$25:$H$33)) -> 0 | H14: =IF([1]Stock!E14="","",[1]Stock!E14) -> Hallertau Mittelfrüh | I14: =IF([1]Stock!F14="","",[1]Stock!F14) -> 0.046 | J14: =IF([1]Stock!G14="","",[1]Stock!G14) -> 2019 | K14: =IF([1]Stock!H14="","",[1]Stock!H14) -> 100 | L14: =IF(H14="","",IFERROR(VLOOKUP(H14,Brassage!$B$44:$H$56,1,FALSE),"")) ->  | M14: =IF(L14="","",IFERROR(VLOOKUP(L14,Brassage!$B$44:$H$56,2,FALSE),"")) ->  | N14: =IF(L14="0","0",SUMIF(Brassage!$B$44:$B$56,L14,Brassage!$F$44:$F$56)) -> 0 | P14: =IF([1]Stock!J14="","",[1]Stock!J14) ->  | Q14: =IF([1]Stock!K14="","",[1]Stock!K14) ->  | R14: =IF(P14="","",IFERROR(VLOOKUP(P14,Brassage!$B$60:$H$61,1,FALSE),"")) ->  | S14: =IF(R14="","0",IFERROR(VLOOKUP(P14,Brassage!$B$60:$H$61,7,FALSE),"")) -> 0
A15: =IF([1]Stock!A15="","",[1]Stock!A15) -> Pale ale Château | B15: =IF([1]Stock!B15="","",[1]Stock!B15) -> 8.5 | C15: =IF([1]Stock!C15="","",[1]Stock!C15) -> 0 | D15: =IF(A15="","",IFERROR(VLOOKUP(A15,Brassage!$B$25:$H$33,1,FALSE),"")) -> Pale ale Château | E15: =IF(A15="","",IFERROR(VLOOKUP(A15,Brassage!$B$25:$H$33,2,FALSE),"")) -> 8.5 | F15: =IF(Stock!D15="0","0",SUMIF(Brassage!$B$25:$B$33,Stock!D15,Brassage!$H$25:$H$33)) -> 4000 | H15: =IF([1]Stock!E15="","",[1]Stock!E15) -> Northern Brewer | I15: =IF([1]Stock!F15="","",[1]Stock!F15) -> 0.083 | J15: =IF([1]Stock!G15="","",[1]Stock!G15) -> 2019 | K15: =IF([1]Stock!H15="","",[1]Stock!H15) -> 20 | L15: =IF(H15="","",IFERROR(VLOOKUP(H15,Brassage!$B$44:$H$56,1,FALSE),"")) ->  | M15: =IF(L15="","",IFERROR(VLOOKUP(L15,Brassage!$B$44:$H$56,2,FALSE),"")) ->  | N15: =IF(L15="0","0",SUMIF(Brassage!$B$44:$B$56,L15,Brassage!$F$44:$F$56)) -> 0 | P15: =IF([1]Stock!J15="","",[1]Stock!J15) ->  | Q15: =IF([1]Stock!K15="","",[1]Stock!K15) ->  | R15: =IF(P15="","",IFERROR(VLOOKUP(P15,Brassage!$B$60:$H$61,1,FALSE),"")) ->  | S15: =IF(R15="","0",IFERROR(VLOOKUP(P15,Brassage!$B$60:$H$61,7,FALSE),"")) -> 0
A16: =IF([1]Stock!A16="","",[1]Stock!A16) -> Pale ale Swaen | B16: =IF([1]Stock!B16="","",[1]Stock!B16) -> 7.1 | C16: =IF([1]Stock!C16="","",[1]Stock!C16) -> 13500 | D16: =IF(A16="","",IFERROR(VLOOKUP(A16,Brassage!$B$25:$H$33,1,FALSE),"")) ->  | E16: =IF(A16="","",IFERROR(VLOOKUP(A16,Brassage!$B$25:$H$33,2,FALSE),"")) ->  | F16: =IF(Stock!D16="0","0",SUMIF(Brassage!$B$25:$B$33,Stock!D16,Brassage!$H$25:$H$33)) -> 0 | H16: =IF([1]Stock!E16="","",[1]Stock!E16) -> Golding | I16: =IF([1]Stock!F16="","",[1]Stock!F16) -> 0.045 | J16: =IF([1]Stock!G16="","",[1]Stock!G16) -> 2020 | K16: =IF([1]Stock!H16="","",[1]Stock!H16) -> 0 | L16: =IF(H16="","",IFERROR(VLOOKUP(H16,Brassage!$B$44:$H$56,1,FALSE),"")) ->  | M16: =IF(L16="","",IFERROR(VLOOKUP(L16,Brassage!$B$44:$H$56,2,FALSE),"")) ->  | N16: =IF(L16="0","0",SUMIF(Brassage!$B$44:$B$56,L16,Brassage!$F$44:$F$56)) -> 0 | P16: =IF([1]Stock!J16="","",[1]Stock!J16) ->  | Q16: =IF([1]Stock!K16="","",[1]Stock!K16) ->  | R16: =IF(P16="","",IFERROR(VLOOKUP(P16,Brassage!$B$60:$H$61,1,FALSE),"")) ->  | S16: =IF(R16="","0",IFERROR(VLOOKUP(P16,Brassage!$B$60:$H$61,7,FALSE),"")) -> 0
A17: =IF([1]Stock!A17="","",[1]Stock!A17) -> Pilsen Swaen | B17: =IF([1]Stock!B17="","",[1]Stock!B17) -> 3.7 | C17: =IF([1]Stock!C17="","",[1]Stock!C17) -> 19200 | D17: =IF(A17="","",IFERROR(VLOOKUP(A17,Brassage!$B$25:$H$33,1,FALSE),"")) ->  | E17: =IF(A17="","",IFERROR(VLOOKUP(A17,Brassage!$B$25:$H$33,2,FALSE),"")) ->  | F17: =IF(Stock!D17="0","0",SUMIF(Brassage!$B$25:$B$33,Stock!D17,Brassage!$H$25:$H$33)) -> 0 | H17: =IF([1]Stock!E17="","",[1]Stock!E17) ->  | I17: =IF([1]Stock!F17="","",[1]Stock!F17) ->  | J17: =IF([1]Stock!G17="","",[1]Stock!G17) ->  | K17: =IF([1]Stock!H17="","",[1]Stock!H17) -> 0 | L17: =IF(H17="","",IFERROR(VLOOKUP(H17,Brassage!$B$44:$H$56,1,FALSE),"")) ->  | M17: =IF(L17="","",IFERROR(VLOOKUP(L17,Brassage!$B$44:$H$56,2,FALSE),"")) ->  | N17: =IF(L17="0","0",SUMIF(Brassage!$B$44:$B$56,L17,Brassage!$F$44:$F$56)) -> 0 | P17: =IF([1]Stock!J17="","",[1]Stock!J17) ->  | Q17: =IF([1]Stock!K17="","",[1]Stock!K17) ->  | R17: =IF(P17="","",IFERROR(VLOOKUP(P17,Brassage!$B$60:$H$61,1,FALSE),"")) ->  | S17: =IF(R17="","0",IFERROR(VLOOKUP(P17,Brassage!$B$60:$H$61,7,FALSE),"")) -> 0
A18: =IF([1]Stock!A18="","",[1]Stock!A18) -> Special B | B18: =IF([1]Stock!B18="","",[1]Stock!B18) -> 300 | C18: =IF([1]Stock!C18="","",[1]Stock!C18) -> 1000 | D18: =IF(A18="","",IFERROR(VLOOKUP(A18,Brassage!$B$25:$H$33,1,FALSE),"")) ->  | E18: =IF(A18="","",IFERROR(VLOOKUP(A18,Brassage!$B$25:$H$33,2,FALSE),"")) ->  | F18: =IF(Stock!D18="0","0",SUMIF(Brassage!$B$25:$B$33,Stock!D18,Brassage!$H$25:$H$33)) -> 0 | H18: =IF([1]Stock!E18="","",[1]Stock!E18) ->  | I18: =IF([1]Stock!F18="","",[1]Stock!F18) ->  | J18: =IF([1]Stock!G18="","",[1]Stock!G18) ->  | K18: =IF([1]Stock!H18="","",[1]Stock!H18) -> 0 | L18: =IF(H18="","",IFERROR(VLOOKUP(H18,Brassage!$B$44:$H$56,1,FALSE),"")) ->  | M18: =IF(L18="","",IFERROR(VLOOKUP(L18,Brassage!$B$44:$H$56,2,FALSE),"")) ->  | N18: =IF(L18="0","0",SUMIF(Brassage!$B$44:$B$56,L18,Brassage!$F$44:$F$56)) -> 0 | Q18: =IF([1]Stock!K18="","",[1]Stock!K18) ->  | R18: =IF(P18="","",IFERROR(VLOOKUP(P18,Brassage!$B$60:$H$61,1,FALSE),"")) ->  | S18: =IF(R18="","0",IFERROR(VLOOKUP(P18,Brassage!$B$60:$H$61,7,FALSE),"")) -> 0
A19: =IF([1]Stock!A19="","",[1]Stock!A19) -> Vienna Swaen | B19: =IF([1]Stock!B19="","",[1]Stock!B19) -> 10 | C19: =IF([1]Stock!C19="","",[1]Stock!C19) -> 3800 | D19: =IF(A19="","",IFERROR(VLOOKUP(A19,Brassage!$B$25:$H$33,1,FALSE),"")) ->  | E19: =IF(A19="","",IFERROR(VLOOKUP(A19,Brassage!$B$25:$H$33,2,FALSE),"")) ->  | F19: =IF(Stock!D19="0","0",SUMIF(Brassage!$B$25:$B$33,Stock!D19,Brassage!$H$25:$H$33)) -> 0 | H19: =IF([1]Stock!E19="","",[1]Stock!E19) ->  | I19: =IF([1]Stock!F19="","",[1]Stock!F19) ->  | J19: =IF([1]Stock!G19="","",[1]Stock!G19) ->  | K19: =IF([1]Stock!H19="","",[1]Stock!H19) -> 0 | L19: =IF(H19="","",IFERROR(VLOOKUP(H19,Brassage!$B$44:$H$56,1,FALSE),"")) ->  | M19: =IF(L19="","",IFERROR(VLOOKUP(L19,Brassage!$B$44:$H$56,2,FALSE),"")) ->  | N19: =IF(L19="0","0",SUMIF(Brassage!$B$44:$B$56,L19,Brassage!$F$44:$F$56)) -> 0 | P19: =IF([1]Stock!J19="","",[1]Stock!J19) ->  | Q19: =IF([1]Stock!K19="","",[1]Stock!K19) ->  | R19: =IF(P19="","",IFERROR(VLOOKUP(P19,Brassage!$B$60:$H$61,1,FALSE),"")) ->  | S19: =IF(R19="","0",IFERROR(VLOOKUP(P19,Brassage!$B$60:$H$61,7,FALSE),"")) -> 0
A20: =IF([1]Stock!A20="","",[1]Stock!A20) -> Château Roasted Barley | B20: =IF([1]Stock!B20="","",[1]Stock!B20) -> 1200 | C20: =IF([1]Stock!C20="","",[1]Stock!C20) -> 1000 | D20: =IF(A20="","",IFERROR(VLOOKUP(A20,Brassage!$B$25:$H$33,1,FALSE),"")) -> Château Roasted Barley | E20: =IF(A20="","",IFERROR(VLOOKUP(A20,Brassage!$B$25:$H$33,2,FALSE),"")) -> 1150 | F20: =IF(Stock!D20="0","0",SUMIF(Brassage!$B$25:$B$33,Stock!D20,Brassage!$H$25:$H$33)) -> 700 | H20: =IF([1]Stock!E20="","",[1]Stock!E20) ->  | I20: =IF([1]Stock!F20="","",[1]Stock!F20) ->  | J20: =IF([1]Stock!G20="","",[1]Stock!G20) ->  | K20: =IF([1]Stock!H20="","",[1]Stock!H20) -> 0 | L20: =IF(H20="","",IFERROR(VLOOKUP(H20,Brassage!$B$44:$H$56,1,FALSE),"")) ->  | M20: =IF(L20="","",IFERROR(VLOOKUP(L20,Brassage!$B$44:$H$56,2,FALSE),"")) ->  | N20: =IF(L20="0","0",SUMIF(Brassage!$B$44:$B$56,L20,Brassage!$F$44:$F$56)) -> 0 | P20: =IF([1]Stock!J20="","",[1]Stock!J20) ->  | Q20: =IF([1]Stock!K20="","",[1]Stock!K20) ->  | R20: =IF(P20="","",IFERROR(VLOOKUP(P20,Brassage!$B$60:$H$61,1,FALSE),"")) ->  | S20: =IF(R20="","0",IFERROR(VLOOKUP(P20,Brassage!$B$60:$H$61,7,FALSE),"")) -> 0
A21: =IF([1]Stock!A21="","",[1]Stock!A21) ->  | B21: =IF([1]Stock!B21="","",[1]Stock!B21) ->  | C21: =IF([1]Stock!C21="","",[1]Stock!C21) -> 0 | D21: =IF(A21="","",IFERROR(VLOOKUP(A21,Brassage!$B$25:$H$33,1,FALSE),"")) ->  | E21: =IF(A21="","",IFERROR(VLOOKUP(A21,Brassage!$B$25:$H$33,2,FALSE),"")) ->  | F21: =IF(Stock!D21="0","0",SUMIF(Brassage!$B$25:$B$33,Stock!D21,Brassage!$H$25:$H$33)) -> 0 | H21: =IF([1]Stock!E21="","",[1]Stock!E21) ->  | I21: =IF([1]Stock!F21="","",[1]Stock!F21) ->  | J21: =IF([1]Stock!G21="","",[1]Stock!G21) ->  | K21: =IF([1]Stock!H21="","",[1]Stock!H21) -> 0 | L21: =IF(H21="","",IFERROR(VLOOKUP(H21,Brassage!$B$44:$H$56,1,FALSE),"")) ->  | M21: =IF(L21="","",IFERROR(VLOOKUP(L21,Brassage!$B$44:$H$56,2,FALSE),"")) ->  | N21: =IF(L21="0","0",SUMIF(Brassage!$B$44:$B$56,L21,Brassage!$F$44:$F$56)) -> 0 | P21: =IF([1]Stock!J21="","",[1]Stock!J21) ->  | Q21: =IF([1]Stock!K21="","",[1]Stock!K21) ->  | R21: =IF(P21="","",IFERROR(VLOOKUP(P21,Brassage!$B$60:$H$61,1,FALSE),"")) ->  | S21: =IF(R21="","0",IFERROR(VLOOKUP(P21,Brassage!$B$60:$H$61,7,FALSE),"")) -> 0
A22: =IF([1]Stock!A22="","",[1]Stock!A22) ->  | B22: =IF([1]Stock!B22="","",[1]Stock!B22) ->  | C22: =IF([1]Stock!C22="","",[1]Stock!C22) -> 0 | D22: =IF(A22="","",IFERROR(VLOOKUP(A22,Brassage!$B$25:$H$33,1,FALSE),"")) ->  | E22: =IF(A22="","",IFERROR(VLOOKUP(A22,Brassage!$B$25:$H$33,2,FALSE),"")) ->  | F22: =IF(Stock!D22="0","0",SUMIF(Brassage!$B$25:$B$33,Stock!D22,Brassage!$H$25:$H$33)) -> 0 | H22: =IF([1]Stock!E22="","",[1]Stock!E22) ->  | I22: =IF([1]Stock!F22="","",[1]Stock!F22) ->  | J22: =IF([1]Stock!G22="","",[1]Stock!G22) ->  | K22: =IF([1]Stock!H22="","",[1]Stock!H22) -> 0 | L22: =IF(H22="","",IFERROR(VLOOKUP(H22,Brassage!$B$44:$H$56,1,FALSE),"")) ->  | M22: =IF(L22="","",IFERROR(VLOOKUP(L22,Brassage!$B$44:$H$56,2,FALSE),"")) ->  | N22: =IF(L22="0","0",SUMIF(Brassage!$B$44:$B$56,L22,Brassage!$F$44:$F$56)) -> 0 | P22: =IF([1]Stock!J22="","",[1]Stock!J22) ->  | Q22: =IF([1]Stock!K22="","",[1]Stock!K22) ->  | R22: =IF(P22="","",IFERROR(VLOOKUP(P22,Brassage!$B$60:$H$61,1,FALSE),"")) ->  | S22: =IF(R22="","0",IFERROR(VLOOKUP(P22,Brassage!$B$60:$H$61,7,FALSE),"")) -> 0
A23: =IF([1]Stock!A23="","",[1]Stock!A23) ->  | B23: =IF([1]Stock!B23="","",[1]Stock!B23) ->  | C23: =IF([1]Stock!C23="","",[1]Stock!C23) -> 0 | D23: =IF(A23="","",IFERROR(VLOOKUP(A23,Brassage!$B$25:$H$33,1,FALSE),"")) ->  | E23: =IF(A23="","",IFERROR(VLOOKUP(A23,Brassage!$B$25:$H$33,2,FALSE),"")) ->  | F23: =IF(Stock!D23="0","0",SUMIF(Brassage!$B$25:$B$33,Stock!D23,Brassage!$H$25:$H$33)) -> 0 | H23: =IF([1]Stock!E23="","",[1]Stock!E23) ->  | I23: =IF([1]Stock!F23="","",[1]Stock!F23) ->  | J23: =IF([1]Stock!G23="","",[1]Stock!G23) ->  | K23: =IF([1]Stock!H23="","",[1]Stock!H23) -> 0 | L23: =IF(H23="","",IFERROR(VLOOKUP(H23,Brassage!$B$44:$H$56,1,FALSE),"")) ->  | M23: =IF(L23="","",IFERROR(VLOOKUP(L23,Brassage!$B$44:$H$56,2,FALSE),"")) ->  | N23: =IF(L23="0","0",SUMIF(Brassage!$B$44:$B$56,L23,Brassage!$F$44:$F$56)) -> 0 | P23: =IF([1]Stock!J23="","",[1]Stock!J23) ->  | Q23: =IF([1]Stock!K23="","",[1]Stock!K23) ->  | R23: =IF(P23="","",IFERROR(VLOOKUP(P23,Brassage!$B$60:$H$61,1,FALSE),"")) ->  | S23: =IF(R23="","0",IFERROR(VLOOKUP(P23,Brassage!$B$60:$H$61,7,FALSE),"")) -> 0
A24: =IF([1]Stock!A24="","",[1]Stock!A24) ->  | B24: =IF([1]Stock!B24="","",[1]Stock!B24) ->  | C24: =IF([1]Stock!C24="","",[1]Stock!C24) -> 0 | D24: =IF(A24="","",IFERROR(VLOOKUP(A24,Brassage!$B$25:$H$33,1,FALSE),"")) ->  | E24: =IF(A24="","",IFERROR(VLOOKUP(A24,Brassage!$B$25:$H$33,2,FALSE),"")) ->  | F24: =IF(Stock!D24="0","0",SUMIF(Brassage!$B$25:$B$33,Stock!D24,Brassage!$H$25:$H$33)) -> 0 | H24: =IF([1]Stock!E24="","",[1]Stock!E24) ->  | I24: =IF([1]Stock!F24="","",[1]Stock!F24) ->  | J24: =IF([1]Stock!G24="","",[1]Stock!G24) ->  | K24: =IF([1]Stock!H24="","",[1]Stock!H24) -> 0 | L24: =IF(H24="","",IFERROR(VLOOKUP(H24,Brassage!$B$44:$H$56,1,FALSE),"")) ->  | M24: =IF(L24="","",IFERROR(VLOOKUP(L24,Brassage!$B$44:$H$56,2,FALSE),"")) ->  | N24: =IF(L24="0","0",SUMIF(Brassage!$B$44:$B$56,L24,Brassage!$F$44:$F$56)) -> 0 | P24: =IF([1]Stock!J24="","",[1]Stock!J24) ->  | Q24: =IF([1]Stock!K24="","",[1]Stock!K24) ->  | R24: =IF(P24="","",IFERROR(VLOOKUP(P24,Brassage!$B$60:$H$61,1,FALSE),"")) ->  | S24: =IF(R24="","0",IFERROR(VLOOKUP(P24,Brassage!$B$60:$H$61,7,FALSE),"")) -> 0
A25: =IF([1]Stock!A25="","",[1]Stock!A25) ->  | B25: =IF([1]Stock!B25="","",[1]Stock!B25) ->  | C25: =IF([1]Stock!C25="","",[1]Stock!C25) -> 0 | D25: =IF(A25="","",IFERROR(VLOOKUP(A25,Brassage!$B$25:$H$33,1,FALSE),"")) ->  | E25: =IF(A25="","",IFERROR(VLOOKUP(A25,Brassage!$B$25:$H$33,2,FALSE),"")) ->  | F25: =IF(Stock!D25="0","0",SUMIF(Brassage!$B$25:$B$33,Stock!D25,Brassage!$H$25:$H$33)) -> 0 | H25: =IF([1]Stock!E25="","",[1]Stock!E25) ->  | I25: =IF([1]Stock!F25="","",[1]Stock!F25) ->  | J25: =IF([1]Stock!G25="","",[1]Stock!G25) ->  | K25: =IF([1]Stock!H25="","",[1]Stock!H25) -> 0 | L25: =IF(H25="","",IFERROR(VLOOKUP(H25,Brassage!$B$44:$H$56,1,FALSE),"")) ->  | M25: =IF(L25="","",IFERROR(VLOOKUP(L25,Brassage!$B$44:$H$56,2,FALSE),"")) ->  | N25: =IF(L25="0","0",SUMIF(Brassage!$B$44:$B$56,L25,Brassage!$F$44:$F$56)) -> 0 | P25: =IF([1]Stock!J25="","",[1]Stock!J25) ->  | Q25: =IF([1]Stock!K25="","",[1]Stock!K25) ->  | R25: =IF(P25="","",IFERROR(VLOOKUP(P25,Brassage!$B$60:$H$61,1,FALSE),"")) ->  | S25: =IF(R25="","0",IFERROR(VLOOKUP(P25,Brassage!$B$60:$H$61,7,FALSE),"")) -> 0
A26: =IF([1]Stock!A26="","",[1]Stock!A26) ->  | B26: =IF([1]Stock!B26="","",[1]Stock!B26) ->  | C26: =IF([1]Stock!C26="","",[1]Stock!C26) -> 0 | D26: =IF(A26="","",IFERROR(VLOOKUP(A26,Brassage!$B$25:$H$33,1,FALSE),"")) ->  | E26: =IF(A26="","",IFERROR(VLOOKUP(A26,Brassage!$B$25:$H$33,2,FALSE),"")) ->  | F26: =IF(Stock!D26="0","0",SUMIF(Brassage!$B$25:$B$33,Stock!D26,Brassage!$H$25:$H$33)) -> 0 | H26: =IF([1]Stock!E26="","",[1]Stock!E26) ->  | I26: =IF([1]Stock!F26="","",[1]Stock!F26) ->  | J26: =IF([1]Stock!G26="","",[1]Stock!G26) ->  | K26: =IF([1]Stock!H26="","",[1]Stock!H26) -> 0 | L26: =IF(H26="","",IFERROR(VLOOKUP(H26,Brassage!$B$44:$H$56,1,FALSE),"")) ->  | M26: =IF(L26="","",IFERROR(VLOOKUP(L26,Brassage!$B$44:$H$56,2,FALSE),"")) ->  | N26: =IF(L26="0","0",SUMIF(Brassage!$B$44:$B$56,L26,Brassage!$F$44:$F$56)) -> 0 | P26: =IF([1]Stock!J26="","",[1]Stock!J26) ->  | Q26: =IF([1]Stock!K26="","",[1]Stock!K26) ->  | R26: =IF(P26="","",IFERROR(VLOOKUP(P26,Brassage!$B$60:$H$61,1,FALSE),"")) ->  | S26: =IF(R26="","0",IFERROR(VLOOKUP(P26,Brassage!$B$60:$H$61,7,FALSE),"")) -> 0
A27: =IF([1]Stock!A27="","",[1]Stock!A27) ->  | B27: =IF([1]Stock!B27="","",[1]Stock!B27) ->  | C27: =IF([1]Stock!C27="","",[1]Stock!C27) -> 0 | D27: =IF(A27="","",IFERROR(VLOOKUP(A27,Brassage!$B$25:$H$33,1,FALSE),"")) ->  | E27: =IF(A27="","",IFERROR(VLOOKUP(A27,Brassage!$B$25:$H$33,2,FALSE),"")) ->  | F27: =IF(Stock!D27="0","0",SUMIF(Brassage!$B$25:$B$33,Stock!D27,Brassage!$H$25:$H$33)) -> 0 | H27: =IF([1]Stock!E27="","",[1]Stock!E27) ->  | I27: =IF([1]Stock!F27="","",[1]Stock!F27) ->  | J27: =IF([1]Stock!G27="","",[1]Stock!G27) ->  | K27: =IF([1]Stock!H27="","",[1]Stock!H27) -> 0 | L27: =IF(H27="","",IFERROR(VLOOKUP(H27,Brassage!$B$44:$H$56,1,FALSE),"")) ->  | M27: =IF(L27="","",IFERROR(VLOOKUP(L27,Brassage!$B$44:$H$56,2,FALSE),"")) ->  | N27: =IF(L27="0","0",SUMIF(Brassage!$B$44:$B$56,L27,Brassage!$F$44:$F$56)) -> 0 | P27: =IF([1]Stock!J27="","",[1]Stock!J27) ->  | Q27: =IF([1]Stock!K27="","",[1]Stock!K27) ->  | R27: =IF(P27="","",IFERROR(VLOOKUP(P27,Brassage!$B$60:$H$61,1,FALSE),"")) ->  | S27: =IF(R27="","0",IFERROR(VLOOKUP(P27,Brassage!$B$60:$H$61,7,FALSE),"")) -> 0
A28: =IF([1]Stock!A28="","",[1]Stock!A28) ->  | B28: =IF([1]Stock!B28="","",[1]Stock!B28) ->  | C28: =IF([1]Stock!C28="","",[1]Stock!C28) -> 0 | D28: =IF(A28="","",IFERROR(VLOOKUP(A28,Brassage!$B$25:$H$33,1,FALSE),"")) ->  | E28: =IF(A28="","",IFERROR(VLOOKUP(A28,Brassage!$B$25:$H$33,2,FALSE),"")) ->  | F28: =IF(Stock!D28="0","0",SUMIF(Brassage!$B$25:$B$33,Stock!D28,Brassage!$H$25:$H$33)) -> 0 | H28: =IF([1]Stock!E28="","",[1]Stock!E28) ->  | I28: =IF([1]Stock!F28="","",[1]Stock!F28) ->  | J28: =IF([1]Stock!G28="","",[1]Stock!G28) ->  | K28: =IF([1]Stock!H28="","",[1]Stock!H28) -> 0 | L28: =IF(H28="","",IFERROR(VLOOKUP(H28,Brassage!$B$44:$H$56,1,FALSE),"")) ->  | M28: =IF(L28="","",IFERROR(VLOOKUP(L28,Brassage!$B$44:$H$56,2,FALSE),"")) ->  | N28: =IF(L28="0","0",SUMIF(Brassage!$B$44:$B$56,L28,Brassage!$F$44:$F$56)) -> 0 | P28: =IF([1]Stock!J28="","",[1]Stock!J28) ->  | Q28: =IF([1]Stock!K28="","",[1]Stock!K28) ->  | R28: =IF(P28="","",IFERROR(VLOOKUP(P28,Brassage!$B$60:$H$61,1,FALSE),"")) ->  | S28: =IF(R28="","0",IFERROR(VLOOKUP(P28,Brassage!$B$60:$H$61,7,FALSE),"")) -> 0
A29: =IF([1]Stock!A29="","",[1]Stock!A29) ->  | B29: =IF([1]Stock!B29="","",[1]Stock!B29) ->  | C29: =IF([1]Stock!C29="","",[1]Stock!C29) -> 0 | D29: =IF(A29="","",IFERROR(VLOOKUP(A29,Brassage!$B$25:$H$33,1,FALSE),"")) ->  | E29: =IF(A29="","",IFERROR(VLOOKUP(A29,Brassage!$B$25:$H$33,2,FALSE),"")) ->  | F29: =IF(Stock!D29="0","0",SUMIF(Brassage!$B$25:$B$33,Stock!D29,Brassage!$H$25:$H$33)) -> 0 | H29: =IF([1]Stock!E29="","",[1]Stock!E29) ->  | I29: =IF([1]Stock!F29="","",[1]Stock!F29) ->  | J29: =IF([1]Stock!G29="","",[1]Stock!G29) ->  | K29: =IF([1]Stock!H29="","",[1]Stock!H29) -> 0 | L29: =IF(H29="","",IFERROR(VLOOKUP(H29,Brassage!$B$44:$H$56,1,FALSE),"")) ->  | M29: =IF(L29="","",IFERROR(VLOOKUP(L29,Brassage!$B$44:$H$56,2,FALSE),"")) ->  | N29: =IF(L29="0","0",SUMIF(Brassage!$B$44:$B$56,L29,Brassage!$F$44:$F$56)) -> 0 | P29: =IF([1]Stock!J29="","",[1]Stock!J29) ->  | Q29: =IF([1]Stock!K29="","",[1]Stock!K29) ->  | R29: =IF(P29="","",IFERROR(VLOOKUP(P29,Brassage!$B$60:$H$61,1,FALSE),"")) ->  | S29: =IF(R29="","0",IFERROR(VLOOKUP(P29,Brassage!$B$60:$H$61,7,FALSE),"")) -> 0
A30: =IF([1]Stock!A30="","",[1]Stock!A30) ->  | B30: =IF([1]Stock!B30="","",[1]Stock!B30) ->  | C30: =IF([1]Stock!C30="","",[1]Stock!C30) -> 0 | D30: =IF(A30="","",IFERROR(VLOOKUP(A30,Brassage!$B$25:$H$33,1,FALSE),"")) ->  | E30: =IF(A30="","",IFERROR(VLOOKUP(A30,Brassage!$B$25:$H$33,2,FALSE),"")) ->  | F30: =IF(Stock!D30="0","0",SUMIF(Brassage!$B$25:$B$33,Stock!D30,Brassage!$H$25:$H$33)) -> 0 | H30: =IF([1]Stock!E30="","",[1]Stock!E30) ->  | I30: =IF([1]Stock!F30="","",[1]Stock!F30) ->  | J30: =IF([1]Stock!G30="","",[1]Stock!G30) ->  | K30: =IF([1]Stock!H30="","",[1]Stock!H30) -> 0 | L30: =IF(H30="","",IFERROR(VLOOKUP(H30,Brassage!$B$44:$H$56,1,FALSE),"")) ->  | M30: =IF(L30="","",IFERROR(VLOOKUP(L30,Brassage!$B$44:$H$56,2,FALSE),"")) ->  | N30: =IF(L30="0","0",SUMIF(Brassage!$B$44:$B$56,L30,Brassage!$F$44:$F$56)) -> 0 | P30: =IF([1]Stock!J30="","",[1]Stock!J30) ->  | Q30: =IF([1]Stock!K30="","",[1]Stock!K30) ->  | R30: =IF(P30="","",IFERROR(VLOOKUP(P30,Brassage!$B$60:$H$61,1,FALSE),"")) ->  | S30: =IF(R30="","0",IFERROR(VLOOKUP(P30,Brassage!$B$60:$H$61,7,FALSE),"")) -> 0
A31: =IF([1]Stock!A31="","",[1]Stock!A31) ->  | B31: =IF([1]Stock!B31="","",[1]Stock!B31) ->  | C31: =IF([1]Stock!C31="","",[1]Stock!C31) -> 0 | D31: =IF(A31="","",IFERROR(VLOOKUP(A31,Brassage!$B$25:$H$33,1,FALSE),"")) ->  | E31: =IF(A31="","",IFERROR(VLOOKUP(A31,Brassage!$B$25:$H$33,2,FALSE),"")) ->  | F31: =IF(Stock!D31="0","0",SUMIF(Brassage!$B$25:$B$33,Stock!D31,Brassage!$H$25:$H$33)) -> 0 | H31: =IF([1]Stock!E31="","",[1]Stock!E31) ->  | I31: =IF([1]Stock!F31="","",[1]Stock!F31) ->  | J31: =IF([1]Stock!G31="","",[1]Stock!G31) ->  | K31: =IF([1]Stock!H31="","",[1]Stock!H31) -> 0 | L31: =IF(H31="","",IFERROR(VLOOKUP(H31,Brassage!$B$44:$H$56,1,FALSE),"")) ->  | M31: =IF(L31="","",IFERROR(VLOOKUP(L31,Brassage!$B$44:$H$56,2,FALSE),"")) ->  | N31: =IF(L31="0","0",SUMIF(Brassage!$B$44:$B$56,L31,Brassage!$F$44:$F$56)) -> 0 | P31: =IF([1]Stock!J31="","",[1]Stock!J31) ->  | Q31: =IF([1]Stock!K31="","",[1]Stock!K31) ->  | R31: =IF(P31="","",IFERROR(VLOOKUP(P31,Brassage!$B$60:$H$61,1,FALSE),"")) ->  | S31: =IF(R31="","0",IFERROR(VLOOKUP(P31,Brassage!$B$60:$H$61,7,FALSE),"")) -> 0
A32: =IF([1]Stock!A32="","",[1]Stock!A32) ->  | B32: =IF([1]Stock!B32="","",[1]Stock!B32) ->  | C32: =IF([1]Stock!C32="","",[1]Stock!C32) -> 0 | D32: =IF(A32="","",IFERROR(VLOOKUP(A32,Brassage!$B$25:$H$33,1,FALSE),"")) ->  | E32: =IF(A32="","",IFERROR(VLOOKUP(A32,Brassage!$B$25:$H$33,2,FALSE),"")) ->  | F32: =IF(Stock!D32="0","0",SUMIF(Brassage!$B$25:$B$33,Stock!D32,Brassage!$H$25:$H$33)) -> 0 | H32: =IF([1]Stock!E32="","",[1]Stock!E32) ->  | I32: =IF([1]Stock!F32="","",[1]Stock!F32) ->  | J32: =IF([1]Stock!G32="","",[1]Stock!G32) ->  | K32: =IF([1]Stock!H32="","",[1]Stock!H32) -> 0 | L32: =IF(H32="","",IFERROR(VLOOKUP(H32,Brassage!$B$44:$H$56,1,FALSE),"")) ->  | M32: =IF(L32="","",IFERROR(VLOOKUP(L32,Brassage!$B$44:$H$56,2,FALSE),"")) ->  | N32: =IF(L32="0","0",SUMIF(Brassage!$B$44:$B$56,L32,Brassage!$F$44:$F$56)) -> 0 | P32: =IF([1]Stock!J32="","",[1]Stock!J32) ->  | Q32: =IF([1]Stock!K32="","",[1]Stock!K32) ->  | R32: =IF(P32="","",IFERROR(VLOOKUP(P32,Brassage!$B$60:$H$61,1,FALSE),"")) ->  | S32: =IF(R32="","0",IFERROR(VLOOKUP(P32,Brassage!$B$60:$H$61,7,FALSE),"")) -> 0
A33: =IF([1]Stock!A33="","",[1]Stock!A33) ->  | B33: =IF([1]Stock!B33="","",[1]Stock!B33) ->  | C33: =IF([1]Stock!C33="","",[1]Stock!C33) ->  | D33: =IF(A33="","",IFERROR(VLOOKUP(A33,Brassage!$B$25:$H$33,1,FALSE),"")) ->  | E33: =IF(A33="","",IFERROR(VLOOKUP(A33,Brassage!$B$25:$H$33,2,FALSE),"")) ->  | F33: =IF(Stock!D33="0","0",SUMIF(Brassage!$B$25:$B$33,Stock!D33,Brassage!$H$25:$H$33)) -> 0 | H33: =IF([1]Stock!E33="","",[1]Stock!E33) ->  | I33: =IF([1]Stock!F33="","",[1]Stock!F33) ->  | J33: =IF([1]Stock!G33="","",[1]Stock!G33) ->  | K33: =IF([1]Stock!H33="","",[1]Stock!H33) ->  | L33: =IF(H33="","",IFERROR(VLOOKUP(H33,Brassage!$B$44:$H$56,1,FALSE),"")) ->  | M33: =IF(L33="","",IFERROR(VLOOKUP(L33,Brassage!$B$44:$H$56,2,FALSE),"")) ->  | N33: =IF(L33="0","0",SUMIF(Brassage!$B$44:$B$56,L33,Brassage!$F$44:$F$56)) -> 0 | P33: =IF([1]Stock!J33="","",[1]Stock!J33) ->  | Q33: =IF([1]Stock!K33="","",[1]Stock!K33) ->  | R33: =IF(P33="","",IFERROR(VLOOKUP(P33,Brassage!$B$60:$H$61,1,FALSE),"")) ->  | S33: =IF(R33="","0",IFERROR(VLOOKUP(P33,Brassage!$B$60:$H$61,7,FALSE),"")) -> 0
A34: =IF([1]Stock!A34="","",[1]Stock!A34) ->  | B34: =IF([1]Stock!B34="","",[1]Stock!B34) ->  | C34: =IF([1]Stock!C34="","",[1]Stock!C34) ->  | D34: =IF(A34="","",IFERROR(VLOOKUP(A34,Brassage!$B$25:$H$33,1,FALSE),"")) ->  | E34: =IF(A34="","",IFERROR(VLOOKUP(A34,Brassage!$B$25:$H$33,2,FALSE),"")) ->  | F34: =IF(Stock!D34="0","0",SUMIF(Brassage!$B$25:$B$33,Stock!D34,Brassage!$H$25:$H$33)) -> 0 | H34: =IF([1]Stock!E34="","",[1]Stock!E34) ->  | I34: =IF([1]Stock!F34="","",[1]Stock!F34) ->  | J34: =IF([1]Stock!G34="","",[1]Stock!G34) ->  | K34: =IF([1]Stock!H34="","",[1]Stock!H34) ->  | L34: =IF(H34="","",IFERROR(VLOOKUP(H34,Brassage!$B$44:$H$56,1,FALSE),"")) ->  | M34: =IF(L34="","",IFERROR(VLOOKUP(L34,Brassage!$B$44:$H$56,2,FALSE),"")) ->  | N34: =IF(L34="0","0",SUMIF(Brassage!$B$44:$B$56,L34,Brassage!$F$44:$F$56)) -> 0 | P34: =IF([1]Stock!J34="","",[1]Stock!J34) ->  | Q34: =IF([1]Stock!K34="","",[1]Stock!K34) ->  | R34: =IF(P34="","",IFERROR(VLOOKUP(P34,Brassage!$B$60:$H$61,1,FALSE),"")) ->  | S34: =IF(R34="","0",IFERROR(VLOOKUP(P34,Brassage!$B$60:$H$61,7,FALSE),"")) -> 0
A35: =IF([1]Stock!A35="","",[1]Stock!A35) ->  | B35: =IF([1]Stock!B35="","",[1]Stock!B35) ->  | C35: =IF([1]Stock!C35="","",[1]Stock!C35) ->  | D35: =IF(A35="","",IFERROR(VLOOKUP(A35,Brassage!$B$25:$H$33,1,FALSE),"")) ->  | E35: =IF(A35="","",IFERROR(VLOOKUP(A35,Brassage!$B$25:$H$33,2,FALSE),"")) ->  | F35: =IF(Stock!D35="0","0",SUMIF(Brassage!$B$25:$B$33,Stock!D35,Brassage!$H$25:$H$33)) -> 0 | H35: =IF([1]Stock!E35="","",[1]Stock!E35) ->  | I35: =IF([1]Stock!F35="","",[1]Stock!F35) ->  | J35: =IF([1]Stock!G35="","",[1]Stock!G35) ->  | K35: =IF([1]Stock!H35="","",[1]Stock!H35) ->  | L35: =IF(H35="","",IFERROR(VLOOKUP(H35,Brassage!$B$44:$H$56,1,FALSE),"")) ->  | M35: =IF(L35="","",IFERROR(VLOOKUP(L35,Brassage!$B$44:$H$56,2,FALSE),"")) ->  | N35: =IF(L35="0","0",SUMIF(Brassage!$B$44:$B$56,L35,Brassage!$F$44:$F$56)) -> 0 | P35: =IF([1]Stock!J35="","",[1]Stock!J35) ->  | Q35: =IF([1]Stock!K35="","",[1]Stock!K35) ->  | R35: =IF(P35="","",IFERROR(VLOOKUP(P35,Brassage!$B$60:$H$61,1,FALSE),"")) ->  | S35: =IF(R35="","0",IFERROR(VLOOKUP(P35,Brassage!$B$60:$H$61,7,FALSE),"")) -> 0
A36: =IF([1]Stock!A36="","",[1]Stock!A36) ->  | B36: =IF([1]Stock!B36="","",[1]Stock!B36) ->  | C36: =IF([1]Stock!C36="","",[1]Stock!C36) ->  | D36: =IF(A36="","",IFERROR(VLOOKUP(A36,Brassage!$B$25:$H$33,1,FALSE),"")) ->  | E36: =IF(A36="","",IFERROR(VLOOKUP(A36,Brassage!$B$25:$H$33,2,FALSE),"")) ->  | F36: =IF(Stock!D36="0","0",SUMIF(Brassage!$B$25:$B$33,Stock!D36,Brassage!$H$25:$H$33)) -> 0 | H36: =IF([1]Stock!E36="","",[1]Stock!E36) ->  | I36: =IF([1]Stock!F36="","",[1]Stock!F36) ->  | J36: =IF([1]Stock!G36="","",[1]Stock!G36) ->  | K36: =IF([1]Stock!H36="","",[1]Stock!H36) ->  | L36: =IF(H36="","",IFERROR(VLOOKUP(H36,Brassage!$B$44:$H$56,1,FALSE),"")) ->  | M36: =IF(L36="","",IFERROR(VLOOKUP(L36,Brassage!$B$44:$H$56,2,FALSE),"")) ->  | N36: =IF(L36="0","0",SUMIF(Brassage!$B$44:$B$56,L36,Brassage!$F$44:$F$56)) -> 0 | P36: =IF([1]Stock!J36="","",[1]Stock!J36) ->  | Q36: =IF([1]Stock!K36="","",[1]Stock!K36) ->  | R36: =IF(P36="","",IFERROR(VLOOKUP(P36,Brassage!$B$60:$H$61,1,FALSE),"")) ->  | S36: =IF(R36="","0",IFERROR(VLOOKUP(P36,Brassage!$B$60:$H$61,7,FALSE),"")) -> 0
A37: =IF([1]Stock!A37="","",[1]Stock!A37) ->  | B37: =IF([1]Stock!B37="","",[1]Stock!B37) ->  | C37: =IF([1]Stock!C37="","",[1]Stock!C37) ->  | D37: =IF(A37="","",IFERROR(VLOOKUP(A37,Brassage!$B$25:$H$33,1,FALSE),"")) ->  | E37: =IF(A37="","",IFERROR(VLOOKUP(A37,Brassage!$B$25:$H$33,2,FALSE),"")) ->  | F37: =IF(Stock!D37="0","0",SUMIF(Brassage!$B$25:$B$33,Stock!D37,Brassage!$H$25:$H$33)) -> 0 | H37: =IF([1]Stock!E37="","",[1]Stock!E37) ->  | I37: =IF([1]Stock!F37="","",[1]Stock!F37) ->  | J37: =IF([1]Stock!G37="","",[1]Stock!G37) ->  | K37: =IF([1]Stock!H37="","",[1]Stock!H37) ->  | L37: =IF(H37="","",IFERROR(VLOOKUP(H37,Brassage!$B$44:$H$56,1,FALSE),"")) ->  | M37: =IF(L37="","",IFERROR(VLOOKUP(L37,Brassage!$B$44:$H$56,2,FALSE),"")) ->  | N37: =IF(L37="0","0",SUMIF(Brassage!$B$44:$B$56,L37,Brassage!$F$44:$F$56)) -> 0 | P37: =IF([1]Stock!J37="","",[1]Stock!J37) ->  | Q37: =IF([1]Stock!K37="","",[1]Stock!K37) ->  | R37: =IF(P37="","",IFERROR(VLOOKUP(P37,Brassage!$B$60:$H$61,1,FALSE),"")) ->  | S37: =IF(R37="","0",IFERROR(VLOOKUP(P37,Brassage!$B$60:$H$61,7,FALSE),"")) -> 0
A38: =IF([1]Stock!A38="","",[1]Stock!A38) ->  | B38: =IF([1]Stock!B38="","",[1]Stock!B38) ->  | C38: =IF([1]Stock!C38="","",[1]Stock!C38) ->  | D38: =IF(A38="","",IFERROR(VLOOKUP(A38,Brassage!$B$25:$H$33,1,FALSE),"")) ->  | E38: =IF(A38="","",IFERROR(VLOOKUP(A38,Brassage!$B$25:$H$33,2,FALSE),"")) ->  | F38: =IF(Stock!D38="0","0",SUMIF(Brassage!$B$25:$B$33,Stock!D38,Brassage!$H$25:$H$33)) -> 0 | H38: =IF([1]Stock!E38="","",[1]Stock!E38) ->  | I38: =IF([1]Stock!F38="","",[1]Stock!F38) ->  | J38: =IF([1]Stock!G38="","",[1]Stock!G38) ->  | K38: =IF([1]Stock!H38="","",[1]Stock!H38) ->  | L38: =IF(H38="","",IFERROR(VLOOKUP(H38,Brassage!$B$44:$H$56,1,FALSE),"")) ->  | M38: =IF(L38="","",IFERROR(VLOOKUP(L38,Brassage!$B$44:$H$56,2,FALSE),"")) ->  | N38: =IF(L38="0","0",SUMIF(Brassage!$B$44:$B$56,L38,Brassage!$F$44:$F$56)) -> 0 | P38: =IF([1]Stock!J38="","",[1]Stock!J38) ->  | Q38: =IF([1]Stock!K38="","",[1]Stock!K38) ->  | R38: =IF(P38="","",IFERROR(VLOOKUP(P38,Brassage!$B$60:$H$61,1,FALSE),"")) ->  | S38: =IF(R38="","0",IFERROR(VLOOKUP(P38,Brassage!$B$60:$H$61,7,FALSE),"")) -> 0
A39: =IF([1]Stock!A39="","",[1]Stock!A39) ->  | B39: =IF([1]Stock!B39="","",[1]Stock!B39) ->  | C39: =IF([1]Stock!C39="","",[1]Stock!C39) ->  | D39: =IF(A39="","",IFERROR(VLOOKUP(A39,Brassage!$B$25:$H$33,1,FALSE),"")) ->  | E39: =IF(A39="","",IFERROR(VLOOKUP(A39,Brassage!$B$25:$H$33,2,FALSE),"")) ->  | F39: =IF(Stock!D39="0","0",SUMIF(Brassage!$B$25:$B$33,Stock!D39,Brassage!$H$25:$H$33)) -> 0 | H39: =IF([1]Stock!E39="","",[1]Stock!E39) ->  | I39: =IF([1]Stock!F39="","",[1]Stock!F39) ->  | J39: =IF([1]Stock!G39="","",[1]Stock!G39) ->  | K39: =IF([1]Stock!H39="","",[1]Stock!H39) ->  | L39: =IF(H39="","",IFERROR(VLOOKUP(H39,Brassage!$B$44:$H$56,1,FALSE),"")) ->  | M39: =IF(L39="","",IFERROR(VLOOKUP(L39,Brassage!$B$44:$H$56,2,FALSE),"")) ->  | N39: =IF(L39="0","0",SUMIF(Brassage!$B$44:$B$56,L39,Brassage!$F$44:$F$56)) -> 0 | P39: =IF([1]Stock!J39="","",[1]Stock!J39) ->  | Q39: =IF([1]Stock!K39="","",[1]Stock!K39) ->  | R39: =IF(P39="","",IFERROR(VLOOKUP(P39,Brassage!$B$60:$H$61,1,FALSE),"")) ->  | S39: =IF(R39="","0",IFERROR(VLOOKUP(P39,Brassage!$B$60:$H$61,7,FALSE),"")) -> 0
A40: =IF([1]Stock!A40="","",[1]Stock!A40) ->  | B40: =IF([1]Stock!B40="","",[1]Stock!B40) ->  | C40: =IF([1]Stock!C40="","",[1]Stock!C40) ->  | D40: =IF(A40="","",IFERROR(VLOOKUP(A40,Brassage!$B$25:$H$33,1,FALSE),"")) ->  | E40: =IF(A40="","",IFERROR(VLOOKUP(A40,Brassage!$B$25:$H$33,2,FALSE),"")) ->  | F40: =IF(Stock!D40="0","0",SUMIF(Brassage!$B$25:$B$33,Stock!D40,Brassage!$H$25:$H$33)) -> 0 | H40: =IF([1]Stock!E40="","",[1]Stock!E40) ->  | I40: =IF([1]Stock!F40="","",[1]Stock!F40) ->  | J40: =IF([1]Stock!G40="","",[1]Stock!G40) ->  | K40: =IF([1]Stock!H40="","",[1]Stock!H40) ->  | L40: =IF(H40="","",IFERROR(VLOOKUP(H40,Brassage!$B$44:$H$56,1,FALSE),"")) ->  | M40: =IF(L40="","",IFERROR(VLOOKUP(L40,Brassage!$B$44:$H$56,2,FALSE),"")) ->  | N40: =IF(L40="0","0",SUMIF(Brassage!$B$44:$B$56,L40,Brassage!$F$44:$F$56)) -> 0 | P40: =IF([1]Stock!J40="","",[1]Stock!J40) ->  | Q40: =IF([1]Stock!K40="","",[1]Stock!K40) ->  | R40: =IF(P40="","",IFERROR(VLOOKUP(P40,Brassage!$B$60:$H$61,1,FALSE),"")) ->  | S40: =IF(R40="","0",IFERROR(VLOOKUP(P40,Brassage!$B$60:$H$61,7,FALSE),"")) -> 0
A41: =IF([1]Stock!A41="","",[1]Stock!A41) ->  | B41: =IF([1]Stock!B41="","",[1]Stock!B41) ->  | C41: =IF([1]Stock!C41="","",[1]Stock!C41) ->  | D41: =IF(A41="","",IFERROR(VLOOKUP(A41,Brassage!$B$25:$H$33,1,FALSE),"")) ->  | E41: =IF(A41="","",IFERROR(VLOOKUP(A41,Brassage!$B$25:$H$33,2,FALSE),"")) ->  | F41: =IF(Stock!D41="0","0",SUMIF(Brassage!$B$25:$B$33,Stock!D41,Brassage!$H$25:$H$33)) -> 0 | H41: =IF([1]Stock!E41="","",[1]Stock!E41) ->  | I41: =IF([1]Stock!F41="","",[1]Stock!F41) ->  | J41: =IF([1]Stock!G41="","",[1]Stock!G41) ->  | K41: =IF([1]Stock!H41="","",[1]Stock!H41) ->  | L41: =IF(H41="","",IFERROR(VLOOKUP(H41,Brassage!$B$44:$H$56,1,FALSE),"")) ->  | M41: =IF(L41="","",IFERROR(VLOOKUP(L41,Brassage!$B$44:$H$56,2,FALSE),"")) ->  | N41: =IF(L41="0","0",SUMIF(Brassage!$B$44:$B$56,L41,Brassage!$F$44:$F$56)) -> 0 | P41: =IF([1]Stock!J41="","",[1]Stock!J41) ->  | Q41: =IF([1]Stock!K41="","",[1]Stock!K41) ->  | R41: =IF(P41="","",IFERROR(VLOOKUP(P41,Brassage!$B$60:$H$61,1,FALSE),"")) ->  | S41: =IF(R41="","0",IFERROR(VLOOKUP(P41,Brassage!$B$60:$H$61,7,FALSE),"")) -> 0
A42: =IF([1]Stock!A42="","",[1]Stock!A42) ->  | B42: =IF([1]Stock!B42="","",[1]Stock!B42) ->  | C42: =IF([1]Stock!C42="","",[1]Stock!C42) ->  | D42: =IF(A42="","",IFERROR(VLOOKUP(A42,Brassage!$B$25:$H$33,1,FALSE),"")) ->  | E42: =IF(A42="","",IFERROR(VLOOKUP(A42,Brassage!$B$25:$H$33,2,FALSE),"")) ->  | F42: =IF(Stock!D42="0","0",SUMIF(Brassage!$B$25:$B$33,Stock!D42,Brassage!$H$25:$H$33)) -> 0 | H42: =IF([1]Stock!E42="","",[1]Stock!E42) ->  | I42: =IF([1]Stock!F42="","",[1]Stock!F42) ->  | J42: =IF([1]Stock!G42="","",[1]Stock!G42) ->  | K42: =IF([1]Stock!H42="","",[1]Stock!H42) ->  | L42: =IF(H42="","",IFERROR(VLOOKUP(H42,Brassage!$B$44:$H$56,1,FALSE),"")) ->  | M42: =IF(L42="","",IFERROR(VLOOKUP(L42,Brassage!$B$44:$H$56,2,FALSE),"")) ->  | N42: =IF(L42="0","0",SUMIF(Brassage!$B$44:$B$56,L42,Brassage!$F$44:$F$56)) -> 0 | P42: =IF([1]Stock!J42="","",[1]Stock!J42) ->  | Q42: =IF([1]Stock!K42="","",[1]Stock!K42) ->  | R42: =IF(P42="","",IFERROR(VLOOKUP(P42,Brassage!$B$60:$H$61,1,FALSE),"")) ->  | S42: =IF(R42="","0",IFERROR(VLOOKUP(P42,Brassage!$B$60:$H$61,7,FALSE),"")) -> 0
A43: =IF([1]Stock!A43="","",[1]Stock!A43) ->  | B43: =IF([1]Stock!B43="","",[1]Stock!B43) ->  | C43: =IF([1]Stock!C43="","",[1]Stock!C43) ->  | D43: =IF(A43="","",IFERROR(VLOOKUP(A43,Brassage!$B$25:$H$33,1,FALSE),"")) ->  | E43: =IF(A43="","",IFERROR(VLOOKUP(A43,Brassage!$B$25:$H$33,2,FALSE),"")) ->  | F43: =IF(Stock!D43="0","0",SUMIF(Brassage!$B$25:$B$33,Stock!D43,Brassage!$H$25:$H$33)) -> 0 | H43: =IF([1]Stock!E43="","",[1]Stock!E43) ->  | I43: =IF([1]Stock!F43="","",[1]Stock!F43) ->  | J43: =IF([1]Stock!G43="","",[1]Stock!G43) ->  | K43: =IF([1]Stock!H43="","",[1]Stock!H43) ->  | L43: =IF(H43="","",IFERROR(VLOOKUP(H43,Brassage!$B$44:$H$56,1,FALSE),"")) ->  | M43: =IF(L43="","",IFERROR(VLOOKUP(L43,Brassage!$B$44:$H$56,2,FALSE),"")) ->  | N43: =IF(L43="0","0",SUMIF(Brassage!$B$44:$B$56,L43,Brassage!$F$44:$F$56)) -> 0 | P43: =IF([1]Stock!J43="","",[1]Stock!J43) ->  | Q43: =IF([1]Stock!K43="","",[1]Stock!K43) ->  | R43: =IF(P43="","",IFERROR(VLOOKUP(P43,Brassage!$B$60:$H$61,1,FALSE),"")) ->  | S43: =IF(R43="","0",IFERROR(VLOOKUP(P43,Brassage!$B$60:$H$61,7,FALSE),"")) -> 0
A44: =IF([1]Stock!A44="","",[1]Stock!A44) ->  | B44: =IF([1]Stock!B44="","",[1]Stock!B44) ->  | C44: =IF([1]Stock!C44="","",[1]Stock!C44) ->  | D44: =IF(A44="","",IFERROR(VLOOKUP(A44,Brassage!$B$25:$H$33,1,FALSE),"")) ->  | E44: =IF(A44="","",IFERROR(VLOOKUP(A44,Brassage!$B$25:$H$33,2,FALSE),"")) ->  | F44: =IF(Stock!D44="0","0",SUMIF(Brassage!$B$25:$B$33,Stock!D44,Brassage!$H$25:$H$33)) -> 0 | H44: =IF([1]Stock!E44="","",[1]Stock!E44) ->  | I44: =IF([1]Stock!F44="","",[1]Stock!F44) ->  | J44: =IF([1]Stock!G44="","",[1]Stock!G44) ->  | K44: =IF([1]Stock!H44="","",[1]Stock!H44) ->  | L44: =IF(H44="","",IFERROR(VLOOKUP(H44,Brassage!$B$44:$H$56,1,FALSE),"")) ->  | M44: =IF(L44="","",IFERROR(VLOOKUP(L44,Brassage!$B$44:$H$56,2,FALSE),"")) ->  | N44: =IF(L44="0","0",SUMIF(Brassage!$B$44:$B$56,L44,Brassage!$F$44:$F$56)) -> 0 | P44: =IF([1]Stock!J44="","",[1]Stock!J44) ->  | Q44: =IF([1]Stock!K44="","",[1]Stock!K44) ->  | R44: =IF(P44="","",IFERROR(VLOOKUP(P44,Brassage!$B$60:$H$61,1,FALSE),"")) ->  | S44: =IF(R44="","0",IFERROR(VLOOKUP(P44,Brassage!$B$60:$H$61,7,FALSE),"")) -> 0
A45: =IF([1]Stock!A45="","",[1]Stock!A45) ->  | B45: =IF([1]Stock!B45="","",[1]Stock!B45) ->  | C45: =IF([1]Stock!C45="","",[1]Stock!C45) ->  | D45: =IF(A45="","",IFERROR(VLOOKUP(A45,Brassage!$B$25:$H$33,1,FALSE),"")) ->  | E45: =IF(A45="","",IFERROR(VLOOKUP(A45,Brassage!$B$25:$H$33,2,FALSE),"")) ->  | F45: =IF(Stock!D45="0","0",SUMIF(Brassage!$B$25:$B$33,Stock!D45,Brassage!$H$25:$H$33)) -> 0 | H45: =IF([1]Stock!E45="","",[1]Stock!E45) ->  | I45: =IF([1]Stock!F45="","",[1]Stock!F45) ->  | J45: =IF([1]Stock!G45="","",[1]Stock!G45) ->  | K45: =IF([1]Stock!H45="","",[1]Stock!H45) ->  | L45: =IF(H45="","",IFERROR(VLOOKUP(H45,Brassage!$B$44:$H$56,1,FALSE),"")) ->  | M45: =IF(L45="","",IFERROR(VLOOKUP(L45,Brassage!$B$44:$H$56,2,FALSE),"")) ->  | N45: =IF(L45="0","0",SUMIF(Brassage!$B$44:$B$56,L45,Brassage!$F$44:$F$56)) -> 0 | P45: =IF([1]Stock!J45="","",[1]Stock!J45) ->  | Q45: =IF([1]Stock!K45="","",[1]Stock!K45) ->  | R45: =IF(P45="","",IFERROR(VLOOKUP(P45,Brassage!$B$60:$H$61,1,FALSE),"")) ->  | S45: =IF(R45="","0",IFERROR(VLOOKUP(P45,Brassage!$B$60:$H$61,7,FALSE),"")) -> 0
A46: =IF([1]Stock!A46="","",[1]Stock!A46) ->  | B46: =IF([1]Stock!B46="","",[1]Stock!B46) ->  | C46: =IF([1]Stock!C46="","",[1]Stock!C46) ->  | D46: =IF(A46="","",IFERROR(VLOOKUP(A46,Brassage!$B$25:$H$33,1,FALSE),"")) ->  | E46: =IF(A46="","",IFERROR(VLOOKUP(A46,Brassage!$B$25:$H$33,2,FALSE),"")) ->  | F46: =IF(Stock!D46="0","0",SUMIF(Brassage!$B$25:$B$33,Stock!D46,Brassage!$H$25:$H$33)) -> 0 | H46: =IF([1]Stock!E46="","",[1]Stock!E46) ->  | I46: =IF([1]Stock!F46="","",[1]Stock!F46) ->  | J46: =IF([1]Stock!G46="","",[1]Stock!G46) ->  | K46: =IF([1]Stock!H46="","",[1]Stock!H46) ->  | L46: =IF(H46="","",IFERROR(VLOOKUP(H46,Brassage!$B$44:$H$56,1,FALSE),"")) ->  | M46: =IF(L46="","",IFERROR(VLOOKUP(L46,Brassage!$B$44:$H$56,2,FALSE),"")) ->  | N46: =IF(L46="0","0",SUMIF(Brassage!$B$44:$B$56,L46,Brassage!$F$44:$F$56)) -> 0 | P46: =IF([1]Stock!J46="","",[1]Stock!J46) ->  | Q46: =IF([1]Stock!K46="","",[1]Stock!K46) ->  | R46: =IF(P46="","",IFERROR(VLOOKUP(P46,Brassage!$B$60:$H$61,1,FALSE),"")) ->  | S46: =IF(R46="","0",IFERROR(VLOOKUP(P46,Brassage!$B$60:$H$61,7,FALSE),"")) -> 0
A47: =IF([1]Stock!A47="","",[1]Stock!A47) ->  | B47: =IF([1]Stock!B47="","",[1]Stock!B47) ->  | C47: =IF([1]Stock!C47="","",[1]Stock!C47) ->  | D47: =IF(A47="","",IFERROR(VLOOKUP(A47,Brassage!$B$25:$H$33,1,FALSE),"")) ->  | E47: =IF(A47="","",IFERROR(VLOOKUP(A47,Brassage!$B$25:$H$33,2,FALSE),"")) ->  | F47: =IF(Stock!D47="0","0",SUMIF(Brassage!$B$25:$B$33,Stock!D47,Brassage!$H$25:$H$33)) -> 0 | H47: =IF([1]Stock!E47="","",[1]Stock!E47) ->  | I47: =IF([1]Stock!F47="","",[1]Stock!F47) ->  | J47: =IF([1]Stock!G47="","",[1]Stock!G47) ->  | K47: =IF([1]Stock!H47="","",[1]Stock!H47) ->  | L47: =IF(H47="","",IFERROR(VLOOKUP(H47,Brassage!$B$44:$H$56,1,FALSE),"")) ->  | M47: =IF(L47="","",IFERROR(VLOOKUP(L47,Brassage!$B$44:$H$56,2,FALSE),"")) ->  | N47: =IF(L47="0","0",SUMIF(Brassage!$B$44:$B$56,L47,Brassage!$F$44:$F$56)) -> 0 | P47: =IF([1]Stock!J47="","",[1]Stock!J47) ->  | Q47: =IF([1]Stock!K47="","",[1]Stock!K47) ->  | R47: =IF(P47="","",IFERROR(VLOOKUP(P47,Brassage!$B$60:$H$61,1,FALSE),"")) ->  | S47: =IF(R47="","0",IFERROR(VLOOKUP(P47,Brassage!$B$60:$H$61,7,FALSE),"")) -> 0
A48: =IF([1]Stock!A48="","",[1]Stock!A48) ->  | B48: =IF([1]Stock!B48="","",[1]Stock!B48) ->  | C48: =IF([1]Stock!C48="","",[1]Stock!C48) ->  | D48: =IF(A48="","",IFERROR(VLOOKUP(A48,Brassage!$B$25:$H$33,1,FALSE),"")) ->  | E48: =IF(A48="","",IFERROR(VLOOKUP(A48,Brassage!$B$25:$H$33,2,FALSE),"")) ->  | F48: =IF(Stock!D48="0","0",SUMIF(Brassage!$B$25:$B$33,Stock!D48,Brassage!$H$25:$H$33)) -> 0 | H48: =IF([1]Stock!E48="","",[1]Stock!E48) ->  | I48: =IF([1]Stock!F48="","",[1]Stock!F48) ->  | J48: =IF([1]Stock!G48="","",[1]Stock!G48) ->  | K48: =IF([1]Stock!H48="","",[1]Stock!H48) ->  | L48: =IF(H48="","",IFERROR(VLOOKUP(H48,Brassage!$B$44:$H$56,1,FALSE),"")) ->  | M48: =IF(L48="","",IFERROR(VLOOKUP(L48,Brassage!$B$44:$H$56,2,FALSE),"")) ->  | N48: =IF(L48="0","0",SUMIF(Brassage!$B$44:$B$56,L48,Brassage!$F$44:$F$56)) -> 0 | P48: =IF([1]Stock!J48="","",[1]Stock!J48) ->  | Q48: =IF([1]Stock!K48="","",[1]Stock!K48) ->  | R48: =IF(P48="","",IFERROR(VLOOKUP(P48,Brassage!$B$60:$H$61,1,FALSE),"")) ->  | S48: =IF(R48="","0",IFERROR(VLOOKUP(P48,Brassage!$B$60:$H$61,7,FALSE),"")) -> 0
A49: =IF([1]Stock!A49="","",[1]Stock!A49) ->  | B49: =IF([1]Stock!B49="","",[1]Stock!B49) ->  | C49: =IF([1]Stock!C49="","",[1]Stock!C49) ->  | D49: =IF(A49="","",IFERROR(VLOOKUP(A49,Brassage!$B$25:$H$33,1,FALSE),"")) ->  | E49: =IF(A49="","",IFERROR(VLOOKUP(A49,Brassage!$B$25:$H$33,2,FALSE),"")) ->  | F49: =IF(Stock!D49="0","0",SUMIF(Brassage!$B$25:$B$33,Stock!D49,Brassage!$H$25:$H$33)) -> 0 | H49: =IF([1]Stock!E49="","",[1]Stock!E49) ->  | I49: =IF([1]Stock!F49="","",[1]Stock!F49) ->  | J49: =IF([1]Stock!G49="","",[1]Stock!G49) ->  | K49: =IF([1]Stock!H49="","",[1]Stock!H49) ->  | L49: =IF(H49="","",IFERROR(VLOOKUP(H49,Brassage!$B$44:$H$56,1,FALSE),"")) ->  | M49: =IF(L49="","",IFERROR(VLOOKUP(L49,Brassage!$B$44:$H$56,2,FALSE),"")) ->  | N49: =IF(L49="0","0",SUMIF(Brassage!$B$44:$B$56,L49,Brassage!$F$44:$F$56)) -> 0 | P49: =IF([1]Stock!J49="","",[1]Stock!J49) ->  | Q49: =IF([1]Stock!K49="","",[1]Stock!K49) ->  | R49: =IF(P49="","",IFERROR(VLOOKUP(P49,Brassage!$B$60:$H$61,1,FALSE),"")) ->  | S49: =IF(R49="","0",IFERROR(VLOOKUP(P49,Brassage!$B$60:$H$61,7,FALSE),"")) -> 0
A50: =IF([1]Stock!A50="","",[1]Stock!A50) ->  | B50: =IF([1]Stock!B50="","",[1]Stock!B50) ->  | C50: =IF([1]Stock!C50="","",[1]Stock!C50) ->  | D50: =IF(A50="","",IFERROR(VLOOKUP(A50,Brassage!$B$25:$H$33,1,FALSE),"")) ->  | E50: =IF(A50="","",IFERROR(VLOOKUP(A50,Brassage!$B$25:$H$33,2,FALSE),"")) ->  | F50: =IF(Stock!D50="0","0",SUMIF(Brassage!$B$25:$B$33,Stock!D50,Brassage!$H$25:$H$33)) -> 0 | H50: =IF([1]Stock!E50="","",[1]Stock!E50) ->  | I50: =IF([1]Stock!F50="","",[1]Stock!F50) ->  | J50: =IF([1]Stock!G50="","",[1]Stock!G50) ->  | K50: =IF([1]Stock!H50="","",[1]Stock!H50) ->  | L50: =IF(H50="","",IFERROR(VLOOKUP(H50,Brassage!$B$44:$H$56,1,FALSE),"")) ->  | M50: =IF(L50="","",IFERROR(VLOOKUP(L50,Brassage!$B$44:$H$56,2,FALSE),"")) ->  | N50: =IF(L50="0","0",SUMIF(Brassage!$B$44:$B$56,L50,Brassage!$F$44:$F$56)) -> 0 | P50: =IF([1]Stock!J50="","",[1]Stock!J50) ->  | Q50: =IF([1]Stock!K50="","",[1]Stock!K50) ->  | R50: =IF(P50="","",IFERROR(VLOOKUP(P50,Brassage!$B$60:$H$61,1,FALSE),"")) ->  | S50: =IF(R50="","0",IFERROR(VLOOKUP(P50,Brassage!$B$60:$H$61,7,FALSE),"")) -> 0
A51: =IF([1]Stock!A51="","",[1]Stock!A51) ->  | B51: =IF([1]Stock!B51="","",[1]Stock!B51) ->  | C51: =IF([1]Stock!C51="","",[1]Stock!C51) ->  | D51: =IF(A51="","",IFERROR(VLOOKUP(A51,Brassage!$B$25:$H$33,1,FALSE),"")) ->  | E51: =IF(A51="","",IFERROR(VLOOKUP(A51,Brassage!$B$25:$H$33,2,FALSE),"")) ->  | F51: =IF(Stock!D51="0","0",SUMIF(Brassage!$B$25:$B$33,Stock!D51,Brassage!$H$25:$H$33)) -> 0 | H51: =IF([1]Stock!E51="","",[1]Stock!E51) ->  | I51: =IF([1]Stock!F51="","",[1]Stock!F51) ->  | J51: =IF([1]Stock!G51="","",[1]Stock!G51) ->  | K51: =IF([1]Stock!H51="","",[1]Stock!H51) ->  | L51: =IF(H51="","",IFERROR(VLOOKUP(H51,Brassage!$B$44:$H$56,1,FALSE),"")) ->  | M51: =IF(L51="","",IFERROR(VLOOKUP(L51,Brassage!$B$44:$H$56,2,FALSE),"")) ->  | N51: =IF(L51="0","0",SUMIF(Brassage!$B$44:$B$56,L51,Brassage!$F$44:$F$56)) -> 0 | P51: =IF([1]Stock!J51="","",[1]Stock!J51) ->  | Q51: =IF([1]Stock!K51="","",[1]Stock!K51) ->  | R51: =IF(P51="","",IFERROR(VLOOKUP(P51,Brassage!$B$60:$H$61,1,FALSE),"")) ->  | S51: =IF(R51="","0",IFERROR(VLOOKUP(P51,Brassage!$B$60:$H$61,7,FALSE),"")) -> 0
A52: =IF([1]Stock!A52="","",[1]Stock!A52) ->  | B52: =IF([1]Stock!B52="","",[1]Stock!B52) ->  | C52: =IF([1]Stock!C52="","",[1]Stock!C52) ->  | D52: =IF(A52="","",IFERROR(VLOOKUP(A52,Brassage!$B$25:$H$33,1,FALSE),"")) ->  | E52: =IF(A52="","",IFERROR(VLOOKUP(A52,Brassage!$B$25:$H$33,2,FALSE),"")) ->  | F52: =IF(Stock!D52="0","0",SUMIF(Brassage!$B$25:$B$33,Stock!D52,Brassage!$H$25:$H$33)) -> 0 | H52: =IF([1]Stock!E52="","",[1]Stock!E52) ->  | I52: =IF([1]Stock!F52="","",[1]Stock!F52) ->  | J52: =IF([1]Stock!G52="","",[1]Stock!G52) ->  | K52: =IF([1]Stock!H52="","",[1]Stock!H52) ->  | L52: =IF(H52="","",IFERROR(VLOOKUP(H52,Brassage!$B$44:$H$56,1,FALSE),"")) ->  | M52: =IF(L52="","",IFERROR(VLOOKUP(L52,Brassage!$B$44:$H$56,2,FALSE),"")) ->  | N52: =IF(L52="0","0",SUMIF(Brassage!$B$44:$B$56,L52,Brassage!$F$44:$F$56)) -> 0 | P52: =IF([1]Stock!J52="","",[1]Stock!J52) ->  | Q52: =IF([1]Stock!K52="","",[1]Stock!K52) ->  | R52: =IF(P52="","",IFERROR(VLOOKUP(P52,Brassage!$B$60:$H$61,1,FALSE),"")) ->  | S52: =IF(R52="","0",IFERROR(VLOOKUP(P52,Brassage!$B$60:$H$61,7,FALSE),"")) -> 0
A53: =IF([1]Stock!A53="","",[1]Stock!A53) ->  | B53: =IF([1]Stock!B53="","",[1]Stock!B53) ->  | C53: =IF([1]Stock!C53="","",[1]Stock!C53) ->  | D53: =IF(A53="","",IFERROR(VLOOKUP(A53,Brassage!$B$25:$H$33,1,FALSE),"")) ->  | E53: =IF(A53="","",IFERROR(VLOOKUP(A53,Brassage!$B$25:$H$33,2,FALSE),"")) ->  | F53: =IF(Stock!D53="0","0",SUMIF(Brassage!$B$25:$B$33,Stock!D53,Brassage!$H$25:$H$33)) -> 0 | H53: =IF([1]Stock!E53="","",[1]Stock!E53) ->  | I53: =IF([1]Stock!F53="","",[1]Stock!F53) ->  | J53: =IF([1]Stock!G53="","",[1]Stock!G53) ->  | K53: =IF([1]Stock!H53="","",[1]Stock!H53) ->  | L53: =IF(H53="","",IFERROR(VLOOKUP(H53,Brassage!$B$44:$H$56,1,FALSE),"")) ->  | M53: =IF(L53="","",IFERROR(VLOOKUP(L53,Brassage!$B$44:$H$56,2,FALSE),"")) ->  | N53: =IF(L53="0","0",SUMIF(Brassage!$B$44:$B$56,L53,Brassage!$F$44:$F$56)) -> 0 | P53: =IF([1]Stock!J53="","",[1]Stock!J53) ->  | Q53: =IF([1]Stock!K53="","",[1]Stock!K53) ->  | R53: =IF(P53="","",IFERROR(VLOOKUP(P53,Brassage!$B$60:$H$61,1,FALSE),"")) ->  | S53: =IF(R53="","0",IFERROR(VLOOKUP(P53,Brassage!$B$60:$H$61,7,FALSE),"")) -> 0
A54: =IF([1]Stock!A54="","",[1]Stock!A54) ->  | B54: =IF([1]Stock!B54="","",[1]Stock!B54) ->  | C54: =IF([1]Stock!C54="","",[1]Stock!C54) ->  | D54: =IF(A54="","",IFERROR(VLOOKUP(A54,Brassage!$B$25:$H$33,1,FALSE),"")) ->  | E54: =IF(A54="","",IFERROR(VLOOKUP(A54,Brassage!$B$25:$H$33,2,FALSE),"")) ->  | F54: =IF(Stock!D54="0","0",SUMIF(Brassage!$B$25:$B$33,Stock!D54,Brassage!$H$25:$H$33)) -> 0 | H54: =IF([1]Stock!E54="","",[1]Stock!E54) ->  | I54: =IF([1]Stock!F54="","",[1]Stock!F54) ->  | J54: =IF([1]Stock!G54="","",[1]Stock!G54) ->  | K54: =IF([1]Stock!H54="","",[1]Stock!H54) ->  | L54: =IF(H54="","",IFERROR(VLOOKUP(H54,Brassage!$B$44:$H$56,1,FALSE),"")) ->  | M54: =IF(L54="","",IFERROR(VLOOKUP(L54,Brassage!$B$44:$H$56,2,FALSE),"")) ->  | N54: =IF(L54="0","0",SUMIF(Brassage!$B$44:$B$56,L54,Brassage!$F$44:$F$56)) -> 0 | P54: =IF([1]Stock!J54="","",[1]Stock!J54) ->  | Q54: =IF([1]Stock!K54="","",[1]Stock!K54) ->  | R54: =IF(P54="","",IFERROR(VLOOKUP(P54,Brassage!$B$60:$H$61,1,FALSE),"")) ->  | S54: =IF(R54="","0",IFERROR(VLOOKUP(P54,Brassage!$B$60:$H$61,7,FALSE),"")) -> 0
A55: =IF([1]Stock!A55="","",[1]Stock!A55) ->  | B55: =IF([1]Stock!B55="","",[1]Stock!B55) ->  | C55: =IF([1]Stock!C55="","",[1]Stock!C55) ->  | D55: =IF(A55="","",IFERROR(VLOOKUP(A55,Brassage!$B$25:$H$33,1,FALSE),"")) ->  | E55: =IF(A55="","",IFERROR(VLOOKUP(A55,Brassage!$B$25:$H$33,2,FALSE),"")) ->  | F55: =IF(Stock!D55="0","0",SUMIF(Brassage!$B$25:$B$33,Stock!D55,Brassage!$H$25:$H$33)) -> 0 | H55: =IF([1]Stock!E55="","",[1]Stock!E55) ->  | I55: =IF([1]Stock!F55="","",[1]Stock!F55) ->  | J55: =IF([1]Stock!G55="","",[1]Stock!G55) ->  | K55: =IF([1]Stock!H55="","",[1]Stock!H55) ->  | L55: =IF(H55="","",IFERROR(VLOOKUP(H55,Brassage!$B$44:$H$56,1,FALSE),"")) ->  | M55: =IF(L55="","",IFERROR(VLOOKUP(L55,Brassage!$B$44:$H$56,2,FALSE),"")) ->  | N55: =IF(L55="0","0",SUMIF(Brassage!$B$44:$B$56,L55,Brassage!$F$44:$F$56)) -> 0 | P55: =IF([1]Stock!J55="","",[1]Stock!J55) ->  | Q55: =IF([1]Stock!K55="","",[1]Stock!K55) ->  | R55: =IF(P55="","",IFERROR(VLOOKUP(P55,Brassage!$B$60:$H$61,1,FALSE),"")) ->  | S55: =IF(R55="","0",IFERROR(VLOOKUP(P55,Brassage!$B$60:$H$61,7,FALSE),"")) -> 0
A56: =IF([1]Stock!A56="","",[1]Stock!A56) ->  | B56: =IF([1]Stock!B56="","",[1]Stock!B56) ->  | C56: =IF([1]Stock!C56="","",[1]Stock!C56) ->  | D56: =IF(A56="","",IFERROR(VLOOKUP(A56,Brassage!$B$25:$H$33,1,FALSE),"")) ->  | E56: =IF(A56="","",IFERROR(VLOOKUP(A56,Brassage!$B$25:$H$33,2,FALSE),"")) ->  | F56: =IF(Stock!D56="0","0",SUMIF(Brassage!$B$25:$B$33,Stock!D56,Brassage!$H$25:$H$33)) -> 0 | H56: =IF([1]Stock!E56="","",[1]Stock!E56) ->  | I56: =IF([1]Stock!F56="","",[1]Stock!F56) ->  | J56: =IF([1]Stock!G56="","",[1]Stock!G56) ->  | K56: =IF([1]Stock!H56="","",[1]Stock!H56) ->  | L56: =IF(H56="","",IFERROR(VLOOKUP(H56,Brassage!$B$44:$H$56,1,FALSE),"")) ->  | M56: =IF(L56="","",IFERROR(VLOOKUP(L56,Brassage!$B$44:$H$56,2,FALSE),"")) ->  | N56: =IF(L56="0","0",SUMIF(Brassage!$B$44:$B$56,L56,Brassage!$F$44:$F$56)) -> 0 | P56: =IF([1]Stock!J56="","",[1]Stock!J56) ->  | Q56: =IF([1]Stock!K56="","",[1]Stock!K56) ->  | R56: =IF(P56="","",IFERROR(VLOOKUP(P56,Brassage!$B$60:$H$61,1,FALSE),"")) ->  | S56: =IF(R56="","0",IFERROR(VLOOKUP(P56,Brassage!$B$60:$H$61,7,FALSE),"")) -> 0
A57: =IF([1]Stock!A57="","",[1]Stock!A57) ->  | B57: =IF([1]Stock!B57="","",[1]Stock!B57) ->  | C57: =IF([1]Stock!C57="","",[1]Stock!C57) ->  | D57: =IF(A57="","",IFERROR(VLOOKUP(A57,Brassage!$B$25:$H$33,1,FALSE),"")) ->  | E57: =IF(A57="","",IFERROR(VLOOKUP(A57,Brassage!$B$25:$H$33,2,FALSE),"")) ->  | F57: =IF(Stock!D57="0","0",SUMIF(Brassage!$B$25:$B$33,Stock!D57,Brassage!$H$25:$H$33)) -> 0 | H57: =IF([1]Stock!E57="","",[1]Stock!E57) ->  | I57: =IF([1]Stock!F57="","",[1]Stock!F57) ->  | J57: =IF([1]Stock!G57="","",[1]Stock!G57) ->  | K57: =IF([1]Stock!H57="","",[1]Stock!H57) ->  | L57: =IF(H57="","",IFERROR(VLOOKUP(H57,Brassage!$B$44:$H$56,1,FALSE),"")) ->  | M57: =IF(L57="","",IFERROR(VLOOKUP(L57,Brassage!$B$44:$H$56,2,FALSE),"")) ->  | N57: =IF(L57="0","0",SUMIF(Brassage!$B$44:$B$56,L57,Brassage!$F$44:$F$56)) -> 0 | P57: =IF([1]Stock!J57="","",[1]Stock!J57) ->  | Q57: =IF([1]Stock!K57="","",[1]Stock!K57) ->  | R57: =IF(P57="","",IFERROR(VLOOKUP(P57,Brassage!$B$60:$H$61,1,FALSE),"")) ->  | S57: =IF(R57="","0",IFERROR(VLOOKUP(P57,Brassage!$B$60:$H$61,7,FALSE),"")) -> 0
A58: =IF([1]Stock!A58="","",[1]Stock!A58) ->  | B58: =IF([1]Stock!B58="","",[1]Stock!B58) ->  | C58: =IF([1]Stock!C58="","",[1]Stock!C58) ->  | D58: =IF(A58="","",IFERROR(VLOOKUP(A58,Brassage!$B$25:$H$33,1,FALSE),"")) ->  | E58: =IF(A58="","",IFERROR(VLOOKUP(A58,Brassage!$B$25:$H$33,2,FALSE),"")) ->  | F58: =IF(Stock!D58="0","0",SUMIF(Brassage!$B$25:$B$33,Stock!D58,Brassage!$H$25:$H$33)) -> 0 | H58: =IF([1]Stock!E58="","",[1]Stock!E58) ->  | I58: =IF([1]Stock!F58="","",[1]Stock!F58) ->  | J58: =IF([1]Stock!G58="","",[1]Stock!G58) ->  | K58: =IF([1]Stock!H58="","",[1]Stock!H58) ->  | L58: =IF(H58="","",IFERROR(VLOOKUP(H58,Brassage!$B$44:$H$56,1,FALSE),"")) ->  | M58: =IF(L58="","",IFERROR(VLOOKUP(L58,Brassage!$B$44:$H$56,2,FALSE),"")) ->  | N58: =IF(L58="0","0",SUMIF(Brassage!$B$44:$B$56,L58,Brassage!$F$44:$F$56)) -> 0 | P58: =IF([1]Stock!J58="","",[1]Stock!J58) ->  | Q58: =IF([1]Stock!K58="","",[1]Stock!K58) ->  | R58: =IF(P58="","",IFERROR(VLOOKUP(P58,Brassage!$B$60:$H$61,1,FALSE),"")) ->  | S58: =IF(R58="","0",IFERROR(VLOOKUP(P58,Brassage!$B$60:$H$61,7,FALSE),"")) -> 0
A59: =IF([1]Stock!A59="","",[1]Stock!A59) ->  | B59: =IF([1]Stock!B59="","",[1]Stock!B59) ->  | C59: =IF([1]Stock!C59="","",[1]Stock!C59) ->  | D59: =IF(A59="","",IFERROR(VLOOKUP(A59,Brassage!$B$25:$H$33,1,FALSE),"")) ->  | E59: =IF(A59="","",IFERROR(VLOOKUP(A59,Brassage!$B$25:$H$33,2,FALSE),"")) ->  | F59: =IF(Stock!D59="0","0",SUMIF(Brassage!$B$25:$B$33,Stock!D59,Brassage!$H$25:$H$33)) -> 0 | H59: =IF([1]Stock!E59="","",[1]Stock!E59) ->  | I59: =IF([1]Stock!F59="","",[1]Stock!F59) ->  | J59: =IF([1]Stock!G59="","",[1]Stock!G59) ->  | K59: =IF([1]Stock!H59="","",[1]Stock!H59) ->  | L59: =IF(H59="","",IFERROR(VLOOKUP(H59,Brassage!$B$44:$H$56,1,FALSE),"")) ->  | M59: =IF(L59="","",IFERROR(VLOOKUP(L59,Brassage!$B$44:$H$56,2,FALSE),"")) ->  | N59: =IF(L59="0","0",SUMIF(Brassage!$B$44:$B$56,L59,Brassage!$F$44:$F$56)) -> 0 | P59: =IF([1]Stock!J59="","",[1]Stock!J59) ->  | Q59: =IF([1]Stock!K59="","",[1]Stock!K59) ->  | R59: =IF(P59="","",IFERROR(VLOOKUP(P59,Brassage!$B$60:$H$61,1,FALSE),"")) ->  | S59: =IF(R59="","0",IFERROR(VLOOKUP(P59,Brassage!$B$60:$H$61,7,FALSE),"")) -> 0
A60: =IF([1]Stock!A60="","",[1]Stock!A60) ->  | B60: =IF([1]Stock!B60="","",[1]Stock!B60) ->  | C60: =IF([1]Stock!C60="","",[1]Stock!C60) ->  | D60: =IF(A60="","",IFERROR(VLOOKUP(A60,Brassage!$B$25:$H$33,1,FALSE),"")) ->  | E60: =IF(A60="","",IFERROR(VLOOKUP(A60,Brassage!$B$25:$H$33,2,FALSE),"")) ->  | F60: =IF(Stock!D60="0","0",SUMIF(Brassage!$B$25:$B$33,Stock!D60,Brassage!$H$25:$H$33)) -> 0 | H60: =IF([1]Stock!E60="","",[1]Stock!E60) ->  | I60: =IF([1]Stock!F60="","",[1]Stock!F60) ->  | J60: =IF([1]Stock!G60="","",[1]Stock!G60) ->  | K60: =IF([1]Stock!H60="","",[1]Stock!H60) ->  | L60: =IF(H60="","",IFERROR(VLOOKUP(H60,Brassage!$B$44:$H$56,1,FALSE),"")) ->  | M60: =IF(L60="","",IFERROR(VLOOKUP(L60,Brassage!$B$44:$H$56,2,FALSE),"")) ->  | N60: =IF(L60="0","0",SUMIF(Brassage!$B$44:$B$56,L60,Brassage!$F$44:$F$56)) -> 0 | P60: =IF([1]Stock!J60="","",[1]Stock!J60) ->  | Q60: =IF([1]Stock!K60="","",[1]Stock!K60) ->  | R60: =IF(P60="","",IFERROR(VLOOKUP(P60,Brassage!$B$60:$H$61,1,FALSE),"")) ->  | S60: =IF(R60="","0",IFERROR(VLOOKUP(P60,Brassage!$B$60:$H$61,7,FALSE),"")) -> 0
A61: =IF([1]Stock!A61="","",[1]Stock!A61) ->  | B61: =IF([1]Stock!B61="","",[1]Stock!B61) ->  | C61: =IF([1]Stock!C61="","",[1]Stock!C61) ->  | D61: =IF(A61="","",IFERROR(VLOOKUP(A61,Brassage!$B$25:$H$33,1,FALSE),"")) ->  | E61: =IF(A61="","",IFERROR(VLOOKUP(A61,Brassage!$B$25:$H$33,2,FALSE),"")) ->  | F61: =IF(Stock!D61="0","0",SUMIF(Brassage!$B$25:$B$33,Stock!D61,Brassage!$H$25:$H$33)) -> 0 | H61: =IF([1]Stock!E61="","",[1]Stock!E61) ->  | I61: =IF([1]Stock!F61="","",[1]Stock!F61) ->  | J61: =IF([1]Stock!G61="","",[1]Stock!G61) ->  | K61: =IF([1]Stock!H61="","",[1]Stock!H61) ->  | L61: =IF(H61="","",IFERROR(VLOOKUP(H61,Brassage!$B$44:$H$56,1,FALSE),"")) ->  | M61: =IF(L61="","",IFERROR(VLOOKUP(L61,Brassage!$B$44:$H$56,2,FALSE),"")) ->  | N61: =IF(L61="0","0",SUMIF(Brassage!$B$44:$B$56,L61,Brassage!$F$44:$F$56)) -> 0 | P61: =IF([1]Stock!J61="","",[1]Stock!J61) ->  | Q61: =IF([1]Stock!K61="","",[1]Stock!K61) ->  | R61: =IF(P61="","",IFERROR(VLOOKUP(P61,Brassage!$B$60:$H$61,1,FALSE),"")) ->  | S61: =IF(R61="","0",IFERROR(VLOOKUP(P61,Brassage!$B$60:$H$61,7,FALSE),"")) -> 0
A62: =IF([1]Stock!A62="","",[1]Stock!A62) ->  | B62: =IF([1]Stock!B62="","",[1]Stock!B62) ->  | C62: =IF([1]Stock!C62="","",[1]Stock!C62) ->  | D62: =IF(A62="","",IFERROR(VLOOKUP(A62,Brassage!$B$25:$H$33,1,FALSE),"")) ->  | E62: =IF(A62="","",IFERROR(VLOOKUP(A62,Brassage!$B$25:$H$33,2,FALSE),"")) ->  | F62: =IF(Stock!D62="0","0",SUMIF(Brassage!$B$25:$B$33,Stock!D62,Brassage!$H$25:$H$33)) -> 0 | H62: =IF([1]Stock!E62="","",[1]Stock!E62) ->  | I62: =IF([1]Stock!F62="","",[1]Stock!F62) ->  | J62: =IF([1]Stock!G62="","",[1]Stock!G62) ->  | K62: =IF([1]Stock!H62="","",[1]Stock!H62) ->  | L62: =IF(H62="","",IFERROR(VLOOKUP(H62,Brassage!$B$44:$H$56,1,FALSE),"")) ->  | M62: =IF(L62="","",IFERROR(VLOOKUP(L62,Brassage!$B$44:$H$56,2,FALSE),"")) ->  | N62: =IF(L62="0","0",SUMIF(Brassage!$B$44:$B$56,L62,Brassage!$F$44:$F$56)) -> 0 | P62: =IF([1]Stock!J62="","",[1]Stock!J62) ->  | Q62: =IF([1]Stock!K62="","",[1]Stock!K62) ->  | R62: =IF(P62="","",IFERROR(VLOOKUP(P62,Brassage!$B$60:$H$61,1,FALSE),"")) ->  | S62: =IF(R62="","0",IFERROR(VLOOKUP(P62,Brassage!$B$60:$H$61,7,FALSE),"")) -> 0
A63: =IF([1]Stock!A63="","",[1]Stock!A63) ->  | B63: =IF([1]Stock!B63="","",[1]Stock!B63) ->  | C63: =IF([1]Stock!C63="","",[1]Stock!C63) ->  | D63: =IF(A63="","",IFERROR(VLOOKUP(A63,Brassage!$B$25:$H$33,1,FALSE),"")) ->  | E63: =IF(A63="","",IFERROR(VLOOKUP(A63,Brassage!$B$25:$H$33,2,FALSE),"")) ->  | F63: =IF(Stock!D63="0","0",SUMIF(Brassage!$B$25:$B$33,Stock!D63,Brassage!$H$25:$H$33)) -> 0 | H63: =IF([1]Stock!E63="","",[1]Stock!E63) ->  | I63: =IF([1]Stock!F63="","",[1]Stock!F63) ->  | J63: =IF([1]Stock!G63="","",[1]Stock!G63) ->  | K63: =IF([1]Stock!H63="","",[1]Stock!H63) ->  | L63: =IF(H63="","",IFERROR(VLOOKUP(H63,Brassage!$B$44:$H$56,1,FALSE),"")) ->  | M63: =IF(L63="","",IFERROR(VLOOKUP(L63,Brassage!$B$44:$H$56,2,FALSE),"")) ->  | N63: =IF(L63="0","0",SUMIF(Brassage!$B$44:$B$56,L63,Brassage!$F$44:$F$56)) -> 0 | P63: =IF([1]Stock!J63="","",[1]Stock!J63) ->  | Q63: =IF([1]Stock!K63="","",[1]Stock!K63) ->  | R63: =IF(P63="","",IFERROR(VLOOKUP(P63,Brassage!$B$60:$H$61,1,FALSE),"")) ->  | S63: =IF(R63="","0",IFERROR(VLOOKUP(P63,Brassage!$B$60:$H$61,7,FALSE),"")) -> 0
A64: =IF([1]Stock!A64="","",[1]Stock!A64) ->  | B64: =IF([1]Stock!B64="","",[1]Stock!B64) ->  | C64: =IF([1]Stock!C64="","",[1]Stock!C64) ->  | D64: =IF(A64="","",IFERROR(VLOOKUP(A64,Brassage!$B$25:$H$33,1,FALSE),"")) ->  | E64: =IF(A64="","",IFERROR(VLOOKUP(A64,Brassage!$B$25:$H$33,2,FALSE),"")) ->  | F64: =IF(Stock!D64="0","0",SUMIF(Brassage!$B$25:$B$33,Stock!D64,Brassage!$H$25:$H$33)) -> 0 | H64: =IF([1]Stock!E64="","",[1]Stock!E64) ->  | I64: =IF([1]Stock!F64="","",[1]Stock!F64) ->  | J64: =IF([1]Stock!G64="","",[1]Stock!G64) ->  | K64: =IF([1]Stock!H64="","",[1]Stock!H64) ->  | L64: =IF(H64="","",IFERROR(VLOOKUP(H64,Brassage!$B$44:$H$56,1,FALSE),"")) ->  | M64: =IF(L64="","",IFERROR(VLOOKUP(L64,Brassage!$B$44:$H$56,2,FALSE),"")) ->  | N64: =IF(L64="0","0",SUMIF(Brassage!$B$44:$B$56,L64,Brassage!$F$44:$F$56)) -> 0 | P64: =IF([1]Stock!J64="","",[1]Stock!J64) ->  | Q64: =IF([1]Stock!K64="","",[1]Stock!K64) ->  | R64: =IF(P64="","",IFERROR(VLOOKUP(P64,Brassage!$B$60:$H$61,1,FALSE),"")) ->  | S64: =IF(R64="","0",IFERROR(VLOOKUP(P64,Brassage!$B$60:$H$61,7,FALSE),"")) -> 0
A65: =IF([1]Stock!A65="","",[1]Stock!A65) ->  | B65: =IF([1]Stock!B65="","",[1]Stock!B65) ->  | C65: =IF([1]Stock!C65="","",[1]Stock!C65) ->  | D65: =IF(A65="","",IFERROR(VLOOKUP(A65,Brassage!$B$25:$H$33,1,FALSE),"")) ->  | E65: =IF(A65="","",IFERROR(VLOOKUP(A65,Brassage!$B$25:$H$33,2,FALSE),"")) ->  | F65: =IF(Stock!D65="0","0",SUMIF(Brassage!$B$25:$B$33,Stock!D65,Brassage!$H$25:$H$33)) -> 0 | H65: =IF([1]Stock!E65="","",[1]Stock!E65) ->  | I65: =IF([1]Stock!F65="","",[1]Stock!F65) ->  | J65: =IF([1]Stock!G65="","",[1]Stock!G65) ->  | K65: =IF([1]Stock!H65="","",[1]Stock!H65) ->  | L65: =IF(H65="","",IFERROR(VLOOKUP(H65,Brassage!$B$44:$H$56,1,FALSE),"")) ->  | M65: =IF(L65="","",IFERROR(VLOOKUP(L65,Brassage!$B$44:$H$56,2,FALSE),"")) ->  | N65: =IF(L65="0","0",SUMIF(Brassage!$B$44:$B$56,L65,Brassage!$F$44:$F$56)) -> 0 | P65: =IF([1]Stock!J65="","",[1]Stock!J65) ->  | Q65: =IF([1]Stock!K65="","",[1]Stock!K65) ->  | R65: =IF(P65="","",IFERROR(VLOOKUP(P65,Brassage!$B$60:$H$61,1,FALSE),"")) ->  | S65: =IF(R65="","0",IFERROR(VLOOKUP(P65,Brassage!$B$60:$H$61,7,FALSE),"")) -> 0
A66: =IF([1]Stock!A66="","",[1]Stock!A66) ->  | B66: =IF([1]Stock!B66="","",[1]Stock!B66) ->  | C66: =IF([1]Stock!C66="","",[1]Stock!C66) ->  | D66: =IF(A66="","",IFERROR(VLOOKUP(A66,Brassage!$B$25:$H$33,1,FALSE),"")) ->  | E66: =IF(A66="","",IFERROR(VLOOKUP(A66,Brassage!$B$25:$H$33,2,FALSE),"")) ->  | F66: =IF(Stock!D66="0","0",SUMIF(Brassage!$B$25:$B$33,Stock!D66,Brassage!$H$25:$H$33)) -> 0 | H66: =IF([1]Stock!E66="","",[1]Stock!E66) ->  | I66: =IF([1]Stock!F66="","",[1]Stock!F66) ->  | J66: =IF([1]Stock!G66="","",[1]Stock!G66) ->  | K66: =IF([1]Stock!H66="","",[1]Stock!H66) ->  | L66: =IF(H66="","",IFERROR(VLOOKUP(H66,Brassage!$B$44:$H$56,1,FALSE),"")) ->  | M66: =IF(L66="","",IFERROR(VLOOKUP(L66,Brassage!$B$44:$H$56,2,FALSE),"")) ->  | N66: =IF(L66="0","0",SUMIF(Brassage!$B$44:$B$56,L66,Brassage!$F$44:$F$56)) -> 0 | P66: =IF([1]Stock!J66="","",[1]Stock!J66) ->  | Q66: =IF([1]Stock!K66="","",[1]Stock!K66) ->  | R66: =IF(P66="","",IFERROR(VLOOKUP(P66,Brassage!$B$60:$H$61,1,FALSE),"")) ->  | S66: =IF(R66="","0",IFERROR(VLOOKUP(P66,Brassage!$B$60:$H$61,7,FALSE),"")) -> 0
A67: =IF([1]Stock!A67="","",[1]Stock!A67) ->  | B67: =IF([1]Stock!B67="","",[1]Stock!B67) ->  | C67: =IF([1]Stock!C67="","",[1]Stock!C67) ->  | D67: =IF(A67="","",IFERROR(VLOOKUP(A67,Brassage!$B$25:$H$33,1,FALSE),"")) ->  | E67: =IF(A67="","",IFERROR(VLOOKUP(A67,Brassage!$B$25:$H$33,2,FALSE),"")) ->  | F67: =IF(Stock!D67="0","0",SUMIF(Brassage!$B$25:$B$33,Stock!D67,Brassage!$H$25:$H$33)) -> 0 | H67: =IF([1]Stock!E67="","",[1]Stock!E67) ->  | I67: =IF([1]Stock!F67="","",[1]Stock!F67) ->  | J67: =IF([1]Stock!G67="","",[1]Stock!G67) ->  | K67: =IF([1]Stock!H67="","",[1]Stock!H67) ->  | L67: =IF(H67="","",IFERROR(VLOOKUP(H67,Brassage!$B$44:$H$56,1,FALSE),"")) ->  | M67: =IF(L67="","",IFERROR(VLOOKUP(L67,Brassage!$B$44:$H$56,2,FALSE),"")) ->  | N67: =IF(L67="0","0",SUMIF(Brassage!$B$44:$B$56,L67,Brassage!$F$44:$F$56)) -> 0 | P67: =IF([1]Stock!J67="","",[1]Stock!J67) ->  | Q67: =IF([1]Stock!K67="","",[1]Stock!K67) ->  | R67: =IF(P67="","",IFERROR(VLOOKUP(P67,Brassage!$B$60:$H$61,1,FALSE),"")) ->  | S67: =IF(R67="","0",IFERROR(VLOOKUP(P67,Brassage!$B$60:$H$61,7,FALSE),"")) -> 0
A68: =IF([1]Stock!A68="","",[1]Stock!A68) ->  | B68: =IF([1]Stock!B68="","",[1]Stock!B68) ->  | C68: =IF([1]Stock!C68="","",[1]Stock!C68) ->  | D68: =IF(A68="","",IFERROR(VLOOKUP(A68,Brassage!$B$25:$H$33,1,FALSE),"")) ->  | E68: =IF(A68="","",IFERROR(VLOOKUP(A68,Brassage!$B$25:$H$33,2,FALSE),"")) ->  | F68: =IF(Stock!D68="0","0",SUMIF(Brassage!$B$25:$B$33,Stock!D68,Brassage!$H$25:$H$33)) -> 0 | H68: =IF([1]Stock!E68="","",[1]Stock!E68) ->  | I68: =IF([1]Stock!F68="","",[1]Stock!F68) ->  | J68: =IF([1]Stock!G68="","",[1]Stock!G68) ->  | K68: =IF([1]Stock!H68="","",[1]Stock!H68) ->  | L68: =IF(H68="","",IFERROR(VLOOKUP(H68,Brassage!$B$44:$H$56,1,FALSE),"")) ->  | M68: =IF(L68="","",IFERROR(VLOOKUP(L68,Brassage!$B$44:$H$56,2,FALSE),"")) ->  | N68: =IF(L68="0","0",SUMIF(Brassage!$B$44:$B$56,L68,Brassage!$F$44:$F$56)) -> 0 | P68: =IF([1]Stock!J68="","",[1]Stock!J68) ->  | Q68: =IF([1]Stock!K68="","",[1]Stock!K68) ->  | R68: =IF(P68="","",IFERROR(VLOOKUP(P68,Brassage!$B$60:$H$61,1,FALSE),"")) ->  | S68: =IF(R68="","0",IFERROR(VLOOKUP(P68,Brassage!$B$60:$H$61,7,FALSE),"")) -> 0
A69: =IF([1]Stock!A69="","",[1]Stock!A69) ->  | B69: =IF([1]Stock!B69="","",[1]Stock!B69) ->  | C69: =IF([1]Stock!C69="","",[1]Stock!C69) ->  | D69: =IF(A69="","",IFERROR(VLOOKUP(A69,Brassage!$B$25:$H$33,1,FALSE),"")) ->  | E69: =IF(A69="","",IFERROR(VLOOKUP(A69,Brassage!$B$25:$H$33,2,FALSE),"")) ->  | F69: =IF(Stock!D69="0","0",SUMIF(Brassage!$B$25:$B$33,Stock!D69,Brassage!$H$25:$H$33)) -> 0 | H69: =IF([1]Stock!E69="","",[1]Stock!E69) ->  | I69: =IF([1]Stock!F69="","",[1]Stock!F69) ->  | J69: =IF([1]Stock!G69="","",[1]Stock!G69) ->  | K69: =IF([1]Stock!H69="","",[1]Stock!H69) ->  | L69: =IF(H69="","",IFERROR(VLOOKUP(H69,Brassage!$B$44:$H$56,1,FALSE),"")) ->  | M69: =IF(L69="","",IFERROR(VLOOKUP(L69,Brassage!$B$44:$H$56,2,FALSE),"")) ->  | N69: =IF(L69="0","0",SUMIF(Brassage!$B$44:$B$56,L69,Brassage!$F$44:$F$56)) -> 0 | P69: =IF([1]Stock!J69="","",[1]Stock!J69) ->  | Q69: =IF([1]Stock!K69="","",[1]Stock!K69) ->  | R69: =IF(P69="","",IFERROR(VLOOKUP(P69,Brassage!$B$60:$H$61,1,FALSE),"")) ->  | S69: =IF(R69="","0",IFERROR(VLOOKUP(P69,Brassage!$B$60:$H$61,7,FALSE),"")) -> 0
A70: =IF([1]Stock!A70="","",[1]Stock!A70) ->  | B70: =IF([1]Stock!B70="","",[1]Stock!B70) ->  | C70: =IF([1]Stock!C70="","",[1]Stock!C70) ->  | D70: =IF(A70="","",IFERROR(VLOOKUP(A70,Brassage!$B$25:$H$33,1,FALSE),"")) ->  | E70: =IF(A70="","",IFERROR(VLOOKUP(A70,Brassage!$B$25:$H$33,2,FALSE),"")) ->  | F70: =IF(Stock!D70="0","0",SUMIF(Brassage!$B$25:$B$33,Stock!D70,Brassage!$H$25:$H$33)) -> 0 | H70: =IF([1]Stock!E70="","",[1]Stock!E70) ->  | I70: =IF([1]Stock!F70="","",[1]Stock!F70) ->  | J70: =IF([1]Stock!G70="","",[1]Stock!G70) ->  | K70: =IF([1]Stock!H70="","",[1]Stock!H70) ->  | L70: =IF(H70="","",IFERROR(VLOOKUP(H70,Brassage!$B$44:$H$56,1,FALSE),"")) ->  | M70: =IF(L70="","",IFERROR(VLOOKUP(L70,Brassage!$B$44:$H$56,2,FALSE),"")) ->  | N70: =IF(L70="0","0",SUMIF(Brassage!$B$44:$B$56,L70,Brassage!$F$44:$F$56)) -> 0 | P70: =IF([1]Stock!J70="","",[1]Stock!J70) ->  | Q70: =IF([1]Stock!K70="","",[1]Stock!K70) ->  | R70: =IF(P70="","",IFERROR(VLOOKUP(P70,Brassage!$B$60:$H$61,1,FALSE),"")) ->  | S70: =IF(R70="","0",IFERROR(VLOOKUP(P70,Brassage!$B$60:$H$61,7,FALSE),"")) -> 0
A71: =IF([1]Stock!A71="","",[1]Stock!A71) ->  | B71: =IF([1]Stock!B71="","",[1]Stock!B71) ->  | C71: =IF([1]Stock!C71="","",[1]Stock!C71) ->  | D71: =IF(A71="","",IFERROR(VLOOKUP(A71,Brassage!$B$25:$H$33,1,FALSE),"")) ->  | E71: =IF(A71="","",IFERROR(VLOOKUP(A71,Brassage!$B$25:$H$33,2,FALSE),"")) ->  | F71: =IF(Stock!D71="0","0",SUMIF(Brassage!$B$25:$B$33,Stock!D71,Brassage!$H$25:$H$33)) -> 0 | H71: =IF([1]Stock!E71="","",[1]Stock!E71) ->  | I71: =IF([1]Stock!F71="","",[1]Stock!F71) ->  | J71: =IF([1]Stock!G71="","",[1]Stock!G71) ->  | K71: =IF([1]Stock!H71="","",[1]Stock!H71) ->  | L71: =IF(H71="","",IFERROR(VLOOKUP(H71,Brassage!$B$44:$H$56,1,FALSE),"")) ->  | M71: =IF(L71="","",IFERROR(VLOOKUP(L71,Brassage!$B$44:$H$56,2,FALSE),"")) ->  | N71: =IF(L71="0","0",SUMIF(Brassage!$B$44:$B$56,L71,Brassage!$F$44:$F$56)) -> 0 | P71: =IF([1]Stock!J71="","",[1]Stock!J71) ->  | Q71: =IF([1]Stock!K71="","",[1]Stock!K71) ->  | R71: =IF(P71="","",IFERROR(VLOOKUP(P71,Brassage!$B$60:$H$61,1,FALSE),"")) ->  | S71: =IF(R71="","0",IFERROR(VLOOKUP(P71,Brassage!$B$60:$H$61,7,FALSE),"")) -> 0
A72: =IF([1]Stock!A72="","",[1]Stock!A72) ->  | B72: =IF([1]Stock!B72="","",[1]Stock!B72) ->  | C72: =IF([1]Stock!C72="","",[1]Stock!C72) ->  | D72: =IF(A72="","",IFERROR(VLOOKUP(A72,Brassage!$B$25:$H$33,1,FALSE),"")) ->  | E72: =IF(A72="","",IFERROR(VLOOKUP(A72,Brassage!$B$25:$H$33,2,FALSE),"")) ->  | F72: =IF(Stock!D72="0","0",SUMIF(Brassage!$B$25:$B$33,Stock!D72,Brassage!$H$25:$H$33)) -> 0 | H72: =IF([1]Stock!E72="","",[1]Stock!E72) ->  | I72: =IF([1]Stock!F72="","",[1]Stock!F72) ->  | J72: =IF([1]Stock!G72="","",[1]Stock!G72) ->  | K72: =IF([1]Stock!H72="","",[1]Stock!H72) ->  | L72: =IF(H72="","",IFERROR(VLOOKUP(H72,Brassage!$B$44:$H$56,1,FALSE),"")) ->  | M72: =IF(L72="","",IFERROR(VLOOKUP(L72,Brassage!$B$44:$H$56,2,FALSE),"")) ->  | N72: =IF(L72="0","0",SUMIF(Brassage!$B$44:$B$56,L72,Brassage!$F$44:$F$56)) -> 0 | P72: =IF([1]Stock!J72="","",[1]Stock!J72) ->  | Q72: =IF([1]Stock!K72="","",[1]Stock!K72) ->  | R72: =IF(P72="","",IFERROR(VLOOKUP(P72,Brassage!$B$60:$H$61,1,FALSE),"")) ->  | S72: =IF(R72="","0",IFERROR(VLOOKUP(P72,Brassage!$B$60:$H$61,7,FALSE),"")) -> 0
A73: =IF([1]Stock!A73="","",[1]Stock!A73) ->  | B73: =IF([1]Stock!B73="","",[1]Stock!B73) ->  | C73: =IF([1]Stock!C73="","",[1]Stock!C73) ->  | D73: =IF(A73="","",IFERROR(VLOOKUP(A73,Brassage!$B$25:$H$33,1,FALSE),"")) ->  | E73: =IF(A73="","",IFERROR(VLOOKUP(A73,Brassage!$B$25:$H$33,2,FALSE),"")) ->  | F73: =IF(Stock!D73="0","0",SUMIF(Brassage!$B$25:$B$33,Stock!D73,Brassage!$H$25:$H$33)) -> 0 | H73: =IF([1]Stock!E73="","",[1]Stock!E73) ->  | I73: =IF([1]Stock!F73="","",[1]Stock!F73) ->  | J73: =IF([1]Stock!G73="","",[1]Stock!G73) ->  | K73: =IF([1]Stock!H73="","",[1]Stock!H73) ->  | L73: =IF(H73="","",IFERROR(VLOOKUP(H73,Brassage!$B$44:$H$56,1,FALSE),"")) ->  | M73: =IF(L73="","",IFERROR(VLOOKUP(L73,Brassage!$B$44:$H$56,2,FALSE),"")) ->  | N73: =IF(L73="0","0",SUMIF(Brassage!$B$44:$B$56,L73,Brassage!$F$44:$F$56)) -> 0 | P73: =IF([1]Stock!J73="","",[1]Stock!J73) ->  | Q73: =IF([1]Stock!K73="","",[1]Stock!K73) ->  | R73: =IF(P73="","",IFERROR(VLOOKUP(P73,Brassage!$B$60:$H$61,1,FALSE),"")) ->  | S73: =IF(R73="","0",IFERROR(VLOOKUP(P73,Brassage!$B$60:$H$61,7,FALSE),"")) -> 0
A74: =IF([1]Stock!A74="","",[1]Stock!A74) ->  | B74: =IF([1]Stock!B74="","",[1]Stock!B74) ->  | C74: =IF([1]Stock!C74="","",[1]Stock!C74) ->  | D74: =IF(A74="","",IFERROR(VLOOKUP(A74,Brassage!$B$25:$H$33,1,FALSE),"")) ->  | E74: =IF(A74="","",IFERROR(VLOOKUP(A74,Brassage!$B$25:$H$33,2,FALSE),"")) ->  | F74: =IF(Stock!D74="0","0",SUMIF(Brassage!$B$25:$B$33,Stock!D74,Brassage!$H$25:$H$33)) -> 0 | H74: =IF([1]Stock!E74="","",[1]Stock!E74) ->  | I74: =IF([1]Stock!F74="","",[1]Stock!F74) ->  | J74: =IF([1]Stock!G74="","",[1]Stock!G74) ->  | K74: =IF([1]Stock!H74="","",[1]Stock!H74) ->  | L74: =IF(H74="","",IFERROR(VLOOKUP(H74,Brassage!$B$44:$H$56,1,FALSE),"")) ->  | M74: =IF(L74="","",IFERROR(VLOOKUP(L74,Brassage!$B$44:$H$56,2,FALSE),"")) ->  | N74: =IF(L74="0","0",SUMIF(Brassage!$B$44:$B$56,L74,Brassage!$F$44:$F$56)) -> 0 | P74: =IF([1]Stock!J74="","",[1]Stock!J74) ->  | Q74: =IF([1]Stock!K74="","",[1]Stock!K74) ->  | R74: =IF(P74="","",IFERROR(VLOOKUP(P74,Brassage!$B$60:$H$61,1,FALSE),"")) ->  | S74: =IF(R74="","0",IFERROR(VLOOKUP(P74,Brassage!$B$60:$H$61,7,FALSE),"")) -> 0
A75: =IF([1]Stock!A75="","",[1]Stock!A75) ->  | B75: =IF([1]Stock!B75="","",[1]Stock!B75) ->  | C75: =IF([1]Stock!C75="","",[1]Stock!C75) ->  | D75: =IF(A75="","",IFERROR(VLOOKUP(A75,Brassage!$B$25:$H$33,1,FALSE),"")) ->  | E75: =IF(A75="","",IFERROR(VLOOKUP(A75,Brassage!$B$25:$H$33,2,FALSE),"")) ->  | F75: =IF(Stock!D75="0","0",SUMIF(Brassage!$B$25:$B$33,Stock!D75,Brassage!$H$25:$H$33)) -> 0 | H75: =IF([1]Stock!E75="","",[1]Stock!E75) ->  | I75: =IF([1]Stock!F75="","",[1]Stock!F75) ->  | J75: =IF([1]Stock!G75="","",[1]Stock!G75) ->  | K75: =IF([1]Stock!H75="","",[1]Stock!H75) ->  | L75: =IF(H75="","",IFERROR(VLOOKUP(H75,Brassage!$B$44:$H$56,1,FALSE),"")) ->  | M75: =IF(L75="","",IFERROR(VLOOKUP(L75,Brassage!$B$44:$H$56,2,FALSE),"")) ->  | N75: =IF(L75="0","0",SUMIF(Brassage!$B$44:$B$56,L75,Brassage!$F$44:$F$56)) -> 0 | P75: =IF([1]Stock!J75="","",[1]Stock!J75) ->  | Q75: =IF([1]Stock!K75="","",[1]Stock!K75) ->  | R75: =IF(P75="","",IFERROR(VLOOKUP(P75,Brassage!$B$60:$H$61,1,FALSE),"")) ->  | S75: =IF(R75="","0",IFERROR(VLOOKUP(P75,Brassage!$B$60:$H$61,7,FALSE),"")) -> 0
A76: =IF([1]Stock!A76="","",[1]Stock!A76) ->  | B76: =IF([1]Stock!B76="","",[1]Stock!B76) ->  | C76: =IF([1]Stock!C76="","",[1]Stock!C76) ->  | D76: =IF(A76="","",IFERROR(VLOOKUP(A76,Brassage!$B$25:$H$33,1,FALSE),"")) ->  | E76: =IF(A76="","",IFERROR(VLOOKUP(A76,Brassage!$B$25:$H$33,2,FALSE),"")) ->  | F76: =IF(Stock!D76="0","0",SUMIF(Brassage!$B$25:$B$33,Stock!D76,Brassage!$H$25:$H$33)) -> 0 | H76: =IF([1]Stock!E76="","",[1]Stock!E76) ->  | I76: =IF([1]Stock!F76="","",[1]Stock!F76) ->  | J76: =IF([1]Stock!G76="","",[1]Stock!G76) ->  | K76: =IF([1]Stock!H76="","",[1]Stock!H76) ->  | L76: =IF(H76="","",IFERROR(VLOOKUP(H76,Brassage!$B$44:$H$56,1,FALSE),"")) ->  | M76: =IF(L76="","",IFERROR(VLOOKUP(L76,Brassage!$B$44:$H$56,2,FALSE),"")) ->  | N76: =IF(L76="0","0",SUMIF(Brassage!$B$44:$B$56,L76,Brassage!$F$44:$F$56)) -> 0 | P76: =IF([1]Stock!J76="","",[1]Stock!J76) ->  | Q76: =IF([1]Stock!K76="","",[1]Stock!K76) ->  | R76: =IF(P76="","",IFERROR(VLOOKUP(P76,Brassage!$B$60:$H$61,1,FALSE),"")) ->  | S76: =IF(R76="","0",IFERROR(VLOOKUP(P76,Brassage!$B$60:$H$61,7,FALSE),"")) -> 0
A77: =IF([1]Stock!A77="","",[1]Stock!A77) ->  | B77: =IF([1]Stock!B77="","",[1]Stock!B77) ->  | C77: =IF([1]Stock!C77="","",[1]Stock!C77) ->  | D77: =IF(A77="","",IFERROR(VLOOKUP(A77,Brassage!$B$25:$H$33,1,FALSE),"")) ->  | E77: =IF(A77="","",IFERROR(VLOOKUP(A77,Brassage!$B$25:$H$33,2,FALSE),"")) ->  | F77: =IF(Stock!D77="0","0",SUMIF(Brassage!$B$25:$B$33,Stock!D77,Brassage!$H$25:$H$33)) -> 0 | H77: =IF([1]Stock!E77="","",[1]Stock!E77) ->  | I77: =IF([1]Stock!F77="","",[1]Stock!F77) ->  | J77: =IF([1]Stock!G77="","",[1]Stock!G77) ->  | K77: =IF([1]Stock!H77="","",[1]Stock!H77) ->  | L77: =IF(H77="","",IFERROR(VLOOKUP(H77,Brassage!$B$44:$H$56,1,FALSE),"")) ->  | M77: =IF(L77="","",IFERROR(VLOOKUP(L77,Brassage!$B$44:$H$56,2,FALSE),"")) ->  | N77: =IF(L77="0","0",SUMIF(Brassage!$B$44:$B$56,L77,Brassage!$F$44:$F$56)) -> 0 | P77: =IF([1]Stock!J77="","",[1]Stock!J77) ->  | Q77: =IF([1]Stock!K77="","",[1]Stock!K77) ->  | R77: =IF(P77="","",IFERROR(VLOOKUP(P77,Brassage!$B$60:$H$61,1,FALSE),"")) ->  | S77: =IF(R77="","0",IFERROR(VLOOKUP(P77,Brassage!$B$60:$H$61,7,FALSE),"")) -> 0
A78: =IF([1]Stock!A78="","",[1]Stock!A78) ->  | B78: =IF([1]Stock!B78="","",[1]Stock!B78) ->  | C78: =IF([1]Stock!C78="","",[1]Stock!C78) ->  | D78: =IF(A78="","",IFERROR(VLOOKUP(A78,Brassage!$B$25:$H$33,1,FALSE),"")) ->  | E78: =IF(A78="","",IFERROR(VLOOKUP(A78,Brassage!$B$25:$H$33,2,FALSE),"")) ->  | F78: =IF(Stock!D78="0","0",SUMIF(Brassage!$B$25:$B$33,Stock!D78,Brassage!$H$25:$H$33)) -> 0 | H78: =IF([1]Stock!E78="","",[1]Stock!E78) ->  | I78: =IF([1]Stock!F78="","",[1]Stock!F78) ->  | J78: =IF([1]Stock!G78="","",[1]Stock!G78) ->  | K78: =IF([1]Stock!H78="","",[1]Stock!H78) ->  | L78: =IF(H78="","",IFERROR(VLOOKUP(H78,Brassage!$B$44:$H$56,1,FALSE),"")) ->  | M78: =IF(L78="","",IFERROR(VLOOKUP(L78,Brassage!$B$44:$H$56,2,FALSE),"")) ->  | N78: =IF(L78="0","0",SUMIF(Brassage!$B$44:$B$56,L78,Brassage!$F$44:$F$56)) -> 0 | P78: =IF([1]Stock!J78="","",[1]Stock!J78) ->  | Q78: =IF([1]Stock!K78="","",[1]Stock!K78) ->  | R78: =IF(P78="","",IFERROR(VLOOKUP(P78,Brassage!$B$60:$H$61,1,FALSE),"")) ->  | S78: =IF(R78="","0",IFERROR(VLOOKUP(P78,Brassage!$B$60:$H$61,7,FALSE),"")) -> 0
A79: =IF([1]Stock!A79="","",[1]Stock!A79) ->  | B79: =IF([1]Stock!B79="","",[1]Stock!B79) ->  | C79: =IF([1]Stock!C79="","",[1]Stock!C79) ->  | D79: =IF(A79="","",IFERROR(VLOOKUP(A79,Brassage!$B$25:$H$33,1,FALSE),"")) ->  | E79: =IF(A79="","",IFERROR(VLOOKUP(A79,Brassage!$B$25:$H$33,2,FALSE),"")) ->  | F79: =IF(Stock!D79="0","0",SUMIF(Brassage!$B$25:$B$33,Stock!D79,Brassage!$H$25:$H$33)) -> 0 | H79: =IF([1]Stock!E79="","",[1]Stock!E79) ->  | I79: =IF([1]Stock!F79="","",[1]Stock!F79) ->  | J79: =IF([1]Stock!G79="","",[1]Stock!G79) ->  | K79: =IF([1]Stock!H79="","",[1]Stock!H79) ->  | L79: =IF(H79="","",IFERROR(VLOOKUP(H79,Brassage!$B$44:$H$56,1,FALSE),"")) ->  | M79: =IF(L79="","",IFERROR(VLOOKUP(L79,Brassage!$B$44:$H$56,2,FALSE),"")) ->  | N79: =IF(L79="0","0",SUMIF(Brassage!$B$44:$B$56,L79,Brassage!$F$44:$F$56)) -> 0 | P79: =IF([1]Stock!J79="","",[1]Stock!J79) ->  | Q79: =IF([1]Stock!K79="","",[1]Stock!K79) ->  | R79: =IF(P79="","",IFERROR(VLOOKUP(P79,Brassage!$B$60:$H$61,1,FALSE),"")) ->  | S79: =IF(R79="","0",IFERROR(VLOOKUP(P79,Brassage!$B$60:$H$61,7,FALSE),"")) -> 0
A80: =IF([1]Stock!A80="","",[1]Stock!A80) ->  | B80: =IF([1]Stock!B80="","",[1]Stock!B80) ->  | C80: =IF([1]Stock!C80="","",[1]Stock!C80) ->  | D80: =IF(A80="","",IFERROR(VLOOKUP(A80,Brassage!$B$25:$H$33,1,FALSE),"")) ->  | E80: =IF(A80="","",IFERROR(VLOOKUP(A80,Brassage!$B$25:$H$33,2,FALSE),"")) ->  | F80: =IF(Stock!D80="0","0",SUMIF(Brassage!$B$25:$B$33,Stock!D80,Brassage!$H$25:$H$33)) -> 0 | H80: =IF([1]Stock!E80="","",[1]Stock!E80) ->  | I80: =IF([1]Stock!F80="","",[1]Stock!F80) ->  | J80: =IF([1]Stock!G80="","",[1]Stock!G80) ->  | K80: =IF([1]Stock!H80="","",[1]Stock!H80) ->  | L80: =IF(H80="","",IFERROR(VLOOKUP(H80,Brassage!$B$44:$H$56,1,FALSE),"")) ->  | M80: =IF(L80="","",IFERROR(VLOOKUP(L80,Brassage!$B$44:$H$56,2,FALSE),"")) ->  | N80: =IF(L80="0","0",SUMIF(Brassage!$B$44:$B$56,L80,Brassage!$F$44:$F$56)) -> 0 | P80: =IF([1]Stock!J80="","",[1]Stock!J80) ->  | Q80: =IF([1]Stock!K80="","",[1]Stock!K80) ->  | R80: =IF(P80="","",IFERROR(VLOOKUP(P80,Brassage!$B$60:$H$61,1,FALSE),"")) ->  | S80: =IF(R80="","0",IFERROR(VLOOKUP(P80,Brassage!$B$60:$H$61,7,FALSE),"")) -> 0
A81: =IF([1]Stock!A81="","",[1]Stock!A81) ->  | B81: =IF([1]Stock!B81="","",[1]Stock!B81) ->  | C81: =IF([1]Stock!C81="","",[1]Stock!C81) ->  | D81: =IF(A81="","",IFERROR(VLOOKUP(A81,Brassage!$B$25:$H$33,1,FALSE),"")) ->  | E81: =IF(A81="","",IFERROR(VLOOKUP(A81,Brassage!$B$25:$H$33,2,FALSE),"")) ->  | F81: =IF(Stock!D81="0","0",SUMIF(Brassage!$B$25:$B$33,Stock!D81,Brassage!$H$25:$H$33)) -> 0 | H81: =IF([1]Stock!E81="","",[1]Stock!E81) ->  | I81: =IF([1]Stock!F81="","",[1]Stock!F81) ->  | J81: =IF([1]Stock!G81="","",[1]Stock!G81) ->  | K81: =IF([1]Stock!H81="","",[1]Stock!H81) ->  | L81: =IF(H81="","",IFERROR(VLOOKUP(H81,Brassage!$B$44:$H$56,1,FALSE),"")) ->  | M81: =IF(L81="","",IFERROR(VLOOKUP(L81,Brassage!$B$44:$H$56,2,FALSE),"")) ->  | N81: =IF(L81="0","0",SUMIF(Brassage!$B$44:$B$56,L81,Brassage!$F$44:$F$56)) -> 0 | P81: =IF([1]Stock!J81="","",[1]Stock!J81) ->  | Q81: =IF([1]Stock!K81="","",[1]Stock!K81) ->  | R81: =IF(P81="","",IFERROR(VLOOKUP(P81,Brassage!$B$60:$H$61,1,FALSE),"")) ->  | S81: =IF(R81="","0",IFERROR(VLOOKUP(P81,Brassage!$B$60:$H$61,7,FALSE),"")) -> 0
A82: =IF([1]Stock!A82="","",[1]Stock!A82) ->  | B82: =IF([1]Stock!B82="","",[1]Stock!B82) ->  | C82: =IF([1]Stock!C82="","",[1]Stock!C82) ->  | D82: =IF(A82="","",IFERROR(VLOOKUP(A82,Brassage!$B$25:$H$33,1,FALSE),"")) ->  | E82: =IF(A82="","",IFERROR(VLOOKUP(A82,Brassage!$B$25:$H$33,2,FALSE),"")) ->  | F82: =IF(Stock!D82="0","0",SUMIF(Brassage!$B$25:$B$33,Stock!D82,Brassage!$H$25:$H$33)) -> 0 | H82: =IF([1]Stock!E82="","",[1]Stock!E82) ->  | I82: =IF([1]Stock!F82="","",[1]Stock!F82) ->  | J82: =IF([1]Stock!G82="","",[1]Stock!G82) ->  | K82: =IF([1]Stock!H82="","",[1]Stock!H82) ->  | L82: =IF(H82="","",IFERROR(VLOOKUP(H82,Brassage!$B$44:$H$56,1,FALSE),"")) ->  | M82: =IF(L82="","",IFERROR(VLOOKUP(L82,Brassage!$B$44:$H$56,2,FALSE),"")) ->  | N82: =IF(L82="0","0",SUMIF(Brassage!$B$44:$B$56,L82,Brassage!$F$44:$F$56)) -> 0 | P82: =IF([1]Stock!J82="","",[1]Stock!J82) ->  | Q82: =IF([1]Stock!K82="","",[1]Stock!K82) ->  | R82: =IF(P82="","",IFERROR(VLOOKUP(P82,Brassage!$B$60:$H$61,1,FALSE),"")) ->  | S82: =IF(R82="","0",IFERROR(VLOOKUP(P82,Brassage!$B$60:$H$61,7,FALSE),"")) -> 0
A83: =IF([1]Stock!A83="","",[1]Stock!A83) ->  | B83: =IF([1]Stock!B83="","",[1]Stock!B83) ->  | C83: =IF([1]Stock!C83="","",[1]Stock!C83) ->  | D83: =IF(A83="","",IFERROR(VLOOKUP(A83,Brassage!$B$25:$H$33,1,FALSE),"")) ->  | E83: =IF(A83="","",IFERROR(VLOOKUP(A83,Brassage!$B$25:$H$33,2,FALSE),"")) ->  | F83: =IF(Stock!D83="0","0",SUMIF(Brassage!$B$25:$B$33,Stock!D83,Brassage!$H$25:$H$33)) -> 0 | H83: =IF([1]Stock!E83="","",[1]Stock!E83) ->  | I83: =IF([1]Stock!F83="","",[1]Stock!F83) ->  | J83: =IF([1]Stock!G83="","",[1]Stock!G83) ->  | K83: =IF([1]Stock!H83="","",[1]Stock!H83) ->  | L83: =IF(H83="","",IFERROR(VLOOKUP(H83,Brassage!$B$44:$H$56,1,FALSE),"")) ->  | M83: =IF(L83="","",IFERROR(VLOOKUP(L83,Brassage!$B$44:$H$56,2,FALSE),"")) ->  | N83: =IF(L83="0","0",SUMIF(Brassage!$B$44:$B$56,L83,Brassage!$F$44:$F$56)) -> 0 | P83: =IF([1]Stock!J83="","",[1]Stock!J83) ->  | Q83: =IF([1]Stock!K83="","",[1]Stock!K83) ->  | R83: =IF(P83="","",IFERROR(VLOOKUP(P83,Brassage!$B$60:$H$61,1,FALSE),"")) ->  | S83: =IF(R83="","0",IFERROR(VLOOKUP(P83,Brassage!$B$60:$H$61,7,FALSE),"")) -> 0
A84: =IF([1]Stock!A84="","",[1]Stock!A84) ->  | B84: =IF([1]Stock!B84="","",[1]Stock!B84) ->  | C84: =IF([1]Stock!C84="","",[1]Stock!C84) ->  | D84: =IF(A84="","",IFERROR(VLOOKUP(A84,Brassage!$B$25:$H$33,1,FALSE),"")) ->  | E84: =IF(A84="","",IFERROR(VLOOKUP(A84,Brassage!$B$25:$H$33,2,FALSE),"")) ->  | F84: =IF(Stock!D84="0","0",SUMIF(Brassage!$B$25:$B$33,Stock!D84,Brassage!$H$25:$H$33)) -> 0 | H84: =IF([1]Stock!E84="","",[1]Stock!E84) ->  | I84: =IF([1]Stock!F84="","",[1]Stock!F84) ->  | J84: =IF([1]Stock!G84="","",[1]Stock!G84) ->  | K84: =IF([1]Stock!H84="","",[1]Stock!H84) ->  | L84: =IF(H84="","",IFERROR(VLOOKUP(H84,Brassage!$B$44:$H$56,1,FALSE),"")) ->  | M84: =IF(L84="","",IFERROR(VLOOKUP(L84,Brassage!$B$44:$H$56,2,FALSE),"")) ->  | N84: =IF(L84="0","0",SUMIF(Brassage!$B$44:$B$56,L84,Brassage!$F$44:$F$56)) -> 0 | P84: =IF([1]Stock!J84="","",[1]Stock!J84) ->  | Q84: =IF([1]Stock!K84="","",[1]Stock!K84) ->  | R84: =IF(P84="","",IFERROR(VLOOKUP(P84,Brassage!$B$60:$H$61,1,FALSE),"")) ->  | S84: =IF(R84="","0",IFERROR(VLOOKUP(P84,Brassage!$B$60:$H$61,7,FALSE),"")) -> 0
A85: =IF([1]Stock!A85="","",[1]Stock!A85) ->  | B85: =IF([1]Stock!B85="","",[1]Stock!B85) ->  | C85: =IF([1]Stock!C85="","",[1]Stock!C85) ->  | D85: =IF(A85="","",IFERROR(VLOOKUP(A85,Brassage!$B$25:$H$33,1,FALSE),"")) ->  | E85: =IF(A85="","",IFERROR(VLOOKUP(A85,Brassage!$B$25:$H$33,2,FALSE),"")) ->  | F85: =IF(Stock!D85="0","0",SUMIF(Brassage!$B$25:$B$33,Stock!D85,Brassage!$H$25:$H$33)) -> 0 | H85: =IF([1]Stock!E85="","",[1]Stock!E85) ->  | I85: =IF([1]Stock!F85="","",[1]Stock!F85) ->  | J85: =IF([1]Stock!G85="","",[1]Stock!G85) ->  | K85: =IF([1]Stock!H85="","",[1]Stock!H85) ->  | L85: =IF(H85="","",IFERROR(VLOOKUP(H85,Brassage!$B$44:$H$56,1,FALSE),"")) ->  | M85: =IF(L85="","",IFERROR(VLOOKUP(L85,Brassage!$B$44:$H$56,2,FALSE),"")) ->  | N85: =IF(L85="0","0",SUMIF(Brassage!$B$44:$B$56,L85,Brassage!$F$44:$F$56)) -> 0 | P85: =IF([1]Stock!J85="","",[1]Stock!J85) ->  | Q85: =IF([1]Stock!K85="","",[1]Stock!K85) ->  | R85: =IF(P85="","",IFERROR(VLOOKUP(P85,Brassage!$B$60:$H$61,1,FALSE),"")) ->  | S85: =IF(R85="","0",IFERROR(VLOOKUP(P85,Brassage!$B$60:$H$61,7,FALSE),"")) -> 0
A86: =IF([1]Stock!A86="","",[1]Stock!A86) ->  | B86: =IF([1]Stock!B86="","",[1]Stock!B86) ->  | C86: =IF([1]Stock!C86="","",[1]Stock!C86) ->  | D86: =IF(A86="","",IFERROR(VLOOKUP(A86,Brassage!$B$25:$H$33,1,FALSE),"")) ->  | E86: =IF(A86="","",IFERROR(VLOOKUP(A86,Brassage!$B$25:$H$33,2,FALSE),"")) ->  | F86: =IF(Stock!D86="0","0",SUMIF(Brassage!$B$25:$B$33,Stock!D86,Brassage!$H$25:$H$33)) -> 0 | H86: =IF([1]Stock!E86="","",[1]Stock!E86) ->  | I86: =IF([1]Stock!F86="","",[1]Stock!F86) ->  | J86: =IF([1]Stock!G86="","",[1]Stock!G86) ->  | K86: =IF([1]Stock!H86="","",[1]Stock!H86) ->  | L86: =IF(H86="","",IFERROR(VLOOKUP(H86,Brassage!$B$44:$H$56,1,FALSE),"")) ->  | M86: =IF(L86="","",IFERROR(VLOOKUP(L86,Brassage!$B$44:$H$56,2,FALSE),"")) ->  | N86: =IF(L86="0","0",SUMIF(Brassage!$B$44:$B$56,L86,Brassage!$F$44:$F$56)) -> 0 | P86: =IF([1]Stock!J86="","",[1]Stock!J86) ->  | Q86: =IF([1]Stock!K86="","",[1]Stock!K86) ->  | R86: =IF(P86="","",IFERROR(VLOOKUP(P86,Brassage!$B$60:$H$61,1,FALSE),"")) ->  | S86: =IF(R86="","0",IFERROR(VLOOKUP(P86,Brassage!$B$60:$H$61,7,FALSE),"")) -> 0
A87: =IF([1]Stock!A87="","",[1]Stock!A87) ->  | B87: =IF([1]Stock!B87="","",[1]Stock!B87) ->  | C87: =IF([1]Stock!C87="","",[1]Stock!C87) ->  | D87: =IF(A87="","",IFERROR(VLOOKUP(A87,Brassage!$B$25:$H$33,1,FALSE),"")) ->  | E87: =IF(A87="","",IFERROR(VLOOKUP(A87,Brassage!$B$25:$H$33,2,FALSE),"")) ->  | F87: =IF(Stock!D87="0","0",SUMIF(Brassage!$B$25:$B$33,Stock!D87,Brassage!$H$25:$H$33)) -> 0 | H87: =IF([1]Stock!E87="","",[1]Stock!E87) ->  | I87: =IF([1]Stock!F87="","",[1]Stock!F87) ->  | J87: =IF([1]Stock!G87="","",[1]Stock!G87) ->  | K87: =IF([1]Stock!H87="","",[1]Stock!H87) ->  | L87: =IF(H87="","",IFERROR(VLOOKUP(H87,Brassage!$B$44:$H$56,1,FALSE),"")) ->  | M87: =IF(L87="","",IFERROR(VLOOKUP(L87,Brassage!$B$44:$H$56,2,FALSE),"")) ->  | N87: =IF(L87="0","0",SUMIF(Brassage!$B$44:$B$56,L87,Brassage!$F$44:$F$56)) -> 0 | P87: =IF([1]Stock!J87="","",[1]Stock!J87) ->  | Q87: =IF([1]Stock!K87="","",[1]Stock!K87) ->  | R87: =IF(P87="","",IFERROR(VLOOKUP(P87,Brassage!$B$60:$H$61,1,FALSE),"")) ->  | S87: =IF(R87="","0",IFERROR(VLOOKUP(P87,Brassage!$B$60:$H$61,7,FALSE),"")) -> 0
A88: =IF([1]Stock!A88="","",[1]Stock!A88) ->  | B88: =IF([1]Stock!B88="","",[1]Stock!B88) ->  | C88: =IF([1]Stock!C88="","",[1]Stock!C88) ->  | D88: =IF(A88="","",IFERROR(VLOOKUP(A88,Brassage!$B$25:$H$33,1,FALSE),"")) ->  | E88: =IF(A88="","",IFERROR(VLOOKUP(A88,Brassage!$B$25:$H$33,2,FALSE),"")) ->  | F88: =IF(Stock!D88="0","0",SUMIF(Brassage!$B$25:$B$33,Stock!D88,Brassage!$H$25:$H$33)) -> 0 | H88: =IF([1]Stock!E88="","",[1]Stock!E88) ->  | I88: =IF([1]Stock!F88="","",[1]Stock!F88) ->  | J88: =IF([1]Stock!G88="","",[1]Stock!G88) ->  | K88: =IF([1]Stock!H88="","",[1]Stock!H88) ->  | L88: =IF(H88="","",IFERROR(VLOOKUP(H88,Brassage!$B$44:$H$56,1,FALSE),"")) ->  | M88: =IF(L88="","",IFERROR(VLOOKUP(L88,Brassage!$B$44:$H$56,2,FALSE),"")) ->  | N88: =IF(L88="0","0",SUMIF(Brassage!$B$44:$B$56,L88,Brassage!$F$44:$F$56)) -> 0 | P88: =IF([1]Stock!J88="","",[1]Stock!J88) ->  | Q88: =IF([1]Stock!K88="","",[1]Stock!K88) ->  | R88: =IF(P88="","",IFERROR(VLOOKUP(P88,Brassage!$B$60:$H$61,1,FALSE),"")) ->  | S88: =IF(R88="","0",IFERROR(VLOOKUP(P88,Brassage!$B$60:$H$61,7,FALSE),"")) -> 0
A89: =IF([1]Stock!A89="","",[1]Stock!A89) ->  | B89: =IF([1]Stock!B89="","",[1]Stock!B89) ->  | C89: =IF([1]Stock!C89="","",[1]Stock!C89) ->  | D89: =IF(A89="","",IFERROR(VLOOKUP(A89,Brassage!$B$25:$H$33,1,FALSE),"")) ->  | E89: =IF(A89="","",IFERROR(VLOOKUP(A89,Brassage!$B$25:$H$33,2,FALSE),"")) ->  | F89: =IF(Stock!D89="0","0",SUMIF(Brassage!$B$25:$B$33,Stock!D89,Brassage!$H$25:$H$33)) -> 0 | H89: =IF([1]Stock!E89="","",[1]Stock!E89) ->  | I89: =IF([1]Stock!F89="","",[1]Stock!F89) ->  | J89: =IF([1]Stock!G89="","",[1]Stock!G89) ->  | K89: =IF([1]Stock!H89="","",[1]Stock!H89) ->  | L89: =IF(H89="","",IFERROR(VLOOKUP(H89,Brassage!$B$44:$H$56,1,FALSE),"")) ->  | M89: =IF(L89="","",IFERROR(VLOOKUP(L89,Brassage!$B$44:$H$56,2,FALSE),"")) ->  | N89: =IF(L89="0","0",SUMIF(Brassage!$B$44:$B$56,L89,Brassage!$F$44:$F$56)) -> 0 | P89: =IF([1]Stock!J89="","",[1]Stock!J89) ->  | Q89: =IF([1]Stock!K89="","",[1]Stock!K89) ->  | R89: =IF(P89="","",IFERROR(VLOOKUP(P89,Brassage!$B$60:$H$61,1,FALSE),"")) ->  | S89: =IF(R89="","0",IFERROR(VLOOKUP(P89,Brassage!$B$60:$H$61,7,FALSE),"")) -> 0
A90: =IF([1]Stock!A90="","",[1]Stock!A90) ->  | B90: =IF([1]Stock!B90="","",[1]Stock!B90) ->  | C90: =IF([1]Stock!C90="","",[1]Stock!C90) ->  | D90: =IF(A90="","",IFERROR(VLOOKUP(A90,Brassage!$B$25:$H$33,1,FALSE),"")) ->  | E90: =IF(A90="","",IFERROR(VLOOKUP(A90,Brassage!$B$25:$H$33,2,FALSE),"")) ->  | F90: =IF(Stock!D90="0","0",SUMIF(Brassage!$B$25:$B$33,Stock!D90,Brassage!$H$25:$H$33)) -> 0 | H90: =IF([1]Stock!E90="","",[1]Stock!E90) ->  | I90: =IF([1]Stock!F90="","",[1]Stock!F90) ->  | J90: =IF([1]Stock!G90="","",[1]Stock!G90) ->  | K90: =IF([1]Stock!H90="","",[1]Stock!H90) ->  | L90: =IF(H90="","",IFERROR(VLOOKUP(H90,Brassage!$B$44:$H$56,1,FALSE),"")) ->  | M90: =IF(L90="","",IFERROR(VLOOKUP(L90,Brassage!$B$44:$H$56,2,FALSE),"")) ->  | N90: =IF(L90="0","0",SUMIF(Brassage!$B$44:$B$56,L90,Brassage!$F$44:$F$56)) -> 0 | P90: =IF([1]Stock!J90="","",[1]Stock!J90) ->  | Q90: =IF([1]Stock!K90="","",[1]Stock!K90) ->  | R90: =IF(P90="","",IFERROR(VLOOKUP(P90,Brassage!$B$60:$H$61,1,FALSE),"")) ->  | S90: =IF(R90="","0",IFERROR(VLOOKUP(P90,Brassage!$B$60:$H$61,7,FALSE),"")) -> 0
A91: =IF([1]Stock!A91="","",[1]Stock!A91) ->  | B91: =IF([1]Stock!B91="","",[1]Stock!B91) ->  | C91: =IF([1]Stock!C91="","",[1]Stock!C91) ->  | D91: =IF(A91="","",IFERROR(VLOOKUP(A91,Brassage!$B$25:$H$33,1,FALSE),"")) ->  | E91: =IF(A91="","",IFERROR(VLOOKUP(A91,Brassage!$B$25:$H$33,2,FALSE),"")) ->  | F91: =IF(Stock!D91="0","0",SUMIF(Brassage!$B$25:$B$33,Stock!D91,Brassage!$H$25:$H$33)) -> 0 | H91: =IF([1]Stock!E91="","",[1]Stock!E91) ->  | I91: =IF([1]Stock!F91="","",[1]Stock!F91) ->  | J91: =IF([1]Stock!G91="","",[1]Stock!G91) ->  | K91: =IF([1]Stock!H91="","",[1]Stock!H91) ->  | L91: =IF(H91="","",IFERROR(VLOOKUP(H91,Brassage!$B$44:$H$56,1,FALSE),"")) ->  | M91: =IF(L91="","",IFERROR(VLOOKUP(L91,Brassage!$B$44:$H$56,2,FALSE),"")) ->  | N91: =IF(L91="0","0",SUMIF(Brassage!$B$44:$B$56,L91,Brassage!$F$44:$F$56)) -> 0 | P91: =IF([1]Stock!J91="","",[1]Stock!J91) ->  | Q91: =IF([1]Stock!K91="","",[1]Stock!K91) ->  | R91: =IF(P91="","",IFERROR(VLOOKUP(P91,Brassage!$B$60:$H$61,1,FALSE),"")) ->  | S91: =IF(R91="","0",IFERROR(VLOOKUP(P91,Brassage!$B$60:$H$61,7,FALSE),"")) -> 0
A92: =IF([1]Stock!A92="","",[1]Stock!A92) ->  | B92: =IF([1]Stock!B92="","",[1]Stock!B92) ->  | C92: =IF([1]Stock!C92="","",[1]Stock!C92) ->  | D92: =IF(A92="","",IFERROR(VLOOKUP(A92,Brassage!$B$25:$H$33,1,FALSE),"")) ->  | E92: =IF(A92="","",IFERROR(VLOOKUP(A92,Brassage!$B$25:$H$33,2,FALSE),"")) ->  | F92: =IF(Stock!D92="0","0",SUMIF(Brassage!$B$25:$B$33,Stock!D92,Brassage!$H$25:$H$33)) -> 0 | H92: =IF([1]Stock!E92="","",[1]Stock!E92) ->  | I92: =IF([1]Stock!F92="","",[1]Stock!F92) ->  | J92: =IF([1]Stock!G92="","",[1]Stock!G92) ->  | K92: =IF([1]Stock!H92="","",[1]Stock!H92) ->  | L92: =IF(H92="","",IFERROR(VLOOKUP(H92,Brassage!$B$44:$H$56,1,FALSE),"")) ->  | M92: =IF(L92="","",IFERROR(VLOOKUP(L92,Brassage!$B$44:$H$56,2,FALSE),"")) ->  | N92: =IF(L92="0","0",SUMIF(Brassage!$B$44:$B$56,L92,Brassage!$F$44:$F$56)) -> 0 | P92: =IF([1]Stock!J92="","",[1]Stock!J92) ->  | Q92: =IF([1]Stock!K92="","",[1]Stock!K92) ->  | R92: =IF(P92="","",IFERROR(VLOOKUP(P92,Brassage!$B$60:$H$61,1,FALSE),"")) ->  | S92: =IF(R92="","0",IFERROR(VLOOKUP(P92,Brassage!$B$60:$H$61,7,FALSE),"")) -> 0
A93: =IF([1]Stock!A93="","",[1]Stock!A93) ->  | B93: =IF([1]Stock!B93="","",[1]Stock!B93) ->  | C93: =IF([1]Stock!C93="","",[1]Stock!C93) ->  | D93: =IF(A93="","",IFERROR(VLOOKUP(A93,Brassage!$B$25:$H$33,1,FALSE),"")) ->  | E93: =IF(A93="","",IFERROR(VLOOKUP(A93,Brassage!$B$25:$H$33,2,FALSE),"")) ->  | F93: =IF(Stock!D93="0","0",SUMIF(Brassage!$B$25:$B$33,Stock!D93,Brassage!$H$25:$H$33)) -> 0 | H93: =IF([1]Stock!E93="","",[1]Stock!E93) ->  | I93: =IF([1]Stock!F93="","",[1]Stock!F93) ->  | J93: =IF([1]Stock!G93="","",[1]Stock!G93) ->  | K93: =IF([1]Stock!H93="","",[1]Stock!H93) ->  | L93: =IF(H93="","",IFERROR(VLOOKUP(H93,Brassage!$B$44:$H$56,1,FALSE),"")) ->  | M93: =IF(L93="","",IFERROR(VLOOKUP(L93,Brassage!$B$44:$H$56,2,FALSE),"")) ->  | N93: =IF(L93="0","0",SUMIF(Brassage!$B$44:$B$56,L93,Brassage!$F$44:$F$56)) -> 0 | P93: =IF([1]Stock!J93="","",[1]Stock!J93) ->  | Q93: =IF([1]Stock!K93="","",[1]Stock!K93) ->  | R93: =IF(P93="","",IFERROR(VLOOKUP(P93,Brassage!$B$60:$H$61,1,FALSE),"")) ->  | S93: =IF(R93="","0",IFERROR(VLOOKUP(P93,Brassage!$B$60:$H$61,7,FALSE),"")) -> 0
A94: =IF([1]Stock!A94="","",[1]Stock!A94) ->  | B94: =IF([1]Stock!B94="","",[1]Stock!B94) ->  | C94: =IF([1]Stock!C94="","",[1]Stock!C94) ->  | D94: =IF(A94="","",IFERROR(VLOOKUP(A94,Brassage!$B$25:$H$33,1,FALSE),"")) ->  | E94: =IF(A94="","",IFERROR(VLOOKUP(A94,Brassage!$B$25:$H$33,2,FALSE),"")) ->  | F94: =IF(Stock!D94="0","0",SUMIF(Brassage!$B$25:$B$33,Stock!D94,Brassage!$H$25:$H$33)) -> 0 | H94: =IF([1]Stock!E94="","",[1]Stock!E94) ->  | I94: =IF([1]Stock!F94="","",[1]Stock!F94) ->  | J94: =IF([1]Stock!G94="","",[1]Stock!G94) ->  | K94: =IF([1]Stock!H94="","",[1]Stock!H94) ->  | L94: =IF(H94="","",IFERROR(VLOOKUP(H94,Brassage!$B$44:$H$56,1,FALSE),"")) ->  | M94: =IF(L94="","",IFERROR(VLOOKUP(L94,Brassage!$B$44:$H$56,2,FALSE),"")) ->  | N94: =IF(L94="0","0",SUMIF(Brassage!$B$44:$B$56,L94,Brassage!$F$44:$F$56)) -> 0 | P94: =IF([1]Stock!J94="","",[1]Stock!J94) ->  | Q94: =IF([1]Stock!K94="","",[1]Stock!K94) ->  | R94: =IF(P94="","",IFERROR(VLOOKUP(P94,Brassage!$B$60:$H$61,1,FALSE),"")) ->  | S94: =IF(R94="","0",IFERROR(VLOOKUP(P94,Brassage!$B$60:$H$61,7,FALSE),"")) -> 0
A95: =IF([1]Stock!A95="","",[1]Stock!A95) ->  | B95: =IF([1]Stock!B95="","",[1]Stock!B95) ->  | C95: =IF([1]Stock!C95="","",[1]Stock!C95) ->  | D95: =IF(A95="","",IFERROR(VLOOKUP(A95,Brassage!$B$25:$H$33,1,FALSE),"")) ->  | E95: =IF(A95="","",IFERROR(VLOOKUP(A95,Brassage!$B$25:$H$33,2,FALSE),"")) ->  | F95: =IF(Stock!D95="0","0",SUMIF(Brassage!$B$25:$B$33,Stock!D95,Brassage!$H$25:$H$33)) -> 0 | H95: =IF([1]Stock!E95="","",[1]Stock!E95) ->  | I95: =IF([1]Stock!F95="","",[1]Stock!F95) ->  | J95: =IF([1]Stock!G95="","",[1]Stock!G95) ->  | K95: =IF([1]Stock!H95="","",[1]Stock!H95) ->  | L95: =IF(H95="","",IFERROR(VLOOKUP(H95,Brassage!$B$44:$H$56,1,FALSE),"")) ->  | M95: =IF(L95="","",IFERROR(VLOOKUP(L95,Brassage!$B$44:$H$56,2,FALSE),"")) ->  | N95: =IF(L95="0","0",SUMIF(Brassage!$B$44:$B$56,L95,Brassage!$F$44:$F$56)) -> 0 | P95: =IF([1]Stock!J95="","",[1]Stock!J95) ->  | Q95: =IF([1]Stock!K95="","",[1]Stock!K95) ->  | R95: =IF(P95="","",IFERROR(VLOOKUP(P95,Brassage!$B$60:$H$61,1,FALSE),"")) ->  | S95: =IF(R95="","0",IFERROR(VLOOKUP(P95,Brassage!$B$60:$H$61,7,FALSE),"")) -> 0
A96: =IF([1]Stock!A96="","",[1]Stock!A96) ->  | B96: =IF([1]Stock!B96="","",[1]Stock!B96) ->  | C96: =IF([1]Stock!C96="","",[1]Stock!C96) ->  | D96: =IF(A96="","",IFERROR(VLOOKUP(A96,Brassage!$B$25:$H$33,1,FALSE),"")) ->  | E96: =IF(A96="","",IFERROR(VLOOKUP(A96,Brassage!$B$25:$H$33,2,FALSE),"")) ->  | F96: =IF(Stock!D96="0","0",SUMIF(Brassage!$B$25:$B$33,Stock!D96,Brassage!$H$25:$H$33)) -> 0 | H96: =IF([1]Stock!E96="","",[1]Stock!E96) ->  | I96: =IF([1]Stock!F96="","",[1]Stock!F96) ->  | J96: =IF([1]Stock!G96="","",[1]Stock!G96) ->  | K96: =IF([1]Stock!H96="","",[1]Stock!H96) ->  | L96: =IF(H96="","",IFERROR(VLOOKUP(H96,Brassage!$B$44:$H$56,1,FALSE),"")) ->  | M96: =IF(L96="","",IFERROR(VLOOKUP(L96,Brassage!$B$44:$H$56,2,FALSE),"")) ->  | N96: =IF(L96="0","0",SUMIF(Brassage!$B$44:$B$56,L96,Brassage!$F$44:$F$56)) -> 0 | P96: =IF([1]Stock!J96="","",[1]Stock!J96) ->  | Q96: =IF([1]Stock!K96="","",[1]Stock!K96) ->  | R96: =IF(P96="","",IFERROR(VLOOKUP(P96,Brassage!$B$60:$H$61,1,FALSE),"")) ->  | S96: =IF(R96="","0",IFERROR(VLOOKUP(P96,Brassage!$B$60:$H$61,7,FALSE),"")) -> 0
A97: =IF([1]Stock!A97="","",[1]Stock!A97) ->  | B97: =IF([1]Stock!B97="","",[1]Stock!B97) ->  | C97: =IF([1]Stock!C97="","",[1]Stock!C97) ->  | D97: =IF(A97="","",IFERROR(VLOOKUP(A97,Brassage!$B$25:$H$33,1,FALSE),"")) ->  | E97: =IF(A97="","",IFERROR(VLOOKUP(A97,Brassage!$B$25:$H$33,2,FALSE),"")) ->  | F97: =IF(Stock!D97="0","0",SUMIF(Brassage!$B$25:$B$33,Stock!D97,Brassage!$H$25:$H$33)) -> 0 | H97: =IF([1]Stock!E97="","",[1]Stock!E97) ->  | I97: =IF([1]Stock!F97="","",[1]Stock!F97) ->  | J97: =IF([1]Stock!G97="","",[1]Stock!G97) ->  | K97: =IF([1]Stock!H97="","",[1]Stock!H97) ->  | L97: =IF(H97="","",IFERROR(VLOOKUP(H97,Brassage!$B$44:$H$56,1,FALSE),"")) ->  | M97: =IF(L97="","",IFERROR(VLOOKUP(L97,Brassage!$B$44:$H$56,2,FALSE),"")) ->  | N97: =IF(L97="0","0",SUMIF(Brassage!$B$44:$B$56,L97,Brassage!$F$44:$F$56)) -> 0 | P97: =IF([1]Stock!J97="","",[1]Stock!J97) ->  | Q97: =IF([1]Stock!K97="","",[1]Stock!K97) ->  | R97: =IF(P97="","",IFERROR(VLOOKUP(P97,Brassage!$B$60:$H$61,1,FALSE),"")) ->  | S97: =IF(R97="","0",IFERROR(VLOOKUP(P97,Brassage!$B$60:$H$61,7,FALSE),"")) -> 0
A98: =IF([1]Stock!A98="","",[1]Stock!A98) ->  | B98: =IF([1]Stock!B98="","",[1]Stock!B98) ->  | C98: =IF([1]Stock!C98="","",[1]Stock!C98) ->  | D98: =IF(A98="","",IFERROR(VLOOKUP(A98,Brassage!$B$25:$H$33,1,FALSE),"")) ->  | E98: =IF(A98="","",IFERROR(VLOOKUP(A98,Brassage!$B$25:$H$33,2,FALSE),"")) ->  | F98: =IF(Stock!D98="0","0",SUMIF(Brassage!$B$25:$B$33,Stock!D98,Brassage!$H$25:$H$33)) -> 0 | H98: =IF([1]Stock!E98="","",[1]Stock!E98) ->  | I98: =IF([1]Stock!F98="","",[1]Stock!F98) ->  | J98: =IF([1]Stock!G98="","",[1]Stock!G98) ->  | K98: =IF([1]Stock!H98="","",[1]Stock!H98) ->  | L98: =IF(H98="","",IFERROR(VLOOKUP(H98,Brassage!$B$44:$H$56,1,FALSE),"")) ->  | M98: =IF(L98="","",IFERROR(VLOOKUP(L98,Brassage!$B$44:$H$56,2,FALSE),"")) ->  | N98: =IF(L98="0","0",SUMIF(Brassage!$B$44:$B$56,L98,Brassage!$F$44:$F$56)) -> 0 | P98: =IF([1]Stock!J98="","",[1]Stock!J98) ->  | Q98: =IF([1]Stock!K98="","",[1]Stock!K98) ->  | R98: =IF(P98="","",IFERROR(VLOOKUP(P98,Brassage!$B$60:$H$61,1,FALSE),"")) ->  | S98: =IF(R98="","0",IFERROR(VLOOKUP(P98,Brassage!$B$60:$H$61,7,FALSE),"")) -> 0
A99: =IF([1]Stock!A99="","",[1]Stock!A99) ->  | B99: =IF([1]Stock!B99="","",[1]Stock!B99) ->  | C99: =IF([1]Stock!C99="","",[1]Stock!C99) ->  | D99: =IF(A99="","",IFERROR(VLOOKUP(A99,Brassage!$B$25:$H$33,1,FALSE),"")) ->  | E99: =IF(A99="","",IFERROR(VLOOKUP(A99,Brassage!$B$25:$H$33,2,FALSE),"")) ->  | F99: =IF(Stock!D99="0","0",SUMIF(Brassage!$B$25:$B$33,Stock!D99,Brassage!$H$25:$H$33)) -> 0 | H99: =IF([1]Stock!E99="","",[1]Stock!E99) ->  | I99: =IF([1]Stock!F99="","",[1]Stock!F99) ->  | J99: =IF([1]Stock!G99="","",[1]Stock!G99) ->  | K99: =IF([1]Stock!H99="","",[1]Stock!H99) ->  | L99: =IF(H99="","",IFERROR(VLOOKUP(H99,Brassage!$B$44:$H$56,1,FALSE),"")) ->  | M99: =IF(L99="","",IFERROR(VLOOKUP(L99,Brassage!$B$44:$H$56,2,FALSE),"")) ->  | N99: =IF(L99="0","0",SUMIF(Brassage!$B$44:$B$56,L99,Brassage!$F$44:$F$56)) -> 0 | P99: =IF([1]Stock!J99="","",[1]Stock!J99) ->  | Q99: =IF([1]Stock!K99="","",[1]Stock!K99) ->  | R99: =IF(P99="","",IFERROR(VLOOKUP(P99,Brassage!$B$60:$H$61,1,FALSE),"")) ->  | S99: =IF(R99="","0",IFERROR(VLOOKUP(P99,Brassage!$B$60:$H$61,7,FALSE),"")) -> 0
A100: =IF([1]Stock!A100="","",[1]Stock!A100) ->  | B100: =IF([1]Stock!B100="","",[1]Stock!B100) ->  | C100: =IF([1]Stock!C100="","",[1]Stock!C100) ->  | D100: =IF(A100="","",IFERROR(VLOOKUP(A100,Brassage!$B$25:$H$33,1,FALSE),"")) ->  | E100: =IF(A100="","",IFERROR(VLOOKUP(A100,Brassage!$B$25:$H$33,2,FALSE),"")) ->  | F100: =IF(Stock!D100="0","0",SUMIF(Brassage!$B$25:$B$33,Stock!D100,Brassage!$H$25:$H$33)) -> 0 | H100: =IF([1]Stock!E100="","",[1]Stock!E100) ->  | I100: =IF([1]Stock!F100="","",[1]Stock!F100) ->  | J100: =IF([1]Stock!G100="","",[1]Stock!G100) ->  | K100: =IF([1]Stock!H100="","",[1]Stock!H100) ->  | L100: =IF(H100="","",IFERROR(VLOOKUP(H100,Brassage!$B$44:$H$56,1,FALSE),"")) ->  | M100: =IF(L100="","",IFERROR(VLOOKUP(L100,Brassage!$B$44:$H$56,2,FALSE),"")) ->  | N100: =IF(L100="0","0",SUMIF(Brassage!$B$44:$B$56,L100,Brassage!$F$44:$F$56)) -> 0 | P100: =IF([1]Stock!J100="","",[1]Stock!J100) ->  | Q100: =IF([1]Stock!K100="","",[1]Stock!K100) ->  | R100: =IF(P100="","",IFERROR(VLOOKUP(P100,Brassage!$B$60:$H$61,1,FALSE),"")) ->  | S100: =IF(R100="","0",IFERROR(VLOOKUP(P100,Brassage!$B$60:$H$61,7,FALSE),"")) -> 0

Sheet Etiquettes
A1: =Brassage!A1 -> Projet - Irish Stout | B1: =A1 -> Projet - Irish Stout | C1: =A1 -> Projet - Irish Stout | D1: =A1 -> Projet - Irish Stout | E1: =A1 -> Projet - Irish Stout | F1: =A1 -> Projet - Irish Stout | I1: =G1 -> 0 | K1: =G1 -> 0 | M1: =G1 -> 0 | O1: =G1 -> 0 | Q1: =G1 -> 0
A5: ="Brassin de "&Brassage!B4&" L" -> Brassin de 28 L | B5: =A5 -> Brassin de 28 L | C5: =A5 -> Brassin de 28 L | D5: =A5 -> Brassin de 28 L | E5: =A5 -> Brassin de 28 L | F5: =A5 -> Brassin de 28 L
B6: =A6 -> 0 | C6: =A6 -> 0 | D6: =A6 -> 0 | E6: =A6 -> 0 | F6: =A6 -> 0 | G6: Brassée | H6: =Brassage!B5 -> 2021-09-25 | I6: =G6 -> Brassée | J6: =H6 -> 2021-09-25 | K6: =G6 -> Brassée | L6: =H6 -> 2021-09-25 | M6: =G6 -> Brassée | N6: =H6 -> 2021-09-25 | O6: =G6 -> Brassée | P6: =H6 -> 2021-09-25 | Q6: =G6 -> Brassée | R6: =H6 -> 2021-09-25 | S6: EBC | T6: ABV | U6: Emb. | V6: Brassée | W6: =S6 -> EBC | X6: ABV | Y6: Emb. | Z6: Brassée | AA6: EBC | AB6: ABV | AC6: Emb. | AD6: Brassée | AE6: EBC | AF6: ABV | AG6: Emb. | AH6: Brassée | AI6: EBC | AJ6: ABV | AK6: Emb. | AL6: Brassée | AM6: EBC | AN6: ABV | AO6: Emb. | AP6: Brassée
A7: ="DI : " &Brassage!N34 -> DI : | B7: =A7 -> DI : | C7: =A7 -> DI : | D7: =A7 -> DI : | E7: =A7 -> DI : | F7: =A7 -> DI : | G7: Emb le | H7: =Brassage!K53 -> 2020-06-17 | I7: Emb le | J7: 2020-06-17 | K7: Emb le | L7: 2020-06-17 | M7: Emb le | N7: 2020-06-17 | O7: Emb le | P7: 2020-06-17 | Q7: Emb le | R7: 2020-06-17
A8: ="DF : " &Brassage!N55 -> DF : | B8: =A8 -> DF : | C8: =A8 -> DF : | D8: =A8 -> DF : | E8: =A8 -> DF : | F8: =A8 -> DF : | G8: ABV - | H8: =Brassage!E8 -> 4.20573448 | I8: ABV - | J8: 4.20573448 | K8: ABV - | L8: 4.20573448 | M8: ABV - | N8: 4.20573448 | O8: ABV - | P8: 4.20573448 | Q8: ABV - | R8: 4.20573448
A9: ="Empatage à "&ROUND(Brassage!B11,1)&"°C" -> Empatage à 64°C | B9: =A9 -> Empatage à 64°C | C9: =A9 -> Empatage à 64°C | D9: =A9 -> Empatage à 64°C | E9: =A9 -> Empatage à 64°C | F9: =A9 -> Empatage à 64°C | G9: EBC - | H9: =Brassage!E6 -> 75.89842168 | I9: EBC - | J9: 75.89842168 | K9: EBC - | L9: 75.89842168 | M9: EBC - | N9: 75.89842168 | O9: EBC - | P9: 75.89842168 | Q9: EBC - | R9: 75.89842168 | S9: =Brassage!$E$6 -> 75.89842168 | T9: =Brassage!$O$60 -> 0 | U9: =Brassage!$K$53 -> 2020-06-17 | V9: =Brassage!$B$5 -> 2021-09-25 | W9: =S9 -> 75.89842168 | X9: 0 | Y9: 2020-06-17 | Z9: 2021-09-25 | AA9: 75.89842168 | AB9: 0 | AC9: 2020-06-17 | AD9: 2021-09-25 | AE9: 75.89842168 | AF9: 0 | AG9: 2020-06-17 | AH9: 2021-09-25 | AI9: 75.89842168 | AJ9: 0 | AK9: 2020-06-17 | AL9: 2021-09-25 | AM9: 75.89842168 | AN9: 0 | AO9: 2020-06-17 | AP9: 2021-09-25
G10: IBU - | H10: =Brassage!E7 -> 32.92610835 | I10: IBU - | J10: 32.92610835 | K10: IBU - | L10: 32.92610835 | M10: IBU - | N10: 32.92610835 | O10: IBU - | P10: 32.92610835 | Q10: IBU - | R10: 32.92610835
A11: ="Grains et sucres" -> Grains et sucres | B11: =A11 -> Grains et sucres | C11: =A11 -> Grains et sucres | D11: =A11 -> Grains et sucres | E11: =A11 -> Grains et sucres | F11: =A11 -> Grains et sucres | G11: IBU/DI - | H11: =Brassage!E7/((Brassage!N34-1)*1000) -> -0.03292610835 | I11: IBU/DI - | J11: -0.03292610835 | K11: IBU/DI - | L11: -0.03292610835 | M11: IBU/DI - | N11: -0.03292610835 | O11: IBU/DI - | P11: -0.03292610835 | Q11: IBU/DI - | R11: -0.03292610835
A12: =IF(Brassage!H25=0,"","- "&Brassage!H25&"g "&Brassage!B25) -> - 4000g Pale ale Château | B12: - 4000g Pale ale Château | C12: - 4000g Pale ale Château | D12: - 4000g Pale ale Château | E12: - 4000g Pale ale Château | F12: - 4000g Pale ale Château | G12: vol CO2 | H12: =Brassage!E9 -> 1.8 | I12: vol CO2 | J12: 1.8 | K12: vol CO2 | L12: 1.8 | M12: vol CO2 | N12: 1.8 | O12: vol CO2 | P12: 1.8 | Q12: vol CO2 | R12: 1.8 | S12: vol CO2 | T12: IBU/RE | U12: IBU/DI | V12: IBU | W12: =S12 -> vol CO2 | X12: IBU/RE | Y12: IBU/DI | Z12: IBU | AA12: vol CO2 | AB12: IBU/RE | AC12: IBU/DI | AD12: IBU | AE12: vol CO2 | AF12: IBU/RE | AG12: IBU/DI | AH12: IBU | AI12: vol CO2 | AJ12: IBU/RE | AK12: IBU/DI | AL12: IBU | AM12: vol CO2 | AN12: IBU/RE | AO12: IBU/DI | AP12: IBU
A13: =IF(Brassage!H26=0,"","- "&Brassage!H26&"g "&Brassage!B26) -> - 1000g Avoine (flocons) | B13: - 1000g Avoine (flocons) | C13: - 1000g Avoine (flocons) | D13: - 1000g Avoine (flocons) | E13: - 1000g Avoine (flocons) | F13: - 1000g Avoine (flocons) | I13: 0 | J13: 0 | K13: 0 | L13: 0 | M13: 0 | N13: 0 | O13: 0 | P13: 0 | Q13: 0 | R13: 0
A14: =IF(Brassage!H27=0,"","- "&Brassage!H27&"g "&Brassage!B27) -> - 700g Château Roasted Barley | B14: - 700g Château Roasted Barley | C14: - 700g Château Roasted Barley | D14: - 700g Château Roasted Barley | E14: - 700g Château Roasted Barley | F14: - 700g Château Roasted Barley | G14: =Brassage!A1 -> Projet - Irish Stout | H14: =Brassage!B3 -> 15B - Irish Stout | I14: Projet - Irish Stout | J14: 15B - Irish Stout | K14: Projet - Irish Stout | L14: 15B - Irish Stout | M14: Projet - Irish Stout | N14: 15B - Irish Stout | O14: Projet - Irish Stout | P14: 15B - Irish Stout | Q14: Projet - Irish Stout | R14: 15B - Irish Stout
A15: =IF(Brassage!H28=0,"","- "&Brassage!H28&"g "&Brassage!B28) ->  | S15: =Brassage!$E$9 -> 1.8 | T15: =Brassage!$E$7/(0.1808*(259-(259/Brassage!$N$34))+(0.8192*(259-(259/Brassage!$L$55)))) ->  | U15: =Brassage!E11 -> 7.903788026 | V15: =Brassage!$E$7 -> 32.92610835 | W15: =S15 -> 1.8 | Y15: 7.903788026 | Z15: 32.92610835 | AA15: 1.8 | AC15: 7.903788026 | AD15: 32.92610835 | AE15: 1.8 | AG15: 7.903788026 | AH15: 32.92610835 | AI15: 1.8 | AK15: 7.903788026 | AL15: 32.92610835 | AM15: 1.8 | AO15: 7.903788026 | AP15: 32.92610835
A16: =IF(Brassage!H29=0,"","- "&Brassage!H29&"g "&Brassage!B29) -> 
A17: =IF(Brassage!H30=0,"","- "&Brassage!H30&"g "&Brassage!B30) -> 
A18: =IF(Brassage!H31=0,"","- "&Brassage!H31&"g "&Brassage!B31) ->  | S18: =Brassage!$A$1 -> Projet - Irish Stout | U18: =Brassage!$B$3 -> 15B - Irish Stout | W18: =S18 -> Projet - Irish Stout | Y18: =U18 -> 15B - Irish Stout | AA18: =W18 -> Projet - Irish Stout | AC18: =Y18 -> 15B - Irish Stout | AE18: =AA18 -> Projet - Irish Stout | AG18: =AC18 -> 15B - Irish Stout | AI18: =AE18 -> Projet - Irish Stout | AK18: =AG18 -> 15B - Irish Stout | AM18: =AI18 -> Projet - Irish Stout | AO18: =AK18 -> 15B - Irish Stout
A19: Autres | B19: =A19 -> Autres | C19: =A19 -> Autres | D19: =A19 -> Autres | E19: =A19 -> Autres | F19: =A19 -> Autres
A20: =IF(Brassage!B38=0,"",Brassage!F38&" "&Brassage!B38) ->  | B20: =A20 ->  | C20: =A20 ->  | D20: =A20 ->  | E20: =A20 ->  | F20: =A20 -> 
A21: =IF(Brassage!B39=0,"",Brassage!F39&"g "&Brassage!B39) ->  | B21: =A21 ->  | C21: =A21 ->  | D21: =A21 ->  | E21: =A21 ->  | F21: =A21 -> 
A22: =IF(Brassage!B40=0,"",Brassage!F40&"g "&Brassage!B40) ->  | B22: =A22 ->  | C22: =A22 ->  | D22: =A22 ->  | E22: =A22 ->  | F22: =A22 -> 
A24: Houblons | B24: =A24 -> Houblons | C24: =A24 -> Houblons | D24: =A24 -> Houblons | E24: =A24 -> Houblons | F24: =A24 -> Houblons
A25: =IF(Brassage!F44=0,"","- "&Brassage!F44&"g "&Brassage!B44&" "&100*Brassage!C44&"%"&" "&"("&Brassage!D44&" "&Brassage!E44&"')") -> - 30g Magnum 13,9% (Ebullition 60') | B25: - 30g Magnum 13,9% (Ebullition 60') | C25: - 30g Magnum 13,9% (Ebullition 60') | D25: - 30g Magnum 13,9% (Ebullition 60') | E25: - 30g Magnum 13,9% (Ebullition 60') | F25: - 30g Magnum 13,9% (Ebullition 60')
A26: =IF(Brassage!F45=0,"","- "&Brassage!F45&"g "&Brassage!B45&" "&100*Brassage!C45&"%"&" "&"("&Brassage!D45&" "&Brassage!E45&"')") -> 
A27: =IF(Brassage!F46=0,"","- "&Brassage!F46&"g "&Brassage!B46&" "&100*Brassage!C46&"%"&" "&"("&Brassage!D46&" "&Brassage!E46&"')") -> 
A28: =IF(Brassage!F47=0,"","- "&Brassage!F47&"g "&Brassage!B47&" "&100*Brassage!C47&"%"&" "&"("&Brassage!D47&" "&Brassage!E47&"')") -> 
A29: =IF(Brassage!F48=0,"","- "&Brassage!F48&"g "&Brassage!B48&" "&100*Brassage!C48&"%"&" "&"("&Brassage!D48&" "&Brassage!E48&"')") -> 
A30: =IF(Brassage!F52=0,"","- "&Brassage!F52&"g "&Brassage!B52&" "&100*Brassage!C52&"%"&" "&"("&Brassage!D52&" "&Brassage!E52&"')") -> 
A31: =IF(Brassage!F53=0,"","- "&Brassage!F53&"g "&Brassage!B53&" "&100*Brassage!C53&"%"&" "&"("&Brassage!D53&" "&Brassage!E53&"')") -> 
A32: Levures | B32: Levures | C32: =A32 -> Levures | D32: =A32 -> Levures | E32: =A32 -> Levures | F32: =A32 -> Levures
A33: =IF(Brassage!B60=0,"",Brassage!B60) -> Whitelabs - WLP023 Burton Ale Yeast | B33: Whitelabs - WLP023 Burton Ale Yeast | C33: =A33 -> Whitelabs - WLP023 Burton Ale Yeast | D33: =A33 -> Whitelabs - WLP023 Burton Ale Yeast | E33: =A33 -> Whitelabs - WLP023 Burton Ale Yeast | F33: =A33 -> Whitelabs - WLP023 Burton Ale Yeast
A34: =IF(Brassage!B61=0,"",Brassage!B61) ->  | C34: =A34 ->  | D34: =A34 ->  | E34: =A34 ->  | F34: =A34 -> 
B35: 0
S37: =$A$1 -> Projet - Irish Stout | W37: =S37 -> Projet - Irish Stout | AA37: =W37 -> Projet - Irish Stout | AE37: =AA37 -> Projet - Irish Stout | AI37: =AE37 -> Projet - Irish Stout | AM37: =AI37 -> Projet - Irish Stout
I41: =G41 -> 0 | J41: =H41 -> 0 | K41: =G41 -> 0 | L41: =H41 -> 0 | M41: =G41 -> 0 | N41: =H41 -> 0 | O41: =G41 -> 0 | P41: =H41 -> 0 | Q41: =G41 -> 0 | R41: =H41 -> 0
I42: =G42 -> 0 | K42: =G42 -> 0 | M42: =G42 -> 0 | O42: =G42 -> 0 | Q42: =G42 -> 0

Sheet Paramètres
A1: Caractéristiques des malts | G1: Taux d'utilisation houblon | J1: Caractéristiques des levures
A2: Type | B2: Rendement max | C2: EBC | D2: %max | E2: pH | G2: Ebullition | H2: 1 | J2: Nom | K2: Type | L2: Atténuation min | M2: Atténuation max | N2: Atténuation moyenne calculée | O2: T°C min | P2: T°C max | Q2: Floculation
A3: =IF([1]Paramètres!A3="","",[1]Paramètres!A3) -> Abbaye | B3: =IF([1]Paramètres!B3="","",[1]Paramètres!B3) -> 0.7 | C3: =IF([1]Paramètres!C3="","",[1]Paramètres!C3) -> 45 | D3: =IF([1]Paramètres!D3="","",[1]Paramètres!D3) -> 0.3 | E3: =IF([1]Paramètres!E3="","",[1]Paramètres!E3) -> 5.13 | G3: DH | H3: 0 | J3: =IF([1]Paramètres!J3="","",[1]Paramètres!J3) -> 1084 - Irish Ale | K3: =IF([1]Paramètres!K3="","",[1]Paramètres!K3) -> Liquide | L3: =IF([1]Paramètres!L3="","",[1]Paramètres!L3) -> 0.71 | M3: =IF([1]Paramètres!M3="","",[1]Paramètres!M3) -> 0.75 | N3: =IF([1]Paramètres!N3="","",[1]Paramètres!N3) -> 0.73 | O3: =IF([1]Paramètres!O3="","",[1]Paramètres!O3) -> 16.7 | P3: =IF([1]Paramètres!P3="","",[1]Paramètres!P3) -> 22.2 | Q3: =IF([1]Paramètres!Q3="","",[1]Paramètres!Q3) -> Moyenne
A4: =IF([1]Paramètres!A4="","",[1]Paramètres!A4) -> Arôme | B4: =IF([1]Paramètres!B4="","",[1]Paramètres!B4) -> 0.74 | C4: =IF([1]Paramètres!C4="","",[1]Paramètres!C4) -> 100 | D4: =IF([1]Paramètres!D4="","",[1]Paramètres!D4) -> 0.2 | E4: =IF([1]Paramètres!E4="","",[1]Paramètres!E4) -> 5.03 | G4: Hop-Stand | H4: 0 | J4: =IF([1]Paramètres!J4="","",[1]Paramètres!J4) -> 1214 - Belgian Ale | K4: =IF([1]Paramètres!K4="","",[1]Paramètres!K4) -> Liquide | L4: =IF([1]Paramètres!L4="","",[1]Paramètres!L4) -> 0.74 | M4: =IF([1]Paramètres!M4="","",[1]Paramètres!M4) -> 0.78 | N4: =IF([1]Paramètres!N4="","",[1]Paramètres!N4) -> 0.76 | O4: =IF([1]Paramètres!O4="","",[1]Paramètres!O4) -> 20 | P4: =IF([1]Paramètres!P4="","",[1]Paramètres!P4) -> 24 | Q4: =IF([1]Paramètres!Q4="","",[1]Paramètres!Q4) -> Faible
A5: =IF([1]Paramètres!A5="","",[1]Paramètres!A5) -> Avoine (flocons) | B5: =IF([1]Paramètres!B5="","",[1]Paramètres!B5) -> 0.7 | C5: =IF([1]Paramètres!C5="","",[1]Paramètres!C5) -> 5 | D5: =IF([1]Paramètres!D5="","",[1]Paramètres!D5) -> 0.25 | E5: =IF([1]Paramètres!E5="","",[1]Paramètres!E5) -> 5.2 | G5: FWH | H5: 1.1 | J5: =IF([1]Paramètres!J5="","",[1]Paramètres!J5) -> 3068 - Weihenstephan Weizen | K5: =IF([1]Paramètres!K5="","",[1]Paramètres!K5) -> Liquide | L5: =IF([1]Paramètres!L5="","",[1]Paramètres!L5) -> 0.73 | M5: =IF([1]Paramètres!M5="","",[1]Paramètres!M5) -> 0.77 | N5: =IF([1]Paramètres!N5="","",[1]Paramètres!N5) -> 0.75 | O5: =IF([1]Paramètres!O5="","",[1]Paramètres!O5) -> 17.8 | P5: =IF([1]Paramètres!P5="","",[1]Paramètres!P5) -> 23.9 | Q5: =IF([1]Paramètres!Q5="","",[1]Paramètres!Q5) -> Faible
A6: =IF([1]Paramètres!A6="","",[1]Paramètres!A6) -> Biscuit Malt | B6: =IF([1]Paramètres!B6="","",[1]Paramètres!B6) -> 0.75 | C6: =IF([1]Paramètres!C6="","",[1]Paramètres!C6) -> 50 | D6: =IF([1]Paramètres!D6="","",[1]Paramètres!D6) -> 0.3 | E6: =IF([1]Paramètres!E6="","",[1]Paramètres!E6) -> 5.12 | G6: Mash-Hop | H6: 0.2 | J6: =IF([1]Paramètres!J6="","",[1]Paramètres!J6) -> 3711 - French Saison | K6: =IF([1]Paramètres!K6="","",[1]Paramètres!K6) -> Liquide | L6: =IF([1]Paramètres!L6="","",[1]Paramètres!L6) -> 0.8 | M6: =IF([1]Paramètres!M6="","",[1]Paramètres!M6) -> 0.95 | N6: =IF([1]Paramètres!N6="","",[1]Paramètres!N6) -> 0.875 | O6: =IF([1]Paramètres!O6="","",[1]Paramètres!O6) -> 23 | P6: =IF([1]Paramètres!P6="","",[1]Paramètres!P6) -> 30 | Q6: =IF([1]Paramètres!Q6="","",[1]Paramètres!Q6) -> Faible
A7: =IF([1]Paramètres!A7="","",[1]Paramètres!A7) -> Black | B7: =IF([1]Paramètres!B7="","",[1]Paramètres!B7) -> 0.55 | C7: =IF([1]Paramètres!C7="","",[1]Paramètres!C7) -> 1300 | D7: =IF([1]Paramètres!D7="","",[1]Paramètres!D7) -> 0.05 | E7: =IF([1]Paramètres!E7="","",[1]Paramètres!E7) -> 4.71 | G7: Flame-out | H7: 0.75 | J7: =IF([1]Paramètres!J7="","",[1]Paramètres!J7) -> Fermentis BE-134 Belgian Saison | K7: =IF([1]Paramètres!K7="","",[1]Paramètres!K7) -> Sèche | L7: =IF([1]Paramètres!L7="","",[1]Paramètres!L7) -> 0.86 | M7: =IF([1]Paramètres!M7="","",[1]Paramètres!M7) -> 0.9 | N7: =IF([1]Paramètres!N7="","",[1]Paramètres!N7) -> 0.88 | O7: =IF([1]Paramètres!O7="","",[1]Paramètres!O7) -> 18 | P7: =IF([1]Paramètres!P7="","",[1]Paramètres!P7) -> 28 | Q7: =IF([1]Paramètres!Q7="","",[1]Paramètres!Q7) -> Moyenne
A8: =IF([1]Paramètres!A8="","",[1]Paramètres!A8) -> Black of black | B8: =IF([1]Paramètres!B8="","",[1]Paramètres!B8) -> 0.55 | C8: =IF([1]Paramètres!C8="","",[1]Paramètres!C8) -> 800 | D8: =IF([1]Paramètres!D8="","",[1]Paramètres!D8) -> 0.05 | E8: =IF([1]Paramètres!E8="","",[1]Paramètres!E8) -> 4.71 | J8: =IF([1]Paramètres!J8="","",[1]Paramètres!J8) -> Fermentis BE-256 Abbay Ale | K8: =IF([1]Paramètres!K8="","",[1]Paramètres!K8) -> Sèche | L8: =IF([1]Paramètres!L8="","",[1]Paramètres!L8) -> 0.8 | M8: =IF([1]Paramètres!M8="","",[1]Paramètres!M8) -> 0.84 | N8: =IF([1]Paramètres!N8="","",[1]Paramètres!N8) -> 0.82 | O8: =IF([1]Paramètres!O8="","",[1]Paramètres!O8) -> 15 | P8: =IF([1]Paramètres!P8="","",[1]Paramètres!P8) -> 25 | Q8: =IF([1]Paramètres!Q8="","",[1]Paramètres!Q8) -> Forte
A9: =IF([1]Paramètres!A9="","",[1]Paramètres!A9) -> Blé (flocons) | B9: =IF([1]Paramètres!B9="","",[1]Paramètres!B9) -> 0.77 | C9: =IF([1]Paramètres!C9="","",[1]Paramètres!C9) -> 5 | D9: =IF([1]Paramètres!D9="","",[1]Paramètres!D9) -> 0.25 | E9: =IF([1]Paramètres!E9="","",[1]Paramètres!E9) -> 5.2 | G9: Taux d'ensemencement | J9: =IF([1]Paramètres!J9="","",[1]Paramètres!J9) -> Fermentis K-97 German Ale | K9: =IF([1]Paramètres!K9="","",[1]Paramètres!K9) -> Sèche | L9: =IF([1]Paramètres!L9="","",[1]Paramètres!L9) -> 0.71 | M9: =IF([1]Paramètres!M9="","",[1]Paramètres!M9) -> 0.75 | N9: =IF([1]Paramètres!N9="","",[1]Paramètres!N9) -> 0.73 | O9: =IF([1]Paramètres!O9="","",[1]Paramètres!O9) -> 12 | P9: =IF([1]Paramètres!P9="","",[1]Paramètres!P9) -> 22 | Q9: =IF([1]Paramètres!Q9="","",[1]Paramètres!Q9) -> Moyenne
A10: =IF([1]Paramètres!A10="","",[1]Paramètres!A10) -> Café | B10: =IF([1]Paramètres!B10="","",[1]Paramètres!B10) -> 0.6 | C10: =IF([1]Paramètres!C10="","",[1]Paramètres!C10) -> 500 | D10: =IF([1]Paramètres!D10="","",[1]Paramètres!D10) -> 0.1 | E10: =IF([1]Paramètres!E10="","",[1]Paramètres!E10) -> 4.71 | H10: 1.065 | I10: >1065 | J10: =IF([1]Paramètres!J10="","",[1]Paramètres!J10) -> Fermentis S-04 English Ale | K10: =IF([1]Paramètres!K10="","",[1]Paramètres!K10) -> Sèche | L10: =IF([1]Paramètres!L10="","",[1]Paramètres!L10) -> 0.72 | M10: =IF([1]Paramètres!M10="","",[1]Paramètres!M10) -> 0.76 | N10: =IF([1]Paramètres!N10="","",[1]Paramètres!N10) -> 0.74 | O10: =IF([1]Paramètres!O10="","",[1]Paramètres!O10) -> 15 | P10: =IF([1]Paramètres!P10="","",[1]Paramètres!P10) -> 20 | Q10: =IF([1]Paramètres!Q10="","",[1]Paramètres!Q10) -> Forte
A11: =IF([1]Paramètres!A11="","",[1]Paramètres!A11) -> Café light | B11: =IF([1]Paramètres!B11="","",[1]Paramètres!B11) -> 0.6 | C11: =IF([1]Paramètres!C11="","",[1]Paramètres!C11) -> 250 | D11: =IF([1]Paramètres!D11="","",[1]Paramètres!D11) -> 0.1 | E11: =IF([1]Paramètres!E11="","",[1]Paramètres!E11) -> 4.71 | G11: Ale | H11: 0.75 | I11: 1 | J11: =IF([1]Paramètres!J11="","",[1]Paramètres!J11) -> Fermentis S-23 | K11: =IF([1]Paramètres!K11="","",[1]Paramètres!K11) -> Sèche | L11: =IF([1]Paramètres!L11="","",[1]Paramètres!L11) -> 0.82 | M11: =IF([1]Paramètres!M11="","",[1]Paramètres!M11) -> 0.82 | N11: =IF([1]Paramètres!N11="","",[1]Paramètres!N11) -> 0.82 | O11: =IF([1]Paramètres!O11="","",[1]Paramètres!O11) -> 12 | P11: =IF([1]Paramètres!P11="","",[1]Paramètres!P11) -> 15 | Q11: =IF([1]Paramètres!Q11="","",[1]Paramètres!Q11) -> Forte
A12: =IF([1]Paramètres!A12="","",[1]Paramètres!A12) -> Cara Belge | B12: =IF([1]Paramètres!B12="","",[1]Paramètres!B12) -> 0.74 | C12: =IF([1]Paramètres!C12="","",[1]Paramètres!C12) -> 35 | D12: =IF([1]Paramètres!D12="","",[1]Paramètres!D12) -> 0.3 | E12: =IF([1]Paramètres!E12="","",[1]Paramètres!E12) -> 5.16 | G12: Lager | H12: 1.5 | I12: 2 | J12: =IF([1]Paramètres!J12="","",[1]Paramètres!J12) -> Fermentis S-33 Neutre (faible floculation) | K12: =IF([1]Paramètres!K12="","",[1]Paramètres!K12) -> Sèche | L12: =IF([1]Paramètres!L12="","",[1]Paramètres!L12) -> 0.72 | M12: =IF([1]Paramètres!M12="","",[1]Paramètres!M12) -> 0.74 | N12: =IF([1]Paramètres!N12="","",[1]Paramètres!N12) -> 0.73 | O12: =IF([1]Paramètres!O12="","",[1]Paramètres!O12) -> 15 | P12: =IF([1]Paramètres!P12="","",[1]Paramètres!P12) -> 22 | Q12: =IF([1]Paramètres!Q12="","",[1]Paramètres!Q12) -> Moyenne
A13: =IF([1]Paramètres!A13="","",[1]Paramètres!A13) -> Cara Bohemian | B13: =IF([1]Paramètres!B13="","",[1]Paramètres!B13) -> 0.74 | C13: =IF([1]Paramètres!C13="","",[1]Paramètres!C13) -> 195 | D13: =IF([1]Paramètres!D13="","",[1]Paramètres!D13) -> 0.2 | E13: =IF([1]Paramètres!E13="","",[1]Paramètres!E13) -> 4.9 | J13: =IF([1]Paramètres!J13="","",[1]Paramètres!J13) -> Fermentis T-58 Epicée | K13: =IF([1]Paramètres!K13="","",[1]Paramètres!K13) -> Sèche | L13: =IF([1]Paramètres!L13="","",[1]Paramètres!L13) -> 0.71 | M13: =IF([1]Paramètres!M13="","",[1]Paramètres!M13) -> 0.75 | N13: =IF([1]Paramètres!N13="","",[1]Paramètres!N13) -> 0.73 | O13: =IF([1]Paramètres!O13="","",[1]Paramètres!O13) -> 15 | P13: =IF([1]Paramètres!P13="","",[1]Paramètres!P13) -> 24 | Q13: =IF([1]Paramètres!Q13="","",[1]Paramètres!Q13) -> Moyenne
A14: =IF([1]Paramètres!A14="","",[1]Paramètres!A14) -> Cara Gold | B14: =IF([1]Paramètres!B14="","",[1]Paramètres!B14) -> 0.74 | C14: =IF([1]Paramètres!C14="","",[1]Paramètres!C14) -> 120 | D14: =IF([1]Paramètres!D14="","",[1]Paramètres!D14) -> 0.2 | E14: =IF([1]Paramètres!E14="","",[1]Paramètres!E14) -> 4.99 | J14: =IF([1]Paramètres!J14="","",[1]Paramètres!J14) -> Fermentis US-05 American Ale | K14: =IF([1]Paramètres!K14="","",[1]Paramètres!K14) -> Sèche | L14: =IF([1]Paramètres!L14="","",[1]Paramètres!L14) -> 0.75 | M14: =IF([1]Paramètres!M14="","",[1]Paramètres!M14) -> 0.78 | N14: =IF([1]Paramètres!N14="","",[1]Paramètres!N14) -> 0.765 | O14: =IF([1]Paramètres!O14="","",[1]Paramètres!O14) -> 15 | P14: =IF([1]Paramètres!P14="","",[1]Paramètres!P14) -> 22 | Q14: =IF([1]Paramètres!Q14="","",[1]Paramètres!Q14) -> Faible
A15: =IF([1]Paramètres!A15="","",[1]Paramètres!A15) -> Cara Gold - Vieux Silo | B15: =IF([1]Paramètres!B15="","",[1]Paramètres!B15) -> 0.7 | C15: =IF([1]Paramètres!C15="","",[1]Paramètres!C15) -> 120 | D15: =IF([1]Paramètres!D15="","",[1]Paramètres!D15) -> 0.2 | E15: =IF([1]Paramètres!E15="","",[1]Paramètres!E15) -> 4.99 | J15: =IF([1]Paramètres!J15="","",[1]Paramètres!J15) -> Fermentis WB-06 (Blanches) | K15: =IF([1]Paramètres!K15="","",[1]Paramètres!K15) -> Sèche | L15: =IF([1]Paramètres!L15="","",[1]Paramètres!L15) -> 0.84 | M15: =IF([1]Paramètres!M15="","",[1]Paramètres!M15) -> 0.88 | N15: =IF([1]Paramètres!N15="","",[1]Paramètres!N15) -> 0.86 | O15: =IF([1]Paramètres!O15="","",[1]Paramètres!O15) -> 15 | P15: =IF([1]Paramètres!P15="","",[1]Paramètres!P15) -> 24 | Q15: =IF([1]Paramètres!Q15="","",[1]Paramètres!Q15) -> Faible
A16: =IF([1]Paramètres!A16="","",[1]Paramètres!A16) -> Cara Ruby | B16: =IF([1]Paramètres!B16="","",[1]Paramètres!B16) -> 0.74 | C16: =IF([1]Paramètres!C16="","",[1]Paramètres!C16) -> 50 | D16: =IF([1]Paramètres!D16="","",[1]Paramètres!D16) -> 0.25 | E16: =IF([1]Paramètres!E16="","",[1]Paramètres!E16) -> 5.12 | F16: Sucres | J16: =IF([1]Paramètres!J16="","",[1]Paramètres!J16) -> Lallemand Abbaye | K16: =IF([1]Paramètres!K16="","",[1]Paramètres!K16) -> Sèche | L16: =IF([1]Paramètres!L16="","",[1]Paramètres!L16) -> 0.7 | M16: =IF([1]Paramètres!M16="","",[1]Paramètres!M16) -> 0.74 | N16: =IF([1]Paramètres!N16="","",[1]Paramètres!N16) -> 0.72 | O16: =IF([1]Paramètres!O16="","",[1]Paramètres!O16) -> 17 | P16: =IF([1]Paramètres!P16="","",[1]Paramètres!P16) -> 23 | Q16: =IF([1]Paramètres!Q16="","",[1]Paramètres!Q16) -> Forte
A17: =IF([1]Paramètres!A17="","",[1]Paramètres!A17) -> Cara-Blond | B17: =IF([1]Paramètres!B17="","",[1]Paramètres!B17) -> 0.7 | C17: =IF([1]Paramètres!C17="","",[1]Paramètres!C17) -> 20 | D17: =IF([1]Paramètres!D17="","",[1]Paramètres!D17) -> 0.3 | E17: =IF([1]Paramètres!E17="","",[1]Paramètres!E17) -> 5.18 | F17: Type | G17: Rendement max | H17: EBC | I17: pH | J17: =IF([1]Paramètres!J17="","",[1]Paramètres!J17) -> Lallemand Belle Saison | K17: =IF([1]Paramètres!K17="","",[1]Paramètres!K17) -> Sèche | L17: =IF([1]Paramètres!L17="","",[1]Paramètres!L17) -> 0.76 | M17: =IF([1]Paramètres!M17="","",[1]Paramètres!M17) -> 0.8 | N17: =IF([1]Paramètres!N17="","",[1]Paramètres!N17) -> 0.78 | O17: =IF([1]Paramètres!O17="","",[1]Paramètres!O17) -> 15 | P17: =IF([1]Paramètres!P17="","",[1]Paramètres!P17) -> 35 | Q17: =IF([1]Paramètres!Q17="","",[1]Paramètres!Q17) -> Faible
A18: =IF([1]Paramètres!A18="","",[1]Paramètres!A18) -> Cara-clair | B18: =IF([1]Paramètres!B18="","",[1]Paramètres!B18) -> 0.75 | C18: =IF([1]Paramètres!C18="","",[1]Paramètres!C18) -> 5.5 | D18: =IF([1]Paramètres!D18="","",[1]Paramètres!D18) -> 0.3 | E18: =IF([1]Paramètres!E18="","",[1]Paramètres!E18) -> 5.2 | F18: =IF([1]Paramètres!F18="","",[1]Paramètres!F18) -> Sucre ambré | G18: =IF([1]Paramètres!G18="","",[1]Paramètres!G18) -> 1 | H18: =IF([1]Paramètres!H18="","",[1]Paramètres!H18) -> 150 | J18: =IF([1]Paramètres!J18="","",[1]Paramètres!J18) -> Lallemand BRY97 American West Coast | K18: =IF([1]Paramètres!K18="","",[1]Paramètres!K18) -> Sèche | L18: =IF([1]Paramètres!L18="","",[1]Paramètres!L18) -> 0.75 | M18: =IF([1]Paramètres!M18="","",[1]Paramètres!M18) -> 0.78 | N18: =IF([1]Paramètres!N18="","",[1]Paramètres!N18) -> 0.765 | O18: =IF([1]Paramètres!O18="","",[1]Paramètres!O18) -> 17 | P18: =IF([1]Paramètres!P18="","",[1]Paramètres!P18) -> 22 | Q18: =IF([1]Paramètres!Q18="","",[1]Paramètres!Q18) -> Forte
A19: =IF([1]Paramètres!A19="","",[1]Paramètres!A19) -> Chocolat | B19: =IF([1]Paramètres!B19="","",[1]Paramètres!B19) -> 0.6 | C19: =IF([1]Paramètres!C19="","",[1]Paramètres!C19) -> 1000 | D19: =IF([1]Paramètres!D19="","",[1]Paramètres!D19) -> 0.07 | E19: =IF([1]Paramètres!E19="","",[1]Paramètres!E19) -> 3.33 | F19: =IF([1]Paramètres!F19="","",[1]Paramètres!F19) -> Sucre blanc | G19: =IF([1]Paramètres!G19="","",[1]Paramètres!G19) -> 1 | H19: =IF([1]Paramètres!H19="","",[1]Paramètres!H19) -> 2 | J19: =IF([1]Paramètres!J19="","",[1]Paramètres!J19) -> Lallemand Koln (Kolsch style) | K19: =IF([1]Paramètres!K19="","",[1]Paramètres!K19) -> Sèche | L19: =IF([1]Paramètres!L19="","",[1]Paramètres!L19) -> 0.75 | M19: =IF([1]Paramètres!M19="","",[1]Paramètres!M19) -> 0.79 | N19: =IF([1]Paramètres!N19="","",[1]Paramètres!N19) -> 0.77 | O19: =IF([1]Paramètres!O19="","",[1]Paramètres!O19) -> 12 | P19: =IF([1]Paramètres!P19="","",[1]Paramètres!P19) -> 20 | Q19: =IF([1]Paramètres!Q19="","",[1]Paramètres!Q19) -> Moyenne
A20: =IF([1]Paramètres!A20="","",[1]Paramètres!A20) -> Crystal | B20: =IF([1]Paramètres!B20="","",[1]Paramètres!B20) -> 0.74 | C20: =IF([1]Paramètres!C20="","",[1]Paramètres!C20) -> 150 | D20: =IF([1]Paramètres!D20="","",[1]Paramètres!D20) -> 0.2 | E20: =IF([1]Paramètres!E20="","",[1]Paramètres!E20) -> 4.93 | F20: =IF([1]Paramètres!F20="","",[1]Paramètres!F20) -> Sucre foncé | G20: =IF([1]Paramètres!G20="","",[1]Paramètres!G20) -> 1 | H20: =IF([1]Paramètres!H20="","",[1]Paramètres!H20) -> 542 | J20: =IF([1]Paramètres!J20="","",[1]Paramètres!J20) -> Lallemand London ESB | K20: =IF([1]Paramètres!K20="","",[1]Paramètres!K20) -> Sèche | L20: =IF([1]Paramètres!L20="","",[1]Paramètres!L20) -> 0.71 | M20: =IF([1]Paramètres!M20="","",[1]Paramètres!M20) -> 0.74 | N20: =IF([1]Paramètres!N20="","",[1]Paramètres!N20) -> 0.725 | O20: =IF([1]Paramètres!O20="","",[1]Paramètres!O20) -> 18 | P20: =IF([1]Paramètres!P20="","",[1]Paramètres!P20) -> 22 | Q20: =IF([1]Paramètres!Q20="","",[1]Paramètres!Q20) -> Faible
A21: =IF([1]Paramètres!A21="","",[1]Paramètres!A21) -> Dextrine/Cara pils Malt | B21: =IF([1]Paramètres!B21="","",[1]Paramètres!B21) -> 0.7 | C21: =IF([1]Paramètres!C21="","",[1]Paramètres!C21) -> 5 | D21: =IF([1]Paramètres!D21="","",[1]Paramètres!D21) -> 0.4 | E21: =IF([1]Paramètres!E21="","",[1]Paramètres!E21) -> 5.2 | F21: =IF([1]Paramètres!F21="","",[1]Paramètres!F21) -> DME blond | G21: =IF([1]Paramètres!G21="","",[1]Paramètres!G21) -> 0.966 | H21: =IF([1]Paramètres!H21="","",[1]Paramètres!H21) -> 8 | I21: =IF([1]Paramètres!I21="","",[1]Paramètres!I21) ->  | J21: =IF([1]Paramètres!J21="","",[1]Paramètres!J21) -> Lallemand Munich (Classic) | K21: =IF([1]Paramètres!K21="","",[1]Paramètres!K21) -> Sèche | L21: =IF([1]Paramètres!L21="","",[1]Paramètres!L21) -> 0.69 | M21: =IF([1]Paramètres!M21="","",[1]Paramètres!M21) -> 0.71 | N21: =IF([1]Paramètres!N21="","",[1]Paramètres!N21) -> 0.7 | O21: =IF([1]Paramètres!O21="","",[1]Paramètres!O21) -> 17 | P21: =IF([1]Paramètres!P21="","",[1]Paramètres!P21) -> 22 | Q21: =IF([1]Paramètres!Q21="","",[1]Paramètres!Q21) -> Moyenne
A22: =IF([1]Paramètres!A22="","",[1]Paramètres!A22) -> Diastasique | B22: =IF([1]Paramètres!B22="","",[1]Paramètres!B22) -> 0.81 | C22: =IF([1]Paramètres!C22="","",[1]Paramètres!C22) -> 3 | D22: =IF([1]Paramètres!D22="","",[1]Paramètres!D22) -> 0.3 | E22: =IF([1]Paramètres!E22="","",[1]Paramètres!E22) -> 5.7 | F22: =IF([1]Paramètres!F22="","",[1]Paramètres!F22) -> DME ambré | G22: =IF([1]Paramètres!G22="","",[1]Paramètres!G22) -> 0.966 | H22: =IF([1]Paramètres!H22="","",[1]Paramètres!H22) -> 18 | I22: =IF([1]Paramètres!I22="","",[1]Paramètres!I22) ->  | J22: =IF([1]Paramètres!J22="","",[1]Paramètres!J22) -> Lallemand New England | K22: =IF([1]Paramètres!K22="","",[1]Paramètres!K22) -> Sèche | L22: =IF([1]Paramètres!L22="","",[1]Paramètres!L22) -> 0.76 | M22: =IF([1]Paramètres!M22="","",[1]Paramètres!M22) -> 0.8 | N22: =IF([1]Paramètres!N22="","",[1]Paramètres!N22) -> 0.78 | O22: =IF([1]Paramètres!O22="","",[1]Paramètres!O22) -> 15 | P22: =IF([1]Paramètres!P22="","",[1]Paramètres!P22) -> 22 | Q22: =IF([1]Paramètres!Q22="","",[1]Paramètres!Q22) -> Forte
A23: =IF([1]Paramètres!A23="","",[1]Paramètres!A23) -> Froment | B23: =IF([1]Paramètres!B23="","",[1]Paramètres!B23) -> 0.79 | C23: =IF([1]Paramètres!C23="","",[1]Paramètres!C23) -> 4.5 | D23: =IF([1]Paramètres!D23="","",[1]Paramètres!D23) -> 0.35 | E23: =IF([1]Paramètres!E23="","",[1]Paramètres!E23) -> 6.04 | F23: =IF([1]Paramètres!F23="","",[1]Paramètres!F23) -> DME foncé | G23: =IF([1]Paramètres!G23="","",[1]Paramètres!G23) -> 0.966 | H23: =IF([1]Paramètres!H23="","",[1]Paramètres!H23) -> 57 | I23: =IF([1]Paramètres!I23="","",[1]Paramètres!I23) ->  | J23: =IF([1]Paramètres!J23="","",[1]Paramètres!J23) -> Lallemand Nottingham | K23: =IF([1]Paramètres!K23="","",[1]Paramètres!K23) -> Sèche | L23: =IF([1]Paramètres!L23="","",[1]Paramètres!L23) -> 0.76 | M23: =IF([1]Paramètres!M23="","",[1]Paramètres!M23) -> 0.79 | N23: =IF([1]Paramètres!N23="","",[1]Paramètres!N23) -> 0.775 | O23: =IF([1]Paramètres!O23="","",[1]Paramètres!O23) -> 10 | P23: =IF([1]Paramètres!P23="","",[1]Paramètres!P23) -> 22 | Q23: =IF([1]Paramètres!Q23="","",[1]Paramètres!Q23) -> Forte
A24: =IF([1]Paramètres!A24="","",[1]Paramètres!A24) -> Froment - Vieux Silo | B24: =IF([1]Paramètres!B24="","",[1]Paramètres!B24) -> 0.75 | C24: =IF([1]Paramètres!C24="","",[1]Paramètres!C24) -> 4.5 | D24: =IF([1]Paramètres!D24="","",[1]Paramètres!D24) -> 0.35 | E24: =IF([1]Paramètres!E24="","",[1]Paramètres!E24) -> 6.04 | F24: =IF([1]Paramètres!F24="","",[1]Paramètres!F24) -> DME noir | G24: =IF([1]Paramètres!G24="","",[1]Paramètres!G24) -> 0.966 | H24: =IF([1]Paramètres!H24="","",[1]Paramètres!H24) -> 95 | I24: =IF([1]Paramètres!I24="","",[1]Paramètres!I24) ->  | J24: =IF([1]Paramètres!J24="","",[1]Paramètres!J24) -> Lallemand Voss Kveik | K24: =IF([1]Paramètres!K24="","",[1]Paramètres!K24) -> Sèche | L24: =IF([1]Paramètres!L24="","",[1]Paramètres!L24) -> 0.76 | M24: =IF([1]Paramètres!M24="","",[1]Paramètres!M24) -> 0.8 | N24: =IF([1]Paramètres!N24="","",[1]Paramètres!N24) -> 0.78 | O24: =IF([1]Paramètres!O24="","",[1]Paramètres!O24) -> 25 | P24: =IF([1]Paramètres!P24="","",[1]Paramètres!P24) -> 40 | Q24: =IF([1]Paramètres!Q24="","",[1]Paramètres!Q24) -> Moyenne
A25: =IF([1]Paramètres!A25="","",[1]Paramètres!A25) -> Froment Black | B25: =IF([1]Paramètres!B25="","",[1]Paramètres!B25) -> 0.55 | C25: =IF([1]Paramètres!C25="","",[1]Paramètres!C25) -> 1300 | D25: =IF([1]Paramètres!D25="","",[1]Paramètres!D25) -> 0.05 | E25: =IF([1]Paramètres!E25="","",[1]Paramètres!E25) -> 4.71 | F25: =IF([1]Paramètres!F25="","",[1]Paramètres!F25) -> LME blond | G25: =IF([1]Paramètres!G25="","",[1]Paramètres!G25) -> 0.793 | H25: =IF([1]Paramètres!H25="","",[1]Paramètres!H25) -> 10 | I25: =IF([1]Paramètres!I25="","",[1]Paramètres!I25) ->  | J25: =IF([1]Paramètres!J25="","",[1]Paramètres!J25) -> Lallemand Windsor | K25: =IF([1]Paramètres!K25="","",[1]Paramètres!K25) -> Sèche | L25: =IF([1]Paramètres!L25="","",[1]Paramètres!L25) -> 0.74 | M25: =IF([1]Paramètres!M25="","",[1]Paramètres!M25) -> 0.76 | N25: =IF([1]Paramètres!N25="","",[1]Paramètres!N25) -> 0.75 | O25: =IF([1]Paramètres!O25="","",[1]Paramètres!O25) -> 15 | P25: =IF([1]Paramètres!P25="","",[1]Paramètres!P25) -> 22 | Q25: =IF([1]Paramètres!Q25="","",[1]Paramètres!Q25) -> Forte
A26: =IF([1]Paramètres!A26="","",[1]Paramètres!A26) -> Froment Chocolat | B26: =IF([1]Paramètres!B26="","",[1]Paramètres!B26) -> 0.6 | C26: =IF([1]Paramètres!C26="","",[1]Paramètres!C26) -> 1000 | D26: =IF([1]Paramètres!D26="","",[1]Paramètres!D26) -> 0.2 | E26: =IF([1]Paramètres!E26="","",[1]Paramètres!E26) -> 4.71 | F26: =IF([1]Paramètres!F26="","",[1]Paramètres!F26) -> LME ambré | G26: =IF([1]Paramètres!G26="","",[1]Paramètres!G26) -> 0.793 | H26: =IF([1]Paramètres!H26="","",[1]Paramètres!H26) -> 18 | I26: =IF([1]Paramètres!I26="","",[1]Paramètres!I26) ->  | J26: =IF([1]Paramètres!J26="","",[1]Paramètres!J26) -> Mangrove M12 Kveik | K26: =IF([1]Paramètres!K26="","",[1]Paramètres!K26) -> Sèche | L26: =IF([1]Paramètres!L26="","",[1]Paramètres!L26) -> 0.77 | M26: =IF([1]Paramètres!M26="","",[1]Paramètres!M26) -> 0.82 | N26: =IF([1]Paramètres!N26="","",[1]Paramètres!N26) -> 0.795 | O26: =IF([1]Paramètres!O26="","",[1]Paramètres!O26) -> 20 | P26: =IF([1]Paramètres!P26="","",[1]Paramètres!P26) -> 40 | Q26: =IF([1]Paramètres!Q26="","",[1]Paramètres!Q26) -> Forte
A27: =IF([1]Paramètres!A27="","",[1]Paramètres!A27) -> Froment Crystal | B27: =IF([1]Paramètres!B27="","",[1]Paramètres!B27) -> 0.74 | C27: =IF([1]Paramètres!C27="","",[1]Paramètres!C27) -> 150 | D27: =IF([1]Paramètres!D27="","",[1]Paramètres!D27) -> 0.2 | E27: =IF([1]Paramètres!E27="","",[1]Paramètres!E27) -> 4.93 | F27: =IF([1]Paramètres!F27="","",[1]Paramètres!F27) -> LME foncé | G27: =IF([1]Paramètres!G27="","",[1]Paramètres!G27) -> 0.793 | H27: =IF([1]Paramètres!H27="","",[1]Paramètres!H27) -> 55 | I27: =IF([1]Paramètres!I27="","",[1]Paramètres!I27) ->  | J27: =IF([1]Paramètres!J27="","",[1]Paramètres!J27) -> Mangrove M15 Empire Ale | K27: =IF([1]Paramètres!K27="","",[1]Paramètres!K27) -> Sèche | L27: =IF([1]Paramètres!L27="","",[1]Paramètres!L27) -> 0.7 | M27: =IF([1]Paramètres!M27="","",[1]Paramètres!M27) -> 0.75 | N27: =IF([1]Paramètres!N27="","",[1]Paramètres!N27) -> 0.725 | O27: =IF([1]Paramètres!O27="","",[1]Paramètres!O27) -> 18 | P27: =IF([1]Paramètres!P27="","",[1]Paramètres!P27) -> 22 | Q27: =IF([1]Paramètres!Q27="","",[1]Paramètres!Q27) -> Faible
A28: =IF([1]Paramètres!A28="","",[1]Paramètres!A28) -> Froment Munich | B28: =IF([1]Paramètres!B28="","",[1]Paramètres!B28) -> 0.75 | C28: =IF([1]Paramètres!C28="","",[1]Paramètres!C28) -> 25 | D28: =IF([1]Paramètres!D28="","",[1]Paramètres!D28) -> 0.3 | E28: =IF([1]Paramètres!E28="","",[1]Paramètres!E28) -> 5.43 | F28: =IF([1]Paramètres!F28="","",[1]Paramètres!F28) -> Miel (printemps) | G28: =IF([1]Paramètres!G28="","",[1]Paramètres!G28) -> 0.75 | H28: =IF([1]Paramètres!H28="","",[1]Paramètres!H28) -> 5 | I28: =IF([1]Paramètres!I28="","",[1]Paramètres!I28) ->  | J28: =IF([1]Paramètres!J28="","",[1]Paramètres!J28) -> Mangrove M20 Bavarian | K28: =IF([1]Paramètres!K28="","",[1]Paramètres!K28) -> Sèche | L28: =IF([1]Paramètres!L28="","",[1]Paramètres!L28) -> 0.7 | M28: =IF([1]Paramètres!M28="","",[1]Paramètres!M28) -> 0.75 | N28: =IF([1]Paramètres!N28="","",[1]Paramètres!N28) -> 0.725 | O28: =IF([1]Paramètres!O28="","",[1]Paramètres!O28) -> 18 | P28: =IF([1]Paramètres!P28="","",[1]Paramètres!P28) -> 30 | Q28: =IF([1]Paramètres!Q28="","",[1]Paramètres!Q28) -> Faible
A29: =IF([1]Paramètres!A29="","",[1]Paramètres!A29) -> Froment Munich light | B29: =IF([1]Paramètres!B29="","",[1]Paramètres!B29) -> 0.75 | C29: =IF([1]Paramètres!C29="","",[1]Paramètres!C29) -> 15 | D29: =IF([1]Paramètres!D29="","",[1]Paramètres!D29) -> 0.3 | E29: =IF([1]Paramètres!E29="","",[1]Paramètres!E29) -> 5.19 | F29: =IF([1]Paramètres!F29="","",[1]Paramètres!F29) -> Miel (été) | G29: =IF([1]Paramètres!G29="","",[1]Paramètres!G29) -> 0.75 | H29: =IF([1]Paramètres!H29="","",[1]Paramètres!H29) -> 20 | I29: =IF([1]Paramètres!I29="","",[1]Paramètres!I29) ->  | J29: =IF([1]Paramètres!J29="","",[1]Paramètres!J29) -> Mangrove M21 Belgian Wit | K29: =IF([1]Paramètres!K29="","",[1]Paramètres!K29) -> Sèche | L29: =IF([1]Paramètres!L29="","",[1]Paramètres!L29) -> 0.7 | M29: =IF([1]Paramètres!M29="","",[1]Paramètres!M29) -> 0.75 | N29: =IF([1]Paramètres!N29="","",[1]Paramètres!N29) -> 0.725 | O29: =IF([1]Paramètres!O29="","",[1]Paramètres!O29) -> 18 | P29: =IF([1]Paramètres!P29="","",[1]Paramètres!P29) -> 25 | Q29: =IF([1]Paramètres!Q29="","",[1]Paramètres!Q29) -> Moyenne
A30: =IF([1]Paramètres!A30="","",[1]Paramètres!A30) -> Maïs (flocons) | B30: =IF([1]Paramètres!B30="","",[1]Paramètres!B30) -> 0.84 | C30: =IF([1]Paramètres!C30="","",[1]Paramètres!C30) -> 5 | D30: =IF([1]Paramètres!D30="","",[1]Paramètres!D30) -> 0.25 | E30: =IF([1]Paramètres!E30="","",[1]Paramètres!E30) -> 5.7 | F30: =IF([1]Paramètres!F30="","",[1]Paramètres!F30) -> Fruits (coulis) | G30: =IF([1]Paramètres!G30="","",[1]Paramètres!G30) -> 0.26 | H30: =IF([1]Paramètres!H30="","",[1]Paramètres!H30) -> 5 | I30: =IF([1]Paramètres!I30="","",[1]Paramètres!I30) ->  | J30: =IF([1]Paramètres!J30="","",[1]Paramètres!J30) -> Mangrove M29 French Saison | K30: =IF([1]Paramètres!K30="","",[1]Paramètres!K30) -> Sèche | L30: =IF([1]Paramètres!L30="","",[1]Paramètres!L30) -> 0.85 | M30: =IF([1]Paramètres!M30="","",[1]Paramètres!M30) -> 0.9 | N30: =IF([1]Paramètres!N30="","",[1]Paramètres!N30) -> 0.875 | O30: =IF([1]Paramètres!O30="","",[1]Paramètres!O30) -> 26 | P30: =IF([1]Paramètres!P30="","",[1]Paramètres!P30) -> 32 | Q30: =IF([1]Paramètres!Q30="","",[1]Paramètres!Q30) -> Moyenne
A31: =IF([1]Paramètres!A31="","",[1]Paramètres!A31) -> Marris Otter | B31: =IF([1]Paramètres!B31="","",[1]Paramètres!B31) -> 0.81 | C31: =IF([1]Paramètres!C31="","",[1]Paramètres!C31) -> 5 | D31: =IF([1]Paramètres!D31="","",[1]Paramètres!D31) -> 1 | E31: =IF([1]Paramètres!E31="","",[1]Paramètres!E31) -> 5.77 | F31: =IF([1]Paramètres!F31="","",[1]Paramètres!F31) ->  | G31: =IF([1]Paramètres!G31="","",[1]Paramètres!G31) ->  | H31: =IF([1]Paramètres!H31="","",[1]Paramètres!H31) ->  | I31: =IF([1]Paramètres!I31="","",[1]Paramètres!I31) ->  | J31: =IF([1]Paramètres!J31="","",[1]Paramètres!J31) -> Mangrove M31 BelgianTripel | K31: =IF([1]Paramètres!K31="","",[1]Paramètres!K31) -> Sèche | L31: =IF([1]Paramètres!L31="","",[1]Paramètres!L31) -> 0.82 | M31: =IF([1]Paramètres!M31="","",[1]Paramètres!M31) -> 0.88 | N31: =IF([1]Paramètres!N31="","",[1]Paramètres!N31) -> 0.85 | O31: =IF([1]Paramètres!O31="","",[1]Paramètres!O31) -> 18 | P31: =IF([1]Paramètres!P31="","",[1]Paramètres!P31) -> 28 | Q31: =IF([1]Paramètres!Q31="","",[1]Paramètres!Q31) -> Forte
A32: =IF([1]Paramètres!A32="","",[1]Paramètres!A32) -> Melano | B32: =IF([1]Paramètres!B32="","",[1]Paramètres!B32) -> 0.7 | C32: =IF([1]Paramètres!C32="","",[1]Paramètres!C32) -> 80 | D32: =IF([1]Paramètres!D32="","",[1]Paramètres!D32) -> 0.3 | E32: =IF([1]Paramètres!E32="","",[1]Paramètres!E32) -> 5.07 | J32: =IF([1]Paramètres!J32="","",[1]Paramètres!J32) -> Mangrove M36 Liberty Bell | K32: =IF([1]Paramètres!K32="","",[1]Paramètres!K32) -> Sèche | L32: =IF([1]Paramètres!L32="","",[1]Paramètres!L32) -> 0.74 | M32: =IF([1]Paramètres!M32="","",[1]Paramètres!M32) -> 0.78 | N32: =IF([1]Paramètres!N32="","",[1]Paramètres!N32) -> 0.76 | O32: =IF([1]Paramètres!O32="","",[1]Paramètres!O32) -> 18 | P32: =IF([1]Paramètres!P32="","",[1]Paramètres!P32) -> 23 | Q32: =IF([1]Paramètres!Q32="","",[1]Paramètres!Q32) -> Moyenne
A33: =IF([1]Paramètres!A33="","",[1]Paramètres!A33) -> Melano light | B33: =IF([1]Paramètres!B33="","",[1]Paramètres!B33) -> 0.7 | C33: =IF([1]Paramètres!C33="","",[1]Paramètres!C33) -> 40 | D33: =IF([1]Paramètres!D33="","",[1]Paramètres!D33) -> 0.3 | E33: =IF([1]Paramètres!E33="","",[1]Paramètres!E33) -> 5.14 | F33: Sucres non-fermentiscibles | J33: =IF([1]Paramètres!J33="","",[1]Paramètres!J33) -> Mangrove M41 Belgian Ale | K33: =IF([1]Paramètres!K33="","",[1]Paramètres!K33) -> Sèche | L33: =IF([1]Paramètres!L33="","",[1]Paramètres!L33) -> 0.82 | M33: =IF([1]Paramètres!M33="","",[1]Paramètres!M33) -> 0.88 | N33: =IF([1]Paramètres!N33="","",[1]Paramètres!N33) -> 0.85 | O33: =IF([1]Paramètres!O33="","",[1]Paramètres!O33) -> 18 | P33: =IF([1]Paramètres!P33="","",[1]Paramètres!P33) -> 28 | Q33: =IF([1]Paramètres!Q33="","",[1]Paramètres!Q33) -> Forte
A34: =IF([1]Paramètres!A34="","",[1]Paramètres!A34) -> Munich light | B34: =IF([1]Paramètres!B34="","",[1]Paramètres!B34) -> 0.75 | C34: =IF([1]Paramètres!C34="","",[1]Paramètres!C34) -> 15 | D34: =IF([1]Paramètres!D34="","",[1]Paramètres!D34) -> 0.6 | E34: =IF([1]Paramètres!E34="","",[1]Paramètres!E34) -> 5.43 | F34: Type | G34: Rendement max | H34: EBC | I34: Pouvoir sucrant | J34: =IF([1]Paramètres!J34="","",[1]Paramètres!J34) -> Mangrove M42 New World Strong Ale | K34: =IF([1]Paramètres!K34="","",[1]Paramètres!K34) -> Sèche | L34: =IF([1]Paramètres!L34="","",[1]Paramètres!L34) -> 0.77 | M34: =IF([1]Paramètres!M34="","",[1]Paramètres!M34) -> 0.82 | N34: =IF([1]Paramètres!N34="","",[1]Paramètres!N34) -> 0.795 | O34: =IF([1]Paramètres!O34="","",[1]Paramètres!O34) -> 16 | P34: =IF([1]Paramètres!P34="","",[1]Paramètres!P34) -> 22 | Q34: =IF([1]Paramètres!Q34="","",[1]Paramètres!Q34) -> Forte
A35: =IF([1]Paramètres!A35="","",[1]Paramètres!A35) -> Munich light Swaen | B35: =IF([1]Paramètres!B35="","",[1]Paramètres!B35) -> 0.75 | C35: =IF([1]Paramètres!C35="","",[1]Paramètres!C35) -> 13 | D35: =IF([1]Paramètres!D35="","",[1]Paramètres!D35) -> 0.6 | E35: =IF([1]Paramètres!E35="","",[1]Paramètres!E35) -> 5.43 | F35: =IF([1]Paramètres!F35="","",[1]Paramètres!F35) -> Lactose | G35: =IF([1]Paramètres!G35="","",[1]Paramètres!G35) -> 1 | H35: =IF([1]Paramètres!H35="","",[1]Paramètres!H35) ->  | I35: =IF([1]Paramètres!I35="","",[1]Paramètres!I35) -> 0.16 | J35: =IF([1]Paramètres!J35="","",[1]Paramètres!J35) -> Mangrove M44 US West Coast | K35: =IF([1]Paramètres!K35="","",[1]Paramètres!K35) -> Sèche | L35: =IF([1]Paramètres!L35="","",[1]Paramètres!L35) -> 0.77 | M35: =IF([1]Paramètres!M35="","",[1]Paramètres!M35) -> 0.85 | N35: =IF([1]Paramètres!N35="","",[1]Paramètres!N35) -> 0.81 | O35: =IF([1]Paramètres!O35="","",[1]Paramètres!O35) -> 18 | P35: =IF([1]Paramètres!P35="","",[1]Paramètres!P35) -> 23 | Q35: =IF([1]Paramètres!Q35="","",[1]Paramètres!Q35) -> Faible
A36: =IF([1]Paramètres!A36="","",[1]Paramètres!A36) -> Munich Malt | B36: =IF([1]Paramètres!B36="","",[1]Paramètres!B36) -> 0.75 | C36: =IF([1]Paramètres!C36="","",[1]Paramètres!C36) -> 25 | D36: =IF([1]Paramètres!D36="","",[1]Paramètres!D36) -> 0.6 | E36: =IF([1]Paramètres!E36="","",[1]Paramètres!E36) -> 5.43 | F36: =IF([1]Paramètres!F36="","",[1]Paramètres!F36) ->  | G36: =IF([1]Paramètres!G36="","",[1]Paramètres!G36) ->  | H36: =IF([1]Paramètres!H36="","",[1]Paramètres!H36) ->  | I36: =IF([1]Paramètres!I36="","",[1]Paramètres!I36) ->  | J36: =IF([1]Paramètres!J36="","",[1]Paramètres!J36) -> OYL-062 - Voss Kveik | K36: =IF([1]Paramètres!K36="","",[1]Paramètres!K36) -> Liquide | L36: =IF([1]Paramètres!L36="","",[1]Paramètres!L36) -> 0.75 | M36: =IF([1]Paramètres!M36="","",[1]Paramètres!M36) -> 0.82 | N36: =IF([1]Paramètres!N36="","",[1]Paramètres!N36) -> 0.785 | O36: =IF([1]Paramètres!O36="","",[1]Paramètres!O36) -> 20 | P36: =IF([1]Paramètres!P36="","",[1]Paramètres!P36) -> 36.7 | Q36: =IF([1]Paramètres!Q36="","",[1]Paramètres!Q36) -> Moyenne
A37: =IF([1]Paramètres!A37="","",[1]Paramètres!A37) -> Orge (flocons) | B37: =IF([1]Paramètres!B37="","",[1]Paramètres!B37) -> 0.7 | C37: =IF([1]Paramètres!C37="","",[1]Paramètres!C37) -> 5 | D37: =IF([1]Paramètres!D37="","",[1]Paramètres!D37) -> 0.25 | E37: =IF([1]Paramètres!E37="","",[1]Paramètres!E37) -> 5.7 | F37: =IF([1]Paramètres!F37="","",[1]Paramètres!F37) ->  | G37: =IF([1]Paramètres!G37="","",[1]Paramètres!G37) ->  | H37: =IF([1]Paramètres!H37="","",[1]Paramètres!H37) ->  | I37: =IF([1]Paramètres!I37="","",[1]Paramètres!I37) ->  | J37: =IF([1]Paramètres!J37="","",[1]Paramètres!J37) -> WLP002 - English Ale | K37: =IF([1]Paramètres!K37="","",[1]Paramètres!K37) -> Liquide | L37: =IF([1]Paramètres!L37="","",[1]Paramètres!L37) -> 0.63 | M37: =IF([1]Paramètres!M37="","",[1]Paramètres!M37) -> 0.7 | N37: =IF([1]Paramètres!N37="","",[1]Paramètres!N37) -> 0.665 | O37: =IF([1]Paramètres!O37="","",[1]Paramètres!O37) -> 18.3 | P37: =IF([1]Paramètres!P37="","",[1]Paramètres!P37) -> 20 | Q37: =IF([1]Paramètres!Q37="","",[1]Paramètres!Q37) -> Très forte
A38: =IF([1]Paramètres!A38="","",[1]Paramètres!A38) -> Pale ale 2 rangs | B38: =IF([1]Paramètres!B38="","",[1]Paramètres!B38) -> 0.81 | C38: =IF([1]Paramètres!C38="","",[1]Paramètres!C38) -> 8 | D38: =IF([1]Paramètres!D38="","",[1]Paramètres!D38) -> 0.8 | E38: =IF([1]Paramètres!E38="","",[1]Paramètres!E38) -> 5.7 | F38: =IF([1]Paramètres!F38="","",[1]Paramètres!F38) ->  | G38: =IF([1]Paramètres!G38="","",[1]Paramètres!G38) ->  | H38: =IF([1]Paramètres!H38="","",[1]Paramètres!H38) ->  | I38: =IF([1]Paramètres!I38="","",[1]Paramètres!I38) ->  | J38: =IF([1]Paramètres!J38="","",[1]Paramètres!J38) -> WLP4042 - Hazy Daze | K38: =IF([1]Paramètres!K38="","",[1]Paramètres!K38) -> Liquide | L38: =IF([1]Paramètres!L38="","",[1]Paramètres!L38) -> 0.79 | M38: =IF([1]Paramètres!M38="","",[1]Paramètres!M38) -> 0.83 | N38: =IF([1]Paramètres!N38="","",[1]Paramètres!N38) -> 0.81 | O38: =IF([1]Paramètres!O38="","",[1]Paramètres!O38) -> 17.7 | P38: =IF([1]Paramètres!P38="","",[1]Paramètres!P38) -> 22 | Q38: =IF([1]Paramètres!Q38="","",[1]Paramètres!Q38) -> Moyenne
A39: =IF([1]Paramètres!A39="","",[1]Paramètres!A39) -> Pale ale Château | B39: =IF([1]Paramètres!B39="","",[1]Paramètres!B39) -> 0.81 | C39: =IF([1]Paramètres!C39="","",[1]Paramètres!C39) -> 8.5 | D39: =IF([1]Paramètres!D39="","",[1]Paramètres!D39) -> 1 | E39: =IF([1]Paramètres!E39="","",[1]Paramètres!E39) -> 5.7 | F39: =IF([1]Paramètres!F39="","",[1]Paramètres!F39) ->  | G39: =IF([1]Paramètres!G39="","",[1]Paramètres!G39) ->  | H39: =IF([1]Paramètres!H39="","",[1]Paramètres!H39) ->  | I39: =IF([1]Paramètres!I39="","",[1]Paramètres!I39) ->  | J39: =IF([1]Paramètres!J39="","",[1]Paramètres!J39) -> WLP4046 - Simonaitis Lithuanian Farmhouse | K39: =IF([1]Paramètres!K39="","",[1]Paramètres!K39) -> Liquide | L39: =IF([1]Paramètres!L39="","",[1]Paramètres!L39) -> 0.76 | M39: =IF([1]Paramètres!M39="","",[1]Paramètres!M39) -> 0.82 | N39: =IF([1]Paramètres!N39="","",[1]Paramètres!N39) -> 0.79 | O39: =IF([1]Paramètres!O39="","",[1]Paramètres!O39) -> 24 | P39: =IF([1]Paramètres!P39="","",[1]Paramètres!P39) -> 35 | Q39: =IF([1]Paramètres!Q39="","",[1]Paramètres!Q39) -> Forte
A40: =IF([1]Paramètres!A40="","",[1]Paramètres!A40) -> Pale ale Swaen | B40: =IF([1]Paramètres!B40="","",[1]Paramètres!B40) -> 0.8 | C40: =IF([1]Paramètres!C40="","",[1]Paramètres!C40) -> 7.1 | D40: =IF([1]Paramètres!D40="","",[1]Paramètres!D40) -> 1 | E40: =IF([1]Paramètres!E40="","",[1]Paramètres!E40) -> 5.7 | F40: =IF([1]Paramètres!F40="","",[1]Paramètres!F40) ->  | G40: =IF([1]Paramètres!G40="","",[1]Paramètres!G40) ->  | H40: =IF([1]Paramètres!H40="","",[1]Paramètres!H40) ->  | I40: =IF([1]Paramètres!I40="","",[1]Paramètres!I40) ->  | J40: =IF([1]Paramètres!J40="","",[1]Paramètres!J40) -> WLP650 - Brettanomyces Bruxellensis | K40: =IF([1]Paramètres!K40="","",[1]Paramètres!K40) -> Liquide | L40: =IF([1]Paramètres!L40="","",[1]Paramètres!L40) -> 0.85 | M40: =IF([1]Paramètres!M40="","",[1]Paramètres!M40) -> 0.85 | N40: =IF([1]Paramètres!N40="","",[1]Paramètres!N40) -> 0.85 | O40: =IF([1]Paramètres!O40="","",[1]Paramètres!O40) -> 21 | P40: =IF([1]Paramètres!P40="","",[1]Paramètres!P40) -> 30 | Q40: =IF([1]Paramètres!Q40="","",[1]Paramètres!Q40) -> Moyenne
A41: =IF([1]Paramètres!A41="","",[1]Paramètres!A41) -> Pilsen 2 rangs | B41: =IF([1]Paramètres!B41="","",[1]Paramètres!B41) -> 0.8 | C41: =IF([1]Paramètres!C41="","",[1]Paramètres!C41) -> 3 | D41: =IF([1]Paramètres!D41="","",[1]Paramètres!D41) -> 1 | E41: =IF([1]Paramètres!E41="","",[1]Paramètres!E41) -> 5.7 | F41: =IF([1]Paramètres!F41="","",[1]Paramètres!F41) ->  | G41: =IF([1]Paramètres!G41="","",[1]Paramètres!G41) ->  | H41: =IF([1]Paramètres!H41="","",[1]Paramètres!H41) ->  | I41: =IF([1]Paramètres!I41="","",[1]Paramètres!I41) ->  | J41: =IF([1]Paramètres!J41="","",[1]Paramètres!J41) -> WLP810 - San Fransisco Lager | K41: =IF([1]Paramètres!K41="","",[1]Paramètres!K41) -> Liquide | L41: =IF([1]Paramètres!L41="","",[1]Paramètres!L41) -> 0.65 | M41: =IF([1]Paramètres!M41="","",[1]Paramètres!M41) -> 0.7 | N41: =IF([1]Paramètres!N41="","",[1]Paramètres!N41) -> 0.675 | O41: =IF([1]Paramètres!O41="","",[1]Paramètres!O41) -> 14.4 | P41: =IF([1]Paramètres!P41="","",[1]Paramètres!P41) -> 18.3 | Q41: =IF([1]Paramètres!Q41="","",[1]Paramètres!Q41) -> Forte
A42: =IF([1]Paramètres!A42="","",[1]Paramètres!A42) -> Pilsen 6 rangs | B42: =IF([1]Paramètres!B42="","",[1]Paramètres!B42) -> 0.76 | C42: =IF([1]Paramètres!C42="","",[1]Paramètres!C42) -> 3 | D42: =IF([1]Paramètres!D42="","",[1]Paramètres!D42) -> 1 | E42: =IF([1]Paramètres!E42="","",[1]Paramètres!E42) -> 5.79 | J42: =IF([1]Paramètres!J42="","",[1]Paramètres!J42) -> WLP830 - German Lager | K42: =IF([1]Paramètres!K42="","",[1]Paramètres!K42) -> Liquide | L42: =IF([1]Paramètres!L42="","",[1]Paramètres!L42) -> 0.74 | M42: =IF([1]Paramètres!M42="","",[1]Paramètres!M42) -> 0.79 | N42: =IF([1]Paramètres!N42="","",[1]Paramètres!N42) -> 0.765 | O42: =IF([1]Paramètres!O42="","",[1]Paramètres!O42) -> 10 | P42: =IF([1]Paramètres!P42="","",[1]Paramètres!P42) -> 13 | Q42: =IF([1]Paramètres!Q42="","",[1]Paramètres!Q42) -> Moyenne
A43: =IF([1]Paramètres!A43="","",[1]Paramètres!A43) -> Pilsen Swaen | B43: =IF([1]Paramètres!B43="","",[1]Paramètres!B43) -> 0.8 | C43: =IF([1]Paramètres!C43="","",[1]Paramètres!C43) -> 3.7 | D43: =IF([1]Paramètres!D43="","",[1]Paramètres!D43) -> 1 | E43: =IF([1]Paramètres!E43="","",[1]Paramètres!E43) -> 5.7 | F43: Effet des acides | J43: =IF([1]Paramètres!J43="","",[1]Paramètres!J43) -> WLP833 - German Bock Lager | K43: =IF([1]Paramètres!K43="","",[1]Paramètres!K43) -> Liquide | L43: =IF([1]Paramètres!L43="","",[1]Paramètres!L43) -> 0.7 | M43: =IF([1]Paramètres!M43="","",[1]Paramètres!M43) -> 0.76 | N43: =IF([1]Paramètres!N43="","",[1]Paramètres!N43) -> 0.73 | O43: =IF([1]Paramètres!O43="","",[1]Paramètres!O43) -> 9 | P43: =IF([1]Paramètres!P43="","",[1]Paramètres!P43) -> 13 | Q43: =IF([1]Paramètres!Q43="","",[1]Paramètres!Q43) -> Moyenne
A44: =IF([1]Paramètres!A44="","",[1]Paramètres!A44) -> Pilsen vieux silo | B44: =IF([1]Paramètres!B44="","",[1]Paramètres!B44) -> 0.72 | C44: =IF([1]Paramètres!C44="","",[1]Paramètres!C44) -> 3 | D44: =IF([1]Paramètres!D44="","",[1]Paramètres!D44) -> 1 | E44: =IF([1]Paramètres!E44="","",[1]Paramètres!E44) -> 5.79 | F44: quantité | G44: Type | H44: concentration | I44: effet | J44: =IF([1]Paramètres!J44="","",[1]Paramètres!J44) -> Fermentis - BE-134 | K44: =IF([1]Paramètres!K44="","",[1]Paramètres!K44) -> Sèche | L44: =IF([1]Paramètres!L44="","",[1]Paramètres!L44) -> 0.9 | M44: =IF([1]Paramètres!M44="","",[1]Paramètres!M44) -> 0.9 | N44: =IF([1]Paramètres!N44="","",[1]Paramètres!N44) -> 0.9 | O44: =IF([1]Paramètres!O44="","",[1]Paramètres!O44) -> 18 | P44: =IF([1]Paramètres!P44="","",[1]Paramètres!P44) -> 28 | Q44: =IF([1]Paramètres!Q44="","",[1]Paramètres!Q44) -> Basse
A45: =IF([1]Paramètres!A45="","",[1]Paramètres!A45) -> Riz (flocons) | B45: =IF([1]Paramètres!B45="","",[1]Paramètres!B45) -> 0.82 | C45: =IF([1]Paramètres!C45="","",[1]Paramètres!C45) -> 5 | D45: =IF([1]Paramètres!D45="","",[1]Paramètres!D45) -> 0.25 | E45: =IF([1]Paramètres!E45="","",[1]Paramètres!E45) -> 5.7 | F45: =IF([1]Paramètres!F45="","",[1]Paramètres!F45) -> 1 | G45: =IF([1]Paramètres!G45="","",[1]Paramètres!G45) -> Acide Lactique | H45: =IF([1]Paramètres!H45="","",[1]Paramètres!H45) -> 0.8 | I45: =IF([1]Paramètres!I45="","",[1]Paramètres!I45) -> 10.7 | J45: =IF([1]Paramètres!J45="","",[1]Paramètres!J45) -> Fermentis - WB-06 | K45: =IF([1]Paramètres!K45="","",[1]Paramètres!K45) -> Sèche | L45: =IF([1]Paramètres!L45="","",[1]Paramètres!L45) -> 0.86 | M45: =IF([1]Paramètres!M45="","",[1]Paramètres!M45) -> 0.86 | N45: =IF([1]Paramètres!N45="","",[1]Paramètres!N45) -> 0.86 | O45: =IF([1]Paramètres!O45="","",[1]Paramètres!O45) -> 17.8 | P45: =IF([1]Paramètres!P45="","",[1]Paramètres!P45) -> 23.9 | Q45: =IF([1]Paramètres!Q45="","",[1]Paramètres!Q45) -> Basse
A46: =IF([1]Paramètres!A46="","",[1]Paramètres!A46) -> Roasted Barley | B46: =IF([1]Paramètres!B46="","",[1]Paramètres!B46) -> 0.55 | C46: =IF([1]Paramètres!C46="","",[1]Paramètres!C46) -> 1200 | D46: =IF([1]Paramètres!D46="","",[1]Paramètres!D46) -> 0.1 | E46: =IF([1]Paramètres!E46="","",[1]Paramètres!E46) -> 4.71 | F46: =IF([1]Paramètres!F46="","",[1]Paramètres!F46) -> 1 | G46: =IF([1]Paramètres!G46="","",[1]Paramètres!G46) -> Acide Lactique | H46: =IF([1]Paramètres!H46="","",[1]Paramètres!H46) -> 0.88 | I46: =IF([1]Paramètres!I46="","",[1]Paramètres!I46) -> 11.8 | J46: =IF([1]Paramètres!J46="","",[1]Paramètres!J46) -> Fermentis - K-97 | K46: =IF([1]Paramètres!K46="","",[1]Paramètres!K46) -> Sèche | L46: =IF([1]Paramètres!L46="","",[1]Paramètres!L46) -> 0.81 | M46: =IF([1]Paramètres!M46="","",[1]Paramètres!M46) -> 0.81 | N46: =IF([1]Paramètres!N46="","",[1]Paramètres!N46) -> 0.81 | O46: =IF([1]Paramètres!O46="","",[1]Paramètres!O46) -> 15 | P46: =IF([1]Paramètres!P46="","",[1]Paramètres!P46) -> 20 | Q46: =IF([1]Paramètres!Q46="","",[1]Paramètres!Q46) -> Basse
A47: =IF([1]Paramètres!A47="","",[1]Paramètres!A47) -> Seigle | B47: =IF([1]Paramètres!B47="","",[1]Paramètres!B47) -> 0.63 | C47: =IF([1]Paramètres!C47="","",[1]Paramètres!C47) -> 8 | D47: =IF([1]Paramètres!D47="","",[1]Paramètres!D47) -> 0.2 | E47: =IF([1]Paramètres!E47="","",[1]Paramètres!E47) -> 5.7 | F47: =IF([1]Paramètres!F47="","",[1]Paramètres!F47) -> 1 | G47: =IF([1]Paramètres!G47="","",[1]Paramètres!G47) -> Acide Chlorhydrique | H47: =IF([1]Paramètres!H47="","",[1]Paramètres!H47) -> 0.37 | I47: =IF([1]Paramètres!I47="","",[1]Paramètres!I47) -> 15 | J47: =IF([1]Paramètres!J47="","",[1]Paramètres!J47) -> Fermentis - T-58 | K47: =IF([1]Paramètres!K47="","",[1]Paramètres!K47) -> Sèche | L47: =IF([1]Paramètres!L47="","",[1]Paramètres!L47) -> 0.7 | M47: =IF([1]Paramètres!M47="","",[1]Paramètres!M47) -> 0.7 | N47: =IF([1]Paramètres!N47="","",[1]Paramètres!N47) -> 0.7 | O47: =IF([1]Paramètres!O47="","",[1]Paramètres!O47) -> 15 | P47: =IF([1]Paramètres!P47="","",[1]Paramètres!P47) -> 20 | Q47: =IF([1]Paramètres!Q47="","",[1]Paramètres!Q47) -> Basse- Moyenne
A48: =IF([1]Paramètres!A48="","",[1]Paramètres!A48) -> Seigle Chocolat | B48: =IF([1]Paramètres!B48="","",[1]Paramètres!B48) -> 0.6 | C48: =IF([1]Paramètres!C48="","",[1]Paramètres!C48) -> 650 | D48: =IF([1]Paramètres!D48="","",[1]Paramètres!D48) -> 0.07 | E48: =IF([1]Paramètres!E48="","",[1]Paramètres!E48) -> 4.71 | F48: =IF([1]Paramètres!F48="","",[1]Paramètres!F48) -> 1 | G48: =IF([1]Paramètres!G48="","",[1]Paramètres!G48) -> Malt acide | H48: =IF([1]Paramètres!H48="","",[1]Paramètres!H48) -> 0.04 | I48: =IF([1]Paramètres!I48="","",[1]Paramètres!I48) -> 0.33 | J48: =IF([1]Paramètres!J48="","",[1]Paramètres!J48) -> Fermentis - S-04 | K48: =IF([1]Paramètres!K48="","",[1]Paramètres!K48) -> Sèche | L48: =IF([1]Paramètres!L48="","",[1]Paramètres!L48) -> 0.75 | M48: =IF([1]Paramètres!M48="","",[1]Paramètres!M48) -> 0.75 | N48: =IF([1]Paramètres!N48="","",[1]Paramètres!N48) -> 0.75 | O48: =IF([1]Paramètres!O48="","",[1]Paramètres!O48) -> 15 | P48: =IF([1]Paramètres!P48="","",[1]Paramètres!P48) -> 20 | Q48: =IF([1]Paramètres!Q48="","",[1]Paramètres!Q48) -> Haute
A49: =IF([1]Paramètres!A49="","",[1]Paramètres!A49) -> Special B | B49: =IF([1]Paramètres!B49="","",[1]Paramètres!B49) -> 0.68 | C49: =IF([1]Paramètres!C49="","",[1]Paramètres!C49) -> 300 | D49: =IF([1]Paramètres!D49="","",[1]Paramètres!D49) -> 0.1 | E49: =IF([1]Paramètres!E49="","",[1]Paramètres!E49) -> 4.65 | F49: pH des malts | J49: =IF([1]Paramètres!J49="","",[1]Paramètres!J49) -> Fermentis - BE-256 | K49: =IF([1]Paramètres!K49="","",[1]Paramètres!K49) -> Sèche | L49: =IF([1]Paramètres!L49="","",[1]Paramètres!L49) -> 0.85 | M49: =IF([1]Paramètres!M49="","",[1]Paramètres!M49) -> 0.85 | N49: =IF([1]Paramètres!N49="","",[1]Paramètres!N49) -> 0.85 | O49: =IF([1]Paramètres!O49="","",[1]Paramètres!O49) -> 15 | P49: =IF([1]Paramètres!P49="","",[1]Paramètres!P49) -> 20 | Q49: =IF([1]Paramètres!Q49="","",[1]Paramètres!Q49) -> Haute
A50: =IF([1]Paramètres!A50="","",[1]Paramètres!A50) -> Sucre ambré | B50: =IF([1]Paramètres!B50="","",[1]Paramètres!B50) -> 1 | C50: =IF([1]Paramètres!C50="","",[1]Paramètres!C50) -> 150 | D50: =IF([1]Paramètres!D50="","",[1]Paramètres!D50) ->  | E50: =IF([1]Paramètres!E50="","",[1]Paramètres!E50) ->  | F50: Crystal/Cara Malt | G50: 5 | H50: =5.22-0.00504*(G50+1.479)/2.6686 -> 5.207763561 | J50: =IF([1]Paramètres!J50="","",[1]Paramètres!J50) -> Fermentis - S-23 | K50: =IF([1]Paramètres!K50="","",[1]Paramètres!K50) -> Sèche | L50: =IF([1]Paramètres!L50="","",[1]Paramètres!L50) -> 0.82 | M50: =IF([1]Paramètres!M50="","",[1]Paramètres!M50) -> 0.82 | N50: =IF([1]Paramètres!N50="","",[1]Paramètres!N50) -> 0.82 | O50: =IF([1]Paramètres!O50="","",[1]Paramètres!O50) -> 12 | P50: =IF([1]Paramètres!P50="","",[1]Paramètres!P50) -> 15 | Q50: =IF([1]Paramètres!Q50="","",[1]Paramètres!Q50) -> Haute
A51: =IF([1]Paramètres!A51="","",[1]Paramètres!A51) -> Sucre blanc | B51: =IF([1]Paramètres!B51="","",[1]Paramètres!B51) -> 1 | C51: =IF([1]Paramètres!C51="","",[1]Paramètres!C51) -> 2 | D51: =IF([1]Paramètres!D51="","",[1]Paramètres!D51) ->  | E51: =IF([1]Paramètres!E51="","",[1]Paramètres!E51) ->  | F51: Base - 2-Row | G51: 5.7 | J51: =IF([1]Paramètres!J51="","",[1]Paramètres!J51) -> Fermentis - S-189 | K51: =IF([1]Paramètres!K51="","",[1]Paramètres!K51) -> Sèche | L51: =IF([1]Paramètres!L51="","",[1]Paramètres!L51) -> 0.82 | M51: =IF([1]Paramètres!M51="","",[1]Paramètres!M51) -> 0.82 | N51: =IF([1]Paramètres!N51="","",[1]Paramètres!N51) -> 0.82 | O51: =IF([1]Paramètres!O51="","",[1]Paramètres!O51) -> 12 | P51: =IF([1]Paramètres!P51="","",[1]Paramètres!P51) -> 15 | Q51: =IF([1]Paramètres!Q51="","",[1]Paramètres!Q51) -> Haute
A52: =IF([1]Paramètres!A52="","",[1]Paramètres!A52) -> Sucre foncé | B52: =IF([1]Paramètres!B52="","",[1]Paramètres!B52) -> 1 | C52: =IF([1]Paramètres!C52="","",[1]Paramètres!C52) -> 542 | D52: =IF([1]Paramètres!D52="","",[1]Paramètres!D52) ->  | E52: =IF([1]Paramètres!E52="","",[1]Paramètres!E52) ->  | F52: Base - 6-Row | G52: 5.79 | J52: =IF([1]Paramètres!J52="","",[1]Paramètres!J52) -> Fermentis - W-34/70 | K52: =IF([1]Paramètres!K52="","",[1]Paramètres!K52) -> Sèche | L52: =IF([1]Paramètres!L52="","",[1]Paramètres!L52) -> 0.82 | M52: =IF([1]Paramètres!M52="","",[1]Paramètres!M52) -> 0.82 | N52: =IF([1]Paramètres!N52="","",[1]Paramètres!N52) -> 0.82 | O52: =IF([1]Paramètres!O52="","",[1]Paramètres!O52) -> 12 | P52: =IF([1]Paramètres!P52="","",[1]Paramètres!P52) -> 15 | Q52: =IF([1]Paramètres!Q52="","",[1]Paramètres!Q52) -> Haute
A53: =IF([1]Paramètres!A53="","",[1]Paramètres!A53) -> Vienna | B53: =IF([1]Paramètres!B53="","",[1]Paramètres!B53) -> 0.75 | C53: =IF([1]Paramètres!C53="","",[1]Paramètres!C53) -> 6 | D53: =IF([1]Paramètres!D53="","",[1]Paramètres!D53) -> 1 | E53: =IF([1]Paramètres!E53="","",[1]Paramètres!E53) -> 5.56 | F53: Base - Maris Otter | G53: 5.77 | J53: =IF([1]Paramètres!J53="","",[1]Paramètres!J53) -> Fermentis - HA-18 | K53: =IF([1]Paramètres!K53="","",[1]Paramètres!K53) -> Sèche | L53: =IF([1]Paramètres!L53="","",[1]Paramètres!L53) -> 0.97 | M53: =IF([1]Paramètres!M53="","",[1]Paramètres!M53) -> 0.97 | N53: =IF([1]Paramètres!N53="","",[1]Paramètres!N53) -> 0.97 | O53: =IF([1]Paramètres!O53="","",[1]Paramètres!O53) -> 25 | P53: =IF([1]Paramètres!P53="","",[1]Paramètres!P53) -> 35 | Q53: =IF([1]Paramètres!Q53="","",[1]Paramètres!Q53) -> Moyenne
A54: =IF([1]Paramètres!A54="","",[1]Paramètres!A54) -> Vienna Swaen | B54: =IF([1]Paramètres!B54="","",[1]Paramètres!B54) -> 0.75 | C54: =IF([1]Paramètres!C54="","",[1]Paramètres!C54) -> 10 | D54: =IF([1]Paramètres!D54="","",[1]Paramètres!D54) -> 1 | E54: =IF([1]Paramètres!E54="","",[1]Paramètres!E54) -> 5.56 | F54: Base - Munich | G54: 5.43 | J54: =IF([1]Paramètres!J54="","",[1]Paramètres!J54) -> Fermentis - S-33 | K54: =IF([1]Paramètres!K54="","",[1]Paramètres!K54) -> Sèche | L54: =IF([1]Paramètres!L54="","",[1]Paramètres!L54) -> 0.7 | M54: =IF([1]Paramètres!M54="","",[1]Paramètres!M54) -> 0.7 | N54: =IF([1]Paramètres!N54="","",[1]Paramètres!N54) -> 0.7 | O54: =IF([1]Paramètres!O54="","",[1]Paramètres!O54) -> 15 | P54: =IF([1]Paramètres!P54="","",[1]Paramètres!P54) -> 20 | Q54: =IF([1]Paramètres!Q54="","",[1]Paramètres!Q54) -> Moyenne
A55: =IF([1]Paramètres!A55="","",[1]Paramètres!A55) -> Château Abbaye | B55: =IF([1]Paramètres!B55="","",[1]Paramètres!B55) -> 0.78 | C55: =IF([1]Paramètres!C55="","",[1]Paramètres!C55) -> 45 | D55: =IF([1]Paramètres!D55="","",[1]Paramètres!D55) -> 0.25 | E55: =IF([1]Paramètres!E55="","",[1]Paramètres!E55) -> 5.13 | F55: Base - Pilsner | G55: 5.75 | J55: =IF([1]Paramètres!J55="","",[1]Paramètres!J55) -> Fermentis - US-05 | K55: =IF([1]Paramètres!K55="","",[1]Paramètres!K55) -> Sèche | L55: =IF([1]Paramètres!L55="","",[1]Paramètres!L55) -> 0.81 | M55: =IF([1]Paramètres!M55="","",[1]Paramètres!M55) -> 0.81 | N55: =IF([1]Paramètres!N55="","",[1]Paramètres!N55) -> 0.81 | O55: =IF([1]Paramètres!O55="","",[1]Paramètres!O55) -> 12 | P55: =IF([1]Paramètres!P55="","",[1]Paramètres!P55) -> 25 | Q55: =IF([1]Paramètres!Q55="","",[1]Paramètres!Q55) -> Moyenne - Haute
A56: =IF([1]Paramètres!A56="","",[1]Paramètres!A56) -> Château Acide Malt | B56: =IF([1]Paramètres!B56="","",[1]Paramètres!B56) -> 0.74 | C56: =IF([1]Paramètres!C56="","",[1]Paramètres!C56) -> 8 | D56: =IF([1]Paramètres!D56="","",[1]Paramètres!D56) -> 0.1 | E56: =IF([1]Paramètres!E56="","",[1]Paramètres!E56) -> 4.5 | F56: Base - Wheat | G56: 6.04 | J56: =IF([1]Paramètres!J56="","",[1]Paramètres!J56) -> GigaYeast - GY014 : BELGIAN ABBEY ALE | K56: =IF([1]Paramètres!K56="","",[1]Paramètres!K56) ->  | L56: =IF([1]Paramètres!L56="","",[1]Paramètres!L56) -> 0.79 | M56: =IF([1]Paramètres!M56="","",[1]Paramètres!M56) -> 0.81 | N56: =IF([1]Paramètres!N56="","",[1]Paramètres!N56) -> 0.8 | O56: =IF([1]Paramètres!O56="","",[1]Paramètres!O56) -> 17.8 | P56: =IF([1]Paramètres!P56="","",[1]Paramètres!P56) -> 26.7 | Q56: =IF([1]Paramètres!Q56="","",[1]Paramètres!Q56) -> Basse
A57: =IF([1]Paramètres!A57="","",[1]Paramètres!A57) -> Château Arôme | B57: =IF([1]Paramètres!B57="","",[1]Paramètres!B57) -> 0.78 | C57: =IF([1]Paramètres!C57="","",[1]Paramètres!C57) -> 100 | D57: =IF([1]Paramètres!D57="","",[1]Paramètres!D57) -> 0.2 | E57: =IF([1]Paramètres!E57="","",[1]Paramètres!E57) -> 5.03 | F57: Base - Vienna | G57: 5.56 | J57: =IF([1]Paramètres!J57="","",[1]Paramètres!J57) -> GigaYeast - GY018 : SAISON #1 | K57: =IF([1]Paramètres!K57="","",[1]Paramètres!K57) ->  | L57: =IF([1]Paramètres!L57="","",[1]Paramètres!L57) -> 0.81 | M57: =IF([1]Paramètres!M57="","",[1]Paramètres!M57) -> 0.83 | N57: =IF([1]Paramètres!N57="","",[1]Paramètres!N57) -> 0.82 | O57: =IF([1]Paramètres!O57="","",[1]Paramètres!O57) -> 17.8 | P57: =IF([1]Paramètres!P57="","",[1]Paramètres!P57) -> 26.7 | Q57: =IF([1]Paramètres!Q57="","",[1]Paramètres!Q57) -> Basse
A58: =IF([1]Paramètres!A58="","",[1]Paramètres!A58) -> Château Avoine Malt | B58: =IF([1]Paramètres!B58="","",[1]Paramètres!B58) -> 0.59 | C58: =IF([1]Paramètres!C58="","",[1]Paramètres!C58) -> 2 | D58: =IF([1]Paramètres!D58="","",[1]Paramètres!D58) -> 0.15 | E58: =IF([1]Paramètres!E58="","",[1]Paramètres!E58) -> 5.2 | F58: Base - Other | G58: 5.7 | J58: =IF([1]Paramètres!J58="","",[1]Paramètres!J58) -> GigaYeast - GY027 : SAISON #2 | K58: =IF([1]Paramètres!K58="","",[1]Paramètres!K58) ->  | L58: =IF([1]Paramètres!L58="","",[1]Paramètres!L58) -> 0.79 | M58: =IF([1]Paramètres!M58="","",[1]Paramètres!M58) -> 0.83 | N58: =IF([1]Paramètres!N58="","",[1]Paramètres!N58) -> 0.81 | O58: =IF([1]Paramètres!O58="","",[1]Paramètres!O58) -> 17.8 | P58: =IF([1]Paramètres!P58="","",[1]Paramètres!P58) -> 26.7 | Q58: =IF([1]Paramètres!Q58="","",[1]Paramètres!Q58) -> Basse
A59: =IF([1]Paramètres!A59="","",[1]Paramètres!A59) -> Château Biscuit Malt | B59: =IF([1]Paramètres!B59="","",[1]Paramètres!B59) -> 0.77 | C59: =IF([1]Paramètres!C59="","",[1]Paramètres!C59) -> 50 | D59: =IF([1]Paramètres!D59="","",[1]Paramètres!D59) -> 0.25 | E59: =IF([1]Paramètres!E59="","",[1]Paramètres!E59) -> 5.12 | F59: Roasted/Toasted Malt | G59: 4.71 | J59: =IF([1]Paramètres!J59="","",[1]Paramètres!J59) -> GigaYeast - GY047 : SAISON BLEND | K59: =IF([1]Paramètres!K59="","",[1]Paramètres!K59) ->  | L59: =IF([1]Paramètres!L59="","",[1]Paramètres!L59) -> 0.8 | M59: =IF([1]Paramètres!M59="","",[1]Paramètres!M59) -> 0.83 | N59: =IF([1]Paramètres!N59="","",[1]Paramètres!N59) -> 0.815 | O59: =IF([1]Paramètres!O59="","",[1]Paramètres!O59) -> 17.8 | P59: =IF([1]Paramètres!P59="","",[1]Paramètres!P59) -> 26.7 | Q59: =IF([1]Paramètres!Q59="","",[1]Paramètres!Q59) -> Basse
A60: =IF([1]Paramètres!A60="","",[1]Paramètres!A60) -> Château Black | B60: =IF([1]Paramètres!B60="","",[1]Paramètres!B60) -> 0.72 | C60: =IF([1]Paramètres!C60="","",[1]Paramètres!C60) -> 1300 | D60: =IF([1]Paramètres!D60="","",[1]Paramètres!D60) -> 0.06 | E60: =IF([1]Paramètres!E60="","",[1]Paramètres!E60) -> 4.71 | J60: =IF([1]Paramètres!J60="","",[1]Paramètres!J60) -> GigaYeast - GY048 : GOLDEN PEAR BELGIAN | K60: =IF([1]Paramètres!K60="","",[1]Paramètres!K60) ->  | L60: =IF([1]Paramètres!L60="","",[1]Paramètres!L60) -> 0.83 | M60: =IF([1]Paramètres!M60="","",[1]Paramètres!M60) -> 0.85 | N60: =IF([1]Paramètres!N60="","",[1]Paramètres!N60) -> 0.84 | O60: =IF([1]Paramètres!O60="","",[1]Paramètres!O60) -> 18.3 | P60: =IF([1]Paramètres!P60="","",[1]Paramètres!P60) -> 26.7 | Q60: =IF([1]Paramètres!Q60="","",[1]Paramètres!Q60) -> Basse
A61: =IF([1]Paramètres!A61="","",[1]Paramètres!A61) -> Château Café | B61: =IF([1]Paramètres!B61="","",[1]Paramètres!B61) -> 0.75 | C61: =IF([1]Paramètres!C61="","",[1]Paramètres!C61) -> 500 | D61: =IF([1]Paramètres!D61="","",[1]Paramètres!D61) -> 0.1 | E61: =IF([1]Paramètres!E61="","",[1]Paramètres!E61) -> 4.71 | J61: =IF([1]Paramètres!J61="","",[1]Paramètres!J61) -> GigaYeast - GY007 : BELGIAN MIX | K61: =IF([1]Paramètres!K61="","",[1]Paramètres!K61) ->  | L61: =IF([1]Paramètres!L61="","",[1]Paramètres!L61) -> 0.79 | M61: =IF([1]Paramètres!M61="","",[1]Paramètres!M61) -> 0.81 | N61: =IF([1]Paramètres!N61="","",[1]Paramètres!N61) -> 0.8 | O61: =IF([1]Paramètres!O61="","",[1]Paramètres!O61) -> 18.9 | P61: =IF([1]Paramètres!P61="","",[1]Paramètres!P61) -> 25 | Q61: =IF([1]Paramètres!Q61="","",[1]Paramètres!Q61) -> Basse
A62: =IF([1]Paramètres!A62="","",[1]Paramètres!A62) -> Château Café Light | B62: =IF([1]Paramètres!B62="","",[1]Paramètres!B62) -> 0.77 | C62: =IF([1]Paramètres!C62="","",[1]Paramètres!C62) -> 250 | D62: =IF([1]Paramètres!D62="","",[1]Paramètres!D62) -> 0.1 | E62: =IF([1]Paramètres!E62="","",[1]Paramètres!E62) -> 4.71 | J62: =IF([1]Paramètres!J62="","",[1]Paramètres!J62) -> GigaYeast - GY015 : BELGIAN TRIPEL | K62: =IF([1]Paramètres!K62="","",[1]Paramètres!K62) ->  | L62: =IF([1]Paramètres!L62="","",[1]Paramètres!L62) -> 0.74 | M62: =IF([1]Paramètres!M62="","",[1]Paramètres!M62) -> 0.76 | N62: =IF([1]Paramètres!N62="","",[1]Paramètres!N62) -> 0.75 | O62: =IF([1]Paramètres!O62="","",[1]Paramètres!O62) -> 18.9 | P62: =IF([1]Paramètres!P62="","",[1]Paramètres!P62) -> 23.3 | Q62: =IF([1]Paramètres!Q62="","",[1]Paramètres!Q62) -> Basse
A63: =IF([1]Paramètres!A63="","",[1]Paramètres!A63) -> Château Cara Blond | B63: =IF([1]Paramètres!B63="","",[1]Paramètres!B63) -> 0.78 | C63: =IF([1]Paramètres!C63="","",[1]Paramètres!C63) -> 20 | D63: =IF([1]Paramètres!D63="","",[1]Paramètres!D63) -> 0.3 | E63: =IF([1]Paramètres!E63="","",[1]Paramètres!E63) -> 5.18 | J63: =IF([1]Paramètres!J63="","",[1]Paramètres!J63) -> GigaYeast - GY016 : ALTSTADT ALE | K63: =IF([1]Paramètres!K63="","",[1]Paramètres!K63) ->  | L63: =IF([1]Paramètres!L63="","",[1]Paramètres!L63) -> 0.77 | M63: =IF([1]Paramètres!M63="","",[1]Paramètres!M63) -> 0.81 | N63: =IF([1]Paramètres!N63="","",[1]Paramètres!N63) -> 0.79 | O63: =IF([1]Paramètres!O63="","",[1]Paramètres!O63) -> 12.8 | P63: =IF([1]Paramètres!P63="","",[1]Paramètres!P63) -> 20 | Q63: =IF([1]Paramètres!Q63="","",[1]Paramètres!Q63) -> Basse
A64: =IF([1]Paramètres!A64="","",[1]Paramètres!A64) -> Château Cara Clair (carapils) | B64: =IF([1]Paramètres!B64="","",[1]Paramètres!B64) -> 0.78 | C64: =IF([1]Paramètres!C64="","",[1]Paramètres!C64) -> 8 | D64: =IF([1]Paramètres!D64="","",[1]Paramètres!D64) -> 0.3 | E64: =IF([1]Paramètres!E64="","",[1]Paramètres!E64) -> 5.2 | J64: =IF([1]Paramètres!J64="","",[1]Paramètres!J64) -> GigaYeast - GY003 : A TOUCH OF SPICE BELGIAN ALE | K64: =IF([1]Paramètres!K64="","",[1]Paramètres!K64) ->  | L64: =IF([1]Paramètres!L64="","",[1]Paramètres!L64) -> 0.81 | M64: =IF([1]Paramètres!M64="","",[1]Paramètres!M64) -> 0.84 | N64: =IF([1]Paramètres!N64="","",[1]Paramètres!N64) -> 0.825 | O64: =IF([1]Paramètres!O64="","",[1]Paramètres!O64) -> 20 | P64: =IF([1]Paramètres!P64="","",[1]Paramètres!P64) -> 25 | Q64: =IF([1]Paramètres!Q64="","",[1]Paramètres!Q64) -> Basse- Moyenne
A65: =IF([1]Paramètres!A65="","",[1]Paramètres!A65) -> Château Cara Gold | B65: =IF([1]Paramètres!B65="","",[1]Paramètres!B65) -> 0.78 | C65: =IF([1]Paramètres!C65="","",[1]Paramètres!C65) -> 120 | D65: =IF([1]Paramètres!D65="","",[1]Paramètres!D65) -> 0.2 | E65: =IF([1]Paramètres!E65="","",[1]Paramètres!E65) -> 4.99 | J65: =IF([1]Paramètres!J65="","",[1]Paramètres!J65) -> GigaYeast - GY044 : SCOTCH ALE #1 | K65: =IF([1]Paramètres!K65="","",[1]Paramètres!K65) ->  | L65: =IF([1]Paramètres!L65="","",[1]Paramètres!L65) -> 0.8 | M65: =IF([1]Paramètres!M65="","",[1]Paramètres!M65) -> 0.82 | N65: =IF([1]Paramètres!N65="","",[1]Paramètres!N65) -> 0.81 | O65: =IF([1]Paramètres!O65="","",[1]Paramètres!O65) -> 17.8 | P65: =IF([1]Paramètres!P65="","",[1]Paramètres!P65) -> 23.9 | Q65: =IF([1]Paramètres!Q65="","",[1]Paramètres!Q65) -> Basse- Moyenne
A66: =IF([1]Paramètres!A66="","",[1]Paramètres!A66) -> Château Cara Ruby | B66: =IF([1]Paramètres!B66="","",[1]Paramètres!B66) -> 0.77 | C66: =IF([1]Paramètres!C66="","",[1]Paramètres!C66) -> 50 | D66: =IF([1]Paramètres!D66="","",[1]Paramètres!D66) -> 0.25 | E66: =IF([1]Paramètres!E66="","",[1]Paramètres!E66) -> 5.12 | J66: =IF([1]Paramètres!J66="","",[1]Paramètres!J66) -> GigaYeast - GY054 : VERMONT IPA | K66: =IF([1]Paramètres!K66="","",[1]Paramètres!K66) ->  | L66: =IF([1]Paramètres!L66="","",[1]Paramètres!L66) -> 0.78 | M66: =IF([1]Paramètres!M66="","",[1]Paramètres!M66) -> 0.82 | N66: =IF([1]Paramètres!N66="","",[1]Paramètres!N66) -> 0.8 | O66: =IF([1]Paramètres!O66="","",[1]Paramètres!O66) -> 16.7 | P66: =IF([1]Paramètres!P66="","",[1]Paramètres!P66) -> 23.9 | Q66: =IF([1]Paramètres!Q66="","",[1]Paramètres!Q66) -> Basse- Moyenne
A67: =IF([1]Paramètres!A67="","",[1]Paramètres!A67) -> Château Chocolat | B67: =IF([1]Paramètres!B67="","",[1]Paramètres!B67) -> 0.75 | C67: =IF([1]Paramètres!C67="","",[1]Paramètres!C67) -> 900 | D67: =IF([1]Paramètres!D67="","",[1]Paramètres!D67) -> 0.07 | E67: =IF([1]Paramètres!E67="","",[1]Paramètres!E67) -> 3.33 | J67: =IF([1]Paramètres!J67="","",[1]Paramètres!J67) -> GigaYeast - GY045 : GERMAN LAGER | K67: =IF([1]Paramètres!K67="","",[1]Paramètres!K67) ->  | L67: =IF([1]Paramètres!L67="","",[1]Paramètres!L67) -> 0.74 | M67: =IF([1]Paramètres!M67="","",[1]Paramètres!M67) -> 0.78 | N67: =IF([1]Paramètres!N67="","",[1]Paramètres!N67) -> 0.76 | O67: =IF([1]Paramètres!O67="","",[1]Paramètres!O67) -> 10 | P67: =IF([1]Paramètres!P67="","",[1]Paramètres!P67) -> 15.6 | Q67: =IF([1]Paramètres!Q67="","",[1]Paramètres!Q67) -> Basse- Moyenne
A68: =IF([1]Paramètres!A68="","",[1]Paramètres!A68) -> Château Crystal | B68: =IF([1]Paramètres!B68="","",[1]Paramètres!B68) -> 0.78 | C68: =IF([1]Paramètres!C68="","",[1]Paramètres!C68) -> 150 | D68: =IF([1]Paramètres!D68="","",[1]Paramètres!D68) -> 0.2 | E68: =IF([1]Paramètres!E68="","",[1]Paramètres!E68) -> 4.93 | J68: =IF([1]Paramètres!J68="","",[1]Paramètres!J68) -> GigaYeast - GY011 : BRITISH ALE #1 | K68: =IF([1]Paramètres!K68="","",[1]Paramètres!K68) ->  | L68: =IF([1]Paramètres!L68="","",[1]Paramètres!L68) -> 0.75 | M68: =IF([1]Paramètres!M68="","",[1]Paramètres!M68) -> 0.79 | N68: =IF([1]Paramètres!N68="","",[1]Paramètres!N68) -> 0.77 | O68: =IF([1]Paramètres!O68="","",[1]Paramètres!O68) -> 17.8 | P68: =IF([1]Paramètres!P68="","",[1]Paramètres!P68) -> 25 | Q68: =IF([1]Paramètres!Q68="","",[1]Paramètres!Q68) -> Haute
A69: =IF([1]Paramètres!A69="","",[1]Paramètres!A69) -> Château Diastasique | B69: =IF([1]Paramètres!B69="","",[1]Paramètres!B69) -> 0.8 | C69: =IF([1]Paramètres!C69="","",[1]Paramètres!C69) -> 3 | D69: =IF([1]Paramètres!D69="","",[1]Paramètres!D69) -> 0.3 | E69: =IF([1]Paramètres!E69="","",[1]Paramètres!E69) -> 5.7 | J69: =IF([1]Paramètres!J69="","",[1]Paramètres!J69) -> GigaYeast - GY031 : BRITISH ALE #2 | K69: =IF([1]Paramètres!K69="","",[1]Paramètres!K69) ->  | L69: =IF([1]Paramètres!L69="","",[1]Paramètres!L69) -> 0.8 | M69: =IF([1]Paramètres!M69="","",[1]Paramètres!M69) -> 0.82 | N69: =IF([1]Paramètres!N69="","",[1]Paramètres!N69) -> 0.81 | O69: =IF([1]Paramètres!O69="","",[1]Paramètres!O69) -> 17.8 | P69: =IF([1]Paramètres!P69="","",[1]Paramètres!P69) -> 23.9 | Q69: =IF([1]Paramètres!Q69="","",[1]Paramètres!Q69) -> Haute
A70: =IF([1]Paramètres!A70="","",[1]Paramètres!A70) -> Château Epeautre | B70: =IF([1]Paramètres!B70="","",[1]Paramètres!B70) -> 0.79 | C70: =IF([1]Paramètres!C70="","",[1]Paramètres!C70) -> 5 | D70: =IF([1]Paramètres!D70="","",[1]Paramètres!D70) -> 0.15 | E70: =IF([1]Paramètres!E70="","",[1]Paramètres!E70) -> 5.8 | J70: =IF([1]Paramètres!J70="","",[1]Paramètres!J70) -> GigaYeast - GY077 : QUEBEC ABBEY ALE | K70: =IF([1]Paramètres!K70="","",[1]Paramètres!K70) ->  | L70: =IF([1]Paramètres!L70="","",[1]Paramètres!L70) -> 0.79 | M70: =IF([1]Paramètres!M70="","",[1]Paramètres!M70) -> 0.83 | N70: =IF([1]Paramètres!N70="","",[1]Paramètres!N70) -> 0.81 | O70: =IF([1]Paramètres!O70="","",[1]Paramètres!O70) -> 20 | P70: =IF([1]Paramètres!P70="","",[1]Paramètres!P70) -> 26.7 | Q70: =IF([1]Paramètres!Q70="","",[1]Paramètres!Q70) -> Moyenne
A71: =IF([1]Paramètres!A71="","",[1]Paramètres!A71) -> Château Froment blanc | B71: =IF([1]Paramètres!B71="","",[1]Paramètres!B71) -> 0.83 | C71: =IF([1]Paramètres!C71="","",[1]Paramètres!C71) -> 4 | D71: =IF([1]Paramètres!D71="","",[1]Paramètres!D71) -> 0.35 | E71: =IF([1]Paramètres!E71="","",[1]Paramètres!E71) -> 6.04 | J71: =IF([1]Paramètres!J71="","",[1]Paramètres!J71) -> GigaYeast - GY001 : NORCAL ALE #1 | K71: =IF([1]Paramètres!K71="","",[1]Paramètres!K71) ->  | L71: =IF([1]Paramètres!L71="","",[1]Paramètres!L71) -> 0.76 | M71: =IF([1]Paramètres!M71="","",[1]Paramètres!M71) -> 0.8 | N71: =IF([1]Paramètres!N71="","",[1]Paramètres!N71) -> 0.78 | O71: =IF([1]Paramètres!O71="","",[1]Paramètres!O71) -> 17.8 | P71: =IF([1]Paramètres!P71="","",[1]Paramètres!P71) -> 25 | Q71: =IF([1]Paramètres!Q71="","",[1]Paramètres!Q71) -> Moyenne
A72: =IF([1]Paramètres!A72="","",[1]Paramètres!A72) -> Château Froment Chocolat | B72: =IF([1]Paramètres!B72="","",[1]Paramètres!B72) -> 0.71 | C72: =IF([1]Paramètres!C72="","",[1]Paramètres!C72) -> 900 | D72: =IF([1]Paramètres!D72="","",[1]Paramètres!D72) -> 0.2 | E72: =IF([1]Paramètres!E72="","",[1]Paramètres!E72) -> 4.71 | J72: =IF([1]Paramètres!J72="","",[1]Paramètres!J72) -> GigaYeast - GY080 : IRISH STOUT | K72: =IF([1]Paramètres!K72="","",[1]Paramètres!K72) ->  | L72: =IF([1]Paramètres!L72="","",[1]Paramètres!L72) -> 0.82 | M72: =IF([1]Paramètres!M72="","",[1]Paramètres!M72) -> 0.86 | N72: =IF([1]Paramètres!N72="","",[1]Paramètres!N72) -> 0.84 | O72: =IF([1]Paramètres!O72="","",[1]Paramètres!O72) -> 17.8 | P72: =IF([1]Paramètres!P72="","",[1]Paramètres!P72) -> 22.2 | Q72: =IF([1]Paramètres!Q72="","",[1]Paramètres!Q72) -> Moyenne
